Workbook

Sheet Calculator
A1: Payment amount | C1: 1500
A2: Payment start date | C2: 2024-09-28
A3: Number of Months | C3: 120
A5: Period | B5: Type | C5: Balance | D5: CSED | E5: Column1 | K5: Running Total Bal | L5: Months to Payoff | M5: Payoff Date | N5: Paid by CSED?
A6: 2014 | B6: 940 | C6: 10 | D6: 2025-03-30 | J6: =IFERROR(IF($C$3="",Table1[[#This Row],[CSED]],EDATE($C$2,$C$3)),"") -> 2034-09-28 | K6: =IFERROR(Table1[[#This Row],[Balance]],"") -> 10 | L6: =IFERROR(IF(Table1[[#This Row],[Period]]="","",MATCH(INDEX(Payments!#REF!,MATCH(TRUE,INDEX(Payments!#REF!>K6,0),)),Payments!#REF!)),"") ->  | M6: =IFERROR(EDATE($C$2,L6-1),"") ->  | N6: =IF(L6<>"",IF(M6<J6,"YES","NO"),"") -> 
A7: 2015 | B7: 940 | C7: 1547 | D7: 2026-05-09 | J7: =IFERROR(IF($C$3="",Table1[[#This Row],[CSED]],EDATE($C$2,$C$3)),"") -> 2034-09-28 | K7: =IFERROR(Table1[[#This Row],[Balance]]+K6,"") -> 1557 | L7: =IFERROR(IF(Table1[[#This Row],[Period]]="","",MATCH(INDEX(Payments!#REF!,MATCH(TRUE,INDEX(Payments!#REF!>K7,0),)),Payments!#REF!)),"") ->  | N7: =IF(L7<>"",IF(M7<J7,"YES","NO"),"") -> 
A8: 2015/Q4 | B8: 941 | C8: 5330 | D8: 05/09/2026* | J8: =IFERROR(IF($C$3="",Table1[[#This Row],[CSED]],EDATE($C$2,$C$3)),"") -> 2034-09-28 | K8: =IFERROR(Table1[[#This Row],[Balance]]+K7,"") -> 6887 | L8: =IFERROR(IF(Table1[[#This Row],[Period]]="","",MATCH(INDEX(Payments!#REF!,MATCH(TRUE,INDEX(Payments!#REF!>K8,0),)),Payments!#REF!)),"") -> 
A9: 2016 | B9: 1040 | C9: 9061 | D9: 2028-04-28 | J9: =IFERROR(IF($C$3="",Table1[[#This Row],[CSED]],EDATE($C$2,$C$3)),"") -> 2034-09-28 | K9: =IFERROR(Table1[[#This Row],[Balance]]+K8,"") -> 15948 | L9: =IFERROR(IF(Table1[[#This Row],[Period]]="","",MATCH(INDEX(Payments!#REF!,MATCH(TRUE,INDEX(Payments!#REF!>K9,0),)),Payments!#REF!)),"") -> 
A10: 2016 | B10: 940 | C10: 2170 | D10: 2027-05-15 | J10: =IFERROR(IF($C$3="",Table1[[#This Row],[CSED]],EDATE($C$2,$C$3)),"") -> 2034-09-28 | K10: =IFERROR(Table1[[#This Row],[Balance]]+K9,"") -> 18118 | L10: =IFERROR(IF(Table1[[#This Row],[Period]]="","",MATCH(INDEX(Payments!#REF!,MATCH(TRUE,INDEX(Payments!#REF!>K10,0),)),Payments!#REF!)),"") -> 
A11: 2016/Q1 | B11: 941 | C11: 8021 | D11: 08/08/2026* | J11: =IFERROR(IF($C$3="",Table1[[#This Row],[CSED]],EDATE($C$2,$C$3)),"") -> 2034-09-28 | K11: =IFERROR(Table1[[#This Row],[Balance]]+K10,"") -> 26139 | L11: =IFERROR(IF(Table1[[#This Row],[Period]]="","",MATCH(INDEX(Payments!#REF!,MATCH(TRUE,INDEX(Payments!#REF!>K11,0),)),Payments!#REF!)),"") -> 
A12: 2016/Q3 | B12: 941 | C12: 9136 | D12: 02/06/2027* | J12: =IFERROR(IF($C$3="",Table1[[#This Row],[CSED]],EDATE($C$2,$C$3)),"") -> 2034-09-28 | K12: =IFERROR(Table1[[#This Row],[Balance]]+K11,"") -> 35275 | L12: =IFERROR(IF(Table1[[#This Row],[Period]]="","",MATCH(INDEX(Payments!#REF!,MATCH(TRUE,INDEX(Payments!#REF!>K12,0),)),Payments!#REF!)),"") -> 
A13: 2016/Q4 | B13: 941 | C13: 16041 | D13: 05/15/2027* | J13: =IFERROR(IF($C$3="",Table1[[#This Row],[CSED]],EDATE($C$2,$C$3)),"") -> 2034-09-28 | K13: =IFERROR(Table1[[#This Row],[Balance]]+K12,"") -> 51316 | L13: =IFERROR(IF(Table1[[#This Row],[Period]]="","",MATCH(INDEX(Payments!#REF!,MATCH(TRUE,INDEX(Payments!#REF!>K13,0),)),Payments!#REF!)),"") -> 
A14: 2017 | B14: 1040 | C14: 5523 | D14: 2029-03-22 | J14: =IFERROR(IF($C$3="",Table1[[#This Row],[CSED]],EDATE($C$2,$C$3)),"") -> 2034-09-28 | K14: =IFERROR(Table1[[#This Row],[Balance]]+K13,"") -> 56839 | L14: =IFERROR(IF(Table1[[#This Row],[Period]]="","",MATCH(INDEX(Payments!#REF!,MATCH(TRUE,INDEX(Payments!#REF!>K14,0),)),Payments!#REF!)),"") -> 
A15: 2017 | B15: 940 | C15: 1868 | D15: 2028-04-30 | J15: =IFERROR(IF($C$3="",Table1[[#This Row],[CSED]],EDATE($C$2,$C$3)),"") -> 2034-09-28 | K15: =IFERROR(Table1[[#This Row],[Balance]]+K14,"") -> 58707 | L15: =IFERROR(IF(Table1[[#This Row],[Period]]="","",MATCH(INDEX(Payments!#REF!,MATCH(TRUE,INDEX(Payments!#REF!>K15,0),)),Payments!#REF!)),"") -> 
A16: 2017/Q2 | B16: 941 | C16: 12358 | D16: 11/06/2027* | J16: =IFERROR(IF($C$3="",Table1[[#This Row],[CSED]],EDATE($C$2,$C$3)),"") -> 2034-09-28 | K16: =IFERROR(Table1[[#This Row],[Balance]]+K15,"") -> 71065 | L16: =IFERROR(IF(Table1[[#This Row],[Period]]="","",MATCH(INDEX(Payments!#REF!,MATCH(TRUE,INDEX(Payments!#REF!>K16,0),)),Payments!#REF!)),"") -> 
A17: 2017/Q3 | B17: 941 | C17: 16795 | D17: 02/05/2028* | J17: =IFERROR(IF($C$3="",Table1[[#This Row],[CSED]],EDATE($C$2,$C$3)),"") -> 2034-09-28 | K17: =IFERROR(Table1[[#This Row],[Balance]]+K16,"") -> 87860 | L17: =IFERROR(IF(Table1[[#This Row],[Period]]="","",MATCH(INDEX(Payments!#REF!,MATCH(TRUE,INDEX(Payments!#REF!>K17,0),)),Payments!#REF!)),"") -> 
A18: 2018 | B18: 940 | C18: 458 | D18: 2029-05-06 | J18: =IFERROR(IF($C$3="",Table1[[#This Row],[CSED]],EDATE($C$2,$C$3)),"") -> 2034-09-28 | K18: =IFERROR(Table1[[#This Row],[Balance]]+K17,"") -> 88318 | L18: =IFERROR(IF(Table1[[#This Row],[Period]]="","",MATCH(INDEX(Payments!#REF!,MATCH(TRUE,INDEX(Payments!#REF!>K18,0),)),Payments!#REF!)),"") -> 
A19: 2018/Q1 | B19: 941 | C19: 15812 | D19: 08/13/2028* | J19: =IFERROR(IF($C$3="",Table1[[#This Row],[CSED]],EDATE($C$2,$C$3)),"") -> 2034-09-28 | K19: =IFERROR(Table1[[#This Row],[Balance]]+K18,"") -> 104130 | L19: =IFERROR(IF(Table1[[#This Row],[Period]]="","",MATCH(INDEX(Payments!#REF!,MATCH(TRUE,INDEX(Payments!#REF!>K19,0),)),Payments!#REF!)),"") -> 
A20: 2018/Q2 | B20: 941 | C20: 15893 | D20: 10/29/2028* | J20: =IFERROR(IF($C$3="",Table1[[#This Row],[CSED]],EDATE($C$2,$C$3)),"") -> 2034-09-28 | K20: =IFERROR(Table1[[#This Row],[Balance]]+K19,"") -> 120023 | L20: =IFERROR(IF(Table1[[#This Row],[Period]]="","",MATCH(INDEX(Payments!#REF!,MATCH(TRUE,INDEX(Payments!#REF!>K20,0),)),Payments!#REF!)),"") -> 
A21: 2018/Q3 | B21: 941 | C21: 15277 | D21: 02/11/2029* | J21: =IFERROR(IF($C$3="",Table1[[#This Row],[CSED]],EDATE($C$2,$C$3)),"") -> 2034-09-28 | K21: =IFERROR(Table1[[#This Row],[Balance]]+K20,"") -> 135300 | L21: =IFERROR(IF(Table1[[#This Row],[Period]]="","",MATCH(INDEX(Payments!#REF!,MATCH(TRUE,INDEX(Payments!#REF!>K21,0),)),Payments!#REF!)),"") -> 
A22: 2018/Q4 | B22: 941 | C22: 11673 | D22: 05/06/2029* | J22: =IFERROR(IF($C$3="",Table1[[#This Row],[CSED]],EDATE($C$2,$C$3)),"") -> 2034-09-28 | K22: =IFERROR(Table1[[#This Row],[Balance]]+K21,"") -> 146973 | L22: =IFERROR(IF(Table1[[#This Row],[Period]]="","",MATCH(INDEX(Payments!#REF!,MATCH(TRUE,INDEX(Payments!#REF!>K22,0),)),Payments!#REF!)),"") -> 
A23: 2019/Q1 | B23: 941 | C23: 10138 | D23: 08/05/2029* | J23: =IFERROR(IF($C$3="",Table1[[#This Row],[CSED]],EDATE($C$2,$C$3)),"") -> 2034-09-28 | K23: =IFERROR(Table1[[#This Row],[Balance]]+K22,"") -> 157111 | L23: =IFERROR(IF(Table1[[#This Row],[Period]]="","",MATCH(INDEX(Payments!#REF!,MATCH(TRUE,INDEX(Payments!#REF!>K23,0),)),Payments!#REF!)),"") -> 
A24: 2021 | B24: 1040 | C24: 9755 | D24: 2032-11-21 | J24: =IFERROR(IF($C$3="",Table1[[#This Row],[CSED]],EDATE($C$2,$C$3)),"") -> 2034-09-28 | K24: =IFERROR(Table1[[#This Row],[Balance]]+K23,"") -> 166866 | L24: =IFERROR(IF(Table1[[#This Row],[Period]]="","",MATCH(INDEX(Payments!#REF!,MATCH(TRUE,INDEX(Payments!#REF!>K24,0),)),Payments!#REF!)),"") -> 
A25: 2022 | B25: 1040 | C25: 2526 | D25: 2033-11-20 | J25: =IFERROR(IF($C$3="",Table1[[#This Row],[CSED]],EDATE($C$2,$C$3)),"") -> 2034-09-28 | K25: =IFERROR(Table1[[#This Row],[Balance]]+K24,"") -> 169392 | L25: =IFERROR(IF(Table1[[#This Row],[Period]]="","",MATCH(INDEX(Payments!#REF!,MATCH(TRUE,INDEX(Payments!#REF!>K25,0),)),Payments!#REF!)),"") -> 
J26: =IFERROR(IF($C$3="",Table1[[#This Row],[CSED]],EDATE($C$2,$C$3)),"") -> 2034-09-28 | K26: =IFERROR(Table1[[#This Row],[Balance]]+K25,"") ->  | L26: =IFERROR(IF(Table1[[#This Row],[Period]]="","",MATCH(INDEX(Payments!#REF!,MATCH(TRUE,INDEX(Payments!#REF!>K26,0),)),Payments!#REF!)),"") -> 
J27: =IFERROR(IF($C$3="",Table1[[#This Row],[CSED]],EDATE($C$2,$C$3)),"") -> 2034-09-28 | K27: =IFERROR(Table1[[#This Row],[Balance]]+K26,"") ->  | L27: =IFERROR(IF(Table1[[#This Row],[Period]]="","",MATCH(INDEX(Payments!#REF!,MATCH(TRUE,INDEX(Payments!#REF!>K27,0),)),Payments!#REF!)),"") -> 
J28: =IFERROR(IF($C$3="",Table1[[#This Row],[CSED]],EDATE($C$2,$C$3)),"") -> 2034-09-28 | K28: =IFERROR(Table1[[#This Row],[Balance]]+K27,"") ->  | L28: =IFERROR(IF(Table1[[#This Row],[Period]]="","",MATCH(INDEX(Payments!#REF!,MATCH(TRUE,INDEX(Payments!#REF!>K28,0),)),Payments!#REF!)),"") -> 
J29: =IFERROR(IF($C$3="",Table1[[#This Row],[CSED]],EDATE($C$2,$C$3)),"") -> 2034-09-28 | K29: =IFERROR(Table1[[#This Row],[Balance]]+K28,"") ->  | L29: =IFERROR(IF(Table1[[#This Row],[Period]]="","",MATCH(INDEX(Payments!#REF!,MATCH(TRUE,INDEX(Payments!#REF!>K29,0),)),Payments!#REF!)),"") -> 
J30: =IFERROR(IF($C$3="",Table1[[#This Row],[CSED]],EDATE($C$2,$C$3)),"") -> 2034-09-28 | K30: =IFERROR(Table1[[#This Row],[Balance]]+K29,"") ->  | L30: =IFERROR(IF(Table1[[#This Row],[Period]]="","",MATCH(INDEX(Payments!#REF!,MATCH(TRUE,INDEX(Payments!#REF!>K30,0),)),Payments!#REF!)),"") -> 
J31: =IFERROR(IF($C$3="",Table1[[#This Row],[CSED]],EDATE($C$2,$C$3)),"") -> 2034-09-28 | K31: =IFERROR(Table1[[#This Row],[Balance]]+K30,"") ->  | L31: =IFERROR(IF(Table1[[#This Row],[Period]]="","",MATCH(INDEX(Payments!#REF!,MATCH(TRUE,INDEX(Payments!#REF!>K31,0),)),Payments!#REF!)),"") -> 
J32: =IFERROR(IF($C$3="",Table1[[#This Row],[CSED]],EDATE($C$2,$C$3)),"") -> 2034-09-28 | K32: =IFERROR(Table1[[#This Row],[Balance]]+K31,"") ->  | L32: =IFERROR(IF(Table1[[#This Row],[Period]]="","",MATCH(INDEX(Payments!#REF!,MATCH(TRUE,INDEX(Payments!#REF!>K32,0),)),Payments!#REF!)),"") -> 
J33: =IFERROR(IF($C$3="",Table1[[#This Row],[CSED]],EDATE($C$2,$C$3)),"") -> 2034-09-28 | K33: =IFERROR(Table1[[#This Row],[Balance]]+K32,"") ->  | L33: =IFERROR(IF(Table1[[#This Row],[Period]]="","",MATCH(INDEX(Payments!#REF!,MATCH(TRUE,INDEX(Payments!#REF!>K33,0),)),Payments!#REF!)),"") -> 
J34: =IFERROR(IF($C$3="",Table1[[#This Row],[CSED]],EDATE($C$2,$C$3)),"") -> 2034-09-28 | K34: =IFERROR(Table1[[#This Row],[Balance]]+K33,"") ->  | L34: =IFERROR(IF(Table1[[#This Row],[Period]]="","",MATCH(INDEX(Payments!#REF!,MATCH(TRUE,INDEX(Payments!#REF!>K34,0),)),Payments!#REF!)),"") -> 
J35: =IFERROR(IF($C$3="",Table1[[#This Row],[CSED]],EDATE($C$2,$C$3)),"") -> 2034-09-28 | K35: =IFERROR(Table1[[#This Row],[Balance]]+K34,"") ->  | L35: =IFERROR(IF(Table1[[#This Row],[Period]]="","",MATCH(INDEX(Payments!#REF!,MATCH(TRUE,INDEX(Payments!#REF!>K35,0),)),Payments!#REF!)),"") -> 
J36: =IFERROR(IF($C$3="",Table1[[#This Row],[CSED]],EDATE($C$2,$C$3)),"") -> 2034-09-28 | K36: =IFERROR(Table1[[#This Row],[Balance]]+K35,"") ->  | L36: =IFERROR(IF(Table1[[#This Row],[Period]]="","",MATCH(INDEX(Payments!#REF!,MATCH(TRUE,INDEX(Payments!#REF!>K36,0),)),Payments!#REF!)),"") -> 
J37: =IFERROR(IF($C$3="",Table1[[#This Row],[CSED]],EDATE($C$2,$C$3)),"") -> 2034-09-28 | K37: =IFERROR(Table1[[#This Row],[Balance]]+K36,"") ->  | L37: =IFERROR(IF(Table1[[#This Row],[Period]]="","",MATCH(INDEX(Payments!#REF!,MATCH(TRUE,INDEX(Payments!#REF!>K37,0),)),Payments!#REF!)),"") -> 
J38: =IFERROR(IF($C$3="",Table1[[#This Row],[CSED]],EDATE($C$2,$C$3)),"") -> 2034-09-28 | K38: =IFERROR(Table1[[#This Row],[Balance]]+K37,"") ->  | L38: =IFERROR(IF(Table1[[#This Row],[Period]]="","",MATCH(INDEX(Payments!#REF!,MATCH(TRUE,INDEX(Payments!#REF!>K38,0),)),Payments!#REF!)),"") ->  | M38: =IFERROR(EDATE($C$2,L38-1),"") -> 
J39: =IFERROR(IF($C$3="",Table1[[#This Row],[CSED]],EDATE($C$2,$C$3)),"") -> 2034-09-28 | K39: =IFERROR(Table1[[#This Row],[Balance]]+K38,"") ->  | L39: =IFERROR(IF(Table1[[#This Row],[Period]]="","",MATCH(INDEX(Payments!#REF!,MATCH(TRUE,INDEX(Payments!#REF!>K39,0),)),Payments!#REF!)),"") -> 
J40: =IFERROR(IF($C$3="",Table1[[#This Row],[CSED]],EDATE($C$2,$C$3)),"") -> 2034-09-28 | K40: =IFERROR(Table1[[#This Row],[Balance]]+K39,"") ->  | L40: =IFERROR(IF(Table1[[#This Row],[Period]]="","",MATCH(INDEX(Payments!#REF!,MATCH(TRUE,INDEX(Payments!#REF!>K40,0),)),Payments!#REF!)),"") -> 
J41: =IFERROR(IF($C$3="",Table1[[#This Row],[CSED]],EDATE($C$2,$C$3)),"") -> 2034-09-28 | K41: =IFERROR(Table1[[#This Row],[Balance]]+K40,"") ->  | L41: =IFERROR(IF(Table1[[#This Row],[Period]]="","",MATCH(INDEX(Payments!#REF!,MATCH(TRUE,INDEX(Payments!#REF!>K41,0),)),Payments!#REF!)),"") -> 
J42: =IFERROR(IF($C$3="",Table1[[#This Row],[CSED]],EDATE($C$2,$C$3)),"") -> 2034-09-28 | K42: =IFERROR(Table1[[#This Row],[Balance]]+K41,"") ->  | L42: =IFERROR(IF(Table1[[#This Row],[Period]]="","",MATCH(INDEX(Payments!#REF!,MATCH(TRUE,INDEX(Payments!#REF!>K42,0),)),Payments!#REF!)),"") -> 
J43: =IFERROR(IF($C$3="",Table1[[#This Row],[CSED]],EDATE($C$2,$C$3)),"") -> 2034-09-28 | K43: =IFERROR(Table1[[#This Row],[Balance]]+K42,"") ->  | L43: =IFERROR(IF(Table1[[#This Row],[Period]]="","",MATCH(INDEX(Payments!#REF!,MATCH(TRUE,INDEX(Payments!#REF!>K43,0),)),Payments!#REF!)),"") -> 
J44: =IFERROR(IF($C$3="",Table1[[#This Row],[CSED]],EDATE($C$2,$C$3)),"") -> 2034-09-28 | K44: =IFERROR(Table1[[#This Row],[Balance]]+K43,"") ->  | L44: =IFERROR(IF(Table1[[#This Row],[Period]]="","",MATCH(INDEX(Payments!#REF!,MATCH(TRUE,INDEX(Payments!#REF!>K44,0),)),Payments!#REF!)),"") -> 
J45: =IFERROR(IF($C$3="",Table1[[#This Row],[CSED]],EDATE($C$2,$C$3)),"") -> 2034-09-28 | K45: =IFERROR(Table1[[#This Row],[Balance]]+K44,"") ->  | L45: =IFERROR(IF(Table1[[#This Row],[Period]]="","",MATCH(INDEX(Payments!#REF!,MATCH(TRUE,INDEX(Payments!#REF!>K45,0),)),Payments!#REF!)),"") -> 
J46: =IFERROR(IF($C$3="",Table1[[#This Row],[CSED]],EDATE($C$2,$C$3)),"") -> 2034-09-28 | K46: =IFERROR(Table1[[#This Row],[Balance]]+K45,"") ->  | L46: =IFERROR(IF(Table1[[#This Row],[Period]]="","",MATCH(INDEX(Payments!#REF!,MATCH(TRUE,INDEX(Payments!#REF!>K46,0),)),Payments!#REF!)),"") -> 
J47: =IFERROR(IF($C$3="",Table1[[#This Row],[CSED]],EDATE($C$2,$C$3)),"") -> 2034-09-28 | K47: =IFERROR(Table1[[#This Row],[Balance]]+K46,"") ->  | L47: =IFERROR(IF(Table1[[#This Row],[Period]]="","",MATCH(INDEX(Payments!#REF!,MATCH(TRUE,INDEX(Payments!#REF!>K47,0),)),Payments!#REF!)),"") -> 
J48: =IFERROR(IF($C$3="",Table1[[#This Row],[CSED]],EDATE($C$2,$C$3)),"") -> 2034-09-28 | K48: =IFERROR(Table1[[#This Row],[Balance]]+K47,"") ->  | L48: =IFERROR(IF(Table1[[#This Row],[Period]]="","",MATCH(INDEX(Payments!#REF!,MATCH(TRUE,INDEX(Payments!#REF!>K48,0),)),Payments!#REF!)),"") -> 
J49: =IFERROR(IF($C$3="",Table1[[#This Row],[CSED]],EDATE($C$2,$C$3)),"") -> 2034-09-28 | K49: =IFERROR(Table1[[#This Row],[Balance]]+K48,"") ->  | L49: =IFERROR(IF(Table1[[#This Row],[Period]]="","",MATCH(INDEX(Payments!#REF!,MATCH(TRUE,INDEX(Payments!#REF!>K49,0),)),Payments!#REF!)),"") -> 
J50: =IFERROR(IF($C$3="",Table1[[#This Row],[CSED]],EDATE($C$2,$C$3)),"") -> 2034-09-28 | K50: =IFERROR(Table1[[#This Row],[Balance]]+K49,"") ->  | L50: =IFERROR(IF(Table1[[#This Row],[Period]]="","",MATCH(INDEX(Payments!#REF!,MATCH(TRUE,INDEX(Payments!#REF!>K50,0),)),Payments!#REF!)),"") -> 
J51: =IFERROR(IF($C$3="",Table1[[#This Row],[CSED]],EDATE($C$2,$C$3)),"") -> 2034-09-28 | K51: =IFERROR(Table1[[#This Row],[Balance]]+K50,"") ->  | L51: =IFERROR(IF(Table1[[#This Row],[Period]]="","",MATCH(INDEX(Payments!#REF!,MATCH(TRUE,INDEX(Payments!#REF!>K51,0),)),Payments!#REF!)),"") -> 
J52: =IFERROR(IF($C$3="",Table1[[#This Row],[CSED]],EDATE($C$2,$C$3)),"") -> 2034-09-28 | K52: =IFERROR(Table1[[#This Row],[Balance]]+K51,"") ->  | L52: =IFERROR(IF(Table1[[#This Row],[Period]]="","",MATCH(INDEX(Payments!#REF!,MATCH(TRUE,INDEX(Payments!#REF!>K52,0),)),Payments!#REF!)),"") -> 
J53: =IFERROR(IF($C$3="",Table1[[#This Row],[CSED]],EDATE($C$2,$C$3)),"") -> 2034-09-28 | K53: =IFERROR(Table1[[#This Row],[Balance]]+K52,"") ->  | L53: =IFERROR(IF(Table1[[#This Row],[Period]]="","",MATCH(INDEX(Payments!#REF!,MATCH(TRUE,INDEX(Payments!#REF!>K53,0),)),Payments!#REF!)),"") -> 
J54: =IFERROR(IF($C$3="",Table1[[#This Row],[CSED]],EDATE($C$2,$C$3)),"") -> 2034-09-28 | K54: =IFERROR(Table1[[#This Row],[Balance]]+K53,"") ->  | L54: =IFERROR(IF(Table1[[#This Row],[Period]]="","",MATCH(INDEX(Payments!#REF!,MATCH(TRUE,INDEX(Payments!#REF!>K54,0),)),Payments!#REF!)),"") -> 
J55: =IFERROR(IF($C$3="",Table1[[#This Row],[CSED]],EDATE($C$2,$C$3)),"") -> 2034-09-28 | K55: =IFERROR(Table1[[#This Row],[Balance]]+K54,"") ->  | L55: =IFERROR(IF(Table1[[#This Row],[Period]]="","",MATCH(INDEX(Payments!#REF!,MATCH(TRUE,INDEX(Payments!#REF!>K55,0),)),Payments!#REF!)),"") -> 
J56: =IFERROR(IF($C$3="",Table1[[#This Row],[CSED]],EDATE($C$2,$C$3)),"") -> 2034-09-28 | K56: =IFERROR(Table1[[#This Row],[Balance]]+K55,"") ->  | L56: =IFERROR(IF(Table1[[#This Row],[Period]]="","",MATCH(INDEX(Payments!#REF!,MATCH(TRUE,INDEX(Payments!#REF!>K56,0),)),Payments!#REF!)),"") -> 
J57: =IFERROR(IF($C$3="",Table1[[#This Row],[CSED]],EDATE($C$2,$C$3)),"") -> 2034-09-28 | K57: =IFERROR(Table1[[#This Row],[Balance]]+K56,"") ->  | L57: =IFERROR(IF(Table1[[#This Row],[Period]]="","",MATCH(INDEX(Payments!#REF!,MATCH(TRUE,INDEX(Payments!#REF!>K57,0),)),Payments!#REF!)),"") -> 
J58: =IFERROR(IF($C$3="",Table1[[#This Row],[CSED]],EDATE($C$2,$C$3)),"") -> 2034-09-28 | K58: =IFERROR(Table1[[#This Row],[Balance]]+K57,"") ->  | L58: =IFERROR(IF(Table1[[#This Row],[Period]]="","",MATCH(INDEX(Payments!#REF!,MATCH(TRUE,INDEX(Payments!#REF!>K58,0),)),Payments!#REF!)),"") -> 
J59: =IFERROR(IF($C$3="",Table1[[#This Row],[CSED]],EDATE($C$2,$C$3)),"") -> 2034-09-28 | K59: =IFERROR(Table1[[#This Row],[Balance]]+K58,"") ->  | L59: =IFERROR(IF(Table1[[#This Row],[Period]]="","",MATCH(INDEX(Payments!#REF!,MATCH(TRUE,INDEX(Payments!#REF!>K59,0),)),Payments!#REF!)),"") -> 
J60: =IFERROR(IF($C$3="",Table1[[#This Row],[CSED]],EDATE($C$2,$C$3)),"") -> 2034-09-28 | K60: =IFERROR(Table1[[#This Row],[Balance]]+K59,"") ->  | L60: =IFERROR(IF(Table1[[#This Row],[Period]]="","",MATCH(INDEX(Payments!#REF!,MATCH(TRUE,INDEX(Payments!#REF!>K60,0),)),Payments!#REF!)),"") -> 
J61: =IFERROR(IF($C$3="",Table1[[#This Row],[CSED]],EDATE($C$2,$C$3)),"") -> 2034-09-28 | K61: =IFERROR(Table1[[#This Row],[Balance]]+K60,"") ->  | L61: =IFERROR(IF(Table1[[#This Row],[Period]]="","",MATCH(INDEX(Payments!#REF!,MATCH(TRUE,INDEX(Payments!#REF!>K61,0),)),Payments!#REF!)),"") -> 
J62: =IFERROR(IF($C$3="",Table1[[#This Row],[CSED]],EDATE($C$2,$C$3)),"") -> 2034-09-28 | K62: =IFERROR(Table1[[#This Row],[Balance]]+K61,"") ->  | L62: =IFERROR(IF(Table1[[#This Row],[Period]]="","",MATCH(INDEX(Payments!#REF!,MATCH(TRUE,INDEX(Payments!#REF!>K62,0),)),Payments!#REF!)),"") -> 
J63: =IFERROR(IF($C$3="",Table1[[#This Row],[CSED]],EDATE($C$2,$C$3)),"") -> 2034-09-28 | K63: =IFERROR(Table1[[#This Row],[Balance]]+K62,"") ->  | L63: =IFERROR(IF(Table1[[#This Row],[Period]]="","",MATCH(INDEX(Payments!#REF!,MATCH(TRUE,INDEX(Payments!#REF!>K63,0),)),Payments!#REF!)),"") -> 
J64: =IFERROR(IF($C$3="",Table1[[#This Row],[CSED]],EDATE($C$2,$C$3)),"") -> 2034-09-28 | K64: =IFERROR(Table1[[#This Row],[Balance]]+K63,"") ->  | L64: =IFERROR(IF(Table1[[#This Row],[Period]]="","",MATCH(INDEX(Payments!#REF!,MATCH(TRUE,INDEX(Payments!#REF!>K64,0),)),Payments!#REF!)),"") -> 
J65: =IFERROR(IF($C$3="",Table1[[#This Row],[CSED]],EDATE($C$2,$C$3)),"") -> 2034-09-28 | K65: =IFERROR(Table1[[#This Row],[Balance]]+K64,"") ->  | L65: =IFERROR(IF(Table1[[#This Row],[Period]]="","",MATCH(INDEX(Payments!#REF!,MATCH(TRUE,INDEX(Payments!#REF!>K65,0),)),Payments!#REF!)),"") -> 
J66: =IFERROR(IF($C$3="",Table1[[#This Row],[CSED]],EDATE($C$2,$C$3)),"") -> 2034-09-28 | K66: =IFERROR(Table1[[#This Row],[Balance]]+K65,"") ->  | L66: =IFERROR(IF(Table1[[#This Row],[Period]]="","",MATCH(INDEX(Payments!#REF!,MATCH(TRUE,INDEX(Payments!#REF!>K66,0),)),Payments!#REF!)),"") -> 
J67: =IFERROR(IF($C$3="",Table1[[#This Row],[CSED]],EDATE($C$2,$C$3)),"") -> 2034-09-28 | K67: =IFERROR(Table1[[#This Row],[Balance]]+K66,"") ->  | L67: =IFERROR(IF(Table1[[#This Row],[Period]]="","",MATCH(INDEX(Payments!#REF!,MATCH(TRUE,INDEX(Payments!#REF!>K67,0),)),Payments!#REF!)),"") -> 
J68: =IFERROR(IF($C$3="",Table1[[#This Row],[CSED]],EDATE($C$2,$C$3)),"") -> 2034-09-28 | K68: =IFERROR(Table1[[#This Row],[Balance]]+K67,"") ->  | L68: =IFERROR(IF(Table1[[#This Row],[Period]]="","",MATCH(INDEX(Payments!#REF!,MATCH(TRUE,INDEX(Payments!#REF!>K68,0),)),Payments!#REF!)),"") -> 
J69: =IFERROR(IF($C$3="",Table1[[#This Row],[CSED]],EDATE($C$2,$C$3)),"") -> 2034-09-28 | K69: =IFERROR(Table1[[#This Row],[Balance]]+K68,"") ->  | L69: =IFERROR(IF(Table1[[#This Row],[Period]]="","",MATCH(INDEX(Payments!#REF!,MATCH(TRUE,INDEX(Payments!#REF!>K69,0),)),Payments!#REF!)),"") -> 
J70: =IFERROR(IF($C$3="",Table1[[#This Row],[CSED]],EDATE($C$2,$C$3)),"") -> 2034-09-28 | K70: =IFERROR(Table1[[#This Row],[Balance]]+K69,"") ->  | L70: =IFERROR(IF(Table1[[#This Row],[Period]]="","",MATCH(INDEX(Payments!#REF!,MATCH(TRUE,INDEX(Payments!#REF!>K70,0),)),Payments!#REF!)),"") ->  | M70: =IFERROR(EDATE($C$2,L70-1),"") -> 
J71: =IFERROR(IF($C$3="",Table1[[#This Row],[CSED]],EDATE($C$2,$C$3)),"") -> 2034-09-28 | K71: =IFERROR(Table1[[#This Row],[Balance]]+K70,"") ->  | L71: =IFERROR(IF(Table1[[#This Row],[Period]]="","",MATCH(INDEX(Payments!#REF!,MATCH(TRUE,INDEX(Payments!#REF!>K71,0),)),Payments!#REF!)),"") ->  | N71: =IF(L71<>"",IF(M71<J71,"YES","NO"),"") -> 
J72: =IFERROR(IF($C$3="",Table1[[#This Row],[CSED]],EDATE($C$2,$C$3)),"") -> 2034-09-28 | K72: =IFERROR(Table1[[#This Row],[Balance]]+K71,"") ->  | L72: =IFERROR(IF(Table1[[#This Row],[Period]]="","",MATCH(INDEX(Payments!#REF!,MATCH(TRUE,INDEX(Payments!#REF!>K72,0),)),Payments!#REF!)),"") -> 
J73: =IFERROR(IF($C$3="",Table1[[#This Row],[CSED]],EDATE($C$2,$C$3)),"") -> 2034-09-28 | K73: =IFERROR(Table1[[#This Row],[Balance]]+K72,"") ->  | L73: =IFERROR(IF(Table1[[#This Row],[Period]]="","",MATCH(INDEX(Payments!#REF!,MATCH(TRUE,INDEX(Payments!#REF!>K73,0),)),Payments!#REF!)),"") -> 
J74: =IFERROR(IF($C$3="",Table1[[#This Row],[CSED]],EDATE($C$2,$C$3)),"") -> 2034-09-28 | K74: =IFERROR(Table1[[#This Row],[Balance]]+K73,"") ->  | L74: =IFERROR(IF(Table1[[#This Row],[Period]]="","",MATCH(INDEX(Payments!#REF!,MATCH(TRUE,INDEX(Payments!#REF!>K74,0),)),Payments!#REF!)),"") -> 
J75: =IFERROR(IF($C$3="",Table1[[#This Row],[CSED]],EDATE($C$2,$C$3)),"") -> 2034-09-28 | K75: =IFERROR(Table1[[#This Row],[Balance]]+K74,"") ->  | L75: =IFERROR(IF(Table1[[#This Row],[Period]]="","",MATCH(INDEX(Payments!#REF!,MATCH(TRUE,INDEX(Payments!#REF!>K75,0),)),Payments!#REF!)),"") -> 
J76: =IFERROR(IF($C$3="",Table1[[#This Row],[CSED]],EDATE($C$2,$C$3)),"") -> 2034-09-28 | K76: =IFERROR(Table1[[#This Row],[Balance]]+K75,"") ->  | L76: =IFERROR(IF(Table1[[#This Row],[Period]]="","",MATCH(INDEX(Payments!#REF!,MATCH(TRUE,INDEX(Payments!#REF!>K76,0),)),Payments!#REF!)),"") -> 
J77: =IFERROR(IF($C$3="",Table1[[#This Row],[CSED]],EDATE($C$2,$C$3)),"") -> 2034-09-28 | K77: =IFERROR(Table1[[#This Row],[Balance]]+K76,"") ->  | L77: =IFERROR(IF(Table1[[#This Row],[Period]]="","",MATCH(INDEX(Payments!#REF!,MATCH(TRUE,INDEX(Payments!#REF!>K77,0),)),Payments!#REF!)),"") -> 
J78: =IFERROR(IF($C$3="",Table1[[#This Row],[CSED]],EDATE($C$2,$C$3)),"") -> 2034-09-28 | K78: =IFERROR(Table1[[#This Row],[Balance]]+K77,"") ->  | L78: =IFERROR(IF(Table1[[#This Row],[Period]]="","",MATCH(INDEX(Payments!#REF!,MATCH(TRUE,INDEX(Payments!#REF!>K78,0),)),Payments!#REF!)),"") -> 
J79: =IFERROR(IF($C$3="",Table1[[#This Row],[CSED]],EDATE($C$2,$C$3)),"") -> 2034-09-28 | K79: =IFERROR(Table1[[#This Row],[Balance]]+K78,"") ->  | L79: =IFERROR(IF(Table1[[#This Row],[Period]]="","",MATCH(INDEX(Payments!#REF!,MATCH(TRUE,INDEX(Payments!#REF!>K79,0),)),Payments!#REF!)),"") -> 
J80: =IFERROR(IF($C$3="",Table1[[#This Row],[CSED]],EDATE($C$2,$C$3)),"") -> 2034-09-28 | K80: =IFERROR(Table1[[#This Row],[Balance]]+K79,"") ->  | L80: =IFERROR(IF(Table1[[#This Row],[Period]]="","",MATCH(INDEX(Payments!#REF!,MATCH(TRUE,INDEX(Payments!#REF!>K80,0),)),Payments!#REF!)),"") -> 
J81: =IFERROR(IF($C$3="",Table1[[#This Row],[CSED]],EDATE($C$2,$C$3)),"") -> 2034-09-28 | K81: =IFERROR(Table1[[#This Row],[Balance]]+K80,"") ->  | L81: =IFERROR(IF(Table1[[#This Row],[Period]]="","",MATCH(INDEX(Payments!#REF!,MATCH(TRUE,INDEX(Payments!#REF!>K81,0),)),Payments!#REF!)),"") -> 
J82: =IFERROR(IF($C$3="",Table1[[#This Row],[CSED]],EDATE($C$2,$C$3)),"") -> 2034-09-28 | K82: =IFERROR(Table1[[#This Row],[Balance]]+K81,"") ->  | L82: =IFERROR(IF(Table1[[#This Row],[Period]]="","",MATCH(INDEX(Payments!#REF!,MATCH(TRUE,INDEX(Payments!#REF!>K82,0),)),Payments!#REF!)),"") -> 
J83: =IFERROR(IF($C$3="",Table1[[#This Row],[CSED]],EDATE($C$2,$C$3)),"") -> 2034-09-28 | K83: =IFERROR(Table1[[#This Row],[Balance]]+K82,"") ->  | L83: =IFERROR(IF(Table1[[#This Row],[Period]]="","",MATCH(INDEX(Payments!#REF!,MATCH(TRUE,INDEX(Payments!#REF!>K83,0),)),Payments!#REF!)),"") -> 
J84: =IFERROR(IF($C$3="",Table1[[#This Row],[CSED]],EDATE($C$2,$C$3)),"") -> 2034-09-28 | K84: =IFERROR(Table1[[#This Row],[Balance]]+K83,"") ->  | L84: =IFERROR(IF(Table1[[#This Row],[Period]]="","",MATCH(INDEX(Payments!#REF!,MATCH(TRUE,INDEX(Payments!#REF!>K84,0),)),Payments!#REF!)),"") -> 
J85: =IFERROR(IF($C$3="",Table1[[#This Row],[CSED]],EDATE($C$2,$C$3)),"") -> 2034-09-28 | K85: =IFERROR(Table1[[#This Row],[Balance]]+K84,"") ->  | L85: =IFERROR(IF(Table1[[#This Row],[Period]]="","",MATCH(INDEX(Payments!#REF!,MATCH(TRUE,INDEX(Payments!#REF!>K85,0),)),Payments!#REF!)),"") -> 
J86: =IFERROR(IF($C$3="",Table1[[#This Row],[CSED]],EDATE($C$2,$C$3)),"") -> 2034-09-28 | K86: =IFERROR(Table1[[#This Row],[Balance]]+K85,"") ->  | L86: =IFERROR(IF(Table1[[#This Row],[Period]]="","",MATCH(INDEX(Payments!#REF!,MATCH(TRUE,INDEX(Payments!#REF!>K86,0),)),Payments!#REF!)),"") -> 
J87: =IFERROR(IF($C$3="",Table1[[#This Row],[CSED]],EDATE($C$2,$C$3)),"") -> 2034-09-28 | K87: =IFERROR(Table1[[#This Row],[Balance]]+K86,"") ->  | L87: =IFERROR(IF(Table1[[#This Row],[Period]]="","",MATCH(INDEX(Payments!#REF!,MATCH(TRUE,INDEX(Payments!#REF!>K87,0),)),Payments!#REF!)),"") -> 
J88: =IFERROR(IF($C$3="",Table1[[#This Row],[CSED]],EDATE($C$2,$C$3)),"") -> 2034-09-28 | K88: =IFERROR(Table1[[#This Row],[Balance]]+K87,"") ->  | L88: =IFERROR(IF(Table1[[#This Row],[Period]]="","",MATCH(INDEX(Payments!#REF!,MATCH(TRUE,INDEX(Payments!#REF!>K88,0),)),Payments!#REF!)),"") -> 
J89: =IFERROR(IF($C$3="",Table1[[#This Row],[CSED]],EDATE($C$2,$C$3)),"") -> 2034-09-28 | K89: =IFERROR(Table1[[#This Row],[Balance]]+K88,"") ->  | L89: =IFERROR(IF(Table1[[#This Row],[Period]]="","",MATCH(INDEX(Payments!#REF!,MATCH(TRUE,INDEX(Payments!#REF!>K89,0),)),Payments!#REF!)),"") -> 
J90: =IFERROR(IF($C$3="",Table1[[#This Row],[CSED]],EDATE($C$2,$C$3)),"") -> 2034-09-28 | K90: =IFERROR(Table1[[#This Row],[Balance]]+K89,"") ->  | L90: =IFERROR(IF(Table1[[#This Row],[Period]]="","",MATCH(INDEX(Payments!#REF!,MATCH(TRUE,INDEX(Payments!#REF!>K90,0),)),Payments!#REF!)),"") -> 
J91: =IFERROR(IF($C$3="",Table1[[#This Row],[CSED]],EDATE($C$2,$C$3)),"") -> 2034-09-28 | K91: =IFERROR(Table1[[#This Row],[Balance]]+K90,"") ->  | L91: =IFERROR(IF(Table1[[#This Row],[Period]]="","",MATCH(INDEX(Payments!#REF!,MATCH(TRUE,INDEX(Payments!#REF!>K91,0),)),Payments!#REF!)),"") -> 
J92: =IFERROR(IF($C$3="",Table1[[#This Row],[CSED]],EDATE($C$2,$C$3)),"") -> 2034-09-28 | K92: =IFERROR(Table1[[#This Row],[Balance]]+K91,"") ->  | L92: =IFERROR(IF(Table1[[#This Row],[Period]]="","",MATCH(INDEX(Payments!#REF!,MATCH(TRUE,INDEX(Payments!#REF!>K92,0),)),Payments!#REF!)),"") -> 
J93: =IFERROR(IF($C$3="",Table1[[#This Row],[CSED]],EDATE($C$2,$C$3)),"") -> 2034-09-28 | K93: =IFERROR(Table1[[#This Row],[Balance]]+K92,"") ->  | L93: =IFERROR(IF(Table1[[#This Row],[Period]]="","",MATCH(INDEX(Payments!#REF!,MATCH(TRUE,INDEX(Payments!#REF!>K93,0),)),Payments!#REF!)),"") -> 
J94: =IFERROR(IF($C$3="",Table1[[#This Row],[CSED]],EDATE($C$2,$C$3)),"") -> 2034-09-28 | K94: =IFERROR(Table1[[#This Row],[Balance]]+K93,"") ->  | L94: =IFERROR(IF(Table1[[#This Row],[Period]]="","",MATCH(INDEX(Payments!#REF!,MATCH(TRUE,INDEX(Payments!#REF!>K94,0),)),Payments!#REF!)),"") -> 
J95: =IFERROR(IF($C$3="",Table1[[#This Row],[CSED]],EDATE($C$2,$C$3)),"") -> 2034-09-28 | K95: =IFERROR(Table1[[#This Row],[Balance]]+K94,"") ->  | L95: =IFERROR(IF(Table1[[#This Row],[Period]]="","",MATCH(INDEX(Payments!#REF!,MATCH(TRUE,INDEX(Payments!#REF!>K95,0),)),Payments!#REF!)),"") -> 
J96: =IFERROR(IF($C$3="",Table1[[#This Row],[CSED]],EDATE($C$2,$C$3)),"") -> 2034-09-28 | K96: =IFERROR(Table1[[#This Row],[Balance]]+K95,"") ->  | L96: =IFERROR(IF(Table1[[#This Row],[Period]]="","",MATCH(INDEX(Payments!#REF!,MATCH(TRUE,INDEX(Payments!#REF!>K96,0),)),Payments!#REF!)),"") -> 
J97: =IFERROR(IF($C$3="",Table1[[#This Row],[CSED]],EDATE($C$2,$C$3)),"") -> 2034-09-28 | K97: =IFERROR(Table1[[#This Row],[Balance]]+K96,"") ->  | L97: =IFERROR(IF(Table1[[#This Row],[Period]]="","",MATCH(INDEX(Payments!#REF!,MATCH(TRUE,INDEX(Payments!#REF!>K97,0),)),Payments!#REF!)),"") -> 
J98: =IFERROR(IF($C$3="",Table1[[#This Row],[CSED]],EDATE($C$2,$C$3)),"") -> 2034-09-28 | K98: =IFERROR(Table1[[#This Row],[Balance]]+K97,"") ->  | L98: =IFERROR(IF(Table1[[#This Row],[Period]]="","",MATCH(INDEX(Payments!#REF!,MATCH(TRUE,INDEX(Payments!#REF!>K98,0),)),Payments!#REF!)),"") -> 
J99: =IFERROR(IF($C$3="",Table1[[#This Row],[CSED]],EDATE($C$2,$C$3)),"") -> 2034-09-28 | K99: =IFERROR(Table1[[#This Row],[Balance]]+K98,"") ->  | L99: =IFERROR(IF(Table1[[#This Row],[Period]]="","",MATCH(INDEX(Payments!#REF!,MATCH(TRUE,INDEX(Payments!#REF!>K99,0),)),Payments!#REF!)),"") -> 
J100: =IFERROR(IF($C$3="",Table1[[#This Row],[CSED]],EDATE($C$2,$C$3)),"") -> 2034-09-28 | K100: =IFERROR(Table1[[#This Row],[Balance]]+K99,"") ->  | L100: =IFERROR(IF(Table1[[#This Row],[Period]]="","",MATCH(INDEX(Payments!#REF!,MATCH(TRUE,INDEX(Payments!#REF!>K100,0),)),Payments!#REF!)),"") -> 
J101: =IFERROR(IF($C$3="",Table1[[#This Row],[CSED]],EDATE($C$2,$C$3)),"") -> 2034-09-28 | K101: =IFERROR(Table1[[#This Row],[Balance]]+K100,"") ->  | L101: =IFERROR(IF(Table1[[#This Row],[Period]]="","",MATCH(INDEX(Payments!#REF!,MATCH(TRUE,INDEX(Payments!#REF!>K101,0),)),Payments!#REF!)),"") -> 
J102: =IFERROR(IF($C$3="",Table1[[#This Row],[CSED]],EDATE($C$2,$C$3)),"") -> 2034-09-28 | K102: =IFERROR(Table1[[#This Row],[Balance]]+K101,"") ->  | L102: =IFERROR(IF(Table1[[#This Row],[Period]]="","",MATCH(INDEX(Payments!#REF!,MATCH(TRUE,INDEX(Payments!#REF!>K102,0),)),Payments!#REF!)),"") ->  | M102: =IFERROR(EDATE($C$2,L102-1),"") -> 
J103: =IFERROR(IF($C$3="",Table1[[#This Row],[CSED]],EDATE($C$2,$C$3)),"") -> 2034-09-28 | K103: =IFERROR(Table1[[#This Row],[Balance]]+K102,"") ->  | L103: =IFERROR(IF(Table1[[#This Row],[Period]]="","",MATCH(INDEX(Payments!#REF!,MATCH(TRUE,INDEX(Payments!#REF!>K103,0),)),Payments!#REF!)),"") -> 
J104: =IFERROR(IF($C$3="",Table1[[#This Row],[CSED]],EDATE($C$2,$C$3)),"") -> 2034-09-28 | K104: =IFERROR(Table1[[#This Row],[Balance]]+K103,"") ->  | L104: =IFERROR(IF(Table1[[#This Row],[Period]]="","",MATCH(INDEX(Payments!#REF!,MATCH(TRUE,INDEX(Payments!#REF!>K104,0),)),Payments!#REF!)),"") -> 
J105: =IFERROR(IF($C$3="",Table1[[#This Row],[CSED]],EDATE($C$2,$C$3)),"") -> 2034-09-28 | K105: =IFERROR(Table1[[#This Row],[Balance]]+K104,"") ->  | L105: =IFERROR(IF(Table1[[#This Row],[Period]]="","",MATCH(INDEX(Payments!#REF!,MATCH(TRUE,INDEX(Payments!#REF!>K105,0),)),Payments!#REF!)),"") -> 
J106: =IFERROR(IF($C$3="",Table1[[#This Row],[CSED]],EDATE($C$2,$C$3)),"") -> 2034-09-28 | K106: =IFERROR(Table1[[#This Row],[Balance]]+K105,"") ->  | L106: =IFERROR(IF(Table1[[#This Row],[Period]]="","",MATCH(INDEX(Payments!#REF!,MATCH(TRUE,INDEX(Payments!#REF!>K106,0),)),Payments!#REF!)),"") -> 
J107: =IFERROR(IF($C$3="",Table1[[#This Row],[CSED]],EDATE($C$2,$C$3)),"") -> 2034-09-28 | K107: =IFERROR(Table1[[#This Row],[Balance]]+K106,"") ->  | L107: =IFERROR(IF(Table1[[#This Row],[Period]]="","",MATCH(INDEX(Payments!#REF!,MATCH(TRUE,INDEX(Payments!#REF!>K107,0),)),Payments!#REF!)),"") -> 
J108: =IFERROR(IF($C$3="",Table1[[#This Row],[CSED]],EDATE($C$2,$C$3)),"") -> 2034-09-28 | K108: =IFERROR(Table1[[#This Row],[Balance]]+K107,"") ->  | L108: =IFERROR(IF(Table1[[#This Row],[Period]]="","",MATCH(INDEX(Payments!#REF!,MATCH(TRUE,INDEX(Payments!#REF!>K108,0),)),Payments!#REF!)),"") -> 
J109: =IFERROR(IF($C$3="",Table1[[#This Row],[CSED]],EDATE($C$2,$C$3)),"") -> 2034-09-28 | K109: =IFERROR(Table1[[#This Row],[Balance]]+K108,"") ->  | L109: =IFERROR(IF(Table1[[#This Row],[Period]]="","",MATCH(INDEX(Payments!#REF!,MATCH(TRUE,INDEX(Payments!#REF!>K109,0),)),Payments!#REF!)),"") -> 
J110: =IFERROR(IF($C$3="",Table1[[#This Row],[CSED]],EDATE($C$2,$C$3)),"") -> 2034-09-28 | K110: =IFERROR(Table1[[#This Row],[Balance]]+K109,"") ->  | L110: =IFERROR(IF(Table1[[#This Row],[Period]]="","",MATCH(INDEX(Payments!#REF!,MATCH(TRUE,INDEX(Payments!#REF!>K110,0),)),Payments!#REF!)),"") -> 
J111: =IFERROR(IF($C$3="",Table1[[#This Row],[CSED]],EDATE($C$2,$C$3)),"") -> 2034-09-28 | K111: =IFERROR(Table1[[#This Row],[Balance]]+K110,"") ->  | L111: =IFERROR(IF(Table1[[#This Row],[Period]]="","",MATCH(INDEX(Payments!#REF!,MATCH(TRUE,INDEX(Payments!#REF!>K111,0),)),Payments!#REF!)),"") -> 
J112: =IFERROR(IF($C$3="",Table1[[#This Row],[CSED]],EDATE($C$2,$C$3)),"") -> 2034-09-28 | K112: =IFERROR(Table1[[#This Row],[Balance]]+K111,"") ->  | L112: =IFERROR(IF(Table1[[#This Row],[Period]]="","",MATCH(INDEX(Payments!#REF!,MATCH(TRUE,INDEX(Payments!#REF!>K112,0),)),Payments!#REF!)),"") -> 
J113: =IFERROR(IF($C$3="",Table1[[#This Row],[CSED]],EDATE($C$2,$C$3)),"") -> 2034-09-28 | K113: =IFERROR(Table1[[#This Row],[Balance]]+K112,"") ->  | L113: =IFERROR(IF(Table1[[#This Row],[Period]]="","",MATCH(INDEX(Payments!#REF!,MATCH(TRUE,INDEX(Payments!#REF!>K113,0),)),Payments!#REF!)),"") -> 
J114: =IFERROR(IF($C$3="",Table1[[#This Row],[CSED]],EDATE($C$2,$C$3)),"") -> 2034-09-28 | K114: =IFERROR(Table1[[#This Row],[Balance]]+K113,"") ->  | L114: =IFERROR(IF(Table1[[#This Row],[Period]]="","",MATCH(INDEX(Payments!#REF!,MATCH(TRUE,INDEX(Payments!#REF!>K114,0),)),Payments!#REF!)),"") -> 
J115: =IFERROR(IF($C$3="",Table1[[#This Row],[CSED]],EDATE($C$2,$C$3)),"") -> 2034-09-28 | K115: =IFERROR(Table1[[#This Row],[Balance]]+K114,"") ->  | L115: =IFERROR(IF(Table1[[#This Row],[Period]]="","",MATCH(INDEX(Payments!#REF!,MATCH(TRUE,INDEX(Payments!#REF!>K115,0),)),Payments!#REF!)),"") -> 
J116: =IFERROR(IF($C$3="",Table1[[#This Row],[CSED]],EDATE($C$2,$C$3)),"") -> 2034-09-28 | K116: =IFERROR(Table1[[#This Row],[Balance]]+K115,"") ->  | L116: =IFERROR(IF(Table1[[#This Row],[Period]]="","",MATCH(INDEX(Payments!#REF!,MATCH(TRUE,INDEX(Payments!#REF!>K116,0),)),Payments!#REF!)),"") -> 
J117: =IFERROR(IF($C$3="",Table1[[#This Row],[CSED]],EDATE($C$2,$C$3)),"") -> 2034-09-28 | K117: =IFERROR(Table1[[#This Row],[Balance]]+K116,"") ->  | L117: =IFERROR(IF(Table1[[#This Row],[Period]]="","",MATCH(INDEX(Payments!#REF!,MATCH(TRUE,INDEX(Payments!#REF!>K117,0),)),Payments!#REF!)),"") -> 
J118: =IFERROR(IF($C$3="",Table1[[#This Row],[CSED]],EDATE($C$2,$C$3)),"") -> 2034-09-28 | K118: =IFERROR(Table1[[#This Row],[Balance]]+K117,"") ->  | L118: =IFERROR(IF(Table1[[#This Row],[Period]]="","",MATCH(INDEX(Payments!#REF!,MATCH(TRUE,INDEX(Payments!#REF!>K118,0),)),Payments!#REF!)),"") -> 
J119: =IFERROR(IF($C$3="",Table1[[#This Row],[CSED]],EDATE($C$2,$C$3)),"") -> 2034-09-28 | K119: =IFERROR(Table1[[#This Row],[Balance]]+K118,"") ->  | L119: =IFERROR(IF(Table1[[#This Row],[Period]]="","",MATCH(INDEX(Payments!#REF!,MATCH(TRUE,INDEX(Payments!#REF!>K119,0),)),Payments!#REF!)),"") -> 
J120: =IFERROR(IF($C$3="",Table1[[#This Row],[CSED]],EDATE($C$2,$C$3)),"") -> 2034-09-28 | K120: =IFERROR(Table1[[#This Row],[Balance]]+K119,"") ->  | L120: =IFERROR(IF(Table1[[#This Row],[Period]]="","",MATCH(INDEX(Payments!#REF!,MATCH(TRUE,INDEX(Payments!#REF!>K120,0),)),Payments!#REF!)),"") -> 
J121: =IFERROR(IF($C$3="",Table1[[#This Row],[CSED]],EDATE($C$2,$C$3)),"") -> 2034-09-28 | K121: =IFERROR(Table1[[#This Row],[Balance]]+K120,"") ->  | L121: =IFERROR(IF(Table1[[#This Row],[Period]]="","",MATCH(INDEX(Payments!#REF!,MATCH(TRUE,INDEX(Payments!#REF!>K121,0),)),Payments!#REF!)),"") -> 
J122: =IFERROR(IF($C$3="",Table1[[#This Row],[CSED]],EDATE($C$2,$C$3)),"") -> 2034-09-28 | K122: =IFERROR(Table1[[#This Row],[Balance]]+K121,"") ->  | L122: =IFERROR(IF(Table1[[#This Row],[Period]]="","",MATCH(INDEX(Payments!#REF!,MATCH(TRUE,INDEX(Payments!#REF!>K122,0),)),Payments!#REF!)),"") -> 
J123: =IFERROR(IF($C$3="",Table1[[#This Row],[CSED]],EDATE($C$2,$C$3)),"") -> 2034-09-28 | K123: =IFERROR(Table1[[#This Row],[Balance]]+K122,"") ->  | L123: =IFERROR(IF(Table1[[#This Row],[Period]]="","",MATCH(INDEX(Payments!#REF!,MATCH(TRUE,INDEX(Payments!#REF!>K123,0),)),Payments!#REF!)),"") -> 
J124: =IFERROR(IF($C$3="",Table1[[#This Row],[CSED]],EDATE($C$2,$C$3)),"") -> 2034-09-28 | K124: =IFERROR(Table1[[#This Row],[Balance]]+K123,"") ->  | L124: =IFERROR(IF(Table1[[#This Row],[Period]]="","",MATCH(INDEX(Payments!#REF!,MATCH(TRUE,INDEX(Payments!#REF!>K124,0),)),Payments!#REF!)),"") -> 
J125: =IFERROR(IF($C$3="",Table1[[#This Row],[CSED]],EDATE($C$2,$C$3)),"") -> 2034-09-28 | K125: =IFERROR(Table1[[#This Row],[Balance]]+K124,"") ->  | L125: =IFERROR(IF(Table1[[#This Row],[Period]]="","",MATCH(INDEX(Payments!#REF!,MATCH(TRUE,INDEX(Payments!#REF!>K125,0),)),Payments!#REF!)),"") -> 
J126: =IFERROR(IF($C$3="",Table1[[#This Row],[CSED]],EDATE($C$2,$C$3)),"") -> 2034-09-28 | K126: =IFERROR(Table1[[#This Row],[Balance]]+K125,"") ->  | L126: =IFERROR(IF(Table1[[#This Row],[Period]]="","",MATCH(INDEX(Payments!#REF!,MATCH(TRUE,INDEX(Payments!#REF!>K126,0),)),Payments!#REF!)),"") -> 
J127: =IFERROR(IF($C$3="",Table1[[#This Row],[CSED]],EDATE($C$2,$C$3)),"") -> 2034-09-28 | K127: =IFERROR(Table1[[#This Row],[Balance]]+K126,"") ->  | L127: =IFERROR(IF(Table1[[#This Row],[Period]]="","",MATCH(INDEX(Payments!#REF!,MATCH(TRUE,INDEX(Payments!#REF!>K127,0),)),Payments!#REF!)),"") -> 
J128: =IFERROR(IF($C$3="",Table1[[#This Row],[CSED]],EDATE($C$2,$C$3)),"") -> 2034-09-28 | K128: =IFERROR(Table1[[#This Row],[Balance]]+K127,"") ->  | L128: =IFERROR(IF(Table1[[#This Row],[Period]]="","",MATCH(INDEX(Payments!#REF!,MATCH(TRUE,INDEX(Payments!#REF!>K128,0),)),Payments!#REF!)),"") -> 
J129: =IFERROR(IF($C$3="",Table1[[#This Row],[CSED]],EDATE($C$2,$C$3)),"") -> 2034-09-28 | K129: =IFERROR(Table1[[#This Row],[Balance]]+K128,"") ->  | L129: =IFERROR(IF(Table1[[#This Row],[Period]]="","",MATCH(INDEX(Payments!#REF!,MATCH(TRUE,INDEX(Payments!#REF!>K129,0),)),Payments!#REF!)),"") -> 
J130: =IFERROR(IF($C$3="",Table1[[#This Row],[CSED]],EDATE($C$2,$C$3)),"") -> 2034-09-28 | K130: =IFERROR(Table1[[#This Row],[Balance]]+K129,"") ->  | L130: =IFERROR(IF(Table1[[#This Row],[Period]]="","",MATCH(INDEX(Payments!#REF!,MATCH(TRUE,INDEX(Payments!#REF!>K130,0),)),Payments!#REF!)),"") -> 
J131: =IFERROR(IF($C$3="",Table1[[#This Row],[CSED]],EDATE($C$2,$C$3)),"") -> 2034-09-28 | K131: =IFERROR(Table1[[#This Row],[Balance]]+K130,"") ->  | L131: =IFERROR(IF(Table1[[#This Row],[Period]]="","",MATCH(INDEX(Payments!#REF!,MATCH(TRUE,INDEX(Payments!#REF!>K131,0),)),Payments!#REF!)),"") -> 
J132: =IFERROR(IF($C$3="",Table1[[#This Row],[CSED]],EDATE($C$2,$C$3)),"") -> 2034-09-28 | K132: =IFERROR(Table1[[#This Row],[Balance]]+K131,"") ->  | L132: =IFERROR(IF(Table1[[#This Row],[Period]]="","",MATCH(INDEX(Payments!#REF!,MATCH(TRUE,INDEX(Payments!#REF!>K132,0),)),Payments!#REF!)),"") -> 
J133: =IFERROR(IF($C$3="",Table1[[#This Row],[CSED]],EDATE($C$2,$C$3)),"") -> 2034-09-28 | K133: =IFERROR(Table1[[#This Row],[Balance]]+K132,"") ->  | L133: =IFERROR(IF(Table1[[#This Row],[Period]]="","",MATCH(INDEX(Payments!#REF!,MATCH(TRUE,INDEX(Payments!#REF!>K133,0),)),Payments!#REF!)),"") -> 
J134: =IFERROR(IF($C$3="",Table1[[#This Row],[CSED]],EDATE($C$2,$C$3)),"") -> 2034-09-28 | K134: =IFERROR(Table1[[#This Row],[Balance]]+K133,"") ->  | L134: =IFERROR(IF(Table1[[#This Row],[Period]]="","",MATCH(INDEX(Payments!#REF!,MATCH(TRUE,INDEX(Payments!#REF!>K134,0),)),Payments!#REF!)),"") ->  | M134: =IFERROR(EDATE($C$2,L134-1),"") -> 
J135: =IFERROR(IF($C$3="",Table1[[#This Row],[CSED]],EDATE($C$2,$C$3)),"") -> 2034-09-28 | K135: =IFERROR(Table1[[#This Row],[Balance]]+K134,"") ->  | L135: =IFERROR(IF(Table1[[#This Row],[Period]]="","",MATCH(INDEX(Payments!#REF!,MATCH(TRUE,INDEX(Payments!#REF!>K135,0),)),Payments!#REF!)),"") ->  | N135: =IF(L135<>"",IF(M135<J135,"YES","NO"),"") -> 
J136: =IFERROR(IF($C$3="",Table1[[#This Row],[CSED]],EDATE($C$2,$C$3)),"") -> 2034-09-28 | K136: =IFERROR(Table1[[#This Row],[Balance]]+K135,"") ->  | L136: =IFERROR(IF(Table1[[#This Row],[Period]]="","",MATCH(INDEX(Payments!#REF!,MATCH(TRUE,INDEX(Payments!#REF!>K136,0),)),Payments!#REF!)),"") -> 
J137: =IFERROR(IF($C$3="",Table1[[#This Row],[CSED]],EDATE($C$2,$C$3)),"") -> 2034-09-28 | K137: =IFERROR(Table1[[#This Row],[Balance]]+K136,"") ->  | L137: =IFERROR(IF(Table1[[#This Row],[Period]]="","",MATCH(INDEX(Payments!#REF!,MATCH(TRUE,INDEX(Payments!#REF!>K137,0),)),Payments!#REF!)),"") -> 
J138: =IFERROR(IF($C$3="",Table1[[#This Row],[CSED]],EDATE($C$2,$C$3)),"") -> 2034-09-28 | K138: =IFERROR(Table1[[#This Row],[Balance]]+K137,"") ->  | L138: =IFERROR(IF(Table1[[#This Row],[Period]]="","",MATCH(INDEX(Payments!#REF!,MATCH(TRUE,INDEX(Payments!#REF!>K138,0),)),Payments!#REF!)),"") -> 
J139: =IFERROR(IF($C$3="",Table1[[#This Row],[CSED]],EDATE($C$2,$C$3)),"") -> 2034-09-28 | K139: =IFERROR(Table1[[#This Row],[Balance]]+K138,"") ->  | L139: =IFERROR(IF(Table1[[#This Row],[Period]]="","",MATCH(INDEX(Payments!#REF!,MATCH(TRUE,INDEX(Payments!#REF!>K139,0),)),Payments!#REF!)),"") -> 
J140: =IFERROR(IF($C$3="",Table1[[#This Row],[CSED]],EDATE($C$2,$C$3)),"") -> 2034-09-28 | K140: =IFERROR(Table1[[#This Row],[Balance]]+K139,"") ->  | L140: =IFERROR(IF(Table1[[#This Row],[Period]]="","",MATCH(INDEX(Payments!#REF!,MATCH(TRUE,INDEX(Payments!#REF!>K140,0),)),Payments!#REF!)),"") -> 
J141: =IFERROR(IF($C$3="",Table1[[#This Row],[CSED]],EDATE($C$2,$C$3)),"") -> 2034-09-28 | K141: =IFERROR(Table1[[#This Row],[Balance]]+K140,"") ->  | L141: =IFERROR(IF(Table1[[#This Row],[Period]]="","",MATCH(INDEX(Payments!#REF!,MATCH(TRUE,INDEX(Payments!#REF!>K141,0),)),Payments!#REF!)),"") -> 
J142: =IFERROR(IF($C$3="",Table1[[#This Row],[CSED]],EDATE($C$2,$C$3)),"") -> 2034-09-28 | K142: =IFERROR(Table1[[#This Row],[Balance]]+K141,"") ->  | L142: =IFERROR(IF(Table1[[#This Row],[Period]]="","",MATCH(INDEX(Payments!#REF!,MATCH(TRUE,INDEX(Payments!#REF!>K142,0),)),Payments!#REF!)),"") -> 
J143: =IFERROR(IF($C$3="",Table1[[#This Row],[CSED]],EDATE($C$2,$C$3)),"") -> 2034-09-28 | K143: =IFERROR(Table1[[#This Row],[Balance]]+K142,"") ->  | L143: =IFERROR(IF(Table1[[#This Row],[Period]]="","",MATCH(INDEX(Payments!#REF!,MATCH(TRUE,INDEX(Payments!#REF!>K143,0),)),Payments!#REF!)),"") -> 
J144: =IFERROR(IF($C$3="",Table1[[#This Row],[CSED]],EDATE($C$2,$C$3)),"") -> 2034-09-28 | K144: =IFERROR(Table1[[#This Row],[Balance]]+K143,"") ->  | L144: =IFERROR(IF(Table1[[#This Row],[Period]]="","",MATCH(INDEX(Payments!#REF!,MATCH(TRUE,INDEX(Payments!#REF!>K144,0),)),Payments!#REF!)),"") -> 
J145: =IFERROR(IF($C$3="",Table1[[#This Row],[CSED]],EDATE($C$2,$C$3)),"") -> 2034-09-28 | K145: =IFERROR(Table1[[#This Row],[Balance]]+K144,"") ->  | L145: =IFERROR(IF(Table1[[#This Row],[Period]]="","",MATCH(INDEX(Payments!#REF!,MATCH(TRUE,INDEX(Payments!#REF!>K145,0),)),Payments!#REF!)),"") -> 
J146: =IFERROR(IF($C$3="",Table1[[#This Row],[CSED]],EDATE($C$2,$C$3)),"") -> 2034-09-28 | K146: =IFERROR(Table1[[#This Row],[Balance]]+K145,"") ->  | L146: =IFERROR(IF(Table1[[#This Row],[Period]]="","",MATCH(INDEX(Payments!#REF!,MATCH(TRUE,INDEX(Payments!#REF!>K146,0),)),Payments!#REF!)),"") -> 
J147: =IFERROR(IF($C$3="",Table1[[#This Row],[CSED]],EDATE($C$2,$C$3)),"") -> 2034-09-28 | K147: =IFERROR(Table1[[#This Row],[Balance]]+K146,"") ->  | L147: =IFERROR(IF(Table1[[#This Row],[Period]]="","",MATCH(INDEX(Payments!#REF!,MATCH(TRUE,INDEX(Payments!#REF!>K147,0),)),Payments!#REF!)),"") -> 
J148: =IFERROR(IF($C$3="",Table1[[#This Row],[CSED]],EDATE($C$2,$C$3)),"") -> 2034-09-28 | K148: =IFERROR(Table1[[#This Row],[Balance]]+K147,"") ->  | L148: =IFERROR(IF(Table1[[#This Row],[Period]]="","",MATCH(INDEX(Payments!#REF!,MATCH(TRUE,INDEX(Payments!#REF!>K148,0),)),Payments!#REF!)),"") -> 
J149: =IFERROR(IF($C$3="",Table1[[#This Row],[CSED]],EDATE($C$2,$C$3)),"") -> 2034-09-28 | K149: =IFERROR(Table1[[#This Row],[Balance]]+K148,"") ->  | L149: =IFERROR(IF(Table1[[#This Row],[Period]]="","",MATCH(INDEX(Payments!#REF!,MATCH(TRUE,INDEX(Payments!#REF!>K149,0),)),Payments!#REF!)),"") -> 
J150: =IFERROR(IF($C$3="",Table1[[#This Row],[CSED]],EDATE($C$2,$C$3)),"") -> 2034-09-28 | K150: =IFERROR(Table1[[#This Row],[Balance]]+K149,"") ->  | L150: =IFERROR(IF(Table1[[#This Row],[Period]]="","",MATCH(INDEX(Payments!#REF!,MATCH(TRUE,INDEX(Payments!#REF!>K150,0),)),Payments!#REF!)),"") -> 
J151: =IFERROR(IF($C$3="",Table1[[#This Row],[CSED]],EDATE($C$2,$C$3)),"") -> 2034-09-28 | K151: =IFERROR(Table1[[#This Row],[Balance]]+K150,"") ->  | L151: =IFERROR(IF(Table1[[#This Row],[Period]]="","",MATCH(INDEX(Payments!#REF!,MATCH(TRUE,INDEX(Payments!#REF!>K151,0),)),Payments!#REF!)),"") -> 
J152: =IFERROR(IF($C$3="",Table1[[#This Row],[CSED]],EDATE($C$2,$C$3)),"") -> 2034-09-28 | K152: =IFERROR(Table1[[#This Row],[Balance]]+K151,"") ->  | L152: =IFERROR(IF(Table1[[#This Row],[Period]]="","",MATCH(INDEX(Payments!#REF!,MATCH(TRUE,INDEX(Payments!#REF!>K152,0),)),Payments!#REF!)),"") -> 
J153: =IFERROR(IF($C$3="",Table1[[#This Row],[CSED]],EDATE($C$2,$C$3)),"") -> 2034-09-28 | K153: =IFERROR(Table1[[#This Row],[Balance]]+K152,"") ->  | L153: =IFERROR(IF(Table1[[#This Row],[Period]]="","",MATCH(INDEX(Payments!#REF!,MATCH(TRUE,INDEX(Payments!#REF!>K153,0),)),Payments!#REF!)),"") -> 
J154: =IFERROR(IF($C$3="",Table1[[#This Row],[CSED]],EDATE($C$2,$C$3)),"") -> 2034-09-28 | K154: =IFERROR(Table1[[#This Row],[Balance]]+K153,"") ->  | L154: =IFERROR(IF(Table1[[#This Row],[Period]]="","",MATCH(INDEX(Payments!#REF!,MATCH(TRUE,INDEX(Payments!#REF!>K154,0),)),Payments!#REF!)),"") -> 
J155: =IFERROR(IF($C$3="",Table1[[#This Row],[CSED]],EDATE($C$2,$C$3)),"") -> 2034-09-28 | K155: =IFERROR(Table1[[#This Row],[Balance]]+K154,"") ->  | L155: =IFERROR(IF(Table1[[#This Row],[Period]]="","",MATCH(INDEX(Payments!#REF!,MATCH(TRUE,INDEX(Payments!#REF!>K155,0),)),Payments!#REF!)),"") -> 
J156: =IFERROR(IF($C$3="",Table1[[#This Row],[CSED]],EDATE($C$2,$C$3)),"") -> 2034-09-28 | K156: =IFERROR(Table1[[#This Row],[Balance]]+K155,"") ->  | L156: =IFERROR(IF(Table1[[#This Row],[Period]]="","",MATCH(INDEX(Payments!#REF!,MATCH(TRUE,INDEX(Payments!#REF!>K156,0),)),Payments!#REF!)),"") -> 

Sheet Payments
B1: Interest Rate | D1: 1040 Tax Year | E1: Return Due Date | F1: 2023-04-15 | G1: Return Filed Date | H1: 2024-06-24 | I1: =DATEDIF(F1,H1,"M") -> 14 | K1: FTF | N1: FTP
B2: Annual | C2: 0.08 | D2: 2024 | E2: Tax Due Date | K2: =IF($I$1>1,EDATE(DATE(YEAR($F$1),MONTH($F$1),1),1),"") -> 2023-05-01 | N2: =IF($I$1>1,EDATE(DATE(YEAR($F$1),MONTH($F$1),1),1),"") -> 2023-05-01 | O2: =IF(_xlfn.XLOOKUP(N2,Table248[Date],Table248[End Bal])>0,0.005*_xlfn.XLOOKUP(N2,Table248[Date],Table248[End Bal],"")) -> 
B3: Daily | C3: =C2/365 -> 0.0002191780822 | K3: =IF($I$1>1,EDATE(DATE(YEAR($F$1),MONTH($F$1),1),2),"") -> 2023-06-01 | N3: =IF($I$1>1,EDATE(DATE(YEAR($F$1),MONTH($F$1),1),2),"") -> 2023-06-01
B4: Beginning Bal: | C4: 24231 | D4: Payment Amt: | K4: =IF($I$1>1,EDATE(DATE(YEAR($F$1),MONTH($F$1),1),3),"") -> 2023-07-01 | N4: =IF($I$1>1,EDATE(DATE(YEAR($F$1),MONTH($F$1),1),3),"") -> 2023-07-01
B5: Payment Start Dt: | C5: 2025-02-28 | D5: 300 | K5: =IF($I$1>1,EDATE(DATE(YEAR($F$1),MONTH($F$1),1),4),"") -> 2023-08-01 | N5: =IF($I$1>1,EDATE(DATE(YEAR($F$1),MONTH($F$1),1),4),"") -> 2023-08-01
B6: Payment Change 1: | K6: =IF($I$1>1,EDATE(DATE(YEAR($F$1),MONTH($F$1),1),5),"") -> 2023-09-01 | N6: =IF($I$1>1,EDATE(DATE(YEAR($F$1),MONTH($F$1),1),5),"") -> 2023-09-01
B7: Payment Change 2: | K7: =IF($I$1>1,EDATE(DATE(YEAR($F$1),MONTH($F$1),1),6),"") -> 2023-10-01 | N7: =IF($I$1>1,EDATE(DATE(YEAR($F$1),MONTH($F$1),1),6),"") -> 2023-10-01
B8: Payment Day: | C8: =DAY(C5) -> 28
B9: Payoff Date: | C9: =_xlfn.XLOOKUP(1,--(Table248[End Bal]<0),Table248[Date]) -> 2034-11-28 | D9: ="Months to payoff: "&DATEDIF(C5,C9,"M") -> Months to payoff: 117
B10: Total Paid at payoff: | C10: =_xlfn.XLOOKUP(C9,Table248[Date],Table248[Paid To Date]) -> 35400 | E10: Show this date:
B11: Total Paid To Date: | C11: =_xlfn.XLOOKUP(DATE(YEAR(TODAY()),MONTH(TODAY()),DAY(TODAY())),Table248[Date],Table248[Paid To Date]) -> 0
B13: Date | C13: Beg Bal | D13: Interest | E13: Credits | F13: Penalties | G13: End Bal | H13: Current Pmt | I13: Paid To Date
B14: =DATE(D2-1,12,31) -> 2023-12-31 | C14: =IF(Table248[[#This Row],[Date]]>TODAY(),C4,0) -> 0 | D14: =$C$3*Table248[[#This Row],[Beg Bal]] -> 0 | E14: =IF(DAY(Table248[[#This Row],[Date]])=$C$8,-1*Table248[[#This Row],[Current Pmt]],"") ->  | G14: =IF(Table248[[#This Row],[Date]]=TODAY(),$C$4,SUM(Table248[[#This Row],[Beg Bal]:[Penalties]])) -> 0 | H14: =IF(AND(LEN($C$7)>1,Table248[[#This Row],[Date]]>$C$7-1),$D$7,IF(AND(LEN($C$6)>1,Table248[[#This Row],[Date]]>$C$6-1),$D$6,IF(AND(LEN($C$5)>1,Table248[[#This Row],[Date]]>$C$5-1),$D$5,0))) -> 0 | I14: =IF(ROW()=ROW(Table248[#Headers])+1,0,IF(ISNUMBER(Table248[[#This Row],[Credits]]),ABS(Table248[[#This Row],[Credits]])+I13,I13)) -> 0
B15: =B14+1 -> 2024-01-01 | C15: =G14 -> 0 | D15: =$C$3*Table248[[#This Row],[Beg Bal]] -> 0 | E15: =IF(DAY(Table248[[#This Row],[Date]])=$C$8,-1*Table248[[#This Row],[Current Pmt]],"") ->  | G15: =IF(Table248[[#This Row],[Date]]=TODAY(),$C$4,SUM(Table248[[#This Row],[Beg Bal]:[Penalties]])) -> 0 | H15: =IF(AND(LEN($C$7)>1,Table248[[#This Row],[Date]]>$C$7-1),$D$7,IF(AND(LEN($C$6)>1,Table248[[#This Row],[Date]]>$C$6-1),$D$6,IF(AND(LEN($C$5)>1,Table248[[#This Row],[Date]]>$C$5-1),$D$5,0))) -> 0 | I15: =IF(ROW()=ROW(Table248[#Headers])+1,0,IF(ISNUMBER(Table248[[#This Row],[Credits]]),ABS(Table248[[#This Row],[Credits]])+I14,I14)) -> 0 | L15: 2026-07-18 | M15: =_xlfn.XLOOKUP(L15,Table248[Date],Table248[Paid To Date]) -> 5100
B16: =B15+1 -> 2024-01-02 | C16: =G15 -> 0 | D16: =$C$3*Table248[[#This Row],[Beg Bal]] -> 0 | E16: =IF(DAY(Table248[[#This Row],[Date]])=$C$8,-1*Table248[[#This Row],[Current Pmt]],"") ->  | G16: =IF(Table248[[#This Row],[Date]]=TODAY(),$C$4,SUM(Table248[[#This Row],[Beg Bal]:[Penalties]])) -> 0 | H16: =IF(AND(LEN($C$7)>1,Table248[[#This Row],[Date]]>$C$7-1),$D$7,IF(AND(LEN($C$6)>1,Table248[[#This Row],[Date]]>$C$6-1),$D$6,IF(AND(LEN($C$5)>1,Table248[[#This Row],[Date]]>$C$5-1),$D$5,0))) -> 0 | I16: =IF(ROW()=ROW(Table248[#Headers])+1,0,IF(ISNUMBER(Table248[[#This Row],[Credits]]),ABS(Table248[[#This Row],[Credits]])+I15,I15)) -> 0 | L16: 2026-10-17
B17: 2024-01-03 | C17: 0 | D17: =$C$3*Table248[[#This Row],[Beg Bal]] -> 0 | E17: =IF(DAY(Table248[[#This Row],[Date]])=$C$8,-1*Table248[[#This Row],[Current Pmt]],"") ->  | G17: =IF(Table248[[#This Row],[Date]]=TODAY(),$C$4,SUM(Table248[[#This Row],[Beg Bal]:[Penalties]])) -> 0 | H17: =IF(AND(LEN($C$7)>1,Table248[[#This Row],[Date]]>$C$7-1),$D$7,IF(AND(LEN($C$6)>1,Table248[[#This Row],[Date]]>$C$6-1),$D$6,IF(AND(LEN($C$5)>1,Table248[[#This Row],[Date]]>$C$5-1),$D$5,0))) -> 0 | I17: =IF(ROW()=ROW(Table248[#Headers])+1,0,IF(ISNUMBER(Table248[[#This Row],[Credits]]),ABS(Table248[[#This Row],[Credits]])+I16,I16)) -> 0 | L17: 2027-04-17
B18: 2024-01-04 | C18: 0 | D18: =$C$3*Table248[[#This Row],[Beg Bal]] -> 0 | E18: =IF(DAY(Table248[[#This Row],[Date]])=$C$8,-1*Table248[[#This Row],[Current Pmt]],"") ->  | G18: =IF(Table248[[#This Row],[Date]]=TODAY(),$C$4,SUM(Table248[[#This Row],[Beg Bal]:[Penalties]])) -> 0 | H18: =IF(AND(LEN($C$7)>1,Table248[[#This Row],[Date]]>$C$7-1),$D$7,IF(AND(LEN($C$6)>1,Table248[[#This Row],[Date]]>$C$6-1),$D$6,IF(AND(LEN($C$5)>1,Table248[[#This Row],[Date]]>$C$5-1),$D$5,0))) -> 0 | I18: =IF(ROW()=ROW(Table248[#Headers])+1,0,IF(ISNUMBER(Table248[[#This Row],[Credits]]),ABS(Table248[[#This Row],[Credits]])+I17,I17)) -> 0 | L18: 2027-07-24
B19: 2024-01-05 | C19: 0 | D19: =$C$3*Table248[[#This Row],[Beg Bal]] -> 0 | E19: =IF(DAY(Table248[[#This Row],[Date]])=$C$8,-1*Table248[[#This Row],[Current Pmt]],"") ->  | G19: =IF(Table248[[#This Row],[Date]]=TODAY(),$C$4,SUM(Table248[[#This Row],[Beg Bal]:[Penalties]])) -> 0 | H19: =IF(AND(LEN($C$7)>1,Table248[[#This Row],[Date]]>$C$7-1),$D$7,IF(AND(LEN($C$6)>1,Table248[[#This Row],[Date]]>$C$6-1),$D$6,IF(AND(LEN($C$5)>1,Table248[[#This Row],[Date]]>$C$5-1),$D$5,0))) -> 0 | I19: =IF(ROW()=ROW(Table248[#Headers])+1,0,IF(ISNUMBER(Table248[[#This Row],[Credits]]),ABS(Table248[[#This Row],[Credits]])+I18,I18)) -> 0 | L19: 2028-01-15
B20: 2024-01-06 | C20: 0 | D20: =$C$3*Table248[[#This Row],[Beg Bal]] -> 0 | E20: =IF(DAY(Table248[[#This Row],[Date]])=$C$8,-1*Table248[[#This Row],[Current Pmt]],"") ->  | G20: =IF(Table248[[#This Row],[Date]]=TODAY(),$C$4,SUM(Table248[[#This Row],[Beg Bal]:[Penalties]])) -> 0 | H20: =IF(AND(LEN($C$7)>1,Table248[[#This Row],[Date]]>$C$7-1),$D$7,IF(AND(LEN($C$6)>1,Table248[[#This Row],[Date]]>$C$6-1),$D$6,IF(AND(LEN($C$5)>1,Table248[[#This Row],[Date]]>$C$5-1),$D$5,0))) -> 0 | I20: =IF(ROW()=ROW(Table248[#Headers])+1,0,IF(ISNUMBER(Table248[[#This Row],[Credits]]),ABS(Table248[[#This Row],[Credits]])+I19,I19)) -> 0 | L20: 2028-04-15
B21: 2024-01-07 | C21: 0 | D21: =$C$3*Table248[[#This Row],[Beg Bal]] -> 0 | E21: =IF(DAY(Table248[[#This Row],[Date]])=$C$8,-1*Table248[[#This Row],[Current Pmt]],"") ->  | G21: =IF(Table248[[#This Row],[Date]]=TODAY(),$C$4,SUM(Table248[[#This Row],[Beg Bal]:[Penalties]])) -> 0 | H21: =IF(AND(LEN($C$7)>1,Table248[[#This Row],[Date]]>$C$7-1),$D$7,IF(AND(LEN($C$6)>1,Table248[[#This Row],[Date]]>$C$6-1),$D$6,IF(AND(LEN($C$5)>1,Table248[[#This Row],[Date]]>$C$5-1),$D$5,0))) -> 0 | I21: =IF(ROW()=ROW(Table248[#Headers])+1,0,IF(ISNUMBER(Table248[[#This Row],[Credits]]),ABS(Table248[[#This Row],[Credits]])+I20,I20)) -> 0 | L21: 2028-04-28
B22: 2024-01-08 | C22: 0 | D22: =$C$3*Table248[[#This Row],[Beg Bal]] -> 0 | E22: =IF(DAY(Table248[[#This Row],[Date]])=$C$8,-1*Table248[[#This Row],[Current Pmt]],"") ->  | G22: =IF(Table248[[#This Row],[Date]]=TODAY(),$C$4,SUM(Table248[[#This Row],[Beg Bal]:[Penalties]])) -> 0 | H22: =IF(AND(LEN($C$7)>1,Table248[[#This Row],[Date]]>$C$7-1),$D$7,IF(AND(LEN($C$6)>1,Table248[[#This Row],[Date]]>$C$6-1),$D$6,IF(AND(LEN($C$5)>1,Table248[[#This Row],[Date]]>$C$5-1),$D$5,0))) -> 0 | I22: =IF(ROW()=ROW(Table248[#Headers])+1,0,IF(ISNUMBER(Table248[[#This Row],[Credits]]),ABS(Table248[[#This Row],[Credits]])+I21,I21)) -> 0 | L22: 2028-07-09
B23: 2024-01-09 | C23: 0 | D23: =$C$3*Table248[[#This Row],[Beg Bal]] -> 0 | E23: =IF(DAY(Table248[[#This Row],[Date]])=$C$8,-1*Table248[[#This Row],[Current Pmt]],"") ->  | G23: =IF(Table248[[#This Row],[Date]]=TODAY(),$C$4,SUM(Table248[[#This Row],[Beg Bal]:[Penalties]])) -> 0 | H23: =IF(AND(LEN($C$7)>1,Table248[[#This Row],[Date]]>$C$7-1),$D$7,IF(AND(LEN($C$6)>1,Table248[[#This Row],[Date]]>$C$6-1),$D$6,IF(AND(LEN($C$5)>1,Table248[[#This Row],[Date]]>$C$5-1),$D$5,0))) -> 0 | I23: =IF(ROW()=ROW(Table248[#Headers])+1,0,IF(ISNUMBER(Table248[[#This Row],[Credits]]),ABS(Table248[[#This Row],[Credits]])+I22,I22)) -> 0 | L23: 2028-10-22
B24: 2024-01-10 | C24: 0 | D24: =$C$3*Table248[[#This Row],[Beg Bal]] -> 0 | E24: =IF(DAY(Table248[[#This Row],[Date]])=$C$8,-1*Table248[[#This Row],[Current Pmt]],"") ->  | G24: =IF(Table248[[#This Row],[Date]]=TODAY(),$C$4,SUM(Table248[[#This Row],[Beg Bal]:[Penalties]])) -> 0 | H24: =IF(AND(LEN($C$7)>1,Table248[[#This Row],[Date]]>$C$7-1),$D$7,IF(AND(LEN($C$6)>1,Table248[[#This Row],[Date]]>$C$6-1),$D$6,IF(AND(LEN($C$5)>1,Table248[[#This Row],[Date]]>$C$5-1),$D$5,0))) -> 0 | I24: =IF(ROW()=ROW(Table248[#Headers])+1,0,IF(ISNUMBER(Table248[[#This Row],[Credits]]),ABS(Table248[[#This Row],[Credits]])+I23,I23)) -> 0 | L24: 2029-01-07
B25: 2024-01-11 | C25: 0 | D25: =$C$3*Table248[[#This Row],[Beg Bal]] -> 0 | E25: =IF(DAY(Table248[[#This Row],[Date]])=$C$8,-1*Table248[[#This Row],[Current Pmt]],"") ->  | G25: =IF(Table248[[#This Row],[Date]]=TODAY(),$C$4,SUM(Table248[[#This Row],[Beg Bal]:[Penalties]])) -> 0 | H25: =IF(AND(LEN($C$7)>1,Table248[[#This Row],[Date]]>$C$7-1),$D$7,IF(AND(LEN($C$6)>1,Table248[[#This Row],[Date]]>$C$6-1),$D$6,IF(AND(LEN($C$5)>1,Table248[[#This Row],[Date]]>$C$5-1),$D$5,0))) -> 0 | I25: =IF(ROW()=ROW(Table248[#Headers])+1,0,IF(ISNUMBER(Table248[[#This Row],[Credits]]),ABS(Table248[[#This Row],[Credits]])+I24,I24)) -> 0 | L25: 2029-03-22
B26: 2024-01-12 | C26: 0 | D26: =$C$3*Table248[[#This Row],[Beg Bal]] -> 0 | E26: =IF(DAY(Table248[[#This Row],[Date]])=$C$8,-1*Table248[[#This Row],[Current Pmt]],"") ->  | G26: =IF(Table248[[#This Row],[Date]]=TODAY(),$C$4,SUM(Table248[[#This Row],[Beg Bal]:[Penalties]])) -> 0 | H26: =IF(AND(LEN($C$7)>1,Table248[[#This Row],[Date]]>$C$7-1),$D$7,IF(AND(LEN($C$6)>1,Table248[[#This Row],[Date]]>$C$6-1),$D$6,IF(AND(LEN($C$5)>1,Table248[[#This Row],[Date]]>$C$5-1),$D$5,0))) -> 0 | I26: =IF(ROW()=ROW(Table248[#Headers])+1,0,IF(ISNUMBER(Table248[[#This Row],[Credits]]),ABS(Table248[[#This Row],[Credits]])+I25,I25)) -> 0 | L26: 2029-04-22
B27: 2024-01-13 | C27: 0 | D27: =$C$3*Table248[[#This Row],[Beg Bal]] -> 0 | E27: =IF(DAY(Table248[[#This Row],[Date]])=$C$8,-1*Table248[[#This Row],[Current Pmt]],"") ->  | G27: =IF(Table248[[#This Row],[Date]]=TODAY(),$C$4,SUM(Table248[[#This Row],[Beg Bal]:[Penalties]])) -> 0 | H27: =IF(AND(LEN($C$7)>1,Table248[[#This Row],[Date]]>$C$7-1),$D$7,IF(AND(LEN($C$6)>1,Table248[[#This Row],[Date]]>$C$6-1),$D$6,IF(AND(LEN($C$5)>1,Table248[[#This Row],[Date]]>$C$5-1),$D$5,0))) -> 0 | I27: =IF(ROW()=ROW(Table248[#Headers])+1,0,IF(ISNUMBER(Table248[[#This Row],[Credits]]),ABS(Table248[[#This Row],[Credits]])+I26,I26)) -> 0 | L27: 2029-07-15
B28: 2024-01-14 | C28: 0 | D28: =$C$3*Table248[[#This Row],[Beg Bal]] -> 0 | E28: =IF(DAY(Table248[[#This Row],[Date]])=$C$8,-1*Table248[[#This Row],[Current Pmt]],"") ->  | G28: =IF(Table248[[#This Row],[Date]]=TODAY(),$C$4,SUM(Table248[[#This Row],[Beg Bal]:[Penalties]])) -> 0 | H28: =IF(AND(LEN($C$7)>1,Table248[[#This Row],[Date]]>$C$7-1),$D$7,IF(AND(LEN($C$6)>1,Table248[[#This Row],[Date]]>$C$6-1),$D$6,IF(AND(LEN($C$5)>1,Table248[[#This Row],[Date]]>$C$5-1),$D$5,0))) -> 0 | I28: =IF(ROW()=ROW(Table248[#Headers])+1,0,IF(ISNUMBER(Table248[[#This Row],[Credits]]),ABS(Table248[[#This Row],[Credits]])+I27,I27)) -> 0 | L28: 2029-10-14
B29: 2024-01-15 | C29: 0 | D29: =$C$3*Table248[[#This Row],[Beg Bal]] -> 0 | E29: =IF(DAY(Table248[[#This Row],[Date]])=$C$8,-1*Table248[[#This Row],[Current Pmt]],"") ->  | G29: =IF(Table248[[#This Row],[Date]]=TODAY(),$C$4,SUM(Table248[[#This Row],[Beg Bal]:[Penalties]])) -> 0 | H29: =IF(AND(LEN($C$7)>1,Table248[[#This Row],[Date]]>$C$7-1),$D$7,IF(AND(LEN($C$6)>1,Table248[[#This Row],[Date]]>$C$6-1),$D$6,IF(AND(LEN($C$5)>1,Table248[[#This Row],[Date]]>$C$5-1),$D$5,0))) -> 0 | I29: =IF(ROW()=ROW(Table248[#Headers])+1,0,IF(ISNUMBER(Table248[[#This Row],[Credits]]),ABS(Table248[[#This Row],[Credits]])+I28,I28)) -> 0 | L29: 2032-11-21
B30: 2024-01-16 | C30: 0 | D30: =$C$3*Table248[[#This Row],[Beg Bal]] -> 0 | E30: =IF(DAY(Table248[[#This Row],[Date]])=$C$8,-1*Table248[[#This Row],[Current Pmt]],"") ->  | G30: =IF(Table248[[#This Row],[Date]]=TODAY(),$C$4,SUM(Table248[[#This Row],[Beg Bal]:[Penalties]])) -> 0 | H30: =IF(AND(LEN($C$7)>1,Table248[[#This Row],[Date]]>$C$7-1),$D$7,IF(AND(LEN($C$6)>1,Table248[[#This Row],[Date]]>$C$6-1),$D$6,IF(AND(LEN($C$5)>1,Table248[[#This Row],[Date]]>$C$5-1),$D$5,0))) -> 0 | I30: =IF(ROW()=ROW(Table248[#Headers])+1,0,IF(ISNUMBER(Table248[[#This Row],[Credits]]),ABS(Table248[[#This Row],[Credits]])+I29,I29)) -> 0 | L30: 2033-11-20
B31: 2024-01-17 | C31: 0 | D31: =$C$3*Table248[[#This Row],[Beg Bal]] -> 0 | E31: =IF(DAY(Table248[[#This Row],[Date]])=$C$8,-1*Table248[[#This Row],[Current Pmt]],"") ->  | G31: =IF(Table248[[#This Row],[Date]]=TODAY(),$C$4,SUM(Table248[[#This Row],[Beg Bal]:[Penalties]])) -> 0 | H31: =IF(AND(LEN($C$7)>1,Table248[[#This Row],[Date]]>$C$7-1),$D$7,IF(AND(LEN($C$6)>1,Table248[[#This Row],[Date]]>$C$6-1),$D$6,IF(AND(LEN($C$5)>1,Table248[[#This Row],[Date]]>$C$5-1),$D$5,0))) -> 0 | I31: =IF(ROW()=ROW(Table248[#Headers])+1,0,IF(ISNUMBER(Table248[[#This Row],[Credits]]),ABS(Table248[[#This Row],[Credits]])+I30,I30)) -> 0 | L31: 2034-11-18
B32: 2024-01-18 | C32: 0 | D32: =$C$3*Table248[[#This Row],[Beg Bal]] -> 0 | E32: =IF(DAY(Table248[[#This Row],[Date]])=$C$8,-1*Table248[[#This Row],[Current Pmt]],"") ->  | G32: =IF(Table248[[#This Row],[Date]]=TODAY(),$C$4,SUM(Table248[[#This Row],[Beg Bal]:[Penalties]])) -> 0 | H32: =IF(AND(LEN($C$7)>1,Table248[[#This Row],[Date]]>$C$7-1),$D$7,IF(AND(LEN($C$6)>1,Table248[[#This Row],[Date]]>$C$6-1),$D$6,IF(AND(LEN($C$5)>1,Table248[[#This Row],[Date]]>$C$5-1),$D$5,0))) -> 0 | I32: =IF(ROW()=ROW(Table248[#Headers])+1,0,IF(ISNUMBER(Table248[[#This Row],[Credits]]),ABS(Table248[[#This Row],[Credits]])+I31,I31)) -> 0
B33: 2024-01-19 | C33: 0 | D33: =$C$3*Table248[[#This Row],[Beg Bal]] -> 0 | E33: =IF(DAY(Table248[[#This Row],[Date]])=$C$8,-1*Table248[[#This Row],[Current Pmt]],"") ->  | G33: =IF(Table248[[#This Row],[Date]]=TODAY(),$C$4,SUM(Table248[[#This Row],[Beg Bal]:[Penalties]])) -> 0 | H33: =IF(AND(LEN($C$7)>1,Table248[[#This Row],[Date]]>$C$7-1),$D$7,IF(AND(LEN($C$6)>1,Table248[[#This Row],[Date]]>$C$6-1),$D$6,IF(AND(LEN($C$5)>1,Table248[[#This Row],[Date]]>$C$5-1),$D$5,0))) -> 0 | I33: =IF(ROW()=ROW(Table248[#Headers])+1,0,IF(ISNUMBER(Table248[[#This Row],[Credits]]),ABS(Table248[[#This Row],[Credits]])+I32,I32)) -> 0
B34: 2024-01-20 | C34: 0 | D34: =$C$3*Table248[[#This Row],[Beg Bal]] -> 0 | E34: =IF(DAY(Table248[[#This Row],[Date]])=$C$8,-1*Table248[[#This Row],[Current Pmt]],"") ->  | G34: =IF(Table248[[#This Row],[Date]]=TODAY(),$C$4,SUM(Table248[[#This Row],[Beg Bal]:[Penalties]])) -> 0 | H34: =IF(AND(LEN($C$7)>1,Table248[[#This Row],[Date]]>$C$7-1),$D$7,IF(AND(LEN($C$6)>1,Table248[[#This Row],[Date]]>$C$6-1),$D$6,IF(AND(LEN($C$5)>1,Table248[[#This Row],[Date]]>$C$5-1),$D$5,0))) -> 0 | I34: =IF(ROW()=ROW(Table248[#Headers])+1,0,IF(ISNUMBER(Table248[[#This Row],[Credits]]),ABS(Table248[[#This Row],[Credits]])+I33,I33)) -> 0
B35: 2024-01-21 | C35: 0 | D35: =$C$3*Table248[[#This Row],[Beg Bal]] -> 0 | E35: =IF(DAY(Table248[[#This Row],[Date]])=$C$8,-1*Table248[[#This Row],[Current Pmt]],"") ->  | G35: =IF(Table248[[#This Row],[Date]]=TODAY(),$C$4,SUM(Table248[[#This Row],[Beg Bal]:[Penalties]])) -> 0 | H35: =IF(AND(LEN($C$7)>1,Table248[[#This Row],[Date]]>$C$7-1),$D$7,IF(AND(LEN($C$6)>1,Table248[[#This Row],[Date]]>$C$6-1),$D$6,IF(AND(LEN($C$5)>1,Table248[[#This Row],[Date]]>$C$5-1),$D$5,0))) -> 0 | I35: =IF(ROW()=ROW(Table248[#Headers])+1,0,IF(ISNUMBER(Table248[[#This Row],[Credits]]),ABS(Table248[[#This Row],[Credits]])+I34,I34)) -> 0
B36: 2024-01-22 | C36: 0 | D36: =$C$3*Table248[[#This Row],[Beg Bal]] -> 0 | E36: =IF(DAY(Table248[[#This Row],[Date]])=$C$8,-1*Table248[[#This Row],[Current Pmt]],"") ->  | G36: =IF(Table248[[#This Row],[Date]]=TODAY(),$C$4,SUM(Table248[[#This Row],[Beg Bal]:[Penalties]])) -> 0 | H36: =IF(AND(LEN($C$7)>1,Table248[[#This Row],[Date]]>$C$7-1),$D$7,IF(AND(LEN($C$6)>1,Table248[[#This Row],[Date]]>$C$6-1),$D$6,IF(AND(LEN($C$5)>1,Table248[[#This Row],[Date]]>$C$5-1),$D$5,0))) -> 0 | I36: =IF(ROW()=ROW(Table248[#Headers])+1,0,IF(ISNUMBER(Table248[[#This Row],[Credits]]),ABS(Table248[[#This Row],[Credits]])+I35,I35)) -> 0
B37: 2024-01-23 | C37: 0 | D37: =$C$3*Table248[[#This Row],[Beg Bal]] -> 0 | E37: =IF(DAY(Table248[[#This Row],[Date]])=$C$8,-1*Table248[[#This Row],[Current Pmt]],"") ->  | G37: =IF(Table248[[#This Row],[Date]]=TODAY(),$C$4,SUM(Table248[[#This Row],[Beg Bal]:[Penalties]])) -> 0 | H37: =IF(AND(LEN($C$7)>1,Table248[[#This Row],[Date]]>$C$7-1),$D$7,IF(AND(LEN($C$6)>1,Table248[[#This Row],[Date]]>$C$6-1),$D$6,IF(AND(LEN($C$5)>1,Table248[[#This Row],[Date]]>$C$5-1),$D$5,0))) -> 0 | I37: =IF(ROW()=ROW(Table248[#Headers])+1,0,IF(ISNUMBER(Table248[[#This Row],[Credits]]),ABS(Table248[[#This Row],[Credits]])+I36,I36)) -> 0
B38: 2024-01-24 | C38: 0 | D38: =$C$3*Table248[[#This Row],[Beg Bal]] -> 0 | E38: =IF(DAY(Table248[[#This Row],[Date]])=$C$8,-1*Table248[[#This Row],[Current Pmt]],"") ->  | G38: =IF(Table248[[#This Row],[Date]]=TODAY(),$C$4,SUM(Table248[[#This Row],[Beg Bal]:[Penalties]])) -> 0 | H38: =IF(AND(LEN($C$7)>1,Table248[[#This Row],[Date]]>$C$7-1),$D$7,IF(AND(LEN($C$6)>1,Table248[[#This Row],[Date]]>$C$6-1),$D$6,IF(AND(LEN($C$5)>1,Table248[[#This Row],[Date]]>$C$5-1),$D$5,0))) -> 0 | I38: =IF(ROW()=ROW(Table248[#Headers])+1,0,IF(ISNUMBER(Table248[[#This Row],[Credits]]),ABS(Table248[[#This Row],[Credits]])+I37,I37)) -> 0
B39: 2024-01-25 | C39: 0 | D39: =$C$3*Table248[[#This Row],[Beg Bal]] -> 0 | E39: =IF(DAY(Table248[[#This Row],[Date]])=$C$8,-1*Table248[[#This Row],[Current Pmt]],"") ->  | G39: =IF(Table248[[#This Row],[Date]]=TODAY(),$C$4,SUM(Table248[[#This Row],[Beg Bal]:[Penalties]])) -> 0 | H39: =IF(AND(LEN($C$7)>1,Table248[[#This Row],[Date]]>$C$7-1),$D$7,IF(AND(LEN($C$6)>1,Table248[[#This Row],[Date]]>$C$6-1),$D$6,IF(AND(LEN($C$5)>1,Table248[[#This Row],[Date]]>$C$5-1),$D$5,0))) -> 0 | I39: =IF(ROW()=ROW(Table248[#Headers])+1,0,IF(ISNUMBER(Table248[[#This Row],[Credits]]),ABS(Table248[[#This Row],[Credits]])+I38,I38)) -> 0
B40: 2024-01-26 | C40: 0 | D40: =$C$3*Table248[[#This Row],[Beg Bal]] -> 0 | E40: =IF(DAY(Table248[[#This Row],[Date]])=$C$8,-1*Table248[[#This Row],[Current Pmt]],"") ->  | G40: =IF(Table248[[#This Row],[Date]]=TODAY(),$C$4,SUM(Table248[[#This Row],[Beg Bal]:[Penalties]])) -> 0 | H40: =IF(AND(LEN($C$7)>1,Table248[[#This Row],[Date]]>$C$7-1),$D$7,IF(AND(LEN($C$6)>1,Table248[[#This Row],[Date]]>$C$6-1),$D$6,IF(AND(LEN($C$5)>1,Table248[[#This Row],[Date]]>$C$5-1),$D$5,0))) -> 0 | I40: =IF(ROW()=ROW(Table248[#Headers])+1,0,IF(ISNUMBER(Table248[[#This Row],[Credits]]),ABS(Table248[[#This Row],[Credits]])+I39,I39)) -> 0
B41: 2024-01-27 | C41: 0 | D41: =$C$3*Table248[[#This Row],[Beg Bal]] -> 0 | E41: =IF(DAY(Table248[[#This Row],[Date]])=$C$8,-1*Table248[[#This Row],[Current Pmt]],"") ->  | G41: =IF(Table248[[#This Row],[Date]]=TODAY(),$C$4,SUM(Table248[[#This Row],[Beg Bal]:[Penalties]])) -> 0 | H41: =IF(AND(LEN($C$7)>1,Table248[[#This Row],[Date]]>$C$7-1),$D$7,IF(AND(LEN($C$6)>1,Table248[[#This Row],[Date]]>$C$6-1),$D$6,IF(AND(LEN($C$5)>1,Table248[[#This Row],[Date]]>$C$5-1),$D$5,0))) -> 0 | I41: =IF(ROW()=ROW(Table248[#Headers])+1,0,IF(ISNUMBER(Table248[[#This Row],[Credits]]),ABS(Table248[[#This Row],[Credits]])+I40,I40)) -> 0
B42: 2024-01-28 | C42: 0 | D42: =$C$3*Table248[[#This Row],[Beg Bal]] -> 0 | E42: =IF(DAY(Table248[[#This Row],[Date]])=$C$8,-1*Table248[[#This Row],[Current Pmt]],"") -> 0 | G42: =IF(Table248[[#This Row],[Date]]=TODAY(),$C$4,SUM(Table248[[#This Row],[Beg Bal]:[Penalties]])) -> 0 | H42: =IF(AND(LEN($C$7)>1,Table248[[#This Row],[Date]]>$C$7-1),$D$7,IF(AND(LEN($C$6)>1,Table248[[#This Row],[Date]]>$C$6-1),$D$6,IF(AND(LEN($C$5)>1,Table248[[#This Row],[Date]]>$C$5-1),$D$5,0))) -> 0 | I42: =IF(ROW()=ROW(Table248[#Headers])+1,0,IF(ISNUMBER(Table248[[#This Row],[Credits]]),ABS(Table248[[#This Row],[Credits]])+I41,I41)) -> 0
B43: 2024-01-29 | C43: 0 | D43: =$C$3*Table248[[#This Row],[Beg Bal]] -> 0 | E43: =IF(DAY(Table248[[#This Row],[Date]])=$C$8,-1*Table248[[#This Row],[Current Pmt]],"") ->  | G43: =IF(Table248[[#This Row],[Date]]=TODAY(),$C$4,SUM(Table248[[#This Row],[Beg Bal]:[Penalties]])) -> 0 | H43: =IF(AND(LEN($C$7)>1,Table248[[#This Row],[Date]]>$C$7-1),$D$7,IF(AND(LEN($C$6)>1,Table248[[#This Row],[Date]]>$C$6-1),$D$6,IF(AND(LEN($C$5)>1,Table248[[#This Row],[Date]]>$C$5-1),$D$5,0))) -> 0 | I43: =IF(ROW()=ROW(Table248[#Headers])+1,0,IF(ISNUMBER(Table248[[#This Row],[Credits]]),ABS(Table248[[#This Row],[Credits]])+I42,I42)) -> 0
B44: 2024-01-30 | C44: 0 | D44: =$C$3*Table248[[#This Row],[Beg Bal]] -> 0 | E44: =IF(DAY(Table248[[#This Row],[Date]])=$C$8,-1*Table248[[#This Row],[Current Pmt]],"") ->  | G44: =IF(Table248[[#This Row],[Date]]=TODAY(),$C$4,SUM(Table248[[#This Row],[Beg Bal]:[Penalties]])) -> 0 | H44: =IF(AND(LEN($C$7)>1,Table248[[#This Row],[Date]]>$C$7-1),$D$7,IF(AND(LEN($C$6)>1,Table248[[#This Row],[Date]]>$C$6-1),$D$6,IF(AND(LEN($C$5)>1,Table248[[#This Row],[Date]]>$C$5-1),$D$5,0))) -> 0 | I44: =IF(ROW()=ROW(Table248[#Headers])+1,0,IF(ISNUMBER(Table248[[#This Row],[Credits]]),ABS(Table248[[#This Row],[Credits]])+I43,I43)) -> 0
B45: 2024-01-31 | C45: 0 | D45: =$C$3*Table248[[#This Row],[Beg Bal]] -> 0 | E45: =IF(DAY(Table248[[#This Row],[Date]])=$C$8,-1*Table248[[#This Row],[Current Pmt]],"") ->  | G45: =IF(Table248[[#This Row],[Date]]=TODAY(),$C$4,SUM(Table248[[#This Row],[Beg Bal]:[Penalties]])) -> 0 | H45: =IF(AND(LEN($C$7)>1,Table248[[#This Row],[Date]]>$C$7-1),$D$7,IF(AND(LEN($C$6)>1,Table248[[#This Row],[Date]]>$C$6-1),$D$6,IF(AND(LEN($C$5)>1,Table248[[#This Row],[Date]]>$C$5-1),$D$5,0))) -> 0 | I45: =IF(ROW()=ROW(Table248[#Headers])+1,0,IF(ISNUMBER(Table248[[#This Row],[Credits]]),ABS(Table248[[#This Row],[Credits]])+I44,I44)) -> 0
B46: 2024-02-01 | C46: 0 | D46: =$C$3*Table248[[#This Row],[Beg Bal]] -> 0 | E46: =IF(DAY(Table248[[#This Row],[Date]])=$C$8,-1*Table248[[#This Row],[Current Pmt]],"") ->  | G46: =IF(Table248[[#This Row],[Date]]=TODAY(),$C$4,SUM(Table248[[#This Row],[Beg Bal]:[Penalties]])) -> 0 | H46: =IF(AND(LEN($C$7)>1,Table248[[#This Row],[Date]]>$C$7-1),$D$7,IF(AND(LEN($C$6)>1,Table248[[#This Row],[Date]]>$C$6-1),$D$6,IF(AND(LEN($C$5)>1,Table248[[#This Row],[Date]]>$C$5-1),$D$5,0))) -> 0 | I46: =IF(ROW()=ROW(Table248[#Headers])+1,0,IF(ISNUMBER(Table248[[#This Row],[Credits]]),ABS(Table248[[#This Row],[Credits]])+I45,I45)) -> 0
B47: 2024-02-02 | C47: 0 | D47: =$C$3*Table248[[#This Row],[Beg Bal]] -> 0 | E47: =IF(DAY(Table248[[#This Row],[Date]])=$C$8,-1*Table248[[#This Row],[Current Pmt]],"") ->  | G47: =IF(Table248[[#This Row],[Date]]=TODAY(),$C$4,SUM(Table248[[#This Row],[Beg Bal]:[Penalties]])) -> 0 | H47: =IF(AND(LEN($C$7)>1,Table248[[#This Row],[Date]]>$C$7-1),$D$7,IF(AND(LEN($C$6)>1,Table248[[#This Row],[Date]]>$C$6-1),$D$6,IF(AND(LEN($C$5)>1,Table248[[#This Row],[Date]]>$C$5-1),$D$5,0))) -> 0 | I47: =IF(ROW()=ROW(Table248[#Headers])+1,0,IF(ISNUMBER(Table248[[#This Row],[Credits]]),ABS(Table248[[#This Row],[Credits]])+I46,I46)) -> 0
B48: 2024-02-03 | C48: 0 | D48: =$C$3*Table248[[#This Row],[Beg Bal]] -> 0 | E48: =IF(DAY(Table248[[#This Row],[Date]])=$C$8,-1*Table248[[#This Row],[Current Pmt]],"") ->  | G48: =IF(Table248[[#This Row],[Date]]=TODAY(),$C$4,SUM(Table248[[#This Row],[Beg Bal]:[Penalties]])) -> 0 | H48: =IF(AND(LEN($C$7)>1,Table248[[#This Row],[Date]]>$C$7-1),$D$7,IF(AND(LEN($C$6)>1,Table248[[#This Row],[Date]]>$C$6-1),$D$6,IF(AND(LEN($C$5)>1,Table248[[#This Row],[Date]]>$C$5-1),$D$5,0))) -> 0 | I48: =IF(ROW()=ROW(Table248[#Headers])+1,0,IF(ISNUMBER(Table248[[#This Row],[Credits]]),ABS(Table248[[#This Row],[Credits]])+I47,I47)) -> 0
B49: 2024-02-04 | C49: 0 | D49: =$C$3*Table248[[#This Row],[Beg Bal]] -> 0 | E49: =IF(DAY(Table248[[#This Row],[Date]])=$C$8,-1*Table248[[#This Row],[Current Pmt]],"") ->  | G49: =IF(Table248[[#This Row],[Date]]=TODAY(),$C$4,SUM(Table248[[#This Row],[Beg Bal]:[Penalties]])) -> 0 | H49: =IF(AND(LEN($C$7)>1,Table248[[#This Row],[Date]]>$C$7-1),$D$7,IF(AND(LEN($C$6)>1,Table248[[#This Row],[Date]]>$C$6-1),$D$6,IF(AND(LEN($C$5)>1,Table248[[#This Row],[Date]]>$C$5-1),$D$5,0))) -> 0 | I49: =IF(ROW()=ROW(Table248[#Headers])+1,0,IF(ISNUMBER(Table248[[#This Row],[Credits]]),ABS(Table248[[#This Row],[Credits]])+I48,I48)) -> 0
B50: 2024-02-05 | C50: 0 | D50: =$C$3*Table248[[#This Row],[Beg Bal]] -> 0 | E50: =IF(DAY(Table248[[#This Row],[Date]])=$C$8,-1*Table248[[#This Row],[Current Pmt]],"") ->  | G50: =IF(Table248[[#This Row],[Date]]=TODAY(),$C$4,SUM(Table248[[#This Row],[Beg Bal]:[Penalties]])) -> 0 | H50: =IF(AND(LEN($C$7)>1,Table248[[#This Row],[Date]]>$C$7-1),$D$7,IF(AND(LEN($C$6)>1,Table248[[#This Row],[Date]]>$C$6-1),$D$6,IF(AND(LEN($C$5)>1,Table248[[#This Row],[Date]]>$C$5-1),$D$5,0))) -> 0 | I50: =IF(ROW()=ROW(Table248[#Headers])+1,0,IF(ISNUMBER(Table248[[#This Row],[Credits]]),ABS(Table248[[#This Row],[Credits]])+I49,I49)) -> 0
B51: 2024-02-06 | C51: 0 | D51: =$C$3*Table248[[#This Row],[Beg Bal]] -> 0 | E51: =IF(DAY(Table248[[#This Row],[Date]])=$C$8,-1*Table248[[#This Row],[Current Pmt]],"") ->  | G51: =IF(Table248[[#This Row],[Date]]=TODAY(),$C$4,SUM(Table248[[#This Row],[Beg Bal]:[Penalties]])) -> 0 | H51: =IF(AND(LEN($C$7)>1,Table248[[#This Row],[Date]]>$C$7-1),$D$7,IF(AND(LEN($C$6)>1,Table248[[#This Row],[Date]]>$C$6-1),$D$6,IF(AND(LEN($C$5)>1,Table248[[#This Row],[Date]]>$C$5-1),$D$5,0))) -> 0 | I51: =IF(ROW()=ROW(Table248[#Headers])+1,0,IF(ISNUMBER(Table248[[#This Row],[Credits]]),ABS(Table248[[#This Row],[Credits]])+I50,I50)) -> 0
B52: 2024-02-07 | C52: 0 | D52: =$C$3*Table248[[#This Row],[Beg Bal]] -> 0 | E52: =IF(DAY(Table248[[#This Row],[Date]])=$C$8,-1*Table248[[#This Row],[Current Pmt]],"") ->  | G52: =IF(Table248[[#This Row],[Date]]=TODAY(),$C$4,SUM(Table248[[#This Row],[Beg Bal]:[Penalties]])) -> 0 | H52: =IF(AND(LEN($C$7)>1,Table248[[#This Row],[Date]]>$C$7-1),$D$7,IF(AND(LEN($C$6)>1,Table248[[#This Row],[Date]]>$C$6-1),$D$6,IF(AND(LEN($C$5)>1,Table248[[#This Row],[Date]]>$C$5-1),$D$5,0))) -> 0 | I52: =IF(ROW()=ROW(Table248[#Headers])+1,0,IF(ISNUMBER(Table248[[#This Row],[Credits]]),ABS(Table248[[#This Row],[Credits]])+I51,I51)) -> 0
B53: 2024-02-08 | C53: 0 | D53: =$C$3*Table248[[#This Row],[Beg Bal]] -> 0 | E53: =IF(DAY(Table248[[#This Row],[Date]])=$C$8,-1*Table248[[#This Row],[Current Pmt]],"") ->  | G53: =IF(Table248[[#This Row],[Date]]=TODAY(),$C$4,SUM(Table248[[#This Row],[Beg Bal]:[Penalties]])) -> 0 | H53: =IF(AND(LEN($C$7)>1,Table248[[#This Row],[Date]]>$C$7-1),$D$7,IF(AND(LEN($C$6)>1,Table248[[#This Row],[Date]]>$C$6-1),$D$6,IF(AND(LEN($C$5)>1,Table248[[#This Row],[Date]]>$C$5-1),$D$5,0))) -> 0 | I53: =IF(ROW()=ROW(Table248[#Headers])+1,0,IF(ISNUMBER(Table248[[#This Row],[Credits]]),ABS(Table248[[#This Row],[Credits]])+I52,I52)) -> 0
B54: 2024-02-09 | C54: 0 | D54: =$C$3*Table248[[#This Row],[Beg Bal]] -> 0 | E54: =IF(DAY(Table248[[#This Row],[Date]])=$C$8,-1*Table248[[#This Row],[Current Pmt]],"") ->  | G54: =IF(Table248[[#This Row],[Date]]=TODAY(),$C$4,SUM(Table248[[#This Row],[Beg Bal]:[Penalties]])) -> 0 | H54: =IF(AND(LEN($C$7)>1,Table248[[#This Row],[Date]]>$C$7-1),$D$7,IF(AND(LEN($C$6)>1,Table248[[#This Row],[Date]]>$C$6-1),$D$6,IF(AND(LEN($C$5)>1,Table248[[#This Row],[Date]]>$C$5-1),$D$5,0))) -> 0 | I54: =IF(ROW()=ROW(Table248[#Headers])+1,0,IF(ISNUMBER(Table248[[#This Row],[Credits]]),ABS(Table248[[#This Row],[Credits]])+I53,I53)) -> 0
B55: 2024-02-10 | C55: 0 | D55: =$C$3*Table248[[#This Row],[Beg Bal]] -> 0 | E55: =IF(DAY(Table248[[#This Row],[Date]])=$C$8,-1*Table248[[#This Row],[Current Pmt]],"") ->  | G55: =IF(Table248[[#This Row],[Date]]=TODAY(),$C$4,SUM(Table248[[#This Row],[Beg Bal]:[Penalties]])) -> 0 | H55: =IF(AND(LEN($C$7)>1,Table248[[#This Row],[Date]]>$C$7-1),$D$7,IF(AND(LEN($C$6)>1,Table248[[#This Row],[Date]]>$C$6-1),$D$6,IF(AND(LEN($C$5)>1,Table248[[#This Row],[Date]]>$C$5-1),$D$5,0))) -> 0 | I55: =IF(ROW()=ROW(Table248[#Headers])+1,0,IF(ISNUMBER(Table248[[#This Row],[Credits]]),ABS(Table248[[#This Row],[Credits]])+I54,I54)) -> 0
B56: 2024-02-11 | C56: 0 | D56: =$C$3*Table248[[#This Row],[Beg Bal]] -> 0 | E56: =IF(DAY(Table248[[#This Row],[Date]])=$C$8,-1*Table248[[#This Row],[Current Pmt]],"") ->  | G56: =IF(Table248[[#This Row],[Date]]=TODAY(),$C$4,SUM(Table248[[#This Row],[Beg Bal]:[Penalties]])) -> 0 | H56: =IF(AND(LEN($C$7)>1,Table248[[#This Row],[Date]]>$C$7-1),$D$7,IF(AND(LEN($C$6)>1,Table248[[#This Row],[Date]]>$C$6-1),$D$6,IF(AND(LEN($C$5)>1,Table248[[#This Row],[Date]]>$C$5-1),$D$5,0))) -> 0 | I56: =IF(ROW()=ROW(Table248[#Headers])+1,0,IF(ISNUMBER(Table248[[#This Row],[Credits]]),ABS(Table248[[#This Row],[Credits]])+I55,I55)) -> 0
B57: 2024-02-12 | C57: 0 | D57: =$C$3*Table248[[#This Row],[Beg Bal]] -> 0 | E57: =IF(DAY(Table248[[#This Row],[Date]])=$C$8,-1*Table248[[#This Row],[Current Pmt]],"") ->  | G57: =IF(Table248[[#This Row],[Date]]=TODAY(),$C$4,SUM(Table248[[#This Row],[Beg Bal]:[Penalties]])) -> 0 | H57: =IF(AND(LEN($C$7)>1,Table248[[#This Row],[Date]]>$C$7-1),$D$7,IF(AND(LEN($C$6)>1,Table248[[#This Row],[Date]]>$C$6-1),$D$6,IF(AND(LEN($C$5)>1,Table248[[#This Row],[Date]]>$C$5-1),$D$5,0))) -> 0 | I57: =IF(ROW()=ROW(Table248[#Headers])+1,0,IF(ISNUMBER(Table248[[#This Row],[Credits]]),ABS(Table248[[#This Row],[Credits]])+I56,I56)) -> 0
B58: 2024-02-13 | C58: 0 | D58: =$C$3*Table248[[#This Row],[Beg Bal]] -> 0 | E58: =IF(DAY(Table248[[#This Row],[Date]])=$C$8,-1*Table248[[#This Row],[Current Pmt]],"") ->  | G58: =IF(Table248[[#This Row],[Date]]=TODAY(),$C$4,SUM(Table248[[#This Row],[Beg Bal]:[Penalties]])) -> 0 | H58: =IF(AND(LEN($C$7)>1,Table248[[#This Row],[Date]]>$C$7-1),$D$7,IF(AND(LEN($C$6)>1,Table248[[#This Row],[Date]]>$C$6-1),$D$6,IF(AND(LEN($C$5)>1,Table248[[#This Row],[Date]]>$C$5-1),$D$5,0))) -> 0 | I58: =IF(ROW()=ROW(Table248[#Headers])+1,0,IF(ISNUMBER(Table248[[#This Row],[Credits]]),ABS(Table248[[#This Row],[Credits]])+I57,I57)) -> 0
B59: 2024-02-14 | C59: 0 | D59: =$C$3*Table248[[#This Row],[Beg Bal]] -> 0 | E59: =IF(DAY(Table248[[#This Row],[Date]])=$C$8,-1*Table248[[#This Row],[Current Pmt]],"") ->  | G59: =IF(Table248[[#This Row],[Date]]=TODAY(),$C$4,SUM(Table248[[#This Row],[Beg Bal]:[Penalties]])) -> 0 | H59: =IF(AND(LEN($C$7)>1,Table248[[#This Row],[Date]]>$C$7-1),$D$7,IF(AND(LEN($C$6)>1,Table248[[#This Row],[Date]]>$C$6-1),$D$6,IF(AND(LEN($C$5)>1,Table248[[#This Row],[Date]]>$C$5-1),$D$5,0))) -> 0 | I59: =IF(ROW()=ROW(Table248[#Headers])+1,0,IF(ISNUMBER(Table248[[#This Row],[Credits]]),ABS(Table248[[#This Row],[Credits]])+I58,I58)) -> 0
B60: 2024-02-15 | C60: 0 | D60: =$C$3*Table248[[#This Row],[Beg Bal]] -> 0 | E60: =IF(DAY(Table248[[#This Row],[Date]])=$C$8,-1*Table248[[#This Row],[Current Pmt]],"") ->  | G60: =IF(Table248[[#This Row],[Date]]=TODAY(),$C$4,SUM(Table248[[#This Row],[Beg Bal]:[Penalties]])) -> 0 | H60: =IF(AND(LEN($C$7)>1,Table248[[#This Row],[Date]]>$C$7-1),$D$7,IF(AND(LEN($C$6)>1,Table248[[#This Row],[Date]]>$C$6-1),$D$6,IF(AND(LEN($C$5)>1,Table248[[#This Row],[Date]]>$C$5-1),$D$5,0))) -> 0 | I60: =IF(ROW()=ROW(Table248[#Headers])+1,0,IF(ISNUMBER(Table248[[#This Row],[Credits]]),ABS(Table248[[#This Row],[Credits]])+I59,I59)) -> 0
B61: 2024-02-16 | C61: 0 | D61: =$C$3*Table248[[#This Row],[Beg Bal]] -> 0 | E61: =IF(DAY(Table248[[#This Row],[Date]])=$C$8,-1*Table248[[#This Row],[Current Pmt]],"") ->  | G61: =IF(Table248[[#This Row],[Date]]=TODAY(),$C$4,SUM(Table248[[#This Row],[Beg Bal]:[Penalties]])) -> 0 | H61: =IF(AND(LEN($C$7)>1,Table248[[#This Row],[Date]]>$C$7-1),$D$7,IF(AND(LEN($C$6)>1,Table248[[#This Row],[Date]]>$C$6-1),$D$6,IF(AND(LEN($C$5)>1,Table248[[#This Row],[Date]]>$C$5-1),$D$5,0))) -> 0 | I61: =IF(ROW()=ROW(Table248[#Headers])+1,0,IF(ISNUMBER(Table248[[#This Row],[Credits]]),ABS(Table248[[#This Row],[Credits]])+I60,I60)) -> 0
B62: 2024-02-17 | C62: 0 | D62: =$C$3*Table248[[#This Row],[Beg Bal]] -> 0 | E62: =IF(DAY(Table248[[#This Row],[Date]])=$C$8,-1*Table248[[#This Row],[Current Pmt]],"") ->  | G62: =IF(Table248[[#This Row],[Date]]=TODAY(),$C$4,SUM(Table248[[#This Row],[Beg Bal]:[Penalties]])) -> 0 | H62: =IF(AND(LEN($C$7)>1,Table248[[#This Row],[Date]]>$C$7-1),$D$7,IF(AND(LEN($C$6)>1,Table248[[#This Row],[Date]]>$C$6-1),$D$6,IF(AND(LEN($C$5)>1,Table248[[#This Row],[Date]]>$C$5-1),$D$5,0))) -> 0 | I62: =IF(ROW()=ROW(Table248[#Headers])+1,0,IF(ISNUMBER(Table248[[#This Row],[Credits]]),ABS(Table248[[#This Row],[Credits]])+I61,I61)) -> 0
B63: 2024-02-18 | C63: 0 | D63: =$C$3*Table248[[#This Row],[Beg Bal]] -> 0 | E63: =IF(DAY(Table248[[#This Row],[Date]])=$C$8,-1*Table248[[#This Row],[Current Pmt]],"") ->  | G63: =IF(Table248[[#This Row],[Date]]=TODAY(),$C$4,SUM(Table248[[#This Row],[Beg Bal]:[Penalties]])) -> 0 | H63: =IF(AND(LEN($C$7)>1,Table248[[#This Row],[Date]]>$C$7-1),$D$7,IF(AND(LEN($C$6)>1,Table248[[#This Row],[Date]]>$C$6-1),$D$6,IF(AND(LEN($C$5)>1,Table248[[#This Row],[Date]]>$C$5-1),$D$5,0))) -> 0 | I63: =IF(ROW()=ROW(Table248[#Headers])+1,0,IF(ISNUMBER(Table248[[#This Row],[Credits]]),ABS(Table248[[#This Row],[Credits]])+I62,I62)) -> 0
B64: 2024-02-19 | C64: 0 | D64: =$C$3*Table248[[#This Row],[Beg Bal]] -> 0 | E64: =IF(DAY(Table248[[#This Row],[Date]])=$C$8,-1*Table248[[#This Row],[Current Pmt]],"") ->  | G64: =IF(Table248[[#This Row],[Date]]=TODAY(),$C$4,SUM(Table248[[#This Row],[Beg Bal]:[Penalties]])) -> 0 | H64: =IF(AND(LEN($C$7)>1,Table248[[#This Row],[Date]]>$C$7-1),$D$7,IF(AND(LEN($C$6)>1,Table248[[#This Row],[Date]]>$C$6-1),$D$6,IF(AND(LEN($C$5)>1,Table248[[#This Row],[Date]]>$C$5-1),$D$5,0))) -> 0 | I64: =IF(ROW()=ROW(Table248[#Headers])+1,0,IF(ISNUMBER(Table248[[#This Row],[Credits]]),ABS(Table248[[#This Row],[Credits]])+I63,I63)) -> 0
B65: 2024-02-20 | C65: 0 | D65: =$C$3*Table248[[#This Row],[Beg Bal]] -> 0 | E65: =IF(DAY(Table248[[#This Row],[Date]])=$C$8,-1*Table248[[#This Row],[Current Pmt]],"") ->  | G65: =IF(Table248[[#This Row],[Date]]=TODAY(),$C$4,SUM(Table248[[#This Row],[Beg Bal]:[Penalties]])) -> 0 | H65: =IF(AND(LEN($C$7)>1,Table248[[#This Row],[Date]]>$C$7-1),$D$7,IF(AND(LEN($C$6)>1,Table248[[#This Row],[Date]]>$C$6-1),$D$6,IF(AND(LEN($C$5)>1,Table248[[#This Row],[Date]]>$C$5-1),$D$5,0))) -> 0 | I65: =IF(ROW()=ROW(Table248[#Headers])+1,0,IF(ISNUMBER(Table248[[#This Row],[Credits]]),ABS(Table248[[#This Row],[Credits]])+I64,I64)) -> 0
B66: 2024-02-21 | C66: 0 | D66: =$C$3*Table248[[#This Row],[Beg Bal]] -> 0 | E66: =IF(DAY(Table248[[#This Row],[Date]])=$C$8,-1*Table248[[#This Row],[Current Pmt]],"") ->  | G66: =IF(Table248[[#This Row],[Date]]=TODAY(),$C$4,SUM(Table248[[#This Row],[Beg Bal]:[Penalties]])) -> 0 | H66: =IF(AND(LEN($C$7)>1,Table248[[#This Row],[Date]]>$C$7-1),$D$7,IF(AND(LEN($C$6)>1,Table248[[#This Row],[Date]]>$C$6-1),$D$6,IF(AND(LEN($C$5)>1,Table248[[#This Row],[Date]]>$C$5-1),$D$5,0))) -> 0 | I66: =IF(ROW()=ROW(Table248[#Headers])+1,0,IF(ISNUMBER(Table248[[#This Row],[Credits]]),ABS(Table248[[#This Row],[Credits]])+I65,I65)) -> 0
B67: 2024-02-22 | C67: 0 | D67: =$C$3*Table248[[#This Row],[Beg Bal]] -> 0 | E67: =IF(DAY(Table248[[#This Row],[Date]])=$C$8,-1*Table248[[#This Row],[Current Pmt]],"") ->  | G67: =IF(Table248[[#This Row],[Date]]=TODAY(),$C$4,SUM(Table248[[#This Row],[Beg Bal]:[Penalties]])) -> 0 | H67: =IF(AND(LEN($C$7)>1,Table248[[#This Row],[Date]]>$C$7-1),$D$7,IF(AND(LEN($C$6)>1,Table248[[#This Row],[Date]]>$C$6-1),$D$6,IF(AND(LEN($C$5)>1,Table248[[#This Row],[Date]]>$C$5-1),$D$5,0))) -> 0 | I67: =IF(ROW()=ROW(Table248[#Headers])+1,0,IF(ISNUMBER(Table248[[#This Row],[Credits]]),ABS(Table248[[#This Row],[Credits]])+I66,I66)) -> 0
B68: 2024-02-23 | C68: 0 | D68: =$C$3*Table248[[#This Row],[Beg Bal]] -> 0 | E68: =IF(DAY(Table248[[#This Row],[Date]])=$C$8,-1*Table248[[#This Row],[Current Pmt]],"") ->  | G68: =IF(Table248[[#This Row],[Date]]=TODAY(),$C$4,SUM(Table248[[#This Row],[Beg Bal]:[Penalties]])) -> 0 | H68: =IF(AND(LEN($C$7)>1,Table248[[#This Row],[Date]]>$C$7-1),$D$7,IF(AND(LEN($C$6)>1,Table248[[#This Row],[Date]]>$C$6-1),$D$6,IF(AND(LEN($C$5)>1,Table248[[#This Row],[Date]]>$C$5-1),$D$5,0))) -> 0 | I68: =IF(ROW()=ROW(Table248[#Headers])+1,0,IF(ISNUMBER(Table248[[#This Row],[Credits]]),ABS(Table248[[#This Row],[Credits]])+I67,I67)) -> 0
B69: 2024-02-24 | C69: 0 | D69: =$C$3*Table248[[#This Row],[Beg Bal]] -> 0 | E69: =IF(DAY(Table248[[#This Row],[Date]])=$C$8,-1*Table248[[#This Row],[Current Pmt]],"") ->  | G69: =IF(Table248[[#This Row],[Date]]=TODAY(),$C$4,SUM(Table248[[#This Row],[Beg Bal]:[Penalties]])) -> 0 | H69: =IF(AND(LEN($C$7)>1,Table248[[#This Row],[Date]]>$C$7-1),$D$7,IF(AND(LEN($C$6)>1,Table248[[#This Row],[Date]]>$C$6-1),$D$6,IF(AND(LEN($C$5)>1,Table248[[#This Row],[Date]]>$C$5-1),$D$5,0))) -> 0 | I69: =IF(ROW()=ROW(Table248[#Headers])+1,0,IF(ISNUMBER(Table248[[#This Row],[Credits]]),ABS(Table248[[#This Row],[Credits]])+I68,I68)) -> 0
B70: 2024-02-25 | C70: 0 | D70: =$C$3*Table248[[#This Row],[Beg Bal]] -> 0 | E70: =IF(DAY(Table248[[#This Row],[Date]])=$C$8,-1*Table248[[#This Row],[Current Pmt]],"") ->  | G70: =IF(Table248[[#This Row],[Date]]=TODAY(),$C$4,SUM(Table248[[#This Row],[Beg Bal]:[Penalties]])) -> 0 | H70: =IF(AND(LEN($C$7)>1,Table248[[#This Row],[Date]]>$C$7-1),$D$7,IF(AND(LEN($C$6)>1,Table248[[#This Row],[Date]]>$C$6-1),$D$6,IF(AND(LEN($C$5)>1,Table248[[#This Row],[Date]]>$C$5-1),$D$5,0))) -> 0 | I70: =IF(ROW()=ROW(Table248[#Headers])+1,0,IF(ISNUMBER(Table248[[#This Row],[Credits]]),ABS(Table248[[#This Row],[Credits]])+I69,I69)) -> 0
B71: 2024-02-26 | C71: 0 | D71: =$C$3*Table248[[#This Row],[Beg Bal]] -> 0 | E71: =IF(DAY(Table248[[#This Row],[Date]])=$C$8,-1*Table248[[#This Row],[Current Pmt]],"") ->  | G71: =IF(Table248[[#This Row],[Date]]=TODAY(),$C$4,SUM(Table248[[#This Row],[Beg Bal]:[Penalties]])) -> 0 | H71: =IF(AND(LEN($C$7)>1,Table248[[#This Row],[Date]]>$C$7-1),$D$7,IF(AND(LEN($C$6)>1,Table248[[#This Row],[Date]]>$C$6-1),$D$6,IF(AND(LEN($C$5)>1,Table248[[#This Row],[Date]]>$C$5-1),$D$5,0))) -> 0 | I71: =IF(ROW()=ROW(Table248[#Headers])+1,0,IF(ISNUMBER(Table248[[#This Row],[Credits]]),ABS(Table248[[#This Row],[Credits]])+I70,I70)) -> 0
B72: 2024-02-27 | C72: 0 | D72: =$C$3*Table248[[#This Row],[Beg Bal]] -> 0 | E72: =IF(DAY(Table248[[#This Row],[Date]])=$C$8,-1*Table248[[#This Row],[Current Pmt]],"") ->  | G72: =IF(Table248[[#This Row],[Date]]=TODAY(),$C$4,SUM(Table248[[#This Row],[Beg Bal]:[Penalties]])) -> 0 | H72: =IF(AND(LEN($C$7)>1,Table248[[#This Row],[Date]]>$C$7-1),$D$7,IF(AND(LEN($C$6)>1,Table248[[#This Row],[Date]]>$C$6-1),$D$6,IF(AND(LEN($C$5)>1,Table248[[#This Row],[Date]]>$C$5-1),$D$5,0))) -> 0 | I72: =IF(ROW()=ROW(Table248[#Headers])+1,0,IF(ISNUMBER(Table248[[#This Row],[Credits]]),ABS(Table248[[#This Row],[Credits]])+I71,I71)) -> 0
B73: 2024-02-28 | C73: 0 | D73: =$C$3*Table248[[#This Row],[Beg Bal]] -> 0 | E73: =IF(DAY(Table248[[#This Row],[Date]])=$C$8,-1*Table248[[#This Row],[Current Pmt]],"") -> 0 | G73: =IF(Table248[[#This Row],[Date]]=TODAY(),$C$4,SUM(Table248[[#This Row],[Beg Bal]:[Penalties]])) -> 0 | H73: =IF(AND(LEN($C$7)>1,Table248[[#This Row],[Date]]>$C$7-1),$D$7,IF(AND(LEN($C$6)>1,Table248[[#This Row],[Date]]>$C$6-1),$D$6,IF(AND(LEN($C$5)>1,Table248[[#This Row],[Date]]>$C$5-1),$D$5,0))) -> 0 | I73: =IF(ROW()=ROW(Table248[#Headers])+1,0,IF(ISNUMBER(Table248[[#This Row],[Credits]]),ABS(Table248[[#This Row],[Credits]])+I72,I72)) -> 0
B74: 2024-02-29 | C74: 0 | D74: =$C$3*Table248[[#This Row],[Beg Bal]] -> 0 | E74: =IF(DAY(Table248[[#This Row],[Date]])=$C$8,-1*Table248[[#This Row],[Current Pmt]],"") ->  | G74: =IF(Table248[[#This Row],[Date]]=TODAY(),$C$4,SUM(Table248[[#This Row],[Beg Bal]:[Penalties]])) -> 0 | H74: =IF(AND(LEN($C$7)>1,Table248[[#This Row],[Date]]>$C$7-1),$D$7,IF(AND(LEN($C$6)>1,Table248[[#This Row],[Date]]>$C$6-1),$D$6,IF(AND(LEN($C$5)>1,Table248[[#This Row],[Date]]>$C$5-1),$D$5,0))) -> 0 | I74: =IF(ROW()=ROW(Table248[#Headers])+1,0,IF(ISNUMBER(Table248[[#This Row],[Credits]]),ABS(Table248[[#This Row],[Credits]])+I73,I73)) -> 0
B75: 2024-03-01 | C75: 0 | D75: =$C$3*Table248[[#This Row],[Beg Bal]] -> 0 | E75: =IF(DAY(Table248[[#This Row],[Date]])=$C$8,-1*Table248[[#This Row],[Current Pmt]],"") ->  | G75: =IF(Table248[[#This Row],[Date]]=TODAY(),$C$4,SUM(Table248[[#This Row],[Beg Bal]:[Penalties]])) -> 0 | H75: =IF(AND(LEN($C$7)>1,Table248[[#This Row],[Date]]>$C$7-1),$D$7,IF(AND(LEN($C$6)>1,Table248[[#This Row],[Date]]>$C$6-1),$D$6,IF(AND(LEN($C$5)>1,Table248[[#This Row],[Date]]>$C$5-1),$D$5,0))) -> 0 | I75: =IF(ROW()=ROW(Table248[#Headers])+1,0,IF(ISNUMBER(Table248[[#This Row],[Credits]]),ABS(Table248[[#This Row],[Credits]])+I74,I74)) -> 0
B76: 2024-03-02 | C76: 0 | D76: =$C$3*Table248[[#This Row],[Beg Bal]] -> 0 | E76: =IF(DAY(Table248[[#This Row],[Date]])=$C$8,-1*Table248[[#This Row],[Current Pmt]],"") ->  | G76: =IF(Table248[[#This Row],[Date]]=TODAY(),$C$4,SUM(Table248[[#This Row],[Beg Bal]:[Penalties]])) -> 0 | H76: =IF(AND(LEN($C$7)>1,Table248[[#This Row],[Date]]>$C$7-1),$D$7,IF(AND(LEN($C$6)>1,Table248[[#This Row],[Date]]>$C$6-1),$D$6,IF(AND(LEN($C$5)>1,Table248[[#This Row],[Date]]>$C$5-1),$D$5,0))) -> 0 | I76: =IF(ROW()=ROW(Table248[#Headers])+1,0,IF(ISNUMBER(Table248[[#This Row],[Credits]]),ABS(Table248[[#This Row],[Credits]])+I75,I75)) -> 0
B77: 2024-03-03 | C77: 0 | D77: =$C$3*Table248[[#This Row],[Beg Bal]] -> 0 | E77: =IF(DAY(Table248[[#This Row],[Date]])=$C$8,-1*Table248[[#This Row],[Current Pmt]],"") ->  | G77: =IF(Table248[[#This Row],[Date]]=TODAY(),$C$4,SUM(Table248[[#This Row],[Beg Bal]:[Penalties]])) -> 0 | H77: =IF(AND(LEN($C$7)>1,Table248[[#This Row],[Date]]>$C$7-1),$D$7,IF(AND(LEN($C$6)>1,Table248[[#This Row],[Date]]>$C$6-1),$D$6,IF(AND(LEN($C$5)>1,Table248[[#This Row],[Date]]>$C$5-1),$D$5,0))) -> 0 | I77: =IF(ROW()=ROW(Table248[#Headers])+1,0,IF(ISNUMBER(Table248[[#This Row],[Credits]]),ABS(Table248[[#This Row],[Credits]])+I76,I76)) -> 0
B78: 2024-03-04 | C78: 0 | D78: =$C$3*Table248[[#This Row],[Beg Bal]] -> 0 | E78: =IF(DAY(Table248[[#This Row],[Date]])=$C$8,-1*Table248[[#This Row],[Current Pmt]],"") ->  | G78: =IF(Table248[[#This Row],[Date]]=TODAY(),$C$4,SUM(Table248[[#This Row],[Beg Bal]:[Penalties]])) -> 0 | H78: =IF(AND(LEN($C$7)>1,Table248[[#This Row],[Date]]>$C$7-1),$D$7,IF(AND(LEN($C$6)>1,Table248[[#This Row],[Date]]>$C$6-1),$D$6,IF(AND(LEN($C$5)>1,Table248[[#This Row],[Date]]>$C$5-1),$D$5,0))) -> 0 | I78: =IF(ROW()=ROW(Table248[#Headers])+1,0,IF(ISNUMBER(Table248[[#This Row],[Credits]]),ABS(Table248[[#This Row],[Credits]])+I77,I77)) -> 0
B79: 2024-03-05 | C79: 0 | D79: =$C$3*Table248[[#This Row],[Beg Bal]] -> 0 | E79: =IF(DAY(Table248[[#This Row],[Date]])=$C$8,-1*Table248[[#This Row],[Current Pmt]],"") ->  | G79: =IF(Table248[[#This Row],[Date]]=TODAY(),$C$4,SUM(Table248[[#This Row],[Beg Bal]:[Penalties]])) -> 0 | H79: =IF(AND(LEN($C$7)>1,Table248[[#This Row],[Date]]>$C$7-1),$D$7,IF(AND(LEN($C$6)>1,Table248[[#This Row],[Date]]>$C$6-1),$D$6,IF(AND(LEN($C$5)>1,Table248[[#This Row],[Date]]>$C$5-1),$D$5,0))) -> 0 | I79: =IF(ROW()=ROW(Table248[#Headers])+1,0,IF(ISNUMBER(Table248[[#This Row],[Credits]]),ABS(Table248[[#This Row],[Credits]])+I78,I78)) -> 0
B80: =B79+1 -> 2024-03-06 | C80: =G79 -> 0 | D80: =$C$3*Table248[[#This Row],[Beg Bal]] -> 0 | E80: =IF(DAY(Table248[[#This Row],[Date]])=$C$8,-1*Table248[[#This Row],[Current Pmt]],"") ->  | G80: =IF(Table248[[#This Row],[Date]]=TODAY(),$C$4,SUM(Table248[[#This Row],[Beg Bal]:[Penalties]])) -> 0 | H80: =IF(AND(LEN($C$7)>1,Table248[[#This Row],[Date]]>$C$7-1),$D$7,IF(AND(LEN($C$6)>1,Table248[[#This Row],[Date]]>$C$6-1),$D$6,IF(AND(LEN($C$5)>1,Table248[[#This Row],[Date]]>$C$5-1),$D$5,0))) -> 0 | I80: =IF(ROW()=ROW(Table248[#Headers])+1,0,IF(ISNUMBER(Table248[[#This Row],[Credits]]),ABS(Table248[[#This Row],[Credits]])+I79,I79)) -> 0
B81: 2024-03-07 | C81: 0 | D81: =$C$3*Table248[[#This Row],[Beg Bal]] -> 0 | E81: =IF(DAY(Table248[[#This Row],[Date]])=$C$8,-1*Table248[[#This Row],[Current Pmt]],"") ->  | G81: =IF(Table248[[#This Row],[Date]]=TODAY(),$C$4,SUM(Table248[[#This Row],[Beg Bal]:[Penalties]])) -> 0 | H81: =IF(AND(LEN($C$7)>1,Table248[[#This Row],[Date]]>$C$7-1),$D$7,IF(AND(LEN($C$6)>1,Table248[[#This Row],[Date]]>$C$6-1),$D$6,IF(AND(LEN($C$5)>1,Table248[[#This Row],[Date]]>$C$5-1),$D$5,0))) -> 0 | I81: =IF(ROW()=ROW(Table248[#Headers])+1,0,IF(ISNUMBER(Table248[[#This Row],[Credits]]),ABS(Table248[[#This Row],[Credits]])+I80,I80)) -> 0
B82: 2024-03-08 | C82: 0 | D82: =$C$3*Table248[[#This Row],[Beg Bal]] -> 0 | E82: =IF(DAY(Table248[[#This Row],[Date]])=$C$8,-1*Table248[[#This Row],[Current Pmt]],"") ->  | G82: =IF(Table248[[#This Row],[Date]]=TODAY(),$C$4,SUM(Table248[[#This Row],[Beg Bal]:[Penalties]])) -> 0 | H82: =IF(AND(LEN($C$7)>1,Table248[[#This Row],[Date]]>$C$7-1),$D$7,IF(AND(LEN($C$6)>1,Table248[[#This Row],[Date]]>$C$6-1),$D$6,IF(AND(LEN($C$5)>1,Table248[[#This Row],[Date]]>$C$5-1),$D$5,0))) -> 0 | I82: =IF(ROW()=ROW(Table248[#Headers])+1,0,IF(ISNUMBER(Table248[[#This Row],[Credits]]),ABS(Table248[[#This Row],[Credits]])+I81,I81)) -> 0
B83: 2024-03-09 | C83: 0 | D83: =$C$3*Table248[[#This Row],[Beg Bal]] -> 0 | E83: =IF(DAY(Table248[[#This Row],[Date]])=$C$8,-1*Table248[[#This Row],[Current Pmt]],"") ->  | G83: =IF(Table248[[#This Row],[Date]]=TODAY(),$C$4,SUM(Table248[[#This Row],[Beg Bal]:[Penalties]])) -> 0 | H83: =IF(AND(LEN($C$7)>1,Table248[[#This Row],[Date]]>$C$7-1),$D$7,IF(AND(LEN($C$6)>1,Table248[[#This Row],[Date]]>$C$6-1),$D$6,IF(AND(LEN($C$5)>1,Table248[[#This Row],[Date]]>$C$5-1),$D$5,0))) -> 0 | I83: =IF(ROW()=ROW(Table248[#Headers])+1,0,IF(ISNUMBER(Table248[[#This Row],[Credits]]),ABS(Table248[[#This Row],[Credits]])+I82,I82)) -> 0
B84: 2024-03-10 | C84: 0 | D84: =$C$3*Table248[[#This Row],[Beg Bal]] -> 0 | E84: =IF(DAY(Table248[[#This Row],[Date]])=$C$8,-1*Table248[[#This Row],[Current Pmt]],"") ->  | G84: =IF(Table248[[#This Row],[Date]]=TODAY(),$C$4,SUM(Table248[[#This Row],[Beg Bal]:[Penalties]])) -> 0 | H84: =IF(AND(LEN($C$7)>1,Table248[[#This Row],[Date]]>$C$7-1),$D$7,IF(AND(LEN($C$6)>1,Table248[[#This Row],[Date]]>$C$6-1),$D$6,IF(AND(LEN($C$5)>1,Table248[[#This Row],[Date]]>$C$5-1),$D$5,0))) -> 0 | I84: =IF(ROW()=ROW(Table248[#Headers])+1,0,IF(ISNUMBER(Table248[[#This Row],[Credits]]),ABS(Table248[[#This Row],[Credits]])+I83,I83)) -> 0
B85: 2024-03-11 | C85: 0 | D85: =$C$3*Table248[[#This Row],[Beg Bal]] -> 0 | E85: =IF(DAY(Table248[[#This Row],[Date]])=$C$8,-1*Table248[[#This Row],[Current Pmt]],"") ->  | G85: =IF(Table248[[#This Row],[Date]]=TODAY(),$C$4,SUM(Table248[[#This Row],[Beg Bal]:[Penalties]])) -> 0 | H85: =IF(AND(LEN($C$7)>1,Table248[[#This Row],[Date]]>$C$7-1),$D$7,IF(AND(LEN($C$6)>1,Table248[[#This Row],[Date]]>$C$6-1),$D$6,IF(AND(LEN($C$5)>1,Table248[[#This Row],[Date]]>$C$5-1),$D$5,0))) -> 0 | I85: =IF(ROW()=ROW(Table248[#Headers])+1,0,IF(ISNUMBER(Table248[[#This Row],[Credits]]),ABS(Table248[[#This Row],[Credits]])+I84,I84)) -> 0
B86: 2024-03-12 | C86: 0 | D86: =$C$3*Table248[[#This Row],[Beg Bal]] -> 0 | E86: =IF(DAY(Table248[[#This Row],[Date]])=$C$8,-1*Table248[[#This Row],[Current Pmt]],"") ->  | G86: =IF(Table248[[#This Row],[Date]]=TODAY(),$C$4,SUM(Table248[[#This Row],[Beg Bal]:[Penalties]])) -> 0 | H86: =IF(AND(LEN($C$7)>1,Table248[[#This Row],[Date]]>$C$7-1),$D$7,IF(AND(LEN($C$6)>1,Table248[[#This Row],[Date]]>$C$6-1),$D$6,IF(AND(LEN($C$5)>1,Table248[[#This Row],[Date]]>$C$5-1),$D$5,0))) -> 0 | I86: =IF(ROW()=ROW(Table248[#Headers])+1,0,IF(ISNUMBER(Table248[[#This Row],[Credits]]),ABS(Table248[[#This Row],[Credits]])+I85,I85)) -> 0
B87: 2024-03-13 | C87: 0 | D87: =$C$3*Table248[[#This Row],[Beg Bal]] -> 0 | E87: =IF(DAY(Table248[[#This Row],[Date]])=$C$8,-1*Table248[[#This Row],[Current Pmt]],"") ->  | G87: =IF(Table248[[#This Row],[Date]]=TODAY(),$C$4,SUM(Table248[[#This Row],[Beg Bal]:[Penalties]])) -> 0 | H87: =IF(AND(LEN($C$7)>1,Table248[[#This Row],[Date]]>$C$7-1),$D$7,IF(AND(LEN($C$6)>1,Table248[[#This Row],[Date]]>$C$6-1),$D$6,IF(AND(LEN($C$5)>1,Table248[[#This Row],[Date]]>$C$5-1),$D$5,0))) -> 0 | I87: =IF(ROW()=ROW(Table248[#Headers])+1,0,IF(ISNUMBER(Table248[[#This Row],[Credits]]),ABS(Table248[[#This Row],[Credits]])+I86,I86)) -> 0
B88: 2024-03-14 | C88: 0 | D88: =$C$3*Table248[[#This Row],[Beg Bal]] -> 0 | E88: =IF(DAY(Table248[[#This Row],[Date]])=$C$8,-1*Table248[[#This Row],[Current Pmt]],"") ->  | G88: =IF(Table248[[#This Row],[Date]]=TODAY(),$C$4,SUM(Table248[[#This Row],[Beg Bal]:[Penalties]])) -> 0 | H88: =IF(AND(LEN($C$7)>1,Table248[[#This Row],[Date]]>$C$7-1),$D$7,IF(AND(LEN($C$6)>1,Table248[[#This Row],[Date]]>$C$6-1),$D$6,IF(AND(LEN($C$5)>1,Table248[[#This Row],[Date]]>$C$5-1),$D$5,0))) -> 0 | I88: =IF(ROW()=ROW(Table248[#Headers])+1,0,IF(ISNUMBER(Table248[[#This Row],[Credits]]),ABS(Table248[[#This Row],[Credits]])+I87,I87)) -> 0
B89: 2024-03-15 | C89: 0 | D89: =$C$3*Table248[[#This Row],[Beg Bal]] -> 0 | E89: =IF(DAY(Table248[[#This Row],[Date]])=$C$8,-1*Table248[[#This Row],[Current Pmt]],"") ->  | G89: =IF(Table248[[#This Row],[Date]]=TODAY(),$C$4,SUM(Table248[[#This Row],[Beg Bal]:[Penalties]])) -> 0 | H89: =IF(AND(LEN($C$7)>1,Table248[[#This Row],[Date]]>$C$7-1),$D$7,IF(AND(LEN($C$6)>1,Table248[[#This Row],[Date]]>$C$6-1),$D$6,IF(AND(LEN($C$5)>1,Table248[[#This Row],[Date]]>$C$5-1),$D$5,0))) -> 0 | I89: =IF(ROW()=ROW(Table248[#Headers])+1,0,IF(ISNUMBER(Table248[[#This Row],[Credits]]),ABS(Table248[[#This Row],[Credits]])+I88,I88)) -> 0
B90: 2024-03-16 | C90: 0 | D90: =$C$3*Table248[[#This Row],[Beg Bal]] -> 0 | E90: =IF(DAY(Table248[[#This Row],[Date]])=$C$8,-1*Table248[[#This Row],[Current Pmt]],"") ->  | G90: =IF(Table248[[#This Row],[Date]]=TODAY(),$C$4,SUM(Table248[[#This Row],[Beg Bal]:[Penalties]])) -> 0 | H90: =IF(AND(LEN($C$7)>1,Table248[[#This Row],[Date]]>$C$7-1),$D$7,IF(AND(LEN($C$6)>1,Table248[[#This Row],[Date]]>$C$6-1),$D$6,IF(AND(LEN($C$5)>1,Table248[[#This Row],[Date]]>$C$5-1),$D$5,0))) -> 0 | I90: =IF(ROW()=ROW(Table248[#Headers])+1,0,IF(ISNUMBER(Table248[[#This Row],[Credits]]),ABS(Table248[[#This Row],[Credits]])+I89,I89)) -> 0
B91: 2024-03-17 | C91: 0 | D91: =$C$3*Table248[[#This Row],[Beg Bal]] -> 0 | E91: =IF(DAY(Table248[[#This Row],[Date]])=$C$8,-1*Table248[[#This Row],[Current Pmt]],"") ->  | G91: =IF(Table248[[#This Row],[Date]]=TODAY(),$C$4,SUM(Table248[[#This Row],[Beg Bal]:[Penalties]])) -> 0 | H91: =IF(AND(LEN($C$7)>1,Table248[[#This Row],[Date]]>$C$7-1),$D$7,IF(AND(LEN($C$6)>1,Table248[[#This Row],[Date]]>$C$6-1),$D$6,IF(AND(LEN($C$5)>1,Table248[[#This Row],[Date]]>$C$5-1),$D$5,0))) -> 0 | I91: =IF(ROW()=ROW(Table248[#Headers])+1,0,IF(ISNUMBER(Table248[[#This Row],[Credits]]),ABS(Table248[[#This Row],[Credits]])+I90,I90)) -> 0
B92: 2024-03-18 | C92: 0 | D92: =$C$3*Table248[[#This Row],[Beg Bal]] -> 0 | E92: =IF(DAY(Table248[[#This Row],[Date]])=$C$8,-1*Table248[[#This Row],[Current Pmt]],"") ->  | G92: =IF(Table248[[#This Row],[Date]]=TODAY(),$C$4,SUM(Table248[[#This Row],[Beg Bal]:[Penalties]])) -> 0 | H92: =IF(AND(LEN($C$7)>1,Table248[[#This Row],[Date]]>$C$7-1),$D$7,IF(AND(LEN($C$6)>1,Table248[[#This Row],[Date]]>$C$6-1),$D$6,IF(AND(LEN($C$5)>1,Table248[[#This Row],[Date]]>$C$5-1),$D$5,0))) -> 0 | I92: =IF(ROW()=ROW(Table248[#Headers])+1,0,IF(ISNUMBER(Table248[[#This Row],[Credits]]),ABS(Table248[[#This Row],[Credits]])+I91,I91)) -> 0
B93: 2024-03-19 | C93: 0 | D93: =$C$3*Table248[[#This Row],[Beg Bal]] -> 0 | E93: =IF(DAY(Table248[[#This Row],[Date]])=$C$8,-1*Table248[[#This Row],[Current Pmt]],"") ->  | G93: =IF(Table248[[#This Row],[Date]]=TODAY(),$C$4,SUM(Table248[[#This Row],[Beg Bal]:[Penalties]])) -> 0 | H93: =IF(AND(LEN($C$7)>1,Table248[[#This Row],[Date]]>$C$7-1),$D$7,IF(AND(LEN($C$6)>1,Table248[[#This Row],[Date]]>$C$6-1),$D$6,IF(AND(LEN($C$5)>1,Table248[[#This Row],[Date]]>$C$5-1),$D$5,0))) -> 0 | I93: =IF(ROW()=ROW(Table248[#Headers])+1,0,IF(ISNUMBER(Table248[[#This Row],[Credits]]),ABS(Table248[[#This Row],[Credits]])+I92,I92)) -> 0
B94: 2024-03-20 | C94: 0 | D94: =$C$3*Table248[[#This Row],[Beg Bal]] -> 0 | E94: =IF(DAY(Table248[[#This Row],[Date]])=$C$8,-1*Table248[[#This Row],[Current Pmt]],"") ->  | G94: =IF(Table248[[#This Row],[Date]]=TODAY(),$C$4,SUM(Table248[[#This Row],[Beg Bal]:[Penalties]])) -> 0 | H94: =IF(AND(LEN($C$7)>1,Table248[[#This Row],[Date]]>$C$7-1),$D$7,IF(AND(LEN($C$6)>1,Table248[[#This Row],[Date]]>$C$6-1),$D$6,IF(AND(LEN($C$5)>1,Table248[[#This Row],[Date]]>$C$5-1),$D$5,0))) -> 0 | I94: =IF(ROW()=ROW(Table248[#Headers])+1,0,IF(ISNUMBER(Table248[[#This Row],[Credits]]),ABS(Table248[[#This Row],[Credits]])+I93,I93)) -> 0
B95: 2024-03-21 | C95: 0 | D95: =$C$3*Table248[[#This Row],[Beg Bal]] -> 0 | E95: =IF(DAY(Table248[[#This Row],[Date]])=$C$8,-1*Table248[[#This Row],[Current Pmt]],"") ->  | G95: =IF(Table248[[#This Row],[Date]]=TODAY(),$C$4,SUM(Table248[[#This Row],[Beg Bal]:[Penalties]])) -> 0 | H95: =IF(AND(LEN($C$7)>1,Table248[[#This Row],[Date]]>$C$7-1),$D$7,IF(AND(LEN($C$6)>1,Table248[[#This Row],[Date]]>$C$6-1),$D$6,IF(AND(LEN($C$5)>1,Table248[[#This Row],[Date]]>$C$5-1),$D$5,0))) -> 0 | I95: =IF(ROW()=ROW(Table248[#Headers])+1,0,IF(ISNUMBER(Table248[[#This Row],[Credits]]),ABS(Table248[[#This Row],[Credits]])+I94,I94)) -> 0
B96: 2024-03-22 | C96: 0 | D96: =$C$3*Table248[[#This Row],[Beg Bal]] -> 0 | E96: =IF(DAY(Table248[[#This Row],[Date]])=$C$8,-1*Table248[[#This Row],[Current Pmt]],"") ->  | G96: =IF(Table248[[#This Row],[Date]]=TODAY(),$C$4,SUM(Table248[[#This Row],[Beg Bal]:[Penalties]])) -> 0 | H96: =IF(AND(LEN($C$7)>1,Table248[[#This Row],[Date]]>$C$7-1),$D$7,IF(AND(LEN($C$6)>1,Table248[[#This Row],[Date]]>$C$6-1),$D$6,IF(AND(LEN($C$5)>1,Table248[[#This Row],[Date]]>$C$5-1),$D$5,0))) -> 0 | I96: =IF(ROW()=ROW(Table248[#Headers])+1,0,IF(ISNUMBER(Table248[[#This Row],[Credits]]),ABS(Table248[[#This Row],[Credits]])+I95,I95)) -> 0
B97: 2024-03-23 | C97: 0 | D97: =$C$3*Table248[[#This Row],[Beg Bal]] -> 0 | E97: =IF(DAY(Table248[[#This Row],[Date]])=$C$8,-1*Table248[[#This Row],[Current Pmt]],"") ->  | G97: =IF(Table248[[#This Row],[Date]]=TODAY(),$C$4,SUM(Table248[[#This Row],[Beg Bal]:[Penalties]])) -> 0 | H97: =IF(AND(LEN($C$7)>1,Table248[[#This Row],[Date]]>$C$7-1),$D$7,IF(AND(LEN($C$6)>1,Table248[[#This Row],[Date]]>$C$6-1),$D$6,IF(AND(LEN($C$5)>1,Table248[[#This Row],[Date]]>$C$5-1),$D$5,0))) -> 0 | I97: =IF(ROW()=ROW(Table248[#Headers])+1,0,IF(ISNUMBER(Table248[[#This Row],[Credits]]),ABS(Table248[[#This Row],[Credits]])+I96,I96)) -> 0
B98: 2024-03-24 | C98: 0 | D98: =$C$3*Table248[[#This Row],[Beg Bal]] -> 0 | E98: =IF(DAY(Table248[[#This Row],[Date]])=$C$8,-1*Table248[[#This Row],[Current Pmt]],"") ->  | G98: =IF(Table248[[#This Row],[Date]]=TODAY(),$C$4,SUM(Table248[[#This Row],[Beg Bal]:[Penalties]])) -> 0 | H98: =IF(AND(LEN($C$7)>1,Table248[[#This Row],[Date]]>$C$7-1),$D$7,IF(AND(LEN($C$6)>1,Table248[[#This Row],[Date]]>$C$6-1),$D$6,IF(AND(LEN($C$5)>1,Table248[[#This Row],[Date]]>$C$5-1),$D$5,0))) -> 0 | I98: =IF(ROW()=ROW(Table248[#Headers])+1,0,IF(ISNUMBER(Table248[[#This Row],[Credits]]),ABS(Table248[[#This Row],[Credits]])+I97,I97)) -> 0
B99: 2024-03-25 | C99: 0 | D99: =$C$3*Table248[[#This Row],[Beg Bal]] -> 0 | E99: =IF(DAY(Table248[[#This Row],[Date]])=$C$8,-1*Table248[[#This Row],[Current Pmt]],"") ->  | G99: =IF(Table248[[#This Row],[Date]]=TODAY(),$C$4,SUM(Table248[[#This Row],[Beg Bal]:[Penalties]])) -> 0 | H99: =IF(AND(LEN($C$7)>1,Table248[[#This Row],[Date]]>$C$7-1),$D$7,IF(AND(LEN($C$6)>1,Table248[[#This Row],[Date]]>$C$6-1),$D$6,IF(AND(LEN($C$5)>1,Table248[[#This Row],[Date]]>$C$5-1),$D$5,0))) -> 0 | I99: =IF(ROW()=ROW(Table248[#Headers])+1,0,IF(ISNUMBER(Table248[[#This Row],[Credits]]),ABS(Table248[[#This Row],[Credits]])+I98,I98)) -> 0
B100: 2024-03-26 | C100: 0 | D100: =$C$3*Table248[[#This Row],[Beg Bal]] -> 0 | E100: =IF(DAY(Table248[[#This Row],[Date]])=$C$8,-1*Table248[[#This Row],[Current Pmt]],"") ->  | G100: =IF(Table248[[#This Row],[Date]]=TODAY(),$C$4,SUM(Table248[[#This Row],[Beg Bal]:[Penalties]])) -> 0 | H100: =IF(AND(LEN($C$7)>1,Table248[[#This Row],[Date]]>$C$7-1),$D$7,IF(AND(LEN($C$6)>1,Table248[[#This Row],[Date]]>$C$6-1),$D$6,IF(AND(LEN($C$5)>1,Table248[[#This Row],[Date]]>$C$5-1),$D$5,0))) -> 0 | I100: =IF(ROW()=ROW(Table248[#Headers])+1,0,IF(ISNUMBER(Table248[[#This Row],[Credits]]),ABS(Table248[[#This Row],[Credits]])+I99,I99)) -> 0
B101: 2024-03-27 | C101: 0 | D101: =$C$3*Table248[[#This Row],[Beg Bal]] -> 0 | E101: =IF(DAY(Table248[[#This Row],[Date]])=$C$8,-1*Table248[[#This Row],[Current Pmt]],"") ->  | G101: =IF(Table248[[#This Row],[Date]]=TODAY(),$C$4,SUM(Table248[[#This Row],[Beg Bal]:[Penalties]])) -> 0 | H101: =IF(AND(LEN($C$7)>1,Table248[[#This Row],[Date]]>$C$7-1),$D$7,IF(AND(LEN($C$6)>1,Table248[[#This Row],[Date]]>$C$6-1),$D$6,IF(AND(LEN($C$5)>1,Table248[[#This Row],[Date]]>$C$5-1),$D$5,0))) -> 0 | I101: =IF(ROW()=ROW(Table248[#Headers])+1,0,IF(ISNUMBER(Table248[[#This Row],[Credits]]),ABS(Table248[[#This Row],[Credits]])+I100,I100)) -> 0
B102: 2024-03-28 | C102: 0 | D102: =$C$3*Table248[[#This Row],[Beg Bal]] -> 0 | E102: =IF(DAY(Table248[[#This Row],[Date]])=$C$8,-1*Table248[[#This Row],[Current Pmt]],"") -> 0 | G102: =IF(Table248[[#This Row],[Date]]=TODAY(),$C$4,SUM(Table248[[#This Row],[Beg Bal]:[Penalties]])) -> 0 | H102: =IF(AND(LEN($C$7)>1,Table248[[#This Row],[Date]]>$C$7-1),$D$7,IF(AND(LEN($C$6)>1,Table248[[#This Row],[Date]]>$C$6-1),$D$6,IF(AND(LEN($C$5)>1,Table248[[#This Row],[Date]]>$C$5-1),$D$5,0))) -> 0 | I102: =IF(ROW()=ROW(Table248[#Headers])+1,0,IF(ISNUMBER(Table248[[#This Row],[Credits]]),ABS(Table248[[#This Row],[Credits]])+I101,I101)) -> 0
B103: 2024-03-29 | C103: 0 | D103: =$C$3*Table248[[#This Row],[Beg Bal]] -> 0 | E103: =IF(DAY(Table248[[#This Row],[Date]])=$C$8,-1*Table248[[#This Row],[Current Pmt]],"") ->  | G103: =IF(Table248[[#This Row],[Date]]=TODAY(),$C$4,SUM(Table248[[#This Row],[Beg Bal]:[Penalties]])) -> 0 | H103: =IF(AND(LEN($C$7)>1,Table248[[#This Row],[Date]]>$C$7-1),$D$7,IF(AND(LEN($C$6)>1,Table248[[#This Row],[Date]]>$C$6-1),$D$6,IF(AND(LEN($C$5)>1,Table248[[#This Row],[Date]]>$C$5-1),$D$5,0))) -> 0 | I103: =IF(ROW()=ROW(Table248[#Headers])+1,0,IF(ISNUMBER(Table248[[#This Row],[Credits]]),ABS(Table248[[#This Row],[Credits]])+I102,I102)) -> 0
B104: 2024-03-30 | C104: 0 | D104: =$C$3*Table248[[#This Row],[Beg Bal]] -> 0 | E104: =IF(DAY(Table248[[#This Row],[Date]])=$C$8,-1*Table248[[#This Row],[Current Pmt]],"") ->  | G104: =IF(Table248[[#This Row],[Date]]=TODAY(),$C$4,SUM(Table248[[#This Row],[Beg Bal]:[Penalties]])) -> 0 | H104: =IF(AND(LEN($C$7)>1,Table248[[#This Row],[Date]]>$C$7-1),$D$7,IF(AND(LEN($C$6)>1,Table248[[#This Row],[Date]]>$C$6-1),$D$6,IF(AND(LEN($C$5)>1,Table248[[#This Row],[Date]]>$C$5-1),$D$5,0))) -> 0 | I104: =IF(ROW()=ROW(Table248[#Headers])+1,0,IF(ISNUMBER(Table248[[#This Row],[Credits]]),ABS(Table248[[#This Row],[Credits]])+I103,I103)) -> 0
B105: 2024-03-31 | C105: 0 | D105: =$C$3*Table248[[#This Row],[Beg Bal]] -> 0 | E105: =IF(DAY(Table248[[#This Row],[Date]])=$C$8,-1*Table248[[#This Row],[Current Pmt]],"") ->  | G105: =IF(Table248[[#This Row],[Date]]=TODAY(),$C$4,SUM(Table248[[#This Row],[Beg Bal]:[Penalties]])) -> 0 | H105: =IF(AND(LEN($C$7)>1,Table248[[#This Row],[Date]]>$C$7-1),$D$7,IF(AND(LEN($C$6)>1,Table248[[#This Row],[Date]]>$C$6-1),$D$6,IF(AND(LEN($C$5)>1,Table248[[#This Row],[Date]]>$C$5-1),$D$5,0))) -> 0 | I105: =IF(ROW()=ROW(Table248[#Headers])+1,0,IF(ISNUMBER(Table248[[#This Row],[Credits]]),ABS(Table248[[#This Row],[Credits]])+I104,I104)) -> 0
B106: 2024-04-01 | C106: 0 | D106: =$C$3*Table248[[#This Row],[Beg Bal]] -> 0 | E106: =IF(DAY(Table248[[#This Row],[Date]])=$C$8,-1*Table248[[#This Row],[Current Pmt]],"") ->  | G106: =IF(Table248[[#This Row],[Date]]=TODAY(),$C$4,SUM(Table248[[#This Row],[Beg Bal]:[Penalties]])) -> 0 | H106: =IF(AND(LEN($C$7)>1,Table248[[#This Row],[Date]]>$C$7-1),$D$7,IF(AND(LEN($C$6)>1,Table248[[#This Row],[Date]]>$C$6-1),$D$6,IF(AND(LEN($C$5)>1,Table248[[#This Row],[Date]]>$C$5-1),$D$5,0))) -> 0 | I106: =IF(ROW()=ROW(Table248[#Headers])+1,0,IF(ISNUMBER(Table248[[#This Row],[Credits]]),ABS(Table248[[#This Row],[Credits]])+I105,I105)) -> 0
B107: 2024-04-02 | C107: 0 | D107: =$C$3*Table248[[#This Row],[Beg Bal]] -> 0 | E107: =IF(DAY(Table248[[#This Row],[Date]])=$C$8,-1*Table248[[#This Row],[Current Pmt]],"") ->  | G107: =IF(Table248[[#This Row],[Date]]=TODAY(),$C$4,SUM(Table248[[#This Row],[Beg Bal]:[Penalties]])) -> 0 | H107: =IF(AND(LEN($C$7)>1,Table248[[#This Row],[Date]]>$C$7-1),$D$7,IF(AND(LEN($C$6)>1,Table248[[#This Row],[Date]]>$C$6-1),$D$6,IF(AND(LEN($C$5)>1,Table248[[#This Row],[Date]]>$C$5-1),$D$5,0))) -> 0 | I107: =IF(ROW()=ROW(Table248[#Headers])+1,0,IF(ISNUMBER(Table248[[#This Row],[Credits]]),ABS(Table248[[#This Row],[Credits]])+I106,I106)) -> 0
B108: 2024-04-03 | C108: 0 | D108: =$C$3*Table248[[#This Row],[Beg Bal]] -> 0 | E108: =IF(DAY(Table248[[#This Row],[Date]])=$C$8,-1*Table248[[#This Row],[Current Pmt]],"") ->  | G108: =IF(Table248[[#This Row],[Date]]=TODAY(),$C$4,SUM(Table248[[#This Row],[Beg Bal]:[Penalties]])) -> 0 | H108: =IF(AND(LEN($C$7)>1,Table248[[#This Row],[Date]]>$C$7-1),$D$7,IF(AND(LEN($C$6)>1,Table248[[#This Row],[Date]]>$C$6-1),$D$6,IF(AND(LEN($C$5)>1,Table248[[#This Row],[Date]]>$C$5-1),$D$5,0))) -> 0 | I108: =IF(ROW()=ROW(Table248[#Headers])+1,0,IF(ISNUMBER(Table248[[#This Row],[Credits]]),ABS(Table248[[#This Row],[Credits]])+I107,I107)) -> 0
B109: 2024-04-04 | C109: 0 | D109: =$C$3*Table248[[#This Row],[Beg Bal]] -> 0 | E109: =IF(DAY(Table248[[#This Row],[Date]])=$C$8,-1*Table248[[#This Row],[Current Pmt]],"") ->  | G109: =IF(Table248[[#This Row],[Date]]=TODAY(),$C$4,SUM(Table248[[#This Row],[Beg Bal]:[Penalties]])) -> 0 | H109: =IF(AND(LEN($C$7)>1,Table248[[#This Row],[Date]]>$C$7-1),$D$7,IF(AND(LEN($C$6)>1,Table248[[#This Row],[Date]]>$C$6-1),$D$6,IF(AND(LEN($C$5)>1,Table248[[#This Row],[Date]]>$C$5-1),$D$5,0))) -> 0 | I109: =IF(ROW()=ROW(Table248[#Headers])+1,0,IF(ISNUMBER(Table248[[#This Row],[Credits]]),ABS(Table248[[#This Row],[Credits]])+I108,I108)) -> 0
B110: 2024-04-05 | C110: 0 | D110: =$C$3*Table248[[#This Row],[Beg Bal]] -> 0 | E110: =IF(DAY(Table248[[#This Row],[Date]])=$C$8,-1*Table248[[#This Row],[Current Pmt]],"") ->  | G110: =IF(Table248[[#This Row],[Date]]=TODAY(),$C$4,SUM(Table248[[#This Row],[Beg Bal]:[Penalties]])) -> 0 | H110: =IF(AND(LEN($C$7)>1,Table248[[#This Row],[Date]]>$C$7-1),$D$7,IF(AND(LEN($C$6)>1,Table248[[#This Row],[Date]]>$C$6-1),$D$6,IF(AND(LEN($C$5)>1,Table248[[#This Row],[Date]]>$C$5-1),$D$5,0))) -> 0 | I110: =IF(ROW()=ROW(Table248[#Headers])+1,0,IF(ISNUMBER(Table248[[#This Row],[Credits]]),ABS(Table248[[#This Row],[Credits]])+I109,I109)) -> 0
B111: 2024-04-06 | C111: 0 | D111: =$C$3*Table248[[#This Row],[Beg Bal]] -> 0 | E111: =IF(DAY(Table248[[#This Row],[Date]])=$C$8,-1*Table248[[#This Row],[Current Pmt]],"") ->  | G111: =IF(Table248[[#This Row],[Date]]=TODAY(),$C$4,SUM(Table248[[#This Row],[Beg Bal]:[Penalties]])) -> 0 | H111: =IF(AND(LEN($C$7)>1,Table248[[#This Row],[Date]]>$C$7-1),$D$7,IF(AND(LEN($C$6)>1,Table248[[#This Row],[Date]]>$C$6-1),$D$6,IF(AND(LEN($C$5)>1,Table248[[#This Row],[Date]]>$C$5-1),$D$5,0))) -> 0 | I111: =IF(ROW()=ROW(Table248[#Headers])+1,0,IF(ISNUMBER(Table248[[#This Row],[Credits]]),ABS(Table248[[#This Row],[Credits]])+I110,I110)) -> 0
B112: 2024-04-07 | C112: 0 | D112: =$C$3*Table248[[#This Row],[Beg Bal]] -> 0 | E112: =IF(DAY(Table248[[#This Row],[Date]])=$C$8,-1*Table248[[#This Row],[Current Pmt]],"") ->  | G112: =IF(Table248[[#This Row],[Date]]=TODAY(),$C$4,SUM(Table248[[#This Row],[Beg Bal]:[Penalties]])) -> 0 | H112: =IF(AND(LEN($C$7)>1,Table248[[#This Row],[Date]]>$C$7-1),$D$7,IF(AND(LEN($C$6)>1,Table248[[#This Row],[Date]]>$C$6-1),$D$6,IF(AND(LEN($C$5)>1,Table248[[#This Row],[Date]]>$C$5-1),$D$5,0))) -> 0 | I112: =IF(ROW()=ROW(Table248[#Headers])+1,0,IF(ISNUMBER(Table248[[#This Row],[Credits]]),ABS(Table248[[#This Row],[Credits]])+I111,I111)) -> 0
B113: 2024-04-08 | C113: 0 | D113: =$C$3*Table248[[#This Row],[Beg Bal]] -> 0 | E113: =IF(DAY(Table248[[#This Row],[Date]])=$C$8,-1*Table248[[#This Row],[Current Pmt]],"") ->  | G113: =IF(Table248[[#This Row],[Date]]=TODAY(),$C$4,SUM(Table248[[#This Row],[Beg Bal]:[Penalties]])) -> 0 | H113: =IF(AND(LEN($C$7)>1,Table248[[#This Row],[Date]]>$C$7-1),$D$7,IF(AND(LEN($C$6)>1,Table248[[#This Row],[Date]]>$C$6-1),$D$6,IF(AND(LEN($C$5)>1,Table248[[#This Row],[Date]]>$C$5-1),$D$5,0))) -> 0 | I113: =IF(ROW()=ROW(Table248[#Headers])+1,0,IF(ISNUMBER(Table248[[#This Row],[Credits]]),ABS(Table248[[#This Row],[Credits]])+I112,I112)) -> 0
B114: 2024-04-09 | C114: 0 | D114: =$C$3*Table248[[#This Row],[Beg Bal]] -> 0 | E114: =IF(DAY(Table248[[#This Row],[Date]])=$C$8,-1*Table248[[#This Row],[Current Pmt]],"") ->  | G114: =IF(Table248[[#This Row],[Date]]=TODAY(),$C$4,SUM(Table248[[#This Row],[Beg Bal]:[Penalties]])) -> 0 | H114: =IF(AND(LEN($C$7)>1,Table248[[#This Row],[Date]]>$C$7-1),$D$7,IF(AND(LEN($C$6)>1,Table248[[#This Row],[Date]]>$C$6-1),$D$6,IF(AND(LEN($C$5)>1,Table248[[#This Row],[Date]]>$C$5-1),$D$5,0))) -> 0 | I114: =IF(ROW()=ROW(Table248[#Headers])+1,0,IF(ISNUMBER(Table248[[#This Row],[Credits]]),ABS(Table248[[#This Row],[Credits]])+I113,I113)) -> 0
B115: 2024-04-10 | C115: 0 | D115: =$C$3*Table248[[#This Row],[Beg Bal]] -> 0 | E115: =IF(DAY(Table248[[#This Row],[Date]])=$C$8,-1*Table248[[#This Row],[Current Pmt]],"") ->  | G115: =IF(Table248[[#This Row],[Date]]=TODAY(),$C$4,SUM(Table248[[#This Row],[Beg Bal]:[Penalties]])) -> 0 | H115: =IF(AND(LEN($C$7)>1,Table248[[#This Row],[Date]]>$C$7-1),$D$7,IF(AND(LEN($C$6)>1,Table248[[#This Row],[Date]]>$C$6-1),$D$6,IF(AND(LEN($C$5)>1,Table248[[#This Row],[Date]]>$C$5-1),$D$5,0))) -> 0 | I115: =IF(ROW()=ROW(Table248[#Headers])+1,0,IF(ISNUMBER(Table248[[#This Row],[Credits]]),ABS(Table248[[#This Row],[Credits]])+I114,I114)) -> 0
B116: 2024-04-11 | C116: 0 | D116: =$C$3*Table248[[#This Row],[Beg Bal]] -> 0 | E116: =IF(DAY(Table248[[#This Row],[Date]])=$C$8,-1*Table248[[#This Row],[Current Pmt]],"") ->  | G116: =IF(Table248[[#This Row],[Date]]=TODAY(),$C$4,SUM(Table248[[#This Row],[Beg Bal]:[Penalties]])) -> 0 | H116: =IF(AND(LEN($C$7)>1,Table248[[#This Row],[Date]]>$C$7-1),$D$7,IF(AND(LEN($C$6)>1,Table248[[#This Row],[Date]]>$C$6-1),$D$6,IF(AND(LEN($C$5)>1,Table248[[#This Row],[Date]]>$C$5-1),$D$5,0))) -> 0 | I116: =IF(ROW()=ROW(Table248[#Headers])+1,0,IF(ISNUMBER(Table248[[#This Row],[Credits]]),ABS(Table248[[#This Row],[Credits]])+I115,I115)) -> 0
B117: 2024-04-12 | C117: 0 | D117: =$C$3*Table248[[#This Row],[Beg Bal]] -> 0 | E117: =IF(DAY(Table248[[#This Row],[Date]])=$C$8,-1*Table248[[#This Row],[Current Pmt]],"") ->  | G117: =IF(Table248[[#This Row],[Date]]=TODAY(),$C$4,SUM(Table248[[#This Row],[Beg Bal]:[Penalties]])) -> 0 | H117: =IF(AND(LEN($C$7)>1,Table248[[#This Row],[Date]]>$C$7-1),$D$7,IF(AND(LEN($C$6)>1,Table248[[#This Row],[Date]]>$C$6-1),$D$6,IF(AND(LEN($C$5)>1,Table248[[#This Row],[Date]]>$C$5-1),$D$5,0))) -> 0 | I117: =IF(ROW()=ROW(Table248[#Headers])+1,0,IF(ISNUMBER(Table248[[#This Row],[Credits]]),ABS(Table248[[#This Row],[Credits]])+I116,I116)) -> 0
B118: 2024-04-13 | C118: 0 | D118: =$C$3*Table248[[#This Row],[Beg Bal]] -> 0 | E118: =IF(DAY(Table248[[#This Row],[Date]])=$C$8,-1*Table248[[#This Row],[Current Pmt]],"") ->  | G118: =IF(Table248[[#This Row],[Date]]=TODAY(),$C$4,SUM(Table248[[#This Row],[Beg Bal]:[Penalties]])) -> 0 | H118: =IF(AND(LEN($C$7)>1,Table248[[#This Row],[Date]]>$C$7-1),$D$7,IF(AND(LEN($C$6)>1,Table248[[#This Row],[Date]]>$C$6-1),$D$6,IF(AND(LEN($C$5)>1,Table248[[#This Row],[Date]]>$C$5-1),$D$5,0))) -> 0 | I118: =IF(ROW()=ROW(Table248[#Headers])+1,0,IF(ISNUMBER(Table248[[#This Row],[Credits]]),ABS(Table248[[#This Row],[Credits]])+I117,I117)) -> 0
B119: 2024-04-14 | C119: 0 | D119: =$C$3*Table248[[#This Row],[Beg Bal]] -> 0 | E119: =IF(DAY(Table248[[#This Row],[Date]])=$C$8,-1*Table248[[#This Row],[Current Pmt]],"") ->  | G119: =IF(Table248[[#This Row],[Date]]=TODAY(),$C$4,SUM(Table248[[#This Row],[Beg Bal]:[Penalties]])) -> 0 | H119: =IF(AND(LEN($C$7)>1,Table248[[#This Row],[Date]]>$C$7-1),$D$7,IF(AND(LEN($C$6)>1,Table248[[#This Row],[Date]]>$C$6-1),$D$6,IF(AND(LEN($C$5)>1,Table248[[#This Row],[Date]]>$C$5-1),$D$5,0))) -> 0 | I119: =IF(ROW()=ROW(Table248[#Headers])+1,0,IF(ISNUMBER(Table248[[#This Row],[Credits]]),ABS(Table248[[#This Row],[Credits]])+I118,I118)) -> 0
B120: 2024-04-15 | C120: 0 | D120: =$C$3*Table248[[#This Row],[Beg Bal]] -> 0 | E120: =IF(DAY(Table248[[#This Row],[Date]])=$C$8,-1*Table248[[#This Row],[Current Pmt]],"") ->  | G120: =IF(Table248[[#This Row],[Date]]=TODAY(),$C$4,SUM(Table248[[#This Row],[Beg Bal]:[Penalties]])) -> 0 | H120: =IF(AND(LEN($C$7)>1,Table248[[#This Row],[Date]]>$C$7-1),$D$7,IF(AND(LEN($C$6)>1,Table248[[#This Row],[Date]]>$C$6-1),$D$6,IF(AND(LEN($C$5)>1,Table248[[#This Row],[Date]]>$C$5-1),$D$5,0))) -> 0 | I120: =IF(ROW()=ROW(Table248[#Headers])+1,0,IF(ISNUMBER(Table248[[#This Row],[Credits]]),ABS(Table248[[#This Row],[Credits]])+I119,I119)) -> 0
B121: 2024-04-16 | C121: 0 | D121: =$C$3*Table248[[#This Row],[Beg Bal]] -> 0 | E121: =IF(DAY(Table248[[#This Row],[Date]])=$C$8,-1*Table248[[#This Row],[Current Pmt]],"") ->  | G121: =IF(Table248[[#This Row],[Date]]=TODAY(),$C$4,SUM(Table248[[#This Row],[Beg Bal]:[Penalties]])) -> 0 | H121: =IF(AND(LEN($C$7)>1,Table248[[#This Row],[Date]]>$C$7-1),$D$7,IF(AND(LEN($C$6)>1,Table248[[#This Row],[Date]]>$C$6-1),$D$6,IF(AND(LEN($C$5)>1,Table248[[#This Row],[Date]]>$C$5-1),$D$5,0))) -> 0 | I121: =IF(ROW()=ROW(Table248[#Headers])+1,0,IF(ISNUMBER(Table248[[#This Row],[Credits]]),ABS(Table248[[#This Row],[Credits]])+I120,I120)) -> 0
B122: 2024-04-17 | C122: 0 | D122: =$C$3*Table248[[#This Row],[Beg Bal]] -> 0 | E122: =IF(DAY(Table248[[#This Row],[Date]])=$C$8,-1*Table248[[#This Row],[Current Pmt]],"") ->  | G122: =IF(Table248[[#This Row],[Date]]=TODAY(),$C$4,SUM(Table248[[#This Row],[Beg Bal]:[Penalties]])) -> 0 | H122: =IF(AND(LEN($C$7)>1,Table248[[#This Row],[Date]]>$C$7-1),$D$7,IF(AND(LEN($C$6)>1,Table248[[#This Row],[Date]]>$C$6-1),$D$6,IF(AND(LEN($C$5)>1,Table248[[#This Row],[Date]]>$C$5-1),$D$5,0))) -> 0 | I122: =IF(ROW()=ROW(Table248[#Headers])+1,0,IF(ISNUMBER(Table248[[#This Row],[Credits]]),ABS(Table248[[#This Row],[Credits]])+I121,I121)) -> 0
B123: 2024-04-18 | C123: 0 | D123: =$C$3*Table248[[#This Row],[Beg Bal]] -> 0 | E123: =IF(DAY(Table248[[#This Row],[Date]])=$C$8,-1*Table248[[#This Row],[Current Pmt]],"") ->  | G123: =IF(Table248[[#This Row],[Date]]=TODAY(),$C$4,SUM(Table248[[#This Row],[Beg Bal]:[Penalties]])) -> 0 | H123: =IF(AND(LEN($C$7)>1,Table248[[#This Row],[Date]]>$C$7-1),$D$7,IF(AND(LEN($C$6)>1,Table248[[#This Row],[Date]]>$C$6-1),$D$6,IF(AND(LEN($C$5)>1,Table248[[#This Row],[Date]]>$C$5-1),$D$5,0))) -> 0 | I123: =IF(ROW()=ROW(Table248[#Headers])+1,0,IF(ISNUMBER(Table248[[#This Row],[Credits]]),ABS(Table248[[#This Row],[Credits]])+I122,I122)) -> 0
B124: 2024-04-19 | C124: 0 | D124: =$C$3*Table248[[#This Row],[Beg Bal]] -> 0 | E124: =IF(DAY(Table248[[#This Row],[Date]])=$C$8,-1*Table248[[#This Row],[Current Pmt]],"") ->  | G124: =IF(Table248[[#This Row],[Date]]=TODAY(),$C$4,SUM(Table248[[#This Row],[Beg Bal]:[Penalties]])) -> 0 | H124: =IF(AND(LEN($C$7)>1,Table248[[#This Row],[Date]]>$C$7-1),$D$7,IF(AND(LEN($C$6)>1,Table248[[#This Row],[Date]]>$C$6-1),$D$6,IF(AND(LEN($C$5)>1,Table248[[#This Row],[Date]]>$C$5-1),$D$5,0))) -> 0 | I124: =IF(ROW()=ROW(Table248[#Headers])+1,0,IF(ISNUMBER(Table248[[#This Row],[Credits]]),ABS(Table248[[#This Row],[Credits]])+I123,I123)) -> 0
B125: 2024-04-20 | C125: 0 | D125: =$C$3*Table248[[#This Row],[Beg Bal]] -> 0 | E125: =IF(DAY(Table248[[#This Row],[Date]])=$C$8,-1*Table248[[#This Row],[Current Pmt]],"") ->  | G125: =IF(Table248[[#This Row],[Date]]=TODAY(),$C$4,SUM(Table248[[#This Row],[Beg Bal]:[Penalties]])) -> 0 | H125: =IF(AND(LEN($C$7)>1,Table248[[#This Row],[Date]]>$C$7-1),$D$7,IF(AND(LEN($C$6)>1,Table248[[#This Row],[Date]]>$C$6-1),$D$6,IF(AND(LEN($C$5)>1,Table248[[#This Row],[Date]]>$C$5-1),$D$5,0))) -> 0 | I125: =IF(ROW()=ROW(Table248[#Headers])+1,0,IF(ISNUMBER(Table248[[#This Row],[Credits]]),ABS(Table248[[#This Row],[Credits]])+I124,I124)) -> 0
B126: 2024-04-21 | C126: 0 | D126: =$C$3*Table248[[#This Row],[Beg Bal]] -> 0 | E126: =IF(DAY(Table248[[#This Row],[Date]])=$C$8,-1*Table248[[#This Row],[Current Pmt]],"") ->  | G126: =IF(Table248[[#This Row],[Date]]=TODAY(),$C$4,SUM(Table248[[#This Row],[Beg Bal]:[Penalties]])) -> 0 | H126: =IF(AND(LEN($C$7)>1,Table248[[#This Row],[Date]]>$C$7-1),$D$7,IF(AND(LEN($C$6)>1,Table248[[#This Row],[Date]]>$C$6-1),$D$6,IF(AND(LEN($C$5)>1,Table248[[#This Row],[Date]]>$C$5-1),$D$5,0))) -> 0 | I126: =IF(ROW()=ROW(Table248[#Headers])+1,0,IF(ISNUMBER(Table248[[#This Row],[Credits]]),ABS(Table248[[#This Row],[Credits]])+I125,I125)) -> 0
B127: 2024-04-22 | C127: 0 | D127: =$C$3*Table248[[#This Row],[Beg Bal]] -> 0 | E127: =IF(DAY(Table248[[#This Row],[Date]])=$C$8,-1*Table248[[#This Row],[Current Pmt]],"") ->  | G127: =IF(Table248[[#This Row],[Date]]=TODAY(),$C$4,SUM(Table248[[#This Row],[Beg Bal]:[Penalties]])) -> 0 | H127: =IF(AND(LEN($C$7)>1,Table248[[#This Row],[Date]]>$C$7-1),$D$7,IF(AND(LEN($C$6)>1,Table248[[#This Row],[Date]]>$C$6-1),$D$6,IF(AND(LEN($C$5)>1,Table248[[#This Row],[Date]]>$C$5-1),$D$5,0))) -> 0 | I127: =IF(ROW()=ROW(Table248[#Headers])+1,0,IF(ISNUMBER(Table248[[#This Row],[Credits]]),ABS(Table248[[#This Row],[Credits]])+I126,I126)) -> 0
B128: 2024-04-23 | C128: 0 | D128: =$C$3*Table248[[#This Row],[Beg Bal]] -> 0 | E128: =IF(DAY(Table248[[#This Row],[Date]])=$C$8,-1*Table248[[#This Row],[Current Pmt]],"") ->  | G128: =IF(Table248[[#This Row],[Date]]=TODAY(),$C$4,SUM(Table248[[#This Row],[Beg Bal]:[Penalties]])) -> 0 | H128: =IF(AND(LEN($C$7)>1,Table248[[#This Row],[Date]]>$C$7-1),$D$7,IF(AND(LEN($C$6)>1,Table248[[#This Row],[Date]]>$C$6-1),$D$6,IF(AND(LEN($C$5)>1,Table248[[#This Row],[Date]]>$C$5-1),$D$5,0))) -> 0 | I128: =IF(ROW()=ROW(Table248[#Headers])+1,0,IF(ISNUMBER(Table248[[#This Row],[Credits]]),ABS(Table248[[#This Row],[Credits]])+I127,I127)) -> 0
B129: 2024-04-24 | C129: 0 | D129: =$C$3*Table248[[#This Row],[Beg Bal]] -> 0 | E129: =IF(DAY(Table248[[#This Row],[Date]])=$C$8,-1*Table248[[#This Row],[Current Pmt]],"") ->  | G129: =IF(Table248[[#This Row],[Date]]=TODAY(),$C$4,SUM(Table248[[#This Row],[Beg Bal]:[Penalties]])) -> 0 | H129: =IF(AND(LEN($C$7)>1,Table248[[#This Row],[Date]]>$C$7-1),$D$7,IF(AND(LEN($C$6)>1,Table248[[#This Row],[Date]]>$C$6-1),$D$6,IF(AND(LEN($C$5)>1,Table248[[#This Row],[Date]]>$C$5-1),$D$5,0))) -> 0 | I129: =IF(ROW()=ROW(Table248[#Headers])+1,0,IF(ISNUMBER(Table248[[#This Row],[Credits]]),ABS(Table248[[#This Row],[Credits]])+I128,I128)) -> 0
B130: 2024-04-25 | C130: 0 | D130: =$C$3*Table248[[#This Row],[Beg Bal]] -> 0 | E130: =IF(DAY(Table248[[#This Row],[Date]])=$C$8,-1*Table248[[#This Row],[Current Pmt]],"") ->  | G130: =IF(Table248[[#This Row],[Date]]=TODAY(),$C$4,SUM(Table248[[#This Row],[Beg Bal]:[Penalties]])) -> 0 | H130: =IF(AND(LEN($C$7)>1,Table248[[#This Row],[Date]]>$C$7-1),$D$7,IF(AND(LEN($C$6)>1,Table248[[#This Row],[Date]]>$C$6-1),$D$6,IF(AND(LEN($C$5)>1,Table248[[#This Row],[Date]]>$C$5-1),$D$5,0))) -> 0 | I130: =IF(ROW()=ROW(Table248[#Headers])+1,0,IF(ISNUMBER(Table248[[#This Row],[Credits]]),ABS(Table248[[#This Row],[Credits]])+I129,I129)) -> 0
B131: 2024-04-26 | C131: 0 | D131: =$C$3*Table248[[#This Row],[Beg Bal]] -> 0 | E131: =IF(DAY(Table248[[#This Row],[Date]])=$C$8,-1*Table248[[#This Row],[Current Pmt]],"") ->  | G131: =IF(Table248[[#This Row],[Date]]=TODAY(),$C$4,SUM(Table248[[#This Row],[Beg Bal]:[Penalties]])) -> 0 | H131: =IF(AND(LEN($C$7)>1,Table248[[#This Row],[Date]]>$C$7-1),$D$7,IF(AND(LEN($C$6)>1,Table248[[#This Row],[Date]]>$C$6-1),$D$6,IF(AND(LEN($C$5)>1,Table248[[#This Row],[Date]]>$C$5-1),$D$5,0))) -> 0 | I131: =IF(ROW()=ROW(Table248[#Headers])+1,0,IF(ISNUMBER(Table248[[#This Row],[Credits]]),ABS(Table248[[#This Row],[Credits]])+I130,I130)) -> 0
B132: 2024-04-27 | C132: 0 | D132: =$C$3*Table248[[#This Row],[Beg Bal]] -> 0 | E132: =IF(DAY(Table248[[#This Row],[Date]])=$C$8,-1*Table248[[#This Row],[Current Pmt]],"") ->  | G132: =IF(Table248[[#This Row],[Date]]=TODAY(),$C$4,SUM(Table248[[#This Row],[Beg Bal]:[Penalties]])) -> 0 | H132: =IF(AND(LEN($C$7)>1,Table248[[#This Row],[Date]]>$C$7-1),$D$7,IF(AND(LEN($C$6)>1,Table248[[#This Row],[Date]]>$C$6-1),$D$6,IF(AND(LEN($C$5)>1,Table248[[#This Row],[Date]]>$C$5-1),$D$5,0))) -> 0 | I132: =IF(ROW()=ROW(Table248[#Headers])+1,0,IF(ISNUMBER(Table248[[#This Row],[Credits]]),ABS(Table248[[#This Row],[Credits]])+I131,I131)) -> 0
B133: 2024-04-28 | C133: 0 | D133: =$C$3*Table248[[#This Row],[Beg Bal]] -> 0 | E133: =IF(DAY(Table248[[#This Row],[Date]])=$C$8,-1*Table248[[#This Row],[Current Pmt]],"") -> 0 | G133: =IF(Table248[[#This Row],[Date]]=TODAY(),$C$4,SUM(Table248[[#This Row],[Beg Bal]:[Penalties]])) -> 0 | H133: =IF(AND(LEN($C$7)>1,Table248[[#This Row],[Date]]>$C$7-1),$D$7,IF(AND(LEN($C$6)>1,Table248[[#This Row],[Date]]>$C$6-1),$D$6,IF(AND(LEN($C$5)>1,Table248[[#This Row],[Date]]>$C$5-1),$D$5,0))) -> 0 | I133: =IF(ROW()=ROW(Table248[#Headers])+1,0,IF(ISNUMBER(Table248[[#This Row],[Credits]]),ABS(Table248[[#This Row],[Credits]])+I132,I132)) -> 0
B134: 2024-04-29 | C134: 0 | D134: =$C$3*Table248[[#This Row],[Beg Bal]] -> 0 | E134: =IF(DAY(Table248[[#This Row],[Date]])=$C$8,-1*Table248[[#This Row],[Current Pmt]],"") ->  | G134: =IF(Table248[[#This Row],[Date]]=TODAY(),$C$4,SUM(Table248[[#This Row],[Beg Bal]:[Penalties]])) -> 0 | H134: =IF(AND(LEN($C$7)>1,Table248[[#This Row],[Date]]>$C$7-1),$D$7,IF(AND(LEN($C$6)>1,Table248[[#This Row],[Date]]>$C$6-1),$D$6,IF(AND(LEN($C$5)>1,Table248[[#This Row],[Date]]>$C$5-1),$D$5,0))) -> 0 | I134: =IF(ROW()=ROW(Table248[#Headers])+1,0,IF(ISNUMBER(Table248[[#This Row],[Credits]]),ABS(Table248[[#This Row],[Credits]])+I133,I133)) -> 0
B135: 2024-04-30 | C135: 0 | D135: =$C$3*Table248[[#This Row],[Beg Bal]] -> 0 | E135: =IF(DAY(Table248[[#This Row],[Date]])=$C$8,-1*Table248[[#This Row],[Current Pmt]],"") ->  | G135: =IF(Table248[[#This Row],[Date]]=TODAY(),$C$4,SUM(Table248[[#This Row],[Beg Bal]:[Penalties]])) -> 0 | H135: =IF(AND(LEN($C$7)>1,Table248[[#This Row],[Date]]>$C$7-1),$D$7,IF(AND(LEN($C$6)>1,Table248[[#This Row],[Date]]>$C$6-1),$D$6,IF(AND(LEN($C$5)>1,Table248[[#This Row],[Date]]>$C$5-1),$D$5,0))) -> 0 | I135: =IF(ROW()=ROW(Table248[#Headers])+1,0,IF(ISNUMBER(Table248[[#This Row],[Credits]]),ABS(Table248[[#This Row],[Credits]])+I134,I134)) -> 0
B136: 2024-05-01 | C136: 0 | D136: =$C$3*Table248[[#This Row],[Beg Bal]] -> 0 | E136: =IF(DAY(Table248[[#This Row],[Date]])=$C$8,-1*Table248[[#This Row],[Current Pmt]],"") ->  | G136: =IF(Table248[[#This Row],[Date]]=TODAY(),$C$4,SUM(Table248[[#This Row],[Beg Bal]:[Penalties]])) -> 0 | H136: =IF(AND(LEN($C$7)>1,Table248[[#This Row],[Date]]>$C$7-1),$D$7,IF(AND(LEN($C$6)>1,Table248[[#This Row],[Date]]>$C$6-1),$D$6,IF(AND(LEN($C$5)>1,Table248[[#This Row],[Date]]>$C$5-1),$D$5,0))) -> 0 | I136: =IF(ROW()=ROW(Table248[#Headers])+1,0,IF(ISNUMBER(Table248[[#This Row],[Credits]]),ABS(Table248[[#This Row],[Credits]])+I135,I135)) -> 0
B137: 2024-05-02 | C137: 0 | D137: =$C$3*Table248[[#This Row],[Beg Bal]] -> 0 | E137: =IF(DAY(Table248[[#This Row],[Date]])=$C$8,-1*Table248[[#This Row],[Current Pmt]],"") ->  | G137: =IF(Table248[[#This Row],[Date]]=TODAY(),$C$4,SUM(Table248[[#This Row],[Beg Bal]:[Penalties]])) -> 0 | H137: =IF(AND(LEN($C$7)>1,Table248[[#This Row],[Date]]>$C$7-1),$D$7,IF(AND(LEN($C$6)>1,Table248[[#This Row],[Date]]>$C$6-1),$D$6,IF(AND(LEN($C$5)>1,Table248[[#This Row],[Date]]>$C$5-1),$D$5,0))) -> 0 | I137: =IF(ROW()=ROW(Table248[#Headers])+1,0,IF(ISNUMBER(Table248[[#This Row],[Credits]]),ABS(Table248[[#This Row],[Credits]])+I136,I136)) -> 0
B138: 2024-05-03 | C138: 0 | D138: =$C$3*Table248[[#This Row],[Beg Bal]] -> 0 | E138: =IF(DAY(Table248[[#This Row],[Date]])=$C$8,-1*Table248[[#This Row],[Current Pmt]],"") ->  | G138: =IF(Table248[[#This Row],[Date]]=TODAY(),$C$4,SUM(Table248[[#This Row],[Beg Bal]:[Penalties]])) -> 0 | H138: =IF(AND(LEN($C$7)>1,Table248[[#This Row],[Date]]>$C$7-1),$D$7,IF(AND(LEN($C$6)>1,Table248[[#This Row],[Date]]>$C$6-1),$D$6,IF(AND(LEN($C$5)>1,Table248[[#This Row],[Date]]>$C$5-1),$D$5,0))) -> 0 | I138: =IF(ROW()=ROW(Table248[#Headers])+1,0,IF(ISNUMBER(Table248[[#This Row],[Credits]]),ABS(Table248[[#This Row],[Credits]])+I137,I137)) -> 0
B139: 2024-05-04 | C139: 0 | D139: =$C$3*Table248[[#This Row],[Beg Bal]] -> 0 | E139: =IF(DAY(Table248[[#This Row],[Date]])=$C$8,-1*Table248[[#This Row],[Current Pmt]],"") ->  | G139: =IF(Table248[[#This Row],[Date]]=TODAY(),$C$4,SUM(Table248[[#This Row],[Beg Bal]:[Penalties]])) -> 0 | H139: =IF(AND(LEN($C$7)>1,Table248[[#This Row],[Date]]>$C$7-1),$D$7,IF(AND(LEN($C$6)>1,Table248[[#This Row],[Date]]>$C$6-1),$D$6,IF(AND(LEN($C$5)>1,Table248[[#This Row],[Date]]>$C$5-1),$D$5,0))) -> 0 | I139: =IF(ROW()=ROW(Table248[#Headers])+1,0,IF(ISNUMBER(Table248[[#This Row],[Credits]]),ABS(Table248[[#This Row],[Credits]])+I138,I138)) -> 0
B140: 2024-05-05 | C140: 0 | D140: =$C$3*Table248[[#This Row],[Beg Bal]] -> 0 | E140: =IF(DAY(Table248[[#This Row],[Date]])=$C$8,-1*Table248[[#This Row],[Current Pmt]],"") ->  | G140: =IF(Table248[[#This Row],[Date]]=TODAY(),$C$4,SUM(Table248[[#This Row],[Beg Bal]:[Penalties]])) -> 0 | H140: =IF(AND(LEN($C$7)>1,Table248[[#This Row],[Date]]>$C$7-1),$D$7,IF(AND(LEN($C$6)>1,Table248[[#This Row],[Date]]>$C$6-1),$D$6,IF(AND(LEN($C$5)>1,Table248[[#This Row],[Date]]>$C$5-1),$D$5,0))) -> 0 | I140: =IF(ROW()=ROW(Table248[#Headers])+1,0,IF(ISNUMBER(Table248[[#This Row],[Credits]]),ABS(Table248[[#This Row],[Credits]])+I139,I139)) -> 0
B141: 2024-05-06 | C141: 0 | D141: =$C$3*Table248[[#This Row],[Beg Bal]] -> 0 | E141: =IF(DAY(Table248[[#This Row],[Date]])=$C$8,-1*Table248[[#This Row],[Current Pmt]],"") ->  | G141: =IF(Table248[[#This Row],[Date]]=TODAY(),$C$4,SUM(Table248[[#This Row],[Beg Bal]:[Penalties]])) -> 0 | H141: =IF(AND(LEN($C$7)>1,Table248[[#This Row],[Date]]>$C$7-1),$D$7,IF(AND(LEN($C$6)>1,Table248[[#This Row],[Date]]>$C$6-1),$D$6,IF(AND(LEN($C$5)>1,Table248[[#This Row],[Date]]>$C$5-1),$D$5,0))) -> 0 | I141: =IF(ROW()=ROW(Table248[#Headers])+1,0,IF(ISNUMBER(Table248[[#This Row],[Credits]]),ABS(Table248[[#This Row],[Credits]])+I140,I140)) -> 0
B142: 2024-05-07 | C142: 0 | D142: =$C$3*Table248[[#This Row],[Beg Bal]] -> 0 | E142: =IF(DAY(Table248[[#This Row],[Date]])=$C$8,-1*Table248[[#This Row],[Current Pmt]],"") ->  | G142: =IF(Table248[[#This Row],[Date]]=TODAY(),$C$4,SUM(Table248[[#This Row],[Beg Bal]:[Penalties]])) -> 0 | H142: =IF(AND(LEN($C$7)>1,Table248[[#This Row],[Date]]>$C$7-1),$D$7,IF(AND(LEN($C$6)>1,Table248[[#This Row],[Date]]>$C$6-1),$D$6,IF(AND(LEN($C$5)>1,Table248[[#This Row],[Date]]>$C$5-1),$D$5,0))) -> 0 | I142: =IF(ROW()=ROW(Table248[#Headers])+1,0,IF(ISNUMBER(Table248[[#This Row],[Credits]]),ABS(Table248[[#This Row],[Credits]])+I141,I141)) -> 0
B143: 2024-05-08 | C143: 0 | D143: =$C$3*Table248[[#This Row],[Beg Bal]] -> 0 | E143: =IF(DAY(Table248[[#This Row],[Date]])=$C$8,-1*Table248[[#This Row],[Current Pmt]],"") ->  | G143: =IF(Table248[[#This Row],[Date]]=TODAY(),$C$4,SUM(Table248[[#This Row],[Beg Bal]:[Penalties]])) -> 0 | H143: =IF(AND(LEN($C$7)>1,Table248[[#This Row],[Date]]>$C$7-1),$D$7,IF(AND(LEN($C$6)>1,Table248[[#This Row],[Date]]>$C$6-1),$D$6,IF(AND(LEN($C$5)>1,Table248[[#This Row],[Date]]>$C$5-1),$D$5,0))) -> 0 | I143: =IF(ROW()=ROW(Table248[#Headers])+1,0,IF(ISNUMBER(Table248[[#This Row],[Credits]]),ABS(Table248[[#This Row],[Credits]])+I142,I142)) -> 0
B144: =B143+1 -> 2024-05-09 | C144: =G143 -> 0 | D144: =$C$3*Table248[[#This Row],[Beg Bal]] -> 0 | E144: =IF(DAY(Table248[[#This Row],[Date]])=$C$8,-1*Table248[[#This Row],[Current Pmt]],"") ->  | G144: =IF(Table248[[#This Row],[Date]]=TODAY(),$C$4,SUM(Table248[[#This Row],[Beg Bal]:[Penalties]])) -> 0 | H144: =IF(AND(LEN($C$7)>1,Table248[[#This Row],[Date]]>$C$7-1),$D$7,IF(AND(LEN($C$6)>1,Table248[[#This Row],[Date]]>$C$6-1),$D$6,IF(AND(LEN($C$5)>1,Table248[[#This Row],[Date]]>$C$5-1),$D$5,0))) -> 0 | I144: =IF(ROW()=ROW(Table248[#Headers])+1,0,IF(ISNUMBER(Table248[[#This Row],[Credits]]),ABS(Table248[[#This Row],[Credits]])+I143,I143)) -> 0
B145: 2024-05-10 | C145: 0 | D145: =$C$3*Table248[[#This Row],[Beg Bal]] -> 0 | E145: =IF(DAY(Table248[[#This Row],[Date]])=$C$8,-1*Table248[[#This Row],[Current Pmt]],"") ->  | G145: =IF(Table248[[#This Row],[Date]]=TODAY(),$C$4,SUM(Table248[[#This Row],[Beg Bal]:[Penalties]])) -> 0 | H145: =IF(AND(LEN($C$7)>1,Table248[[#This Row],[Date]]>$C$7-1),$D$7,IF(AND(LEN($C$6)>1,Table248[[#This Row],[Date]]>$C$6-1),$D$6,IF(AND(LEN($C$5)>1,Table248[[#This Row],[Date]]>$C$5-1),$D$5,0))) -> 0 | I145: =IF(ROW()=ROW(Table248[#Headers])+1,0,IF(ISNUMBER(Table248[[#This Row],[Credits]]),ABS(Table248[[#This Row],[Credits]])+I144,I144)) -> 0
B146: 2024-05-11 | C146: 0 | D146: =$C$3*Table248[[#This Row],[Beg Bal]] -> 0 | E146: =IF(DAY(Table248[[#This Row],[Date]])=$C$8,-1*Table248[[#This Row],[Current Pmt]],"") ->  | G146: =IF(Table248[[#This Row],[Date]]=TODAY(),$C$4,SUM(Table248[[#This Row],[Beg Bal]:[Penalties]])) -> 0 | H146: =IF(AND(LEN($C$7)>1,Table248[[#This Row],[Date]]>$C$7-1),$D$7,IF(AND(LEN($C$6)>1,Table248[[#This Row],[Date]]>$C$6-1),$D$6,IF(AND(LEN($C$5)>1,Table248[[#This Row],[Date]]>$C$5-1),$D$5,0))) -> 0 | I146: =IF(ROW()=ROW(Table248[#Headers])+1,0,IF(ISNUMBER(Table248[[#This Row],[Credits]]),ABS(Table248[[#This Row],[Credits]])+I145,I145)) -> 0
B147: 2024-05-12 | C147: 0 | D147: =$C$3*Table248[[#This Row],[Beg Bal]] -> 0 | E147: =IF(DAY(Table248[[#This Row],[Date]])=$C$8,-1*Table248[[#This Row],[Current Pmt]],"") ->  | G147: =IF(Table248[[#This Row],[Date]]=TODAY(),$C$4,SUM(Table248[[#This Row],[Beg Bal]:[Penalties]])) -> 0 | H147: =IF(AND(LEN($C$7)>1,Table248[[#This Row],[Date]]>$C$7-1),$D$7,IF(AND(LEN($C$6)>1,Table248[[#This Row],[Date]]>$C$6-1),$D$6,IF(AND(LEN($C$5)>1,Table248[[#This Row],[Date]]>$C$5-1),$D$5,0))) -> 0 | I147: =IF(ROW()=ROW(Table248[#Headers])+1,0,IF(ISNUMBER(Table248[[#This Row],[Credits]]),ABS(Table248[[#This Row],[Credits]])+I146,I146)) -> 0
B148: 2024-05-13 | C148: 0 | D148: =$C$3*Table248[[#This Row],[Beg Bal]] -> 0 | E148: =IF(DAY(Table248[[#This Row],[Date]])=$C$8,-1*Table248[[#This Row],[Current Pmt]],"") ->  | G148: =IF(Table248[[#This Row],[Date]]=TODAY(),$C$4,SUM(Table248[[#This Row],[Beg Bal]:[Penalties]])) -> 0 | H148: =IF(AND(LEN($C$7)>1,Table248[[#This Row],[Date]]>$C$7-1),$D$7,IF(AND(LEN($C$6)>1,Table248[[#This Row],[Date]]>$C$6-1),$D$6,IF(AND(LEN($C$5)>1,Table248[[#This Row],[Date]]>$C$5-1),$D$5,0))) -> 0 | I148: =IF(ROW()=ROW(Table248[#Headers])+1,0,IF(ISNUMBER(Table248[[#This Row],[Credits]]),ABS(Table248[[#This Row],[Credits]])+I147,I147)) -> 0
B149: 2024-05-14 | C149: 0 | D149: =$C$3*Table248[[#This Row],[Beg Bal]] -> 0 | E149: =IF(DAY(Table248[[#This Row],[Date]])=$C$8,-1*Table248[[#This Row],[Current Pmt]],"") ->  | G149: =IF(Table248[[#This Row],[Date]]=TODAY(),$C$4,SUM(Table248[[#This Row],[Beg Bal]:[Penalties]])) -> 0 | H149: =IF(AND(LEN($C$7)>1,Table248[[#This Row],[Date]]>$C$7-1),$D$7,IF(AND(LEN($C$6)>1,Table248[[#This Row],[Date]]>$C$6-1),$D$6,IF(AND(LEN($C$5)>1,Table248[[#This Row],[Date]]>$C$5-1),$D$5,0))) -> 0 | I149: =IF(ROW()=ROW(Table248[#Headers])+1,0,IF(ISNUMBER(Table248[[#This Row],[Credits]]),ABS(Table248[[#This Row],[Credits]])+I148,I148)) -> 0
B150: 2024-05-15 | C150: 0 | D150: =$C$3*Table248[[#This Row],[Beg Bal]] -> 0 | E150: =IF(DAY(Table248[[#This Row],[Date]])=$C$8,-1*Table248[[#This Row],[Current Pmt]],"") ->  | G150: =IF(Table248[[#This Row],[Date]]=TODAY(),$C$4,SUM(Table248[[#This Row],[Beg Bal]:[Penalties]])) -> 0 | H150: =IF(AND(LEN($C$7)>1,Table248[[#This Row],[Date]]>$C$7-1),$D$7,IF(AND(LEN($C$6)>1,Table248[[#This Row],[Date]]>$C$6-1),$D$6,IF(AND(LEN($C$5)>1,Table248[[#This Row],[Date]]>$C$5-1),$D$5,0))) -> 0 | I150: =IF(ROW()=ROW(Table248[#Headers])+1,0,IF(ISNUMBER(Table248[[#This Row],[Credits]]),ABS(Table248[[#This Row],[Credits]])+I149,I149)) -> 0
B151: 2024-05-16 | C151: 0 | D151: =$C$3*Table248[[#This Row],[Beg Bal]] -> 0 | E151: =IF(DAY(Table248[[#This Row],[Date]])=$C$8,-1*Table248[[#This Row],[Current Pmt]],"") ->  | G151: =IF(Table248[[#This Row],[Date]]=TODAY(),$C$4,SUM(Table248[[#This Row],[Beg Bal]:[Penalties]])) -> 0 | H151: =IF(AND(LEN($C$7)>1,Table248[[#This Row],[Date]]>$C$7-1),$D$7,IF(AND(LEN($C$6)>1,Table248[[#This Row],[Date]]>$C$6-1),$D$6,IF(AND(LEN($C$5)>1,Table248[[#This Row],[Date]]>$C$5-1),$D$5,0))) -> 0 | I151: =IF(ROW()=ROW(Table248[#Headers])+1,0,IF(ISNUMBER(Table248[[#This Row],[Credits]]),ABS(Table248[[#This Row],[Credits]])+I150,I150)) -> 0
B152: 2024-05-17 | C152: 0 | D152: =$C$3*Table248[[#This Row],[Beg Bal]] -> 0 | E152: =IF(DAY(Table248[[#This Row],[Date]])=$C$8,-1*Table248[[#This Row],[Current Pmt]],"") ->  | G152: =IF(Table248[[#This Row],[Date]]=TODAY(),$C$4,SUM(Table248[[#This Row],[Beg Bal]:[Penalties]])) -> 0 | H152: =IF(AND(LEN($C$7)>1,Table248[[#This Row],[Date]]>$C$7-1),$D$7,IF(AND(LEN($C$6)>1,Table248[[#This Row],[Date]]>$C$6-1),$D$6,IF(AND(LEN($C$5)>1,Table248[[#This Row],[Date]]>$C$5-1),$D$5,0))) -> 0 | I152: =IF(ROW()=ROW(Table248[#Headers])+1,0,IF(ISNUMBER(Table248[[#This Row],[Credits]]),ABS(Table248[[#This Row],[Credits]])+I151,I151)) -> 0
B153: 2024-05-18 | C153: 0 | D153: =$C$3*Table248[[#This Row],[Beg Bal]] -> 0 | E153: =IF(DAY(Table248[[#This Row],[Date]])=$C$8,-1*Table248[[#This Row],[Current Pmt]],"") ->  | G153: =IF(Table248[[#This Row],[Date]]=TODAY(),$C$4,SUM(Table248[[#This Row],[Beg Bal]:[Penalties]])) -> 0 | H153: =IF(AND(LEN($C$7)>1,Table248[[#This Row],[Date]]>$C$7-1),$D$7,IF(AND(LEN($C$6)>1,Table248[[#This Row],[Date]]>$C$6-1),$D$6,IF(AND(LEN($C$5)>1,Table248[[#This Row],[Date]]>$C$5-1),$D$5,0))) -> 0 | I153: =IF(ROW()=ROW(Table248[#Headers])+1,0,IF(ISNUMBER(Table248[[#This Row],[Credits]]),ABS(Table248[[#This Row],[Credits]])+I152,I152)) -> 0
B154: 2024-05-19 | C154: 0 | D154: =$C$3*Table248[[#This Row],[Beg Bal]] -> 0 | E154: =IF(DAY(Table248[[#This Row],[Date]])=$C$8,-1*Table248[[#This Row],[Current Pmt]],"") ->  | G154: =IF(Table248[[#This Row],[Date]]=TODAY(),$C$4,SUM(Table248[[#This Row],[Beg Bal]:[Penalties]])) -> 0 | H154: =IF(AND(LEN($C$7)>1,Table248[[#This Row],[Date]]>$C$7-1),$D$7,IF(AND(LEN($C$6)>1,Table248[[#This Row],[Date]]>$C$6-1),$D$6,IF(AND(LEN($C$5)>1,Table248[[#This Row],[Date]]>$C$5-1),$D$5,0))) -> 0 | I154: =IF(ROW()=ROW(Table248[#Headers])+1,0,IF(ISNUMBER(Table248[[#This Row],[Credits]]),ABS(Table248[[#This Row],[Credits]])+I153,I153)) -> 0
B155: 2024-05-20 | C155: 0 | D155: =$C$3*Table248[[#This Row],[Beg Bal]] -> 0 | E155: =IF(DAY(Table248[[#This Row],[Date]])=$C$8,-1*Table248[[#This Row],[Current Pmt]],"") ->  | G155: =IF(Table248[[#This Row],[Date]]=TODAY(),$C$4,SUM(Table248[[#This Row],[Beg Bal]:[Penalties]])) -> 0 | H155: =IF(AND(LEN($C$7)>1,Table248[[#This Row],[Date]]>$C$7-1),$D$7,IF(AND(LEN($C$6)>1,Table248[[#This Row],[Date]]>$C$6-1),$D$6,IF(AND(LEN($C$5)>1,Table248[[#This Row],[Date]]>$C$5-1),$D$5,0))) -> 0 | I155: =IF(ROW()=ROW(Table248[#Headers])+1,0,IF(ISNUMBER(Table248[[#This Row],[Credits]]),ABS(Table248[[#This Row],[Credits]])+I154,I154)) -> 0
B156: 2024-05-21 | C156: 0 | D156: =$C$3*Table248[[#This Row],[Beg Bal]] -> 0 | E156: =IF(DAY(Table248[[#This Row],[Date]])=$C$8,-1*Table248[[#This Row],[Current Pmt]],"") ->  | G156: =IF(Table248[[#This Row],[Date]]=TODAY(),$C$4,SUM(Table248[[#This Row],[Beg Bal]:[Penalties]])) -> 0 | H156: =IF(AND(LEN($C$7)>1,Table248[[#This Row],[Date]]>$C$7-1),$D$7,IF(AND(LEN($C$6)>1,Table248[[#This Row],[Date]]>$C$6-1),$D$6,IF(AND(LEN($C$5)>1,Table248[[#This Row],[Date]]>$C$5-1),$D$5,0))) -> 0 | I156: =IF(ROW()=ROW(Table248[#Headers])+1,0,IF(ISNUMBER(Table248[[#This Row],[Credits]]),ABS(Table248[[#This Row],[Credits]])+I155,I155)) -> 0
B157: 2024-05-22 | C157: 0 | D157: =$C$3*Table248[[#This Row],[Beg Bal]] -> 0 | E157: =IF(DAY(Table248[[#This Row],[Date]])=$C$8,-1*Table248[[#This Row],[Current Pmt]],"") ->  | G157: =IF(Table248[[#This Row],[Date]]=TODAY(),$C$4,SUM(Table248[[#This Row],[Beg Bal]:[Penalties]])) -> 0 | H157: =IF(AND(LEN($C$7)>1,Table248[[#This Row],[Date]]>$C$7-1),$D$7,IF(AND(LEN($C$6)>1,Table248[[#This Row],[Date]]>$C$6-1),$D$6,IF(AND(LEN($C$5)>1,Table248[[#This Row],[Date]]>$C$5-1),$D$5,0))) -> 0 | I157: =IF(ROW()=ROW(Table248[#Headers])+1,0,IF(ISNUMBER(Table248[[#This Row],[Credits]]),ABS(Table248[[#This Row],[Credits]])+I156,I156)) -> 0
B158: 2024-05-23 | C158: 0 | D158: =$C$3*Table248[[#This Row],[Beg Bal]] -> 0 | E158: =IF(DAY(Table248[[#This Row],[Date]])=$C$8,-1*Table248[[#This Row],[Current Pmt]],"") ->  | G158: =IF(Table248[[#This Row],[Date]]=TODAY(),$C$4,SUM(Table248[[#This Row],[Beg Bal]:[Penalties]])) -> 0 | H158: =IF(AND(LEN($C$7)>1,Table248[[#This Row],[Date]]>$C$7-1),$D$7,IF(AND(LEN($C$6)>1,Table248[[#This Row],[Date]]>$C$6-1),$D$6,IF(AND(LEN($C$5)>1,Table248[[#This Row],[Date]]>$C$5-1),$D$5,0))) -> 0 | I158: =IF(ROW()=ROW(Table248[#Headers])+1,0,IF(ISNUMBER(Table248[[#This Row],[Credits]]),ABS(Table248[[#This Row],[Credits]])+I157,I157)) -> 0
B159: 2024-05-24 | C159: 0 | D159: =$C$3*Table248[[#This Row],[Beg Bal]] -> 0 | E159: =IF(DAY(Table248[[#This Row],[Date]])=$C$8,-1*Table248[[#This Row],[Current Pmt]],"") ->  | G159: =IF(Table248[[#This Row],[Date]]=TODAY(),$C$4,SUM(Table248[[#This Row],[Beg Bal]:[Penalties]])) -> 0 | H159: =IF(AND(LEN($C$7)>1,Table248[[#This Row],[Date]]>$C$7-1),$D$7,IF(AND(LEN($C$6)>1,Table248[[#This Row],[Date]]>$C$6-1),$D$6,IF(AND(LEN($C$5)>1,Table248[[#This Row],[Date]]>$C$5-1),$D$5,0))) -> 0 | I159: =IF(ROW()=ROW(Table248[#Headers])+1,0,IF(ISNUMBER(Table248[[#This Row],[Credits]]),ABS(Table248[[#This Row],[Credits]])+I158,I158)) -> 0
B160: 2024-05-25 | C160: 0 | D160: =$C$3*Table248[[#This Row],[Beg Bal]] -> 0 | E160: =IF(DAY(Table248[[#This Row],[Date]])=$C$8,-1*Table248[[#This Row],[Current Pmt]],"") ->  | G160: =IF(Table248[[#This Row],[Date]]=TODAY(),$C$4,SUM(Table248[[#This Row],[Beg Bal]:[Penalties]])) -> 0 | H160: =IF(AND(LEN($C$7)>1,Table248[[#This Row],[Date]]>$C$7-1),$D$7,IF(AND(LEN($C$6)>1,Table248[[#This Row],[Date]]>$C$6-1),$D$6,IF(AND(LEN($C$5)>1,Table248[[#This Row],[Date]]>$C$5-1),$D$5,0))) -> 0 | I160: =IF(ROW()=ROW(Table248[#Headers])+1,0,IF(ISNUMBER(Table248[[#This Row],[Credits]]),ABS(Table248[[#This Row],[Credits]])+I159,I159)) -> 0
B161: 2024-05-26 | C161: 0 | D161: =$C$3*Table248[[#This Row],[Beg Bal]] -> 0 | E161: =IF(DAY(Table248[[#This Row],[Date]])=$C$8,-1*Table248[[#This Row],[Current Pmt]],"") ->  | G161: =IF(Table248[[#This Row],[Date]]=TODAY(),$C$4,SUM(Table248[[#This Row],[Beg Bal]:[Penalties]])) -> 0 | H161: =IF(AND(LEN($C$7)>1,Table248[[#This Row],[Date]]>$C$7-1),$D$7,IF(AND(LEN($C$6)>1,Table248[[#This Row],[Date]]>$C$6-1),$D$6,IF(AND(LEN($C$5)>1,Table248[[#This Row],[Date]]>$C$5-1),$D$5,0))) -> 0 | I161: =IF(ROW()=ROW(Table248[#Headers])+1,0,IF(ISNUMBER(Table248[[#This Row],[Credits]]),ABS(Table248[[#This Row],[Credits]])+I160,I160)) -> 0
B162: 2024-05-27 | C162: 0 | D162: =$C$3*Table248[[#This Row],[Beg Bal]] -> 0 | E162: =IF(DAY(Table248[[#This Row],[Date]])=$C$8,-1*Table248[[#This Row],[Current Pmt]],"") ->  | G162: =IF(Table248[[#This Row],[Date]]=TODAY(),$C$4,SUM(Table248[[#This Row],[Beg Bal]:[Penalties]])) -> 0 | H162: =IF(AND(LEN($C$7)>1,Table248[[#This Row],[Date]]>$C$7-1),$D$7,IF(AND(LEN($C$6)>1,Table248[[#This Row],[Date]]>$C$6-1),$D$6,IF(AND(LEN($C$5)>1,Table248[[#This Row],[Date]]>$C$5-1),$D$5,0))) -> 0 | I162: =IF(ROW()=ROW(Table248[#Headers])+1,0,IF(ISNUMBER(Table248[[#This Row],[Credits]]),ABS(Table248[[#This Row],[Credits]])+I161,I161)) -> 0
B163: 2024-05-28 | C163: 0 | D163: =$C$3*Table248[[#This Row],[Beg Bal]] -> 0 | E163: =IF(DAY(Table248[[#This Row],[Date]])=$C$8,-1*Table248[[#This Row],[Current Pmt]],"") -> 0 | G163: =IF(Table248[[#This Row],[Date]]=TODAY(),$C$4,SUM(Table248[[#This Row],[Beg Bal]:[Penalties]])) -> 0 | H163: =IF(AND(LEN($C$7)>1,Table248[[#This Row],[Date]]>$C$7-1),$D$7,IF(AND(LEN($C$6)>1,Table248[[#This Row],[Date]]>$C$6-1),$D$6,IF(AND(LEN($C$5)>1,Table248[[#This Row],[Date]]>$C$5-1),$D$5,0))) -> 0 | I163: =IF(ROW()=ROW(Table248[#Headers])+1,0,IF(ISNUMBER(Table248[[#This Row],[Credits]]),ABS(Table248[[#This Row],[Credits]])+I162,I162)) -> 0
B164: 2024-05-29 | C164: 0 | D164: =$C$3*Table248[[#This Row],[Beg Bal]] -> 0 | E164: =IF(DAY(Table248[[#This Row],[Date]])=$C$8,-1*Table248[[#This Row],[Current Pmt]],"") ->  | G164: =IF(Table248[[#This Row],[Date]]=TODAY(),$C$4,SUM(Table248[[#This Row],[Beg Bal]:[Penalties]])) -> 0 | H164: =IF(AND(LEN($C$7)>1,Table248[[#This Row],[Date]]>$C$7-1),$D$7,IF(AND(LEN($C$6)>1,Table248[[#This Row],[Date]]>$C$6-1),$D$6,IF(AND(LEN($C$5)>1,Table248[[#This Row],[Date]]>$C$5-1),$D$5,0))) -> 0 | I164: =IF(ROW()=ROW(Table248[#Headers])+1,0,IF(ISNUMBER(Table248[[#This Row],[Credits]]),ABS(Table248[[#This Row],[Credits]])+I163,I163)) -> 0
B165: 2024-05-30 | C165: 0 | D165: =$C$3*Table248[[#This Row],[Beg Bal]] -> 0 | E165: =IF(DAY(Table248[[#This Row],[Date]])=$C$8,-1*Table248[[#This Row],[Current Pmt]],"") ->  | G165: =IF(Table248[[#This Row],[Date]]=TODAY(),$C$4,SUM(Table248[[#This Row],[Beg Bal]:[Penalties]])) -> 0 | H165: =IF(AND(LEN($C$7)>1,Table248[[#This Row],[Date]]>$C$7-1),$D$7,IF(AND(LEN($C$6)>1,Table248[[#This Row],[Date]]>$C$6-1),$D$6,IF(AND(LEN($C$5)>1,Table248[[#This Row],[Date]]>$C$5-1),$D$5,0))) -> 0 | I165: =IF(ROW()=ROW(Table248[#Headers])+1,0,IF(ISNUMBER(Table248[[#This Row],[Credits]]),ABS(Table248[[#This Row],[Credits]])+I164,I164)) -> 0
B166: 2024-05-31 | C166: 0 | D166: =$C$3*Table248[[#This Row],[Beg Bal]] -> 0 | E166: =IF(DAY(Table248[[#This Row],[Date]])=$C$8,-1*Table248[[#This Row],[Current Pmt]],"") ->  | G166: =IF(Table248[[#This Row],[Date]]=TODAY(),$C$4,SUM(Table248[[#This Row],[Beg Bal]:[Penalties]])) -> 0 | H166: =IF(AND(LEN($C$7)>1,Table248[[#This Row],[Date]]>$C$7-1),$D$7,IF(AND(LEN($C$6)>1,Table248[[#This Row],[Date]]>$C$6-1),$D$6,IF(AND(LEN($C$5)>1,Table248[[#This Row],[Date]]>$C$5-1),$D$5,0))) -> 0 | I166: =IF(ROW()=ROW(Table248[#Headers])+1,0,IF(ISNUMBER(Table248[[#This Row],[Credits]]),ABS(Table248[[#This Row],[Credits]])+I165,I165)) -> 0
B167: 2024-06-01 | C167: 0 | D167: =$C$3*Table248[[#This Row],[Beg Bal]] -> 0 | E167: =IF(DAY(Table248[[#This Row],[Date]])=$C$8,-1*Table248[[#This Row],[Current Pmt]],"") ->  | G167: =IF(Table248[[#This Row],[Date]]=TODAY(),$C$4,SUM(Table248[[#This Row],[Beg Bal]:[Penalties]])) -> 0 | H167: =IF(AND(LEN($C$7)>1,Table248[[#This Row],[Date]]>$C$7-1),$D$7,IF(AND(LEN($C$6)>1,Table248[[#This Row],[Date]]>$C$6-1),$D$6,IF(AND(LEN($C$5)>1,Table248[[#This Row],[Date]]>$C$5-1),$D$5,0))) -> 0 | I167: =IF(ROW()=ROW(Table248[#Headers])+1,0,IF(ISNUMBER(Table248[[#This Row],[Credits]]),ABS(Table248[[#This Row],[Credits]])+I166,I166)) -> 0
B168: 2024-06-02 | C168: 0 | D168: =$C$3*Table248[[#This Row],[Beg Bal]] -> 0 | E168: =IF(DAY(Table248[[#This Row],[Date]])=$C$8,-1*Table248[[#This Row],[Current Pmt]],"") ->  | G168: =IF(Table248[[#This Row],[Date]]=TODAY(),$C$4,SUM(Table248[[#This Row],[Beg Bal]:[Penalties]])) -> 0 | H168: =IF(AND(LEN($C$7)>1,Table248[[#This Row],[Date]]>$C$7-1),$D$7,IF(AND(LEN($C$6)>1,Table248[[#This Row],[Date]]>$C$6-1),$D$6,IF(AND(LEN($C$5)>1,Table248[[#This Row],[Date]]>$C$5-1),$D$5,0))) -> 0 | I168: =IF(ROW()=ROW(Table248[#Headers])+1,0,IF(ISNUMBER(Table248[[#This Row],[Credits]]),ABS(Table248[[#This Row],[Credits]])+I167,I167)) -> 0
B169: 2024-06-03 | C169: 0 | D169: =$C$3*Table248[[#This Row],[Beg Bal]] -> 0 | E169: =IF(DAY(Table248[[#This Row],[Date]])=$C$8,-1*Table248[[#This Row],[Current Pmt]],"") ->  | G169: =IF(Table248[[#This Row],[Date]]=TODAY(),$C$4,SUM(Table248[[#This Row],[Beg Bal]:[Penalties]])) -> 0 | H169: =IF(AND(LEN($C$7)>1,Table248[[#This Row],[Date]]>$C$7-1),$D$7,IF(AND(LEN($C$6)>1,Table248[[#This Row],[Date]]>$C$6-1),$D$6,IF(AND(LEN($C$5)>1,Table248[[#This Row],[Date]]>$C$5-1),$D$5,0))) -> 0 | I169: =IF(ROW()=ROW(Table248[#Headers])+1,0,IF(ISNUMBER(Table248[[#This Row],[Credits]]),ABS(Table248[[#This Row],[Credits]])+I168,I168)) -> 0
B170: 2024-06-04 | C170: 0 | D170: =$C$3*Table248[[#This Row],[Beg Bal]] -> 0 | E170: =IF(DAY(Table248[[#This Row],[Date]])=$C$8,-1*Table248[[#This Row],[Current Pmt]],"") ->  | G170: =IF(Table248[[#This Row],[Date]]=TODAY(),$C$4,SUM(Table248[[#This Row],[Beg Bal]:[Penalties]])) -> 0 | H170: =IF(AND(LEN($C$7)>1,Table248[[#This Row],[Date]]>$C$7-1),$D$7,IF(AND(LEN($C$6)>1,Table248[[#This Row],[Date]]>$C$6-1),$D$6,IF(AND(LEN($C$5)>1,Table248[[#This Row],[Date]]>$C$5-1),$D$5,0))) -> 0 | I170: =IF(ROW()=ROW(Table248[#Headers])+1,0,IF(ISNUMBER(Table248[[#This Row],[Credits]]),ABS(Table248[[#This Row],[Credits]])+I169,I169)) -> 0
B171: 2024-06-05 | C171: 0 | D171: =$C$3*Table248[[#This Row],[Beg Bal]] -> 0 | E171: =IF(DAY(Table248[[#This Row],[Date]])=$C$8,-1*Table248[[#This Row],[Current Pmt]],"") ->  | G171: =IF(Table248[[#This Row],[Date]]=TODAY(),$C$4,SUM(Table248[[#This Row],[Beg Bal]:[Penalties]])) -> 0 | H171: =IF(AND(LEN($C$7)>1,Table248[[#This Row],[Date]]>$C$7-1),$D$7,IF(AND(LEN($C$6)>1,Table248[[#This Row],[Date]]>$C$6-1),$D$6,IF(AND(LEN($C$5)>1,Table248[[#This Row],[Date]]>$C$5-1),$D$5,0))) -> 0 | I171: =IF(ROW()=ROW(Table248[#Headers])+1,0,IF(ISNUMBER(Table248[[#This Row],[Credits]]),ABS(Table248[[#This Row],[Credits]])+I170,I170)) -> 0
B172: 2024-06-06 | C172: 0 | D172: =$C$3*Table248[[#This Row],[Beg Bal]] -> 0 | E172: =IF(DAY(Table248[[#This Row],[Date]])=$C$8,-1*Table248[[#This Row],[Current Pmt]],"") ->  | G172: =IF(Table248[[#This Row],[Date]]=TODAY(),$C$4,SUM(Table248[[#This Row],[Beg Bal]:[Penalties]])) -> 0 | H172: =IF(AND(LEN($C$7)>1,Table248[[#This Row],[Date]]>$C$7-1),$D$7,IF(AND(LEN($C$6)>1,Table248[[#This Row],[Date]]>$C$6-1),$D$6,IF(AND(LEN($C$5)>1,Table248[[#This Row],[Date]]>$C$5-1),$D$5,0))) -> 0 | I172: =IF(ROW()=ROW(Table248[#Headers])+1,0,IF(ISNUMBER(Table248[[#This Row],[Credits]]),ABS(Table248[[#This Row],[Credits]])+I171,I171)) -> 0
B173: 2024-06-07 | C173: 0 | D173: =$C$3*Table248[[#This Row],[Beg Bal]] -> 0 | E173: =IF(DAY(Table248[[#This Row],[Date]])=$C$8,-1*Table248[[#This Row],[Current Pmt]],"") ->  | G173: =IF(Table248[[#This Row],[Date]]=TODAY(),$C$4,SUM(Table248[[#This Row],[Beg Bal]:[Penalties]])) -> 0 | H173: =IF(AND(LEN($C$7)>1,Table248[[#This Row],[Date]]>$C$7-1),$D$7,IF(AND(LEN($C$6)>1,Table248[[#This Row],[Date]]>$C$6-1),$D$6,IF(AND(LEN($C$5)>1,Table248[[#This Row],[Date]]>$C$5-1),$D$5,0))) -> 0 | I173: =IF(ROW()=ROW(Table248[#Headers])+1,0,IF(ISNUMBER(Table248[[#This Row],[Credits]]),ABS(Table248[[#This Row],[Credits]])+I172,I172)) -> 0
B174: 2024-06-08 | C174: 0 | D174: =$C$3*Table248[[#This Row],[Beg Bal]] -> 0 | E174: =IF(DAY(Table248[[#This Row],[Date]])=$C$8,-1*Table248[[#This Row],[Current Pmt]],"") ->  | G174: =IF(Table248[[#This Row],[Date]]=TODAY(),$C$4,SUM(Table248[[#This Row],[Beg Bal]:[Penalties]])) -> 0 | H174: =IF(AND(LEN($C$7)>1,Table248[[#This Row],[Date]]>$C$7-1),$D$7,IF(AND(LEN($C$6)>1,Table248[[#This Row],[Date]]>$C$6-1),$D$6,IF(AND(LEN($C$5)>1,Table248[[#This Row],[Date]]>$C$5-1),$D$5,0))) -> 0 | I174: =IF(ROW()=ROW(Table248[#Headers])+1,0,IF(ISNUMBER(Table248[[#This Row],[Credits]]),ABS(Table248[[#This Row],[Credits]])+I173,I173)) -> 0
B175: 2024-06-09 | C175: 0 | D175: =$C$3*Table248[[#This Row],[Beg Bal]] -> 0 | E175: =IF(DAY(Table248[[#This Row],[Date]])=$C$8,-1*Table248[[#This Row],[Current Pmt]],"") ->  | G175: =IF(Table248[[#This Row],[Date]]=TODAY(),$C$4,SUM(Table248[[#This Row],[Beg Bal]:[Penalties]])) -> 0 | H175: =IF(AND(LEN($C$7)>1,Table248[[#This Row],[Date]]>$C$7-1),$D$7,IF(AND(LEN($C$6)>1,Table248[[#This Row],[Date]]>$C$6-1),$D$6,IF(AND(LEN($C$5)>1,Table248[[#This Row],[Date]]>$C$5-1),$D$5,0))) -> 0 | I175: =IF(ROW()=ROW(Table248[#Headers])+1,0,IF(ISNUMBER(Table248[[#This Row],[Credits]]),ABS(Table248[[#This Row],[Credits]])+I174,I174)) -> 0
B176: 2024-06-10 | C176: 0 | D176: =$C$3*Table248[[#This Row],[Beg Bal]] -> 0 | E176: =IF(DAY(Table248[[#This Row],[Date]])=$C$8,-1*Table248[[#This Row],[Current Pmt]],"") ->  | G176: =IF(Table248[[#This Row],[Date]]=TODAY(),$C$4,SUM(Table248[[#This Row],[Beg Bal]:[Penalties]])) -> 0 | H176: =IF(AND(LEN($C$7)>1,Table248[[#This Row],[Date]]>$C$7-1),$D$7,IF(AND(LEN($C$6)>1,Table248[[#This Row],[Date]]>$C$6-1),$D$6,IF(AND(LEN($C$5)>1,Table248[[#This Row],[Date]]>$C$5-1),$D$5,0))) -> 0 | I176: =IF(ROW()=ROW(Table248[#Headers])+1,0,IF(ISNUMBER(Table248[[#This Row],[Credits]]),ABS(Table248[[#This Row],[Credits]])+I175,I175)) -> 0
B177: 2024-06-11 | C177: 0 | D177: =$C$3*Table248[[#This Row],[Beg Bal]] -> 0 | E177: =IF(DAY(Table248[[#This Row],[Date]])=$C$8,-1*Table248[[#This Row],[Current Pmt]],"") ->  | G177: =IF(Table248[[#This Row],[Date]]=TODAY(),$C$4,SUM(Table248[[#This Row],[Beg Bal]:[Penalties]])) -> 0 | H177: =IF(AND(LEN($C$7)>1,Table248[[#This Row],[Date]]>$C$7-1),$D$7,IF(AND(LEN($C$6)>1,Table248[[#This Row],[Date]]>$C$6-1),$D$6,IF(AND(LEN($C$5)>1,Table248[[#This Row],[Date]]>$C$5-1),$D$5,0))) -> 0 | I177: =IF(ROW()=ROW(Table248[#Headers])+1,0,IF(ISNUMBER(Table248[[#This Row],[Credits]]),ABS(Table248[[#This Row],[Credits]])+I176,I176)) -> 0
B178: 2024-06-12 | C178: 0 | D178: =$C$3*Table248[[#This Row],[Beg Bal]] -> 0 | E178: =IF(DAY(Table248[[#This Row],[Date]])=$C$8,-1*Table248[[#This Row],[Current Pmt]],"") ->  | G178: =IF(Table248[[#This Row],[Date]]=TODAY(),$C$4,SUM(Table248[[#This Row],[Beg Bal]:[Penalties]])) -> 0 | H178: =IF(AND(LEN($C$7)>1,Table248[[#This Row],[Date]]>$C$7-1),$D$7,IF(AND(LEN($C$6)>1,Table248[[#This Row],[Date]]>$C$6-1),$D$6,IF(AND(LEN($C$5)>1,Table248[[#This Row],[Date]]>$C$5-1),$D$5,0))) -> 0 | I178: =IF(ROW()=ROW(Table248[#Headers])+1,0,IF(ISNUMBER(Table248[[#This Row],[Credits]]),ABS(Table248[[#This Row],[Credits]])+I177,I177)) -> 0
B179: 2024-06-13 | C179: 0 | D179: =$C$3*Table248[[#This Row],[Beg Bal]] -> 0 | E179: =IF(DAY(Table248[[#This Row],[Date]])=$C$8,-1*Table248[[#This Row],[Current Pmt]],"") ->  | G179: =IF(Table248[[#This Row],[Date]]=TODAY(),$C$4,SUM(Table248[[#This Row],[Beg Bal]:[Penalties]])) -> 0 | H179: =IF(AND(LEN($C$7)>1,Table248[[#This Row],[Date]]>$C$7-1),$D$7,IF(AND(LEN($C$6)>1,Table248[[#This Row],[Date]]>$C$6-1),$D$6,IF(AND(LEN($C$5)>1,Table248[[#This Row],[Date]]>$C$5-1),$D$5,0))) -> 0 | I179: =IF(ROW()=ROW(Table248[#Headers])+1,0,IF(ISNUMBER(Table248[[#This Row],[Credits]]),ABS(Table248[[#This Row],[Credits]])+I178,I178)) -> 0
B180: 2024-06-14 | C180: 0 | D180: =$C$3*Table248[[#This Row],[Beg Bal]] -> 0 | E180: =IF(DAY(Table248[[#This Row],[Date]])=$C$8,-1*Table248[[#This Row],[Current Pmt]],"") ->  | G180: =IF(Table248[[#This Row],[Date]]=TODAY(),$C$4,SUM(Table248[[#This Row],[Beg Bal]:[Penalties]])) -> 0 | H180: =IF(AND(LEN($C$7)>1,Table248[[#This Row],[Date]]>$C$7-1),$D$7,IF(AND(LEN($C$6)>1,Table248[[#This Row],[Date]]>$C$6-1),$D$6,IF(AND(LEN($C$5)>1,Table248[[#This Row],[Date]]>$C$5-1),$D$5,0))) -> 0 | I180: =IF(ROW()=ROW(Table248[#Headers])+1,0,IF(ISNUMBER(Table248[[#This Row],[Credits]]),ABS(Table248[[#This Row],[Credits]])+I179,I179)) -> 0
B181: 2024-06-15 | C181: 0 | D181: =$C$3*Table248[[#This Row],[Beg Bal]] -> 0 | E181: =IF(DAY(Table248[[#This Row],[Date]])=$C$8,-1*Table248[[#This Row],[Current Pmt]],"") ->  | G181: =IF(Table248[[#This Row],[Date]]=TODAY(),$C$4,SUM(Table248[[#This Row],[Beg Bal]:[Penalties]])) -> 0 | H181: =IF(AND(LEN($C$7)>1,Table248[[#This Row],[Date]]>$C$7-1),$D$7,IF(AND(LEN($C$6)>1,Table248[[#This Row],[Date]]>$C$6-1),$D$6,IF(AND(LEN($C$5)>1,Table248[[#This Row],[Date]]>$C$5-1),$D$5,0))) -> 0 | I181: =IF(ROW()=ROW(Table248[#Headers])+1,0,IF(ISNUMBER(Table248[[#This Row],[Credits]]),ABS(Table248[[#This Row],[Credits]])+I180,I180)) -> 0
B182: 2024-06-16 | C182: 0 | D182: =$C$3*Table248[[#This Row],[Beg Bal]] -> 0 | E182: =IF(DAY(Table248[[#This Row],[Date]])=$C$8,-1*Table248[[#This Row],[Current Pmt]],"") ->  | G182: =IF(Table248[[#This Row],[Date]]=TODAY(),$C$4,SUM(Table248[[#This Row],[Beg Bal]:[Penalties]])) -> 0 | H182: =IF(AND(LEN($C$7)>1,Table248[[#This Row],[Date]]>$C$7-1),$D$7,IF(AND(LEN($C$6)>1,Table248[[#This Row],[Date]]>$C$6-1),$D$6,IF(AND(LEN($C$5)>1,Table248[[#This Row],[Date]]>$C$5-1),$D$5,0))) -> 0 | I182: =IF(ROW()=ROW(Table248[#Headers])+1,0,IF(ISNUMBER(Table248[[#This Row],[Credits]]),ABS(Table248[[#This Row],[Credits]])+I181,I181)) -> 0
B183: 2024-06-17 | C183: 0 | D183: =$C$3*Table248[[#This Row],[Beg Bal]] -> 0 | E183: =IF(DAY(Table248[[#This Row],[Date]])=$C$8,-1*Table248[[#This Row],[Current Pmt]],"") ->  | G183: =IF(Table248[[#This Row],[Date]]=TODAY(),$C$4,SUM(Table248[[#This Row],[Beg Bal]:[Penalties]])) -> 0 | H183: =IF(AND(LEN($C$7)>1,Table248[[#This Row],[Date]]>$C$7-1),$D$7,IF(AND(LEN($C$6)>1,Table248[[#This Row],[Date]]>$C$6-1),$D$6,IF(AND(LEN($C$5)>1,Table248[[#This Row],[Date]]>$C$5-1),$D$5,0))) -> 0 | I183: =IF(ROW()=ROW(Table248[#Headers])+1,0,IF(ISNUMBER(Table248[[#This Row],[Credits]]),ABS(Table248[[#This Row],[Credits]])+I182,I182)) -> 0
B184: 2024-06-18 | C184: 0 | D184: =$C$3*Table248[[#This Row],[Beg Bal]] -> 0 | E184: =IF(DAY(Table248[[#This Row],[Date]])=$C$8,-1*Table248[[#This Row],[Current Pmt]],"") ->  | G184: =IF(Table248[[#This Row],[Date]]=TODAY(),$C$4,SUM(Table248[[#This Row],[Beg Bal]:[Penalties]])) -> 0 | H184: =IF(AND(LEN($C$7)>1,Table248[[#This Row],[Date]]>$C$7-1),$D$7,IF(AND(LEN($C$6)>1,Table248[[#This Row],[Date]]>$C$6-1),$D$6,IF(AND(LEN($C$5)>1,Table248[[#This Row],[Date]]>$C$5-1),$D$5,0))) -> 0 | I184: =IF(ROW()=ROW(Table248[#Headers])+1,0,IF(ISNUMBER(Table248[[#This Row],[Credits]]),ABS(Table248[[#This Row],[Credits]])+I183,I183)) -> 0
B185: 2024-06-19 | C185: 0 | D185: =$C$3*Table248[[#This Row],[Beg Bal]] -> 0 | E185: =IF(DAY(Table248[[#This Row],[Date]])=$C$8,-1*Table248[[#This Row],[Current Pmt]],"") ->  | G185: =IF(Table248[[#This Row],[Date]]=TODAY(),$C$4,SUM(Table248[[#This Row],[Beg Bal]:[Penalties]])) -> 0 | H185: =IF(AND(LEN($C$7)>1,Table248[[#This Row],[Date]]>$C$7-1),$D$7,IF(AND(LEN($C$6)>1,Table248[[#This Row],[Date]]>$C$6-1),$D$6,IF(AND(LEN($C$5)>1,Table248[[#This Row],[Date]]>$C$5-1),$D$5,0))) -> 0 | I185: =IF(ROW()=ROW(Table248[#Headers])+1,0,IF(ISNUMBER(Table248[[#This Row],[Credits]]),ABS(Table248[[#This Row],[Credits]])+I184,I184)) -> 0
B186: 2024-06-20 | C186: 0 | D186: =$C$3*Table248[[#This Row],[Beg Bal]] -> 0 | E186: =IF(DAY(Table248[[#This Row],[Date]])=$C$8,-1*Table248[[#This Row],[Current Pmt]],"") ->  | G186: =IF(Table248[[#This Row],[Date]]=TODAY(),$C$4,SUM(Table248[[#This Row],[Beg Bal]:[Penalties]])) -> 0 | H186: =IF(AND(LEN($C$7)>1,Table248[[#This Row],[Date]]>$C$7-1),$D$7,IF(AND(LEN($C$6)>1,Table248[[#This Row],[Date]]>$C$6-1),$D$6,IF(AND(LEN($C$5)>1,Table248[[#This Row],[Date]]>$C$5-1),$D$5,0))) -> 0 | I186: =IF(ROW()=ROW(Table248[#Headers])+1,0,IF(ISNUMBER(Table248[[#This Row],[Credits]]),ABS(Table248[[#This Row],[Credits]])+I185,I185)) -> 0
B187: 2024-06-21 | C187: 0 | D187: =$C$3*Table248[[#This Row],[Beg Bal]] -> 0 | E187: =IF(DAY(Table248[[#This Row],[Date]])=$C$8,-1*Table248[[#This Row],[Current Pmt]],"") ->  | G187: =IF(Table248[[#This Row],[Date]]=TODAY(),$C$4,SUM(Table248[[#This Row],[Beg Bal]:[Penalties]])) -> 0 | H187: =IF(AND(LEN($C$7)>1,Table248[[#This Row],[Date]]>$C$7-1),$D$7,IF(AND(LEN($C$6)>1,Table248[[#This Row],[Date]]>$C$6-1),$D$6,IF(AND(LEN($C$5)>1,Table248[[#This Row],[Date]]>$C$5-1),$D$5,0))) -> 0 | I187: =IF(ROW()=ROW(Table248[#Headers])+1,0,IF(ISNUMBER(Table248[[#This Row],[Credits]]),ABS(Table248[[#This Row],[Credits]])+I186,I186)) -> 0
B188: 2024-06-22 | C188: 0 | D188: =$C$3*Table248[[#This Row],[Beg Bal]] -> 0 | E188: =IF(DAY(Table248[[#This Row],[Date]])=$C$8,-1*Table248[[#This Row],[Current Pmt]],"") ->  | G188: =IF(Table248[[#This Row],[Date]]=TODAY(),$C$4,SUM(Table248[[#This Row],[Beg Bal]:[Penalties]])) -> 0 | H188: =IF(AND(LEN($C$7)>1,Table248[[#This Row],[Date]]>$C$7-1),$D$7,IF(AND(LEN($C$6)>1,Table248[[#This Row],[Date]]>$C$6-1),$D$6,IF(AND(LEN($C$5)>1,Table248[[#This Row],[Date]]>$C$5-1),$D$5,0))) -> 0 | I188: =IF(ROW()=ROW(Table248[#Headers])+1,0,IF(ISNUMBER(Table248[[#This Row],[Credits]]),ABS(Table248[[#This Row],[Credits]])+I187,I187)) -> 0
B189: 2024-06-23 | C189: 0 | D189: =$C$3*Table248[[#This Row],[Beg Bal]] -> 0 | E189: =IF(DAY(Table248[[#This Row],[Date]])=$C$8,-1*Table248[[#This Row],[Current Pmt]],"") ->  | G189: =IF(Table248[[#This Row],[Date]]=TODAY(),$C$4,SUM(Table248[[#This Row],[Beg Bal]:[Penalties]])) -> 0 | H189: =IF(AND(LEN($C$7)>1,Table248[[#This Row],[Date]]>$C$7-1),$D$7,IF(AND(LEN($C$6)>1,Table248[[#This Row],[Date]]>$C$6-1),$D$6,IF(AND(LEN($C$5)>1,Table248[[#This Row],[Date]]>$C$5-1),$D$5,0))) -> 0 | I189: =IF(ROW()=ROW(Table248[#Headers])+1,0,IF(ISNUMBER(Table248[[#This Row],[Credits]]),ABS(Table248[[#This Row],[Credits]])+I188,I188)) -> 0
B190: 2024-06-24 | C190: 0 | D190: =$C$3*Table248[[#This Row],[Beg Bal]] -> 0 | E190: =IF(DAY(Table248[[#This Row],[Date]])=$C$8,-1*Table248[[#This Row],[Current Pmt]],"") ->  | G190: =IF(Table248[[#This Row],[Date]]=TODAY(),$C$4,SUM(Table248[[#This Row],[Beg Bal]:[Penalties]])) -> 0 | H190: =IF(AND(LEN($C$7)>1,Table248[[#This Row],[Date]]>$C$7-1),$D$7,IF(AND(LEN($C$6)>1,Table248[[#This Row],[Date]]>$C$6-1),$D$6,IF(AND(LEN($C$5)>1,Table248[[#This Row],[Date]]>$C$5-1),$D$5,0))) -> 0 | I190: =IF(ROW()=ROW(Table248[#Headers])+1,0,IF(ISNUMBER(Table248[[#This Row],[Credits]]),ABS(Table248[[#This Row],[Credits]])+I189,I189)) -> 0
B191: 2024-06-25 | C191: 0 | D191: =$C$3*Table248[[#This Row],[Beg Bal]] -> 0 | E191: =IF(DAY(Table248[[#This Row],[Date]])=$C$8,-1*Table248[[#This Row],[Current Pmt]],"") ->  | G191: =IF(Table248[[#This Row],[Date]]=TODAY(),$C$4,SUM(Table248[[#This Row],[Beg Bal]:[Penalties]])) -> 0 | H191: =IF(AND(LEN($C$7)>1,Table248[[#This Row],[Date]]>$C$7-1),$D$7,IF(AND(LEN($C$6)>1,Table248[[#This Row],[Date]]>$C$6-1),$D$6,IF(AND(LEN($C$5)>1,Table248[[#This Row],[Date]]>$C$5-1),$D$5,0))) -> 0 | I191: =IF(ROW()=ROW(Table248[#Headers])+1,0,IF(ISNUMBER(Table248[[#This Row],[Credits]]),ABS(Table248[[#This Row],[Credits]])+I190,I190)) -> 0
B192: 2024-06-26 | C192: 0 | D192: =$C$3*Table248[[#This Row],[Beg Bal]] -> 0 | E192: =IF(DAY(Table248[[#This Row],[Date]])=$C$8,-1*Table248[[#This Row],[Current Pmt]],"") ->  | G192: =IF(Table248[[#This Row],[Date]]=TODAY(),$C$4,SUM(Table248[[#This Row],[Beg Bal]:[Penalties]])) -> 0 | H192: =IF(AND(LEN($C$7)>1,Table248[[#This Row],[Date]]>$C$7-1),$D$7,IF(AND(LEN($C$6)>1,Table248[[#This Row],[Date]]>$C$6-1),$D$6,IF(AND(LEN($C$5)>1,Table248[[#This Row],[Date]]>$C$5-1),$D$5,0))) -> 0 | I192: =IF(ROW()=ROW(Table248[#Headers])+1,0,IF(ISNUMBER(Table248[[#This Row],[Credits]]),ABS(Table248[[#This Row],[Credits]])+I191,I191)) -> 0
B193: 2024-06-27 | C193: 0 | D193: =$C$3*Table248[[#This Row],[Beg Bal]] -> 0 | E193: =IF(DAY(Table248[[#This Row],[Date]])=$C$8,-1*Table248[[#This Row],[Current Pmt]],"") ->  | G193: =IF(Table248[[#This Row],[Date]]=TODAY(),$C$4,SUM(Table248[[#This Row],[Beg Bal]:[Penalties]])) -> 0 | H193: =IF(AND(LEN($C$7)>1,Table248[[#This Row],[Date]]>$C$7-1),$D$7,IF(AND(LEN($C$6)>1,Table248[[#This Row],[Date]]>$C$6-1),$D$6,IF(AND(LEN($C$5)>1,Table248[[#This Row],[Date]]>$C$5-1),$D$5,0))) -> 0 | I193: =IF(ROW()=ROW(Table248[#Headers])+1,0,IF(ISNUMBER(Table248[[#This Row],[Credits]]),ABS(Table248[[#This Row],[Credits]])+I192,I192)) -> 0
B194: 2024-06-28 | C194: 0 | D194: =$C$3*Table248[[#This Row],[Beg Bal]] -> 0 | E194: =IF(DAY(Table248[[#This Row],[Date]])=$C$8,-1*Table248[[#This Row],[Current Pmt]],"") -> 0 | G194: =IF(Table248[[#This Row],[Date]]=TODAY(),$C$4,SUM(Table248[[#This Row],[Beg Bal]:[Penalties]])) -> 0 | H194: =IF(AND(LEN($C$7)>1,Table248[[#This Row],[Date]]>$C$7-1),$D$7,IF(AND(LEN($C$6)>1,Table248[[#This Row],[Date]]>$C$6-1),$D$6,IF(AND(LEN($C$5)>1,Table248[[#This Row],[Date]]>$C$5-1),$D$5,0))) -> 0 | I194: =IF(ROW()=ROW(Table248[#Headers])+1,0,IF(ISNUMBER(Table248[[#This Row],[Credits]]),ABS(Table248[[#This Row],[Credits]])+I193,I193)) -> 0
B195: 2024-06-29 | C195: 0 | D195: =$C$3*Table248[[#This Row],[Beg Bal]] -> 0 | E195: =IF(DAY(Table248[[#This Row],[Date]])=$C$8,-1*Table248[[#This Row],[Current Pmt]],"") ->  | G195: =IF(Table248[[#This Row],[Date]]=TODAY(),$C$4,SUM(Table248[[#This Row],[Beg Bal]:[Penalties]])) -> 0 | H195: =IF(AND(LEN($C$7)>1,Table248[[#This Row],[Date]]>$C$7-1),$D$7,IF(AND(LEN($C$6)>1,Table248[[#This Row],[Date]]>$C$6-1),$D$6,IF(AND(LEN($C$5)>1,Table248[[#This Row],[Date]]>$C$5-1),$D$5,0))) -> 0 | I195: =IF(ROW()=ROW(Table248[#Headers])+1,0,IF(ISNUMBER(Table248[[#This Row],[Credits]]),ABS(Table248[[#This Row],[Credits]])+I194,I194)) -> 0
B196: 2024-06-30 | C196: 0 | D196: =$C$3*Table248[[#This Row],[Beg Bal]] -> 0 | E196: =IF(DAY(Table248[[#This Row],[Date]])=$C$8,-1*Table248[[#This Row],[Current Pmt]],"") ->  | G196: =IF(Table248[[#This Row],[Date]]=TODAY(),$C$4,SUM(Table248[[#This Row],[Beg Bal]:[Penalties]])) -> 0 | H196: =IF(AND(LEN($C$7)>1,Table248[[#This Row],[Date]]>$C$7-1),$D$7,IF(AND(LEN($C$6)>1,Table248[[#This Row],[Date]]>$C$6-1),$D$6,IF(AND(LEN($C$5)>1,Table248[[#This Row],[Date]]>$C$5-1),$D$5,0))) -> 0 | I196: =IF(ROW()=ROW(Table248[#Headers])+1,0,IF(ISNUMBER(Table248[[#This Row],[Credits]]),ABS(Table248[[#This Row],[Credits]])+I195,I195)) -> 0
B197: 2024-07-01 | C197: 0 | D197: =$C$3*Table248[[#This Row],[Beg Bal]] -> 0 | E197: =IF(DAY(Table248[[#This Row],[Date]])=$C$8,-1*Table248[[#This Row],[Current Pmt]],"") ->  | G197: =IF(Table248[[#This Row],[Date]]=TODAY(),$C$4,SUM(Table248[[#This Row],[Beg Bal]:[Penalties]])) -> 0 | H197: =IF(AND(LEN($C$7)>1,Table248[[#This Row],[Date]]>$C$7-1),$D$7,IF(AND(LEN($C$6)>1,Table248[[#This Row],[Date]]>$C$6-1),$D$6,IF(AND(LEN($C$5)>1,Table248[[#This Row],[Date]]>$C$5-1),$D$5,0))) -> 0 | I197: =IF(ROW()=ROW(Table248[#Headers])+1,0,IF(ISNUMBER(Table248[[#This Row],[Credits]]),ABS(Table248[[#This Row],[Credits]])+I196,I196)) -> 0
B198: 2024-07-02 | C198: 0 | D198: =$C$3*Table248[[#This Row],[Beg Bal]] -> 0 | E198: =IF(DAY(Table248[[#This Row],[Date]])=$C$8,-1*Table248[[#This Row],[Current Pmt]],"") ->  | G198: =IF(Table248[[#This Row],[Date]]=TODAY(),$C$4,SUM(Table248[[#This Row],[Beg Bal]:[Penalties]])) -> 0 | H198: =IF(AND(LEN($C$7)>1,Table248[[#This Row],[Date]]>$C$7-1),$D$7,IF(AND(LEN($C$6)>1,Table248[[#This Row],[Date]]>$C$6-1),$D$6,IF(AND(LEN($C$5)>1,Table248[[#This Row],[Date]]>$C$5-1),$D$5,0))) -> 0 | I198: =IF(ROW()=ROW(Table248[#Headers])+1,0,IF(ISNUMBER(Table248[[#This Row],[Credits]]),ABS(Table248[[#This Row],[Credits]])+I197,I197)) -> 0
B199: 2024-07-03 | C199: 0 | D199: =$C$3*Table248[[#This Row],[Beg Bal]] -> 0 | E199: =IF(DAY(Table248[[#This Row],[Date]])=$C$8,-1*Table248[[#This Row],[Current Pmt]],"") ->  | G199: =IF(Table248[[#This Row],[Date]]=TODAY(),$C$4,SUM(Table248[[#This Row],[Beg Bal]:[Penalties]])) -> 0 | H199: =IF(AND(LEN($C$7)>1,Table248[[#This Row],[Date]]>$C$7-1),$D$7,IF(AND(LEN($C$6)>1,Table248[[#This Row],[Date]]>$C$6-1),$D$6,IF(AND(LEN($C$5)>1,Table248[[#This Row],[Date]]>$C$5-1),$D$5,0))) -> 0 | I199: =IF(ROW()=ROW(Table248[#Headers])+1,0,IF(ISNUMBER(Table248[[#This Row],[Credits]]),ABS(Table248[[#This Row],[Credits]])+I198,I198)) -> 0
B200: 2024-07-04 | C200: 0 | D200: =$C$3*Table248[[#This Row],[Beg Bal]] -> 0 | E200: =IF(DAY(Table248[[#This Row],[Date]])=$C$8,-1*Table248[[#This Row],[Current Pmt]],"") ->  | G200: =IF(Table248[[#This Row],[Date]]=TODAY(),$C$4,SUM(Table248[[#This Row],[Beg Bal]:[Penalties]])) -> 0 | H200: =IF(AND(LEN($C$7)>1,Table248[[#This Row],[Date]]>$C$7-1),$D$7,IF(AND(LEN($C$6)>1,Table248[[#This Row],[Date]]>$C$6-1),$D$6,IF(AND(LEN($C$5)>1,Table248[[#This Row],[Date]]>$C$5-1),$D$5,0))) -> 0 | I200: =IF(ROW()=ROW(Table248[#Headers])+1,0,IF(ISNUMBER(Table248[[#This Row],[Credits]]),ABS(Table248[[#This Row],[Credits]])+I199,I199)) -> 0
B201: 2024-07-05 | C201: 0 | D201: =$C$3*Table248[[#This Row],[Beg Bal]] -> 0 | E201: =IF(DAY(Table248[[#This Row],[Date]])=$C$8,-1*Table248[[#This Row],[Current Pmt]],"") ->  | G201: =IF(Table248[[#This Row],[Date]]=TODAY(),$C$4,SUM(Table248[[#This Row],[Beg Bal]:[Penalties]])) -> 0 | H201: =IF(AND(LEN($C$7)>1,Table248[[#This Row],[Date]]>$C$7-1),$D$7,IF(AND(LEN($C$6)>1,Table248[[#This Row],[Date]]>$C$6-1),$D$6,IF(AND(LEN($C$5)>1,Table248[[#This Row],[Date]]>$C$5-1),$D$5,0))) -> 0 | I201: =IF(ROW()=ROW(Table248[#Headers])+1,0,IF(ISNUMBER(Table248[[#This Row],[Credits]]),ABS(Table248[[#This Row],[Credits]])+I200,I200)) -> 0
... 6615 more rows

Sheet Calendar
A1: Current Int Rate | B1: 0.08 | D1: Today's Date | E1: =TODAY() -> 2025-01-13 | F1: =_xlfn.DAYS(B11,B7) -> 153
A2: Year | B2: 2023
A3: Type | B3: 1040
A4: Return Due | B4: 2024-04-15
A5: Return Filed | B5: 2015-04-17
A6: Tax amount | B6: 179960
A7: Tax Due Date | B7: 2024-04-15
A8: Credits/WH | B8: 129399
A9: Bal on Due Date | B9: =B6-B8 -> 50561
A11: Date of 1st pmt | B11: 2024-09-15 | C11: 850 | D11: =IF($B$11<>"",$B$11-1,"") -> 2024-09-14 | E11: =IF($B$11="","",IF($B$12="",$B$16,$B$12)) -> 2025-09-15
A12: Change #1 | B12: 2025-09-15 | C12: 1500 | D12: =IF($B$12<>"",$B$12-1,"") -> 2025-09-14 | E12: =IF(B12="","",IF(B13="",B16,B13)) -> 2029-10-15
A13: Change #2 | B13: 2029-10-15 | C13: 2200 | D13: =IF($B$13<>"",$B$13-1,"") -> 2029-10-14 | E13: =IF($B$13="","",$B$16) -> 2034-11-18
A16: CSED | B16: 2034-11-18
A25: Date | B25: Beg Bal | C25: Interest | D25: Credits | E25: Penalties | F25: Paid | G25: End Bal | H25: Current Pmt Amt | I25: Paid To Date | J25: Int Rate
A26: 2024-04-15 | B26: =IF(ROW()=2,B9,INDIRECT("Q"&ROW()-1)) -> 0 | C26: =($B$1/365)*Table2[[#This Row],[Beg Bal]] -> 0 | F26: =IF(AND(Table2[[#This Row],[Date]]>($B$11-1),DAY(Table2[[#This Row],[Date]])=DAY($B$11)),Table2[[#This Row],[Current Pmt Amt]],"") ->  | G26: =SUM(Table2[[#This Row],[Beg Bal]:[Paid]]) -> 0 | H26: =IF(AND(Table2[[#This Row],[Date]]>$D$11,Table2[[#This Row],[Date]]<$E$11),$C$11*-1,IF(AND(Table2[[#This Row],[Date]]>$D$12,Table2[[#This Row],[Date]]<$E$12),$C$12*-1,IF(AND(Table2[[#This Row],[Date]]>$D$13,Table2[[#This Row],[Date]]<$E$13),$C$13*-1,""))) ->  | I26: =SUM($F$26:Table2[[#This Row],[Paid]]) -> 0
A27: 2024-04-16 | B27: =IF(ROW()=2,B11,INDIRECT("Q"&ROW()-1)) -> 0 | C27: =($B$1/365)*Table2[[#This Row],[Beg Bal]] -> 0 | F27: =IF(AND(Table2[[#This Row],[Date]]>($B$11-1),DAY(Table2[[#This Row],[Date]])=DAY($B$11)),Table2[[#This Row],[Current Pmt Amt]],"") ->  | G27: =SUM(Table2[[#This Row],[Beg Bal]:[Paid]]) -> 0 | H27: =IF(AND(Table2[[#This Row],[Date]]>$D$11,Table2[[#This Row],[Date]]<$E$11),$C$11*-1,IF(AND(Table2[[#This Row],[Date]]>$D$12,Table2[[#This Row],[Date]]<$E$12),$C$12*-1,IF(AND(Table2[[#This Row],[Date]]>$D$13,Table2[[#This Row],[Date]]<$E$13),$C$13*-1,""))) ->  | I27: =SUM($F$26:Table2[[#This Row],[Paid]]) -> 0
A28: 2024-04-17 | B28: =IF(ROW()=2,C11,INDIRECT("Q"&ROW()-1)) -> 0 | C28: =($B$1/365)*Table2[[#This Row],[Beg Bal]] -> 0 | F28: =IF(AND(Table2[[#This Row],[Date]]>($B$11-1),DAY(Table2[[#This Row],[Date]])=DAY($B$11)),Table2[[#This Row],[Current Pmt Amt]],"") ->  | G28: =SUM(Table2[[#This Row],[Beg Bal]:[Paid]]) -> 0 | H28: =IF(AND(Table2[[#This Row],[Date]]>$D$11,Table2[[#This Row],[Date]]<$E$11),$C$11*-1,IF(AND(Table2[[#This Row],[Date]]>$D$12,Table2[[#This Row],[Date]]<$E$12),$C$12*-1,IF(AND(Table2[[#This Row],[Date]]>$D$13,Table2[[#This Row],[Date]]<$E$13),$C$13*-1,""))) ->  | I28: =SUM($F$26:Table2[[#This Row],[Paid]]) -> 0
A29: 2024-04-18 | B29: =IF(ROW()=2,B16,INDIRECT("Q"&ROW()-1)) -> 0 | C29: =($B$1/365)*Table2[[#This Row],[Beg Bal]] -> 0 | F29: =IF(AND(Table2[[#This Row],[Date]]>($B$11-1),DAY(Table2[[#This Row],[Date]])=DAY($B$11)),Table2[[#This Row],[Current Pmt Amt]],"") ->  | G29: =SUM(Table2[[#This Row],[Beg Bal]:[Paid]]) -> 0 | H29: =IF(AND(Table2[[#This Row],[Date]]>$D$11,Table2[[#This Row],[Date]]<$E$11),$C$11*-1,IF(AND(Table2[[#This Row],[Date]]>$D$12,Table2[[#This Row],[Date]]<$E$12),$C$12*-1,IF(AND(Table2[[#This Row],[Date]]>$D$13,Table2[[#This Row],[Date]]<$E$13),$C$13*-1,""))) ->  | I29: =SUM($F$26:Table2[[#This Row],[Paid]]) -> 0
A30: 2024-04-19 | B30: =IF(ROW()=2,B14,INDIRECT("Q"&ROW()-1)) -> 0 | C30: =($B$1/365)*Table2[[#This Row],[Beg Bal]] -> 0 | F30: =IF(AND(Table2[[#This Row],[Date]]>($B$11-1),DAY(Table2[[#This Row],[Date]])=DAY($B$11)),Table2[[#This Row],[Current Pmt Amt]],"") ->  | G30: =SUM(Table2[[#This Row],[Beg Bal]:[Paid]]) -> 0 | H30: =IF(AND(Table2[[#This Row],[Date]]>$D$11,Table2[[#This Row],[Date]]<$E$11),$C$11*-1,IF(AND(Table2[[#This Row],[Date]]>$D$12,Table2[[#This Row],[Date]]<$E$12),$C$12*-1,IF(AND(Table2[[#This Row],[Date]]>$D$13,Table2[[#This Row],[Date]]<$E$13),$C$13*-1,""))) ->  | I30: =SUM($F$26:Table2[[#This Row],[Paid]]) -> 0
A31: 2024-04-20 | B31: =IF(ROW()=2,B15,INDIRECT("Q"&ROW()-1)) -> 0 | C31: =($B$1/365)*Table2[[#This Row],[Beg Bal]] -> 0 | F31: =IF(AND(Table2[[#This Row],[Date]]>($B$11-1),DAY(Table2[[#This Row],[Date]])=DAY($B$11)),Table2[[#This Row],[Current Pmt Amt]],"") ->  | G31: =SUM(Table2[[#This Row],[Beg Bal]:[Paid]]) -> 0 | H31: =IF(AND(Table2[[#This Row],[Date]]>$D$11,Table2[[#This Row],[Date]]<$E$11),$C$11*-1,IF(AND(Table2[[#This Row],[Date]]>$D$12,Table2[[#This Row],[Date]]<$E$12),$C$12*-1,IF(AND(Table2[[#This Row],[Date]]>$D$13,Table2[[#This Row],[Date]]<$E$13),$C$13*-1,""))) ->  | I31: =SUM($F$26:Table2[[#This Row],[Paid]]) -> 0
A32: 2024-04-21 | B32: =IF(ROW()=2,#REF!,INDIRECT("Q"&ROW()-1)) -> 0 | C32: =($B$1/365)*Table2[[#This Row],[Beg Bal]] -> 0 | F32: =IF(AND(Table2[[#This Row],[Date]]>($B$11-1),DAY(Table2[[#This Row],[Date]])=DAY($B$11)),Table2[[#This Row],[Current Pmt Amt]],"") ->  | G32: =SUM(Table2[[#This Row],[Beg Bal]:[Paid]]) -> 0 | H32: =IF(AND(Table2[[#This Row],[Date]]>$D$11,Table2[[#This Row],[Date]]<$E$11),$C$11*-1,IF(AND(Table2[[#This Row],[Date]]>$D$12,Table2[[#This Row],[Date]]<$E$12),$C$12*-1,IF(AND(Table2[[#This Row],[Date]]>$D$13,Table2[[#This Row],[Date]]<$E$13),$C$13*-1,""))) ->  | I32: =SUM($F$26:Table2[[#This Row],[Paid]]) -> 0
A33: 2024-04-22 | B33: =IF(ROW()=2,#REF!,INDIRECT("Q"&ROW()-1)) -> 0 | C33: =($B$1/365)*Table2[[#This Row],[Beg Bal]] -> 0 | F33: =IF(AND(Table2[[#This Row],[Date]]>($B$11-1),DAY(Table2[[#This Row],[Date]])=DAY($B$11)),Table2[[#This Row],[Current Pmt Amt]],"") ->  | G33: =SUM(Table2[[#This Row],[Beg Bal]:[Paid]]) -> 0 | H33: =IF(AND(Table2[[#This Row],[Date]]>$D$11,Table2[[#This Row],[Date]]<$E$11),$C$11*-1,IF(AND(Table2[[#This Row],[Date]]>$D$12,Table2[[#This Row],[Date]]<$E$12),$C$12*-1,IF(AND(Table2[[#This Row],[Date]]>$D$13,Table2[[#This Row],[Date]]<$E$13),$C$13*-1,""))) ->  | I33: =SUM($F$26:Table2[[#This Row],[Paid]]) -> 0
A34: 2024-04-23 | B34: =IF(ROW()=2,B18,INDIRECT("Q"&ROW()-1)) -> 0 | C34: =($B$1/365)*Table2[[#This Row],[Beg Bal]] -> 0 | F34: =IF(AND(Table2[[#This Row],[Date]]>($B$11-1),DAY(Table2[[#This Row],[Date]])=DAY($B$11)),Table2[[#This Row],[Current Pmt Amt]],"") ->  | G34: =SUM(Table2[[#This Row],[Beg Bal]:[Paid]]) -> 0 | H34: =IF(AND(Table2[[#This Row],[Date]]>$D$11,Table2[[#This Row],[Date]]<$E$11),$C$11*-1,IF(AND(Table2[[#This Row],[Date]]>$D$12,Table2[[#This Row],[Date]]<$E$12),$C$12*-1,IF(AND(Table2[[#This Row],[Date]]>$D$13,Table2[[#This Row],[Date]]<$E$13),$C$13*-1,""))) ->  | I34: =SUM($F$26:Table2[[#This Row],[Paid]]) -> 0
A35: 2024-04-24 | B35: =IF(ROW()=2,B19,INDIRECT("Q"&ROW()-1)) -> 0 | C35: =($B$1/365)*Table2[[#This Row],[Beg Bal]] -> 0 | F35: =IF(AND(Table2[[#This Row],[Date]]>($B$11-1),DAY(Table2[[#This Row],[Date]])=DAY($B$11)),Table2[[#This Row],[Current Pmt Amt]],"") ->  | G35: =SUM(Table2[[#This Row],[Beg Bal]:[Paid]]) -> 0 | H35: =IF(AND(Table2[[#This Row],[Date]]>$D$11,Table2[[#This Row],[Date]]<$E$11),$C$11*-1,IF(AND(Table2[[#This Row],[Date]]>$D$12,Table2[[#This Row],[Date]]<$E$12),$C$12*-1,IF(AND(Table2[[#This Row],[Date]]>$D$13,Table2[[#This Row],[Date]]<$E$13),$C$13*-1,""))) ->  | I35: =SUM($F$26:Table2[[#This Row],[Paid]]) -> 0
A36: 2024-04-25 | B36: =IF(ROW()=2,B20,INDIRECT("Q"&ROW()-1)) -> 0 | C36: =($B$1/365)*Table2[[#This Row],[Beg Bal]] -> 0 | F36: =IF(AND(Table2[[#This Row],[Date]]>($B$11-1),DAY(Table2[[#This Row],[Date]])=DAY($B$11)),Table2[[#This Row],[Current Pmt Amt]],"") ->  | G36: =SUM(Table2[[#This Row],[Beg Bal]:[Paid]]) -> 0 | H36: =IF(AND(Table2[[#This Row],[Date]]>$D$11,Table2[[#This Row],[Date]]<$E$11),$C$11*-1,IF(AND(Table2[[#This Row],[Date]]>$D$12,Table2[[#This Row],[Date]]<$E$12),$C$12*-1,IF(AND(Table2[[#This Row],[Date]]>$D$13,Table2[[#This Row],[Date]]<$E$13),$C$13*-1,""))) ->  | I36: =SUM($F$26:Table2[[#This Row],[Paid]]) -> 0
A37: 2024-04-26 | B37: =IF(ROW()=2,B21,INDIRECT("Q"&ROW()-1)) -> 0 | C37: =($B$1/365)*Table2[[#This Row],[Beg Bal]] -> 0 | F37: =IF(AND(Table2[[#This Row],[Date]]>($B$11-1),DAY(Table2[[#This Row],[Date]])=DAY($B$11)),Table2[[#This Row],[Current Pmt Amt]],"") ->  | G37: =SUM(Table2[[#This Row],[Beg Bal]:[Paid]]) -> 0 | H37: =IF(AND(Table2[[#This Row],[Date]]>$D$11,Table2[[#This Row],[Date]]<$E$11),$C$11*-1,IF(AND(Table2[[#This Row],[Date]]>$D$12,Table2[[#This Row],[Date]]<$E$12),$C$12*-1,IF(AND(Table2[[#This Row],[Date]]>$D$13,Table2[[#This Row],[Date]]<$E$13),$C$13*-1,""))) ->  | I37: =SUM($F$26:Table2[[#This Row],[Paid]]) -> 0
A38: 2024-04-27 | B38: =IF(ROW()=2,B22,INDIRECT("Q"&ROW()-1)) -> 0 | C38: =($B$1/365)*Table2[[#This Row],[Beg Bal]] -> 0 | F38: =IF(AND(Table2[[#This Row],[Date]]>($B$11-1),DAY(Table2[[#This Row],[Date]])=DAY($B$11)),Table2[[#This Row],[Current Pmt Amt]],"") ->  | G38: =SUM(Table2[[#This Row],[Beg Bal]:[Paid]]) -> 0 | H38: =IF(AND(Table2[[#This Row],[Date]]>$D$11,Table2[[#This Row],[Date]]<$E$11),$C$11*-1,IF(AND(Table2[[#This Row],[Date]]>$D$12,Table2[[#This Row],[Date]]<$E$12),$C$12*-1,IF(AND(Table2[[#This Row],[Date]]>$D$13,Table2[[#This Row],[Date]]<$E$13),$C$13*-1,""))) ->  | I38: =SUM($F$26:Table2[[#This Row],[Paid]]) -> 0
A39: 2024-04-28 | B39: =IF(ROW()=2,B23,INDIRECT("Q"&ROW()-1)) -> 0 | C39: =($B$1/365)*Table2[[#This Row],[Beg Bal]] -> 0 | F39: =IF(AND(Table2[[#This Row],[Date]]>($B$11-1),DAY(Table2[[#This Row],[Date]])=DAY($B$11)),Table2[[#This Row],[Current Pmt Amt]],"") ->  | G39: =SUM(Table2[[#This Row],[Beg Bal]:[Paid]]) -> 0 | H39: =IF(AND(Table2[[#This Row],[Date]]>$D$11,Table2[[#This Row],[Date]]<$E$11),$C$11*-1,IF(AND(Table2[[#This Row],[Date]]>$D$12,Table2[[#This Row],[Date]]<$E$12),$C$12*-1,IF(AND(Table2[[#This Row],[Date]]>$D$13,Table2[[#This Row],[Date]]<$E$13),$C$13*-1,""))) ->  | I39: =SUM($F$26:Table2[[#This Row],[Paid]]) -> 0
A40: 2024-04-29 | B40: =IF(ROW()=2,B24,INDIRECT("Q"&ROW()-1)) -> 0 | C40: =($B$1/365)*Table2[[#This Row],[Beg Bal]] -> 0 | F40: =IF(AND(Table2[[#This Row],[Date]]>($B$11-1),DAY(Table2[[#This Row],[Date]])=DAY($B$11)),Table2[[#This Row],[Current Pmt Amt]],"") ->  | G40: =SUM(Table2[[#This Row],[Beg Bal]:[Paid]]) -> 0 | H40: =IF(AND(Table2[[#This Row],[Date]]>$D$11,Table2[[#This Row],[Date]]<$E$11),$C$11*-1,IF(AND(Table2[[#This Row],[Date]]>$D$12,Table2[[#This Row],[Date]]<$E$12),$C$12*-1,IF(AND(Table2[[#This Row],[Date]]>$D$13,Table2[[#This Row],[Date]]<$E$13),$C$13*-1,""))) ->  | I40: =SUM($F$26:Table2[[#This Row],[Paid]]) -> 0
A41: 2024-04-30 | B41: =IF(ROW()=2,#REF!,INDIRECT("Q"&ROW()-1)) -> 0 | C41: =($B$1/365)*Table2[[#This Row],[Beg Bal]] -> 0 | F41: =IF(AND(Table2[[#This Row],[Date]]>($B$11-1),DAY(Table2[[#This Row],[Date]])=DAY($B$11)),Table2[[#This Row],[Current Pmt Amt]],"") ->  | G41: =SUM(Table2[[#This Row],[Beg Bal]:[Paid]]) -> 0 | H41: =IF(AND(Table2[[#This Row],[Date]]>$D$11,Table2[[#This Row],[Date]]<$E$11),$C$11*-1,IF(AND(Table2[[#This Row],[Date]]>$D$12,Table2[[#This Row],[Date]]<$E$12),$C$12*-1,IF(AND(Table2[[#This Row],[Date]]>$D$13,Table2[[#This Row],[Date]]<$E$13),$C$13*-1,""))) ->  | I41: =SUM($F$26:Table2[[#This Row],[Paid]]) -> 0
A42: 2024-05-01 | B42: =IF(ROW()=2,#REF!,INDIRECT("Q"&ROW()-1)) -> 0 | C42: =($B$1/365)*Table2[[#This Row],[Beg Bal]] -> 0 | F42: =IF(AND(Table2[[#This Row],[Date]]>($B$11-1),DAY(Table2[[#This Row],[Date]])=DAY($B$11)),Table2[[#This Row],[Current Pmt Amt]],"") ->  | G42: =SUM(Table2[[#This Row],[Beg Bal]:[Paid]]) -> 0 | H42: =IF(AND(Table2[[#This Row],[Date]]>$D$11,Table2[[#This Row],[Date]]<$E$11),$C$11*-1,IF(AND(Table2[[#This Row],[Date]]>$D$12,Table2[[#This Row],[Date]]<$E$12),$C$12*-1,IF(AND(Table2[[#This Row],[Date]]>$D$13,Table2[[#This Row],[Date]]<$E$13),$C$13*-1,""))) ->  | I42: =SUM($F$26:Table2[[#This Row],[Paid]]) -> 0
A43: 2024-05-02 | B43: =IF(ROW()=2,#REF!,INDIRECT("Q"&ROW()-1)) -> 0 | C43: =($B$1/365)*Table2[[#This Row],[Beg Bal]] -> 0 | F43: =IF(AND(Table2[[#This Row],[Date]]>($B$11-1),DAY(Table2[[#This Row],[Date]])=DAY($B$11)),Table2[[#This Row],[Current Pmt Amt]],"") ->  | G43: =SUM(Table2[[#This Row],[Beg Bal]:[Paid]]) -> 0 | H43: =IF(AND(Table2[[#This Row],[Date]]>$D$11,Table2[[#This Row],[Date]]<$E$11),$C$11*-1,IF(AND(Table2[[#This Row],[Date]]>$D$12,Table2[[#This Row],[Date]]<$E$12),$C$12*-1,IF(AND(Table2[[#This Row],[Date]]>$D$13,Table2[[#This Row],[Date]]<$E$13),$C$13*-1,""))) ->  | I43: =SUM($F$26:Table2[[#This Row],[Paid]]) -> 0
A44: 2024-05-03 | B44: =IF(ROW()=2,#REF!,INDIRECT("Q"&ROW()-1)) -> 0 | C44: =($B$1/365)*Table2[[#This Row],[Beg Bal]] -> 0 | F44: =IF(AND(Table2[[#This Row],[Date]]>($B$11-1),DAY(Table2[[#This Row],[Date]])=DAY($B$11)),Table2[[#This Row],[Current Pmt Amt]],"") ->  | G44: =SUM(Table2[[#This Row],[Beg Bal]:[Paid]]) -> 0 | H44: =IF(AND(Table2[[#This Row],[Date]]>$D$11,Table2[[#This Row],[Date]]<$E$11),$C$11*-1,IF(AND(Table2[[#This Row],[Date]]>$D$12,Table2[[#This Row],[Date]]<$E$12),$C$12*-1,IF(AND(Table2[[#This Row],[Date]]>$D$13,Table2[[#This Row],[Date]]<$E$13),$C$13*-1,""))) ->  | I44: =SUM($F$26:Table2[[#This Row],[Paid]]) -> 0
A45: 2024-05-04 | B45: =IF(ROW()=2,#REF!,INDIRECT("Q"&ROW()-1)) -> 0 | C45: =($B$1/365)*Table2[[#This Row],[Beg Bal]] -> 0 | F45: =IF(AND(Table2[[#This Row],[Date]]>($B$11-1),DAY(Table2[[#This Row],[Date]])=DAY($B$11)),Table2[[#This Row],[Current Pmt Amt]],"") ->  | G45: =SUM(Table2[[#This Row],[Beg Bal]:[Paid]]) -> 0 | H45: =IF(AND(Table2[[#This Row],[Date]]>$D$11,Table2[[#This Row],[Date]]<$E$11),$C$11*-1,IF(AND(Table2[[#This Row],[Date]]>$D$12,Table2[[#This Row],[Date]]<$E$12),$C$12*-1,IF(AND(Table2[[#This Row],[Date]]>$D$13,Table2[[#This Row],[Date]]<$E$13),$C$13*-1,""))) ->  | I45: =SUM($F$26:Table2[[#This Row],[Paid]]) -> 0
A46: 2024-05-05 | B46: =IF(ROW()=2,#REF!,INDIRECT("Q"&ROW()-1)) -> 0 | C46: =($B$1/365)*Table2[[#This Row],[Beg Bal]] -> 0 | F46: =IF(AND(Table2[[#This Row],[Date]]>($B$11-1),DAY(Table2[[#This Row],[Date]])=DAY($B$11)),Table2[[#This Row],[Current Pmt Amt]],"") ->  | G46: =SUM(Table2[[#This Row],[Beg Bal]:[Paid]]) -> 0 | H46: =IF(AND(Table2[[#This Row],[Date]]>$D$11,Table2[[#This Row],[Date]]<$E$11),$C$11*-1,IF(AND(Table2[[#This Row],[Date]]>$D$12,Table2[[#This Row],[Date]]<$E$12),$C$12*-1,IF(AND(Table2[[#This Row],[Date]]>$D$13,Table2[[#This Row],[Date]]<$E$13),$C$13*-1,""))) ->  | I46: =SUM($F$26:Table2[[#This Row],[Paid]]) -> 0
A47: 2024-05-06 | B47: =IF(ROW()=2,#REF!,INDIRECT("Q"&ROW()-1)) -> 0 | C47: =($B$1/365)*Table2[[#This Row],[Beg Bal]] -> 0 | F47: =IF(AND(Table2[[#This Row],[Date]]>($B$11-1),DAY(Table2[[#This Row],[Date]])=DAY($B$11)),Table2[[#This Row],[Current Pmt Amt]],"") ->  | G47: =SUM(Table2[[#This Row],[Beg Bal]:[Paid]]) -> 0 | H47: =IF(AND(Table2[[#This Row],[Date]]>$D$11,Table2[[#This Row],[Date]]<$E$11),$C$11*-1,IF(AND(Table2[[#This Row],[Date]]>$D$12,Table2[[#This Row],[Date]]<$E$12),$C$12*-1,IF(AND(Table2[[#This Row],[Date]]>$D$13,Table2[[#This Row],[Date]]<$E$13),$C$13*-1,""))) ->  | I47: =SUM($F$26:Table2[[#This Row],[Paid]]) -> 0
A48: 2024-05-07 | B48: =IF(ROW()=2,#REF!,INDIRECT("Q"&ROW()-1)) -> 0 | C48: =($B$1/365)*Table2[[#This Row],[Beg Bal]] -> 0 | F48: =IF(AND(Table2[[#This Row],[Date]]>($B$11-1),DAY(Table2[[#This Row],[Date]])=DAY($B$11)),Table2[[#This Row],[Current Pmt Amt]],"") ->  | G48: =SUM(Table2[[#This Row],[Beg Bal]:[Paid]]) -> 0 | H48: =IF(AND(Table2[[#This Row],[Date]]>$D$11,Table2[[#This Row],[Date]]<$E$11),$C$11*-1,IF(AND(Table2[[#This Row],[Date]]>$D$12,Table2[[#This Row],[Date]]<$E$12),$C$12*-1,IF(AND(Table2[[#This Row],[Date]]>$D$13,Table2[[#This Row],[Date]]<$E$13),$C$13*-1,""))) ->  | I48: =SUM($F$26:Table2[[#This Row],[Paid]]) -> 0
A49: 2024-05-08 | B49: =IF(ROW()=2,#REF!,INDIRECT("Q"&ROW()-1)) -> 0 | C49: =($B$1/365)*Table2[[#This Row],[Beg Bal]] -> 0 | F49: =IF(AND(Table2[[#This Row],[Date]]>($B$11-1),DAY(Table2[[#This Row],[Date]])=DAY($B$11)),Table2[[#This Row],[Current Pmt Amt]],"") ->  | G49: =SUM(Table2[[#This Row],[Beg Bal]:[Paid]]) -> 0 | H49: =IF(AND(Table2[[#This Row],[Date]]>$D$11,Table2[[#This Row],[Date]]<$E$11),$C$11*-1,IF(AND(Table2[[#This Row],[Date]]>$D$12,Table2[[#This Row],[Date]]<$E$12),$C$12*-1,IF(AND(Table2[[#This Row],[Date]]>$D$13,Table2[[#This Row],[Date]]<$E$13),$C$13*-1,""))) ->  | I49: =SUM($F$26:Table2[[#This Row],[Paid]]) -> 0
A50: 2024-05-09 | B50: =IF(ROW()=2,#REF!,INDIRECT("Q"&ROW()-1)) -> 0 | C50: =($B$1/365)*Table2[[#This Row],[Beg Bal]] -> 0 | F50: =IF(AND(Table2[[#This Row],[Date]]>($B$11-1),DAY(Table2[[#This Row],[Date]])=DAY($B$11)),Table2[[#This Row],[Current Pmt Amt]],"") ->  | G50: =SUM(Table2[[#This Row],[Beg Bal]:[Paid]]) -> 0 | H50: =IF(AND(Table2[[#This Row],[Date]]>$D$11,Table2[[#This Row],[Date]]<$E$11),$C$11*-1,IF(AND(Table2[[#This Row],[Date]]>$D$12,Table2[[#This Row],[Date]]<$E$12),$C$12*-1,IF(AND(Table2[[#This Row],[Date]]>$D$13,Table2[[#This Row],[Date]]<$E$13),$C$13*-1,""))) ->  | I50: =SUM($F$26:Table2[[#This Row],[Paid]]) -> 0
A51: 2024-05-10 | B51: =IF(ROW()=2,#REF!,INDIRECT("Q"&ROW()-1)) -> 0 | C51: =($B$1/365)*Table2[[#This Row],[Beg Bal]] -> 0 | F51: =IF(AND(Table2[[#This Row],[Date]]>($B$11-1),DAY(Table2[[#This Row],[Date]])=DAY($B$11)),Table2[[#This Row],[Current Pmt Amt]],"") ->  | G51: =SUM(Table2[[#This Row],[Beg Bal]:[Paid]]) -> 0 | H51: =IF(AND(Table2[[#This Row],[Date]]>$D$11,Table2[[#This Row],[Date]]<$E$11),$C$11*-1,IF(AND(Table2[[#This Row],[Date]]>$D$12,Table2[[#This Row],[Date]]<$E$12),$C$12*-1,IF(AND(Table2[[#This Row],[Date]]>$D$13,Table2[[#This Row],[Date]]<$E$13),$C$13*-1,""))) ->  | I51: =SUM($F$26:Table2[[#This Row],[Paid]]) -> 0
A52: 2024-05-11 | B52: =IF(ROW()=2,#REF!,INDIRECT("Q"&ROW()-1)) -> 0 | C52: =($B$1/365)*Table2[[#This Row],[Beg Bal]] -> 0 | F52: =IF(AND(Table2[[#This Row],[Date]]>($B$11-1),DAY(Table2[[#This Row],[Date]])=DAY($B$11)),Table2[[#This Row],[Current Pmt Amt]],"") ->  | G52: =SUM(Table2[[#This Row],[Beg Bal]:[Paid]]) -> 0 | H52: =IF(AND(Table2[[#This Row],[Date]]>$D$11,Table2[[#This Row],[Date]]<$E$11),$C$11*-1,IF(AND(Table2[[#This Row],[Date]]>$D$12,Table2[[#This Row],[Date]]<$E$12),$C$12*-1,IF(AND(Table2[[#This Row],[Date]]>$D$13,Table2[[#This Row],[Date]]<$E$13),$C$13*-1,""))) ->  | I52: =SUM($F$26:Table2[[#This Row],[Paid]]) -> 0
A53: 2024-05-12 | B53: =IF(ROW()=2,#REF!,INDIRECT("Q"&ROW()-1)) -> 0 | C53: =($B$1/365)*Table2[[#This Row],[Beg Bal]] -> 0 | F53: =IF(AND(Table2[[#This Row],[Date]]>($B$11-1),DAY(Table2[[#This Row],[Date]])=DAY($B$11)),Table2[[#This Row],[Current Pmt Amt]],"") ->  | G53: =SUM(Table2[[#This Row],[Beg Bal]:[Paid]]) -> 0 | H53: =IF(AND(Table2[[#This Row],[Date]]>$D$11,Table2[[#This Row],[Date]]<$E$11),$C$11*-1,IF(AND(Table2[[#This Row],[Date]]>$D$12,Table2[[#This Row],[Date]]<$E$12),$C$12*-1,IF(AND(Table2[[#This Row],[Date]]>$D$13,Table2[[#This Row],[Date]]<$E$13),$C$13*-1,""))) ->  | I53: =SUM($F$26:Table2[[#This Row],[Paid]]) -> 0
A54: 2024-05-13 | B54: =IF(ROW()=2,#REF!,INDIRECT("Q"&ROW()-1)) -> 0 | C54: =($B$1/365)*Table2[[#This Row],[Beg Bal]] -> 0 | F54: =IF(AND(Table2[[#This Row],[Date]]>($B$11-1),DAY(Table2[[#This Row],[Date]])=DAY($B$11)),Table2[[#This Row],[Current Pmt Amt]],"") ->  | G54: =SUM(Table2[[#This Row],[Beg Bal]:[Paid]]) -> 0 | H54: =IF(AND(Table2[[#This Row],[Date]]>$D$11,Table2[[#This Row],[Date]]<$E$11),$C$11*-1,IF(AND(Table2[[#This Row],[Date]]>$D$12,Table2[[#This Row],[Date]]<$E$12),$C$12*-1,IF(AND(Table2[[#This Row],[Date]]>$D$13,Table2[[#This Row],[Date]]<$E$13),$C$13*-1,""))) ->  | I54: =SUM($F$26:Table2[[#This Row],[Paid]]) -> 0
A55: 2024-05-14 | B55: =IF(ROW()=2,#REF!,INDIRECT("Q"&ROW()-1)) -> 0 | C55: =($B$1/365)*Table2[[#This Row],[Beg Bal]] -> 0 | F55: =IF(AND(Table2[[#This Row],[Date]]>($B$11-1),DAY(Table2[[#This Row],[Date]])=DAY($B$11)),Table2[[#This Row],[Current Pmt Amt]],"") ->  | G55: =SUM(Table2[[#This Row],[Beg Bal]:[Paid]]) -> 0 | H55: =IF(AND(Table2[[#This Row],[Date]]>$D$11,Table2[[#This Row],[Date]]<$E$11),$C$11*-1,IF(AND(Table2[[#This Row],[Date]]>$D$12,Table2[[#This Row],[Date]]<$E$12),$C$12*-1,IF(AND(Table2[[#This Row],[Date]]>$D$13,Table2[[#This Row],[Date]]<$E$13),$C$13*-1,""))) ->  | I55: =SUM($F$26:Table2[[#This Row],[Paid]]) -> 0
A56: 2024-05-15 | B56: =IF(ROW()=2,#REF!,INDIRECT("Q"&ROW()-1)) -> 0 | C56: =($B$1/365)*Table2[[#This Row],[Beg Bal]] -> 0 | F56: =IF(AND(Table2[[#This Row],[Date]]>($B$11-1),DAY(Table2[[#This Row],[Date]])=DAY($B$11)),Table2[[#This Row],[Current Pmt Amt]],"") ->  | G56: =SUM(Table2[[#This Row],[Beg Bal]:[Paid]]) -> 0 | H56: =IF(AND(Table2[[#This Row],[Date]]>$D$11,Table2[[#This Row],[Date]]<$E$11),$C$11*-1,IF(AND(Table2[[#This Row],[Date]]>$D$12,Table2[[#This Row],[Date]]<$E$12),$C$12*-1,IF(AND(Table2[[#This Row],[Date]]>$D$13,Table2[[#This Row],[Date]]<$E$13),$C$13*-1,""))) ->  | I56: =SUM($F$26:Table2[[#This Row],[Paid]]) -> 0
A57: 2024-05-16 | B57: =IF(ROW()=2,#REF!,INDIRECT("Q"&ROW()-1)) -> 0 | C57: =($B$1/365)*Table2[[#This Row],[Beg Bal]] -> 0 | F57: =IF(AND(Table2[[#This Row],[Date]]>($B$11-1),DAY(Table2[[#This Row],[Date]])=DAY($B$11)),Table2[[#This Row],[Current Pmt Amt]],"") ->  | G57: =SUM(Table2[[#This Row],[Beg Bal]:[Paid]]) -> 0 | H57: =IF(AND(Table2[[#This Row],[Date]]>$D$11,Table2[[#This Row],[Date]]<$E$11),$C$11*-1,IF(AND(Table2[[#This Row],[Date]]>$D$12,Table2[[#This Row],[Date]]<$E$12),$C$12*-1,IF(AND(Table2[[#This Row],[Date]]>$D$13,Table2[[#This Row],[Date]]<$E$13),$C$13*-1,""))) ->  | I57: =SUM($F$26:Table2[[#This Row],[Paid]]) -> 0
A58: 2024-05-17 | B58: =IF(ROW()=2,#REF!,INDIRECT("Q"&ROW()-1)) -> 0 | C58: =($B$1/365)*Table2[[#This Row],[Beg Bal]] -> 0 | F58: =IF(AND(Table2[[#This Row],[Date]]>($B$11-1),DAY(Table2[[#This Row],[Date]])=DAY($B$11)),Table2[[#This Row],[Current Pmt Amt]],"") ->  | G58: =SUM(Table2[[#This Row],[Beg Bal]:[Paid]]) -> 0 | H58: =IF(AND(Table2[[#This Row],[Date]]>$D$11,Table2[[#This Row],[Date]]<$E$11),$C$11*-1,IF(AND(Table2[[#This Row],[Date]]>$D$12,Table2[[#This Row],[Date]]<$E$12),$C$12*-1,IF(AND(Table2[[#This Row],[Date]]>$D$13,Table2[[#This Row],[Date]]<$E$13),$C$13*-1,""))) ->  | I58: =SUM($F$26:Table2[[#This Row],[Paid]]) -> 0
A59: 2024-05-18 | B59: =IF(ROW()=2,#REF!,INDIRECT("Q"&ROW()-1)) -> 0 | C59: =($B$1/365)*Table2[[#This Row],[Beg Bal]] -> 0 | F59: =IF(AND(Table2[[#This Row],[Date]]>($B$11-1),DAY(Table2[[#This Row],[Date]])=DAY($B$11)),Table2[[#This Row],[Current Pmt Amt]],"") ->  | G59: =SUM(Table2[[#This Row],[Beg Bal]:[Paid]]) -> 0 | H59: =IF(AND(Table2[[#This Row],[Date]]>$D$11,Table2[[#This Row],[Date]]<$E$11),$C$11*-1,IF(AND(Table2[[#This Row],[Date]]>$D$12,Table2[[#This Row],[Date]]<$E$12),$C$12*-1,IF(AND(Table2[[#This Row],[Date]]>$D$13,Table2[[#This Row],[Date]]<$E$13),$C$13*-1,""))) ->  | I59: =SUM($F$26:Table2[[#This Row],[Paid]]) -> 0
A60: 2024-05-19 | B60: =IF(ROW()=2,#REF!,INDIRECT("Q"&ROW()-1)) -> 0 | C60: =($B$1/365)*Table2[[#This Row],[Beg Bal]] -> 0 | F60: =IF(AND(Table2[[#This Row],[Date]]>($B$11-1),DAY(Table2[[#This Row],[Date]])=DAY($B$11)),Table2[[#This Row],[Current Pmt Amt]],"") ->  | G60: =SUM(Table2[[#This Row],[Beg Bal]:[Paid]]) -> 0 | H60: =IF(AND(Table2[[#This Row],[Date]]>$D$11,Table2[[#This Row],[Date]]<$E$11),$C$11*-1,IF(AND(Table2[[#This Row],[Date]]>$D$12,Table2[[#This Row],[Date]]<$E$12),$C$12*-1,IF(AND(Table2[[#This Row],[Date]]>$D$13,Table2[[#This Row],[Date]]<$E$13),$C$13*-1,""))) ->  | I60: =SUM($F$26:Table2[[#This Row],[Paid]]) -> 0
A61: 2024-05-20 | B61: =IF(ROW()=2,#REF!,INDIRECT("Q"&ROW()-1)) -> 0 | C61: =($B$1/365)*Table2[[#This Row],[Beg Bal]] -> 0 | F61: =IF(AND(Table2[[#This Row],[Date]]>($B$11-1),DAY(Table2[[#This Row],[Date]])=DAY($B$11)),Table2[[#This Row],[Current Pmt Amt]],"") ->  | G61: =SUM(Table2[[#This Row],[Beg Bal]:[Paid]]) -> 0 | H61: =IF(AND(Table2[[#This Row],[Date]]>$D$11,Table2[[#This Row],[Date]]<$E$11),$C$11*-1,IF(AND(Table2[[#This Row],[Date]]>$D$12,Table2[[#This Row],[Date]]<$E$12),$C$12*-1,IF(AND(Table2[[#This Row],[Date]]>$D$13,Table2[[#This Row],[Date]]<$E$13),$C$13*-1,""))) ->  | I61: =SUM($F$26:Table2[[#This Row],[Paid]]) -> 0
A62: 2024-05-21 | B62: =IF(ROW()=2,#REF!,INDIRECT("Q"&ROW()-1)) -> 0 | C62: =($B$1/365)*Table2[[#This Row],[Beg Bal]] -> 0 | F62: =IF(AND(Table2[[#This Row],[Date]]>($B$11-1),DAY(Table2[[#This Row],[Date]])=DAY($B$11)),Table2[[#This Row],[Current Pmt Amt]],"") ->  | G62: =SUM(Table2[[#This Row],[Beg Bal]:[Paid]]) -> 0 | H62: =IF(AND(Table2[[#This Row],[Date]]>$D$11,Table2[[#This Row],[Date]]<$E$11),$C$11*-1,IF(AND(Table2[[#This Row],[Date]]>$D$12,Table2[[#This Row],[Date]]<$E$12),$C$12*-1,IF(AND(Table2[[#This Row],[Date]]>$D$13,Table2[[#This Row],[Date]]<$E$13),$C$13*-1,""))) ->  | I62: =SUM($F$26:Table2[[#This Row],[Paid]]) -> 0
A63: 2024-05-22 | B63: =IF(ROW()=2,#REF!,INDIRECT("Q"&ROW()-1)) -> 0 | C63: =($B$1/365)*Table2[[#This Row],[Beg Bal]] -> 0 | F63: =IF(AND(Table2[[#This Row],[Date]]>($B$11-1),DAY(Table2[[#This Row],[Date]])=DAY($B$11)),Table2[[#This Row],[Current Pmt Amt]],"") ->  | G63: =SUM(Table2[[#This Row],[Beg Bal]:[Paid]]) -> 0 | H63: =IF(AND(Table2[[#This Row],[Date]]>$D$11,Table2[[#This Row],[Date]]<$E$11),$C$11*-1,IF(AND(Table2[[#This Row],[Date]]>$D$12,Table2[[#This Row],[Date]]<$E$12),$C$12*-1,IF(AND(Table2[[#This Row],[Date]]>$D$13,Table2[[#This Row],[Date]]<$E$13),$C$13*-1,""))) ->  | I63: =SUM($F$26:Table2[[#This Row],[Paid]]) -> 0
A64: 2024-05-23 | B64: =IF(ROW()=2,#REF!,INDIRECT("Q"&ROW()-1)) -> 0 | C64: =($B$1/365)*Table2[[#This Row],[Beg Bal]] -> 0 | F64: =IF(AND(Table2[[#This Row],[Date]]>($B$11-1),DAY(Table2[[#This Row],[Date]])=DAY($B$11)),Table2[[#This Row],[Current Pmt Amt]],"") ->  | G64: =SUM(Table2[[#This Row],[Beg Bal]:[Paid]]) -> 0 | H64: =IF(AND(Table2[[#This Row],[Date]]>$D$11,Table2[[#This Row],[Date]]<$E$11),$C$11*-1,IF(AND(Table2[[#This Row],[Date]]>$D$12,Table2[[#This Row],[Date]]<$E$12),$C$12*-1,IF(AND(Table2[[#This Row],[Date]]>$D$13,Table2[[#This Row],[Date]]<$E$13),$C$13*-1,""))) ->  | I64: =SUM($F$26:Table2[[#This Row],[Paid]]) -> 0
A65: 2024-05-24 | B65: =IF(ROW()=2,#REF!,INDIRECT("Q"&ROW()-1)) -> 0 | C65: =($B$1/365)*Table2[[#This Row],[Beg Bal]] -> 0 | F65: =IF(AND(Table2[[#This Row],[Date]]>($B$11-1),DAY(Table2[[#This Row],[Date]])=DAY($B$11)),Table2[[#This Row],[Current Pmt Amt]],"") ->  | G65: =SUM(Table2[[#This Row],[Beg Bal]:[Paid]]) -> 0 | H65: =IF(AND(Table2[[#This Row],[Date]]>$D$11,Table2[[#This Row],[Date]]<$E$11),$C$11*-1,IF(AND(Table2[[#This Row],[Date]]>$D$12,Table2[[#This Row],[Date]]<$E$12),$C$12*-1,IF(AND(Table2[[#This Row],[Date]]>$D$13,Table2[[#This Row],[Date]]<$E$13),$C$13*-1,""))) ->  | I65: =SUM($F$26:Table2[[#This Row],[Paid]]) -> 0
A66: 2024-05-25 | B66: =IF(ROW()=2,#REF!,INDIRECT("Q"&ROW()-1)) -> 0 | C66: =($B$1/365)*Table2[[#This Row],[Beg Bal]] -> 0 | F66: =IF(AND(Table2[[#This Row],[Date]]>($B$11-1),DAY(Table2[[#This Row],[Date]])=DAY($B$11)),Table2[[#This Row],[Current Pmt Amt]],"") ->  | G66: =SUM(Table2[[#This Row],[Beg Bal]:[Paid]]) -> 0 | H66: =IF(AND(Table2[[#This Row],[Date]]>$D$11,Table2[[#This Row],[Date]]<$E$11),$C$11*-1,IF(AND(Table2[[#This Row],[Date]]>$D$12,Table2[[#This Row],[Date]]<$E$12),$C$12*-1,IF(AND(Table2[[#This Row],[Date]]>$D$13,Table2[[#This Row],[Date]]<$E$13),$C$13*-1,""))) ->  | I66: =SUM($F$26:Table2[[#This Row],[Paid]]) -> 0
A67: 2024-05-26 | B67: =IF(ROW()=2,#REF!,INDIRECT("Q"&ROW()-1)) -> 0 | C67: =($B$1/365)*Table2[[#This Row],[Beg Bal]] -> 0 | F67: =IF(AND(Table2[[#This Row],[Date]]>($B$11-1),DAY(Table2[[#This Row],[Date]])=DAY($B$11)),Table2[[#This Row],[Current Pmt Amt]],"") ->  | G67: =SUM(Table2[[#This Row],[Beg Bal]:[Paid]]) -> 0 | H67: =IF(AND(Table2[[#This Row],[Date]]>$D$11,Table2[[#This Row],[Date]]<$E$11),$C$11*-1,IF(AND(Table2[[#This Row],[Date]]>$D$12,Table2[[#This Row],[Date]]<$E$12),$C$12*-1,IF(AND(Table2[[#This Row],[Date]]>$D$13,Table2[[#This Row],[Date]]<$E$13),$C$13*-1,""))) ->  | I67: =SUM($F$26:Table2[[#This Row],[Paid]]) -> 0
A68: 2024-05-27 | B68: =IF(ROW()=2,#REF!,INDIRECT("Q"&ROW()-1)) -> 0 | C68: =($B$1/365)*Table2[[#This Row],[Beg Bal]] -> 0 | F68: =IF(AND(Table2[[#This Row],[Date]]>($B$11-1),DAY(Table2[[#This Row],[Date]])=DAY($B$11)),Table2[[#This Row],[Current Pmt Amt]],"") ->  | G68: =SUM(Table2[[#This Row],[Beg Bal]:[Paid]]) -> 0 | H68: =IF(AND(Table2[[#This Row],[Date]]>$D$11,Table2[[#This Row],[Date]]<$E$11),$C$11*-1,IF(AND(Table2[[#This Row],[Date]]>$D$12,Table2[[#This Row],[Date]]<$E$12),$C$12*-1,IF(AND(Table2[[#This Row],[Date]]>$D$13,Table2[[#This Row],[Date]]<$E$13),$C$13*-1,""))) ->  | I68: =SUM($F$26:Table2[[#This Row],[Paid]]) -> 0
A69: 2024-05-28 | B69: =IF(ROW()=2,#REF!,INDIRECT("Q"&ROW()-1)) -> 0 | C69: =($B$1/365)*Table2[[#This Row],[Beg Bal]] -> 0 | F69: =IF(AND(Table2[[#This Row],[Date]]>($B$11-1),DAY(Table2[[#This Row],[Date]])=DAY($B$11)),Table2[[#This Row],[Current Pmt Amt]],"") ->  | G69: =SUM(Table2[[#This Row],[Beg Bal]:[Paid]]) -> 0 | H69: =IF(AND(Table2[[#This Row],[Date]]>$D$11,Table2[[#This Row],[Date]]<$E$11),$C$11*-1,IF(AND(Table2[[#This Row],[Date]]>$D$12,Table2[[#This Row],[Date]]<$E$12),$C$12*-1,IF(AND(Table2[[#This Row],[Date]]>$D$13,Table2[[#This Row],[Date]]<$E$13),$C$13*-1,""))) ->  | I69: =SUM($F$26:Table2[[#This Row],[Paid]]) -> 0
A70: 2024-05-29 | B70: =IF(ROW()=2,#REF!,INDIRECT("Q"&ROW()-1)) -> 0 | C70: =($B$1/365)*Table2[[#This Row],[Beg Bal]] -> 0 | F70: =IF(AND(Table2[[#This Row],[Date]]>($B$11-1),DAY(Table2[[#This Row],[Date]])=DAY($B$11)),Table2[[#This Row],[Current Pmt Amt]],"") ->  | G70: =SUM(Table2[[#This Row],[Beg Bal]:[Paid]]) -> 0 | H70: =IF(AND(Table2[[#This Row],[Date]]>$D$11,Table2[[#This Row],[Date]]<$E$11),$C$11*-1,IF(AND(Table2[[#This Row],[Date]]>$D$12,Table2[[#This Row],[Date]]<$E$12),$C$12*-1,IF(AND(Table2[[#This Row],[Date]]>$D$13,Table2[[#This Row],[Date]]<$E$13),$C$13*-1,""))) ->  | I70: =SUM($F$26:Table2[[#This Row],[Paid]]) -> 0
A71: 2024-05-30 | B71: =IF(ROW()=2,#REF!,INDIRECT("Q"&ROW()-1)) -> 0 | C71: =($B$1/365)*Table2[[#This Row],[Beg Bal]] -> 0 | F71: =IF(AND(Table2[[#This Row],[Date]]>($B$11-1),DAY(Table2[[#This Row],[Date]])=DAY($B$11)),Table2[[#This Row],[Current Pmt Amt]],"") ->  | G71: =SUM(Table2[[#This Row],[Beg Bal]:[Paid]]) -> 0 | H71: =IF(AND(Table2[[#This Row],[Date]]>$D$11,Table2[[#This Row],[Date]]<$E$11),$C$11*-1,IF(AND(Table2[[#This Row],[Date]]>$D$12,Table2[[#This Row],[Date]]<$E$12),$C$12*-1,IF(AND(Table2[[#This Row],[Date]]>$D$13,Table2[[#This Row],[Date]]<$E$13),$C$13*-1,""))) ->  | I71: =SUM($F$26:Table2[[#This Row],[Paid]]) -> 0
A72: 2024-05-31 | B72: =IF(ROW()=2,#REF!,INDIRECT("Q"&ROW()-1)) -> 0 | C72: =($B$1/365)*Table2[[#This Row],[Beg Bal]] -> 0 | F72: =IF(AND(Table2[[#This Row],[Date]]>($B$11-1),DAY(Table2[[#This Row],[Date]])=DAY($B$11)),Table2[[#This Row],[Current Pmt Amt]],"") ->  | G72: =SUM(Table2[[#This Row],[Beg Bal]:[Paid]]) -> 0 | H72: =IF(AND(Table2[[#This Row],[Date]]>$D$11,Table2[[#This Row],[Date]]<$E$11),$C$11*-1,IF(AND(Table2[[#This Row],[Date]]>$D$12,Table2[[#This Row],[Date]]<$E$12),$C$12*-1,IF(AND(Table2[[#This Row],[Date]]>$D$13,Table2[[#This Row],[Date]]<$E$13),$C$13*-1,""))) ->  | I72: =SUM($F$26:Table2[[#This Row],[Paid]]) -> 0
A73: 2024-06-01 | B73: =IF(ROW()=2,#REF!,INDIRECT("Q"&ROW()-1)) -> 0 | C73: =($B$1/365)*Table2[[#This Row],[Beg Bal]] -> 0 | F73: =IF(AND(Table2[[#This Row],[Date]]>($B$11-1),DAY(Table2[[#This Row],[Date]])=DAY($B$11)),Table2[[#This Row],[Current Pmt Amt]],"") ->  | G73: =SUM(Table2[[#This Row],[Beg Bal]:[Paid]]) -> 0 | H73: =IF(AND(Table2[[#This Row],[Date]]>$D$11,Table2[[#This Row],[Date]]<$E$11),$C$11*-1,IF(AND(Table2[[#This Row],[Date]]>$D$12,Table2[[#This Row],[Date]]<$E$12),$C$12*-1,IF(AND(Table2[[#This Row],[Date]]>$D$13,Table2[[#This Row],[Date]]<$E$13),$C$13*-1,""))) ->  | I73: =SUM($F$26:Table2[[#This Row],[Paid]]) -> 0
A74: 2024-06-02 | B74: =IF(ROW()=2,#REF!,INDIRECT("Q"&ROW()-1)) -> 0 | C74: =($B$1/365)*Table2[[#This Row],[Beg Bal]] -> 0 | F74: =IF(AND(Table2[[#This Row],[Date]]>($B$11-1),DAY(Table2[[#This Row],[Date]])=DAY($B$11)),Table2[[#This Row],[Current Pmt Amt]],"") ->  | G74: =SUM(Table2[[#This Row],[Beg Bal]:[Paid]]) -> 0 | H74: =IF(AND(Table2[[#This Row],[Date]]>$D$11,Table2[[#This Row],[Date]]<$E$11),$C$11*-1,IF(AND(Table2[[#This Row],[Date]]>$D$12,Table2[[#This Row],[Date]]<$E$12),$C$12*-1,IF(AND(Table2[[#This Row],[Date]]>$D$13,Table2[[#This Row],[Date]]<$E$13),$C$13*-1,""))) ->  | I74: =SUM($F$26:Table2[[#This Row],[Paid]]) -> 0
A75: 2024-06-03 | B75: =IF(ROW()=2,#REF!,INDIRECT("Q"&ROW()-1)) -> 0 | C75: =($B$1/365)*Table2[[#This Row],[Beg Bal]] -> 0 | F75: =IF(AND(Table2[[#This Row],[Date]]>($B$11-1),DAY(Table2[[#This Row],[Date]])=DAY($B$11)),Table2[[#This Row],[Current Pmt Amt]],"") ->  | G75: =SUM(Table2[[#This Row],[Beg Bal]:[Paid]]) -> 0 | H75: =IF(AND(Table2[[#This Row],[Date]]>$D$11,Table2[[#This Row],[Date]]<$E$11),$C$11*-1,IF(AND(Table2[[#This Row],[Date]]>$D$12,Table2[[#This Row],[Date]]<$E$12),$C$12*-1,IF(AND(Table2[[#This Row],[Date]]>$D$13,Table2[[#This Row],[Date]]<$E$13),$C$13*-1,""))) ->  | I75: =SUM($F$26:Table2[[#This Row],[Paid]]) -> 0
A76: 2024-06-04 | B76: =IF(ROW()=2,#REF!,INDIRECT("Q"&ROW()-1)) -> 0 | C76: =($B$1/365)*Table2[[#This Row],[Beg Bal]] -> 0 | F76: =IF(AND(Table2[[#This Row],[Date]]>($B$11-1),DAY(Table2[[#This Row],[Date]])=DAY($B$11)),Table2[[#This Row],[Current Pmt Amt]],"") ->  | G76: =SUM(Table2[[#This Row],[Beg Bal]:[Paid]]) -> 0 | H76: =IF(AND(Table2[[#This Row],[Date]]>$D$11,Table2[[#This Row],[Date]]<$E$11),$C$11*-1,IF(AND(Table2[[#This Row],[Date]]>$D$12,Table2[[#This Row],[Date]]<$E$12),$C$12*-1,IF(AND(Table2[[#This Row],[Date]]>$D$13,Table2[[#This Row],[Date]]<$E$13),$C$13*-1,""))) ->  | I76: =SUM($F$26:Table2[[#This Row],[Paid]]) -> 0
A77: 2024-06-05 | B77: =IF(ROW()=2,#REF!,INDIRECT("Q"&ROW()-1)) -> 0 | C77: =($B$1/365)*Table2[[#This Row],[Beg Bal]] -> 0 | F77: =IF(AND(Table2[[#This Row],[Date]]>($B$11-1),DAY(Table2[[#This Row],[Date]])=DAY($B$11)),Table2[[#This Row],[Current Pmt Amt]],"") ->  | G77: =SUM(Table2[[#This Row],[Beg Bal]:[Paid]]) -> 0 | H77: =IF(AND(Table2[[#This Row],[Date]]>$D$11,Table2[[#This Row],[Date]]<$E$11),$C$11*-1,IF(AND(Table2[[#This Row],[Date]]>$D$12,Table2[[#This Row],[Date]]<$E$12),$C$12*-1,IF(AND(Table2[[#This Row],[Date]]>$D$13,Table2[[#This Row],[Date]]<$E$13),$C$13*-1,""))) ->  | I77: =SUM($F$26:Table2[[#This Row],[Paid]]) -> 0
A78: 2024-06-06 | B78: =IF(ROW()=2,#REF!,INDIRECT("Q"&ROW()-1)) -> 0 | C78: =($B$1/365)*Table2[[#This Row],[Beg Bal]] -> 0 | F78: =IF(AND(Table2[[#This Row],[Date]]>($B$11-1),DAY(Table2[[#This Row],[Date]])=DAY($B$11)),Table2[[#This Row],[Current Pmt Amt]],"") ->  | G78: =SUM(Table2[[#This Row],[Beg Bal]:[Paid]]) -> 0 | H78: =IF(AND(Table2[[#This Row],[Date]]>$D$11,Table2[[#This Row],[Date]]<$E$11),$C$11*-1,IF(AND(Table2[[#This Row],[Date]]>$D$12,Table2[[#This Row],[Date]]<$E$12),$C$12*-1,IF(AND(Table2[[#This Row],[Date]]>$D$13,Table2[[#This Row],[Date]]<$E$13),$C$13*-1,""))) ->  | I78: =SUM($F$26:Table2[[#This Row],[Paid]]) -> 0
A79: 2024-06-07 | B79: =IF(ROW()=2,#REF!,INDIRECT("Q"&ROW()-1)) -> 0 | C79: =($B$1/365)*Table2[[#This Row],[Beg Bal]] -> 0 | F79: =IF(AND(Table2[[#This Row],[Date]]>($B$11-1),DAY(Table2[[#This Row],[Date]])=DAY($B$11)),Table2[[#This Row],[Current Pmt Amt]],"") ->  | G79: =SUM(Table2[[#This Row],[Beg Bal]:[Paid]]) -> 0 | H79: =IF(AND(Table2[[#This Row],[Date]]>$D$11,Table2[[#This Row],[Date]]<$E$11),$C$11*-1,IF(AND(Table2[[#This Row],[Date]]>$D$12,Table2[[#This Row],[Date]]<$E$12),$C$12*-1,IF(AND(Table2[[#This Row],[Date]]>$D$13,Table2[[#This Row],[Date]]<$E$13),$C$13*-1,""))) ->  | I79: =SUM($F$26:Table2[[#This Row],[Paid]]) -> 0
A80: 2024-06-08 | B80: =IF(ROW()=2,#REF!,INDIRECT("Q"&ROW()-1)) -> 0 | C80: =($B$1/365)*Table2[[#This Row],[Beg Bal]] -> 0 | F80: =IF(AND(Table2[[#This Row],[Date]]>($B$11-1),DAY(Table2[[#This Row],[Date]])=DAY($B$11)),Table2[[#This Row],[Current Pmt Amt]],"") ->  | G80: =SUM(Table2[[#This Row],[Beg Bal]:[Paid]]) -> 0 | H80: =IF(AND(Table2[[#This Row],[Date]]>$D$11,Table2[[#This Row],[Date]]<$E$11),$C$11*-1,IF(AND(Table2[[#This Row],[Date]]>$D$12,Table2[[#This Row],[Date]]<$E$12),$C$12*-1,IF(AND(Table2[[#This Row],[Date]]>$D$13,Table2[[#This Row],[Date]]<$E$13),$C$13*-1,""))) ->  | I80: =SUM($F$26:Table2[[#This Row],[Paid]]) -> 0
A81: 2024-06-09 | B81: =IF(ROW()=2,#REF!,INDIRECT("Q"&ROW()-1)) -> 0 | C81: =($B$1/365)*Table2[[#This Row],[Beg Bal]] -> 0 | F81: =IF(AND(Table2[[#This Row],[Date]]>($B$11-1),DAY(Table2[[#This Row],[Date]])=DAY($B$11)),Table2[[#This Row],[Current Pmt Amt]],"") ->  | G81: =SUM(Table2[[#This Row],[Beg Bal]:[Paid]]) -> 0 | H81: =IF(AND(Table2[[#This Row],[Date]]>$D$11,Table2[[#This Row],[Date]]<$E$11),$C$11*-1,IF(AND(Table2[[#This Row],[Date]]>$D$12,Table2[[#This Row],[Date]]<$E$12),$C$12*-1,IF(AND(Table2[[#This Row],[Date]]>$D$13,Table2[[#This Row],[Date]]<$E$13),$C$13*-1,""))) ->  | I81: =SUM($F$26:Table2[[#This Row],[Paid]]) -> 0
A82: 2024-06-10 | B82: =IF(ROW()=2,#REF!,INDIRECT("Q"&ROW()-1)) -> 0 | C82: =($B$1/365)*Table2[[#This Row],[Beg Bal]] -> 0 | F82: =IF(AND(Table2[[#This Row],[Date]]>($B$11-1),DAY(Table2[[#This Row],[Date]])=DAY($B$11)),Table2[[#This Row],[Current Pmt Amt]],"") ->  | G82: =SUM(Table2[[#This Row],[Beg Bal]:[Paid]]) -> 0 | H82: =IF(AND(Table2[[#This Row],[Date]]>$D$11,Table2[[#This Row],[Date]]<$E$11),$C$11*-1,IF(AND(Table2[[#This Row],[Date]]>$D$12,Table2[[#This Row],[Date]]<$E$12),$C$12*-1,IF(AND(Table2[[#This Row],[Date]]>$D$13,Table2[[#This Row],[Date]]<$E$13),$C$13*-1,""))) ->  | I82: =SUM($F$26:Table2[[#This Row],[Paid]]) -> 0
A83: 2024-06-11 | B83: =IF(ROW()=2,#REF!,INDIRECT("Q"&ROW()-1)) -> 0 | C83: =($B$1/365)*Table2[[#This Row],[Beg Bal]] -> 0 | F83: =IF(AND(Table2[[#This Row],[Date]]>($B$11-1),DAY(Table2[[#This Row],[Date]])=DAY($B$11)),Table2[[#This Row],[Current Pmt Amt]],"") ->  | G83: =SUM(Table2[[#This Row],[Beg Bal]:[Paid]]) -> 0 | H83: =IF(AND(Table2[[#This Row],[Date]]>$D$11,Table2[[#This Row],[Date]]<$E$11),$C$11*-1,IF(AND(Table2[[#This Row],[Date]]>$D$12,Table2[[#This Row],[Date]]<$E$12),$C$12*-1,IF(AND(Table2[[#This Row],[Date]]>$D$13,Table2[[#This Row],[Date]]<$E$13),$C$13*-1,""))) ->  | I83: =SUM($F$26:Table2[[#This Row],[Paid]]) -> 0
A84: 2024-06-12 | B84: =IF(ROW()=2,#REF!,INDIRECT("Q"&ROW()-1)) -> 0 | C84: =($B$1/365)*Table2[[#This Row],[Beg Bal]] -> 0 | F84: =IF(AND(Table2[[#This Row],[Date]]>($B$11-1),DAY(Table2[[#This Row],[Date]])=DAY($B$11)),Table2[[#This Row],[Current Pmt Amt]],"") ->  | G84: =SUM(Table2[[#This Row],[Beg Bal]:[Paid]]) -> 0 | H84: =IF(AND(Table2[[#This Row],[Date]]>$D$11,Table2[[#This Row],[Date]]<$E$11),$C$11*-1,IF(AND(Table2[[#This Row],[Date]]>$D$12,Table2[[#This Row],[Date]]<$E$12),$C$12*-1,IF(AND(Table2[[#This Row],[Date]]>$D$13,Table2[[#This Row],[Date]]<$E$13),$C$13*-1,""))) ->  | I84: =SUM($F$26:Table2[[#This Row],[Paid]]) -> 0
A85: 2024-06-13 | B85: =IF(ROW()=2,#REF!,INDIRECT("Q"&ROW()-1)) -> 0 | C85: =($B$1/365)*Table2[[#This Row],[Beg Bal]] -> 0 | F85: =IF(AND(Table2[[#This Row],[Date]]>($B$11-1),DAY(Table2[[#This Row],[Date]])=DAY($B$11)),Table2[[#This Row],[Current Pmt Amt]],"") ->  | G85: =SUM(Table2[[#This Row],[Beg Bal]:[Paid]]) -> 0 | H85: =IF(AND(Table2[[#This Row],[Date]]>$D$11,Table2[[#This Row],[Date]]<$E$11),$C$11*-1,IF(AND(Table2[[#This Row],[Date]]>$D$12,Table2[[#This Row],[Date]]<$E$12),$C$12*-1,IF(AND(Table2[[#This Row],[Date]]>$D$13,Table2[[#This Row],[Date]]<$E$13),$C$13*-1,""))) ->  | I85: =SUM($F$26:Table2[[#This Row],[Paid]]) -> 0
A86: 2024-06-14 | B86: =IF(ROW()=2,#REF!,INDIRECT("Q"&ROW()-1)) -> 0 | C86: =($B$1/365)*Table2[[#This Row],[Beg Bal]] -> 0 | F86: =IF(AND(Table2[[#This Row],[Date]]>($B$11-1),DAY(Table2[[#This Row],[Date]])=DAY($B$11)),Table2[[#This Row],[Current Pmt Amt]],"") ->  | G86: =SUM(Table2[[#This Row],[Beg Bal]:[Paid]]) -> 0 | H86: =IF(AND(Table2[[#This Row],[Date]]>$D$11,Table2[[#This Row],[Date]]<$E$11),$C$11*-1,IF(AND(Table2[[#This Row],[Date]]>$D$12,Table2[[#This Row],[Date]]<$E$12),$C$12*-1,IF(AND(Table2[[#This Row],[Date]]>$D$13,Table2[[#This Row],[Date]]<$E$13),$C$13*-1,""))) ->  | I86: =SUM($F$26:Table2[[#This Row],[Paid]]) -> 0
A87: 2024-06-15 | B87: =IF(ROW()=2,#REF!,INDIRECT("Q"&ROW()-1)) -> 0 | C87: =($B$1/365)*Table2[[#This Row],[Beg Bal]] -> 0 | F87: =IF(AND(Table2[[#This Row],[Date]]>($B$11-1),DAY(Table2[[#This Row],[Date]])=DAY($B$11)),Table2[[#This Row],[Current Pmt Amt]],"") ->  | G87: =SUM(Table2[[#This Row],[Beg Bal]:[Paid]]) -> 0 | H87: =IF(AND(Table2[[#This Row],[Date]]>$D$11,Table2[[#This Row],[Date]]<$E$11),$C$11*-1,IF(AND(Table2[[#This Row],[Date]]>$D$12,Table2[[#This Row],[Date]]<$E$12),$C$12*-1,IF(AND(Table2[[#This Row],[Date]]>$D$13,Table2[[#This Row],[Date]]<$E$13),$C$13*-1,""))) ->  | I87: =SUM($F$26:Table2[[#This Row],[Paid]]) -> 0
A88: 2024-06-16 | B88: =IF(ROW()=2,#REF!,INDIRECT("Q"&ROW()-1)) -> 0 | C88: =($B$1/365)*Table2[[#This Row],[Beg Bal]] -> 0 | F88: =IF(AND(Table2[[#This Row],[Date]]>($B$11-1),DAY(Table2[[#This Row],[Date]])=DAY($B$11)),Table2[[#This Row],[Current Pmt Amt]],"") ->  | G88: =SUM(Table2[[#This Row],[Beg Bal]:[Paid]]) -> 0 | H88: =IF(AND(Table2[[#This Row],[Date]]>$D$11,Table2[[#This Row],[Date]]<$E$11),$C$11*-1,IF(AND(Table2[[#This Row],[Date]]>$D$12,Table2[[#This Row],[Date]]<$E$12),$C$12*-1,IF(AND(Table2[[#This Row],[Date]]>$D$13,Table2[[#This Row],[Date]]<$E$13),$C$13*-1,""))) ->  | I88: =SUM($F$26:Table2[[#This Row],[Paid]]) -> 0
A89: 2024-06-17 | B89: =IF(ROW()=2,#REF!,INDIRECT("Q"&ROW()-1)) -> 0 | C89: =($B$1/365)*Table2[[#This Row],[Beg Bal]] -> 0 | F89: =IF(AND(Table2[[#This Row],[Date]]>($B$11-1),DAY(Table2[[#This Row],[Date]])=DAY($B$11)),Table2[[#This Row],[Current Pmt Amt]],"") ->  | G89: =SUM(Table2[[#This Row],[Beg Bal]:[Paid]]) -> 0 | H89: =IF(AND(Table2[[#This Row],[Date]]>$D$11,Table2[[#This Row],[Date]]<$E$11),$C$11*-1,IF(AND(Table2[[#This Row],[Date]]>$D$12,Table2[[#This Row],[Date]]<$E$12),$C$12*-1,IF(AND(Table2[[#This Row],[Date]]>$D$13,Table2[[#This Row],[Date]]<$E$13),$C$13*-1,""))) ->  | I89: =SUM($F$26:Table2[[#This Row],[Paid]]) -> 0
A90: 2024-06-18 | B90: =IF(ROW()=2,#REF!,INDIRECT("Q"&ROW()-1)) -> 0 | C90: =($B$1/365)*Table2[[#This Row],[Beg Bal]] -> 0 | F90: =IF(AND(Table2[[#This Row],[Date]]>($B$11-1),DAY(Table2[[#This Row],[Date]])=DAY($B$11)),Table2[[#This Row],[Current Pmt Amt]],"") ->  | G90: =SUM(Table2[[#This Row],[Beg Bal]:[Paid]]) -> 0 | H90: =IF(AND(Table2[[#This Row],[Date]]>$D$11,Table2[[#This Row],[Date]]<$E$11),$C$11*-1,IF(AND(Table2[[#This Row],[Date]]>$D$12,Table2[[#This Row],[Date]]<$E$12),$C$12*-1,IF(AND(Table2[[#This Row],[Date]]>$D$13,Table2[[#This Row],[Date]]<$E$13),$C$13*-1,""))) ->  | I90: =SUM($F$26:Table2[[#This Row],[Paid]]) -> 0
A91: 2024-06-19 | B91: =IF(ROW()=2,#REF!,INDIRECT("Q"&ROW()-1)) -> 0 | C91: =($B$1/365)*Table2[[#This Row],[Beg Bal]] -> 0 | F91: =IF(AND(Table2[[#This Row],[Date]]>($B$11-1),DAY(Table2[[#This Row],[Date]])=DAY($B$11)),Table2[[#This Row],[Current Pmt Amt]],"") ->  | G91: =SUM(Table2[[#This Row],[Beg Bal]:[Paid]]) -> 0 | H91: =IF(AND(Table2[[#This Row],[Date]]>$D$11,Table2[[#This Row],[Date]]<$E$11),$C$11*-1,IF(AND(Table2[[#This Row],[Date]]>$D$12,Table2[[#This Row],[Date]]<$E$12),$C$12*-1,IF(AND(Table2[[#This Row],[Date]]>$D$13,Table2[[#This Row],[Date]]<$E$13),$C$13*-1,""))) ->  | I91: =SUM($F$26:Table2[[#This Row],[Paid]]) -> 0
A92: 2024-06-20 | B92: =IF(ROW()=2,#REF!,INDIRECT("Q"&ROW()-1)) -> 0 | C92: =($B$1/365)*Table2[[#This Row],[Beg Bal]] -> 0 | F92: =IF(AND(Table2[[#This Row],[Date]]>($B$11-1),DAY(Table2[[#This Row],[Date]])=DAY($B$11)),Table2[[#This Row],[Current Pmt Amt]],"") ->  | G92: =SUM(Table2[[#This Row],[Beg Bal]:[Paid]]) -> 0 | H92: =IF(AND(Table2[[#This Row],[Date]]>$D$11,Table2[[#This Row],[Date]]<$E$11),$C$11*-1,IF(AND(Table2[[#This Row],[Date]]>$D$12,Table2[[#This Row],[Date]]<$E$12),$C$12*-1,IF(AND(Table2[[#This Row],[Date]]>$D$13,Table2[[#This Row],[Date]]<$E$13),$C$13*-1,""))) ->  | I92: =SUM($F$26:Table2[[#This Row],[Paid]]) -> 0
A93: 2024-06-21 | B93: =IF(ROW()=2,#REF!,INDIRECT("Q"&ROW()-1)) -> 0 | C93: =($B$1/365)*Table2[[#This Row],[Beg Bal]] -> 0 | F93: =IF(AND(Table2[[#This Row],[Date]]>($B$11-1),DAY(Table2[[#This Row],[Date]])=DAY($B$11)),Table2[[#This Row],[Current Pmt Amt]],"") ->  | G93: =SUM(Table2[[#This Row],[Beg Bal]:[Paid]]) -> 0 | H93: =IF(AND(Table2[[#This Row],[Date]]>$D$11,Table2[[#This Row],[Date]]<$E$11),$C$11*-1,IF(AND(Table2[[#This Row],[Date]]>$D$12,Table2[[#This Row],[Date]]<$E$12),$C$12*-1,IF(AND(Table2[[#This Row],[Date]]>$D$13,Table2[[#This Row],[Date]]<$E$13),$C$13*-1,""))) ->  | I93: =SUM($F$26:Table2[[#This Row],[Paid]]) -> 0
A94: 2024-06-22 | B94: =IF(ROW()=2,#REF!,INDIRECT("Q"&ROW()-1)) -> 0 | C94: =($B$1/365)*Table2[[#This Row],[Beg Bal]] -> 0 | F94: =IF(AND(Table2[[#This Row],[Date]]>($B$11-1),DAY(Table2[[#This Row],[Date]])=DAY($B$11)),Table2[[#This Row],[Current Pmt Amt]],"") ->  | G94: =SUM(Table2[[#This Row],[Beg Bal]:[Paid]]) -> 0 | H94: =IF(AND(Table2[[#This Row],[Date]]>$D$11,Table2[[#This Row],[Date]]<$E$11),$C$11*-1,IF(AND(Table2[[#This Row],[Date]]>$D$12,Table2[[#This Row],[Date]]<$E$12),$C$12*-1,IF(AND(Table2[[#This Row],[Date]]>$D$13,Table2[[#This Row],[Date]]<$E$13),$C$13*-1,""))) ->  | I94: =SUM($F$26:Table2[[#This Row],[Paid]]) -> 0
A95: 2024-06-23 | B95: =IF(ROW()=2,#REF!,INDIRECT("Q"&ROW()-1)) -> 0 | C95: =($B$1/365)*Table2[[#This Row],[Beg Bal]] -> 0 | F95: =IF(AND(Table2[[#This Row],[Date]]>($B$11-1),DAY(Table2[[#This Row],[Date]])=DAY($B$11)),Table2[[#This Row],[Current Pmt Amt]],"") ->  | G95: =SUM(Table2[[#This Row],[Beg Bal]:[Paid]]) -> 0 | H95: =IF(AND(Table2[[#This Row],[Date]]>$D$11,Table2[[#This Row],[Date]]<$E$11),$C$11*-1,IF(AND(Table2[[#This Row],[Date]]>$D$12,Table2[[#This Row],[Date]]<$E$12),$C$12*-1,IF(AND(Table2[[#This Row],[Date]]>$D$13,Table2[[#This Row],[Date]]<$E$13),$C$13*-1,""))) ->  | I95: =SUM($F$26:Table2[[#This Row],[Paid]]) -> 0
A96: 2024-06-24 | B96: =IF(ROW()=2,#REF!,INDIRECT("Q"&ROW()-1)) -> 0 | C96: =($B$1/365)*Table2[[#This Row],[Beg Bal]] -> 0 | F96: =IF(AND(Table2[[#This Row],[Date]]>($B$11-1),DAY(Table2[[#This Row],[Date]])=DAY($B$11)),Table2[[#This Row],[Current Pmt Amt]],"") ->  | G96: =SUM(Table2[[#This Row],[Beg Bal]:[Paid]]) -> 0 | H96: =IF(AND(Table2[[#This Row],[Date]]>$D$11,Table2[[#This Row],[Date]]<$E$11),$C$11*-1,IF(AND(Table2[[#This Row],[Date]]>$D$12,Table2[[#This Row],[Date]]<$E$12),$C$12*-1,IF(AND(Table2[[#This Row],[Date]]>$D$13,Table2[[#This Row],[Date]]<$E$13),$C$13*-1,""))) ->  | I96: =SUM($F$26:Table2[[#This Row],[Paid]]) -> 0
A97: 2024-06-25 | B97: =IF(ROW()=2,#REF!,INDIRECT("Q"&ROW()-1)) -> 0 | C97: =($B$1/365)*Table2[[#This Row],[Beg Bal]] -> 0 | F97: =IF(AND(Table2[[#This Row],[Date]]>($B$11-1),DAY(Table2[[#This Row],[Date]])=DAY($B$11)),Table2[[#This Row],[Current Pmt Amt]],"") ->  | G97: =SUM(Table2[[#This Row],[Beg Bal]:[Paid]]) -> 0 | H97: =IF(AND(Table2[[#This Row],[Date]]>$D$11,Table2[[#This Row],[Date]]<$E$11),$C$11*-1,IF(AND(Table2[[#This Row],[Date]]>$D$12,Table2[[#This Row],[Date]]<$E$12),$C$12*-1,IF(AND(Table2[[#This Row],[Date]]>$D$13,Table2[[#This Row],[Date]]<$E$13),$C$13*-1,""))) ->  | I97: =SUM($F$26:Table2[[#This Row],[Paid]]) -> 0
A98: 2024-06-26 | B98: =IF(ROW()=2,#REF!,INDIRECT("Q"&ROW()-1)) -> 0 | C98: =($B$1/365)*Table2[[#This Row],[Beg Bal]] -> 0 | F98: =IF(AND(Table2[[#This Row],[Date]]>($B$11-1),DAY(Table2[[#This Row],[Date]])=DAY($B$11)),Table2[[#This Row],[Current Pmt Amt]],"") ->  | G98: =SUM(Table2[[#This Row],[Beg Bal]:[Paid]]) -> 0 | H98: =IF(AND(Table2[[#This Row],[Date]]>$D$11,Table2[[#This Row],[Date]]<$E$11),$C$11*-1,IF(AND(Table2[[#This Row],[Date]]>$D$12,Table2[[#This Row],[Date]]<$E$12),$C$12*-1,IF(AND(Table2[[#This Row],[Date]]>$D$13,Table2[[#This Row],[Date]]<$E$13),$C$13*-1,""))) ->  | I98: =SUM($F$26:Table2[[#This Row],[Paid]]) -> 0
A99: 2024-06-27 | B99: =IF(ROW()=2,#REF!,INDIRECT("Q"&ROW()-1)) -> 0 | C99: =($B$1/365)*Table2[[#This Row],[Beg Bal]] -> 0 | F99: =IF(AND(Table2[[#This Row],[Date]]>($B$11-1),DAY(Table2[[#This Row],[Date]])=DAY($B$11)),Table2[[#This Row],[Current Pmt Amt]],"") ->  | G99: =SUM(Table2[[#This Row],[Beg Bal]:[Paid]]) -> 0 | H99: =IF(AND(Table2[[#This Row],[Date]]>$D$11,Table2[[#This Row],[Date]]<$E$11),$C$11*-1,IF(AND(Table2[[#This Row],[Date]]>$D$12,Table2[[#This Row],[Date]]<$E$12),$C$12*-1,IF(AND(Table2[[#This Row],[Date]]>$D$13,Table2[[#This Row],[Date]]<$E$13),$C$13*-1,""))) ->  | I99: =SUM($F$26:Table2[[#This Row],[Paid]]) -> 0
A100: 2024-06-28 | B100: =IF(ROW()=2,#REF!,INDIRECT("Q"&ROW()-1)) -> 0 | C100: =($B$1/365)*Table2[[#This Row],[Beg Bal]] -> 0 | F100: =IF(AND(Table2[[#This Row],[Date]]>($B$11-1),DAY(Table2[[#This Row],[Date]])=DAY($B$11)),Table2[[#This Row],[Current Pmt Amt]],"") ->  | G100: =SUM(Table2[[#This Row],[Beg Bal]:[Paid]]) -> 0 | H100: =IF(AND(Table2[[#This Row],[Date]]>$D$11,Table2[[#This Row],[Date]]<$E$11),$C$11*-1,IF(AND(Table2[[#This Row],[Date]]>$D$12,Table2[[#This Row],[Date]]<$E$12),$C$12*-1,IF(AND(Table2[[#This Row],[Date]]>$D$13,Table2[[#This Row],[Date]]<$E$13),$C$13*-1,""))) ->  | I100: =SUM($F$26:Table2[[#This Row],[Paid]]) -> 0
A101: 2024-06-29 | B101: =IF(ROW()=2,#REF!,INDIRECT("Q"&ROW()-1)) -> 0 | C101: =($B$1/365)*Table2[[#This Row],[Beg Bal]] -> 0 | F101: =IF(AND(Table2[[#This Row],[Date]]>($B$11-1),DAY(Table2[[#This Row],[Date]])=DAY($B$11)),Table2[[#This Row],[Current Pmt Amt]],"") ->  | G101: =SUM(Table2[[#This Row],[Beg Bal]:[Paid]]) -> 0 | H101: =IF(AND(Table2[[#This Row],[Date]]>$D$11,Table2[[#This Row],[Date]]<$E$11),$C$11*-1,IF(AND(Table2[[#This Row],[Date]]>$D$12,Table2[[#This Row],[Date]]<$E$12),$C$12*-1,IF(AND(Table2[[#This Row],[Date]]>$D$13,Table2[[#This Row],[Date]]<$E$13),$C$13*-1,""))) ->  | I101: =SUM($F$26:Table2[[#This Row],[Paid]]) -> 0
A102: 2024-06-30 | B102: =IF(ROW()=2,#REF!,INDIRECT("Q"&ROW()-1)) -> 0 | C102: =($B$1/365)*Table2[[#This Row],[Beg Bal]] -> 0 | F102: =IF(AND(Table2[[#This Row],[Date]]>($B$11-1),DAY(Table2[[#This Row],[Date]])=DAY($B$11)),Table2[[#This Row],[Current Pmt Amt]],"") ->  | G102: =SUM(Table2[[#This Row],[Beg Bal]:[Paid]]) -> 0 | H102: =IF(AND(Table2[[#This Row],[Date]]>$D$11,Table2[[#This Row],[Date]]<$E$11),$C$11*-1,IF(AND(Table2[[#This Row],[Date]]>$D$12,Table2[[#This Row],[Date]]<$E$12),$C$12*-1,IF(AND(Table2[[#This Row],[Date]]>$D$13,Table2[[#This Row],[Date]]<$E$13),$C$13*-1,""))) ->  | I102: =SUM($F$26:Table2[[#This Row],[Paid]]) -> 0
A103: 2024-07-01 | B103: =IF(ROW()=2,#REF!,INDIRECT("Q"&ROW()-1)) -> 0 | C103: =($B$1/365)*Table2[[#This Row],[Beg Bal]] -> 0 | F103: =IF(AND(Table2[[#This Row],[Date]]>($B$11-1),DAY(Table2[[#This Row],[Date]])=DAY($B$11)),Table2[[#This Row],[Current Pmt Amt]],"") ->  | G103: =SUM(Table2[[#This Row],[Beg Bal]:[Paid]]) -> 0 | H103: =IF(AND(Table2[[#This Row],[Date]]>$D$11,Table2[[#This Row],[Date]]<$E$11),$C$11*-1,IF(AND(Table2[[#This Row],[Date]]>$D$12,Table2[[#This Row],[Date]]<$E$12),$C$12*-1,IF(AND(Table2[[#This Row],[Date]]>$D$13,Table2[[#This Row],[Date]]<$E$13),$C$13*-1,""))) ->  | I103: =SUM($F$26:Table2[[#This Row],[Paid]]) -> 0
A104: 2024-07-02 | B104: =IF(ROW()=2,#REF!,INDIRECT("Q"&ROW()-1)) -> 0 | C104: =($B$1/365)*Table2[[#This Row],[Beg Bal]] -> 0 | F104: =IF(AND(Table2[[#This Row],[Date]]>($B$11-1),DAY(Table2[[#This Row],[Date]])=DAY($B$11)),Table2[[#This Row],[Current Pmt Amt]],"") ->  | G104: =SUM(Table2[[#This Row],[Beg Bal]:[Paid]]) -> 0 | H104: =IF(AND(Table2[[#This Row],[Date]]>$D$11,Table2[[#This Row],[Date]]<$E$11),$C$11*-1,IF(AND(Table2[[#This Row],[Date]]>$D$12,Table2[[#This Row],[Date]]<$E$12),$C$12*-1,IF(AND(Table2[[#This Row],[Date]]>$D$13,Table2[[#This Row],[Date]]<$E$13),$C$13*-1,""))) ->  | I104: =SUM($F$26:Table2[[#This Row],[Paid]]) -> 0
A105: 2024-07-03 | B105: =IF(ROW()=2,#REF!,INDIRECT("Q"&ROW()-1)) -> 0 | C105: =($B$1/365)*Table2[[#This Row],[Beg Bal]] -> 0 | F105: =IF(AND(Table2[[#This Row],[Date]]>($B$11-1),DAY(Table2[[#This Row],[Date]])=DAY($B$11)),Table2[[#This Row],[Current Pmt Amt]],"") ->  | G105: =SUM(Table2[[#This Row],[Beg Bal]:[Paid]]) -> 0 | H105: =IF(AND(Table2[[#This Row],[Date]]>$D$11,Table2[[#This Row],[Date]]<$E$11),$C$11*-1,IF(AND(Table2[[#This Row],[Date]]>$D$12,Table2[[#This Row],[Date]]<$E$12),$C$12*-1,IF(AND(Table2[[#This Row],[Date]]>$D$13,Table2[[#This Row],[Date]]<$E$13),$C$13*-1,""))) ->  | I105: =SUM($F$26:Table2[[#This Row],[Paid]]) -> 0
A106: 2024-07-04 | B106: =IF(ROW()=2,#REF!,INDIRECT("Q"&ROW()-1)) -> 0 | C106: =($B$1/365)*Table2[[#This Row],[Beg Bal]] -> 0 | F106: =IF(AND(Table2[[#This Row],[Date]]>($B$11-1),DAY(Table2[[#This Row],[Date]])=DAY($B$11)),Table2[[#This Row],[Current Pmt Amt]],"") ->  | G106: =SUM(Table2[[#This Row],[Beg Bal]:[Paid]]) -> 0 | H106: =IF(AND(Table2[[#This Row],[Date]]>$D$11,Table2[[#This Row],[Date]]<$E$11),$C$11*-1,IF(AND(Table2[[#This Row],[Date]]>$D$12,Table2[[#This Row],[Date]]<$E$12),$C$12*-1,IF(AND(Table2[[#This Row],[Date]]>$D$13,Table2[[#This Row],[Date]]<$E$13),$C$13*-1,""))) ->  | I106: =SUM($F$26:Table2[[#This Row],[Paid]]) -> 0
A107: 2024-07-05 | B107: =IF(ROW()=2,#REF!,INDIRECT("Q"&ROW()-1)) -> 0 | C107: =($B$1/365)*Table2[[#This Row],[Beg Bal]] -> 0 | F107: =IF(AND(Table2[[#This Row],[Date]]>($B$11-1),DAY(Table2[[#This Row],[Date]])=DAY($B$11)),Table2[[#This Row],[Current Pmt Amt]],"") ->  | G107: =SUM(Table2[[#This Row],[Beg Bal]:[Paid]]) -> 0 | H107: =IF(AND(Table2[[#This Row],[Date]]>$D$11,Table2[[#This Row],[Date]]<$E$11),$C$11*-1,IF(AND(Table2[[#This Row],[Date]]>$D$12,Table2[[#This Row],[Date]]<$E$12),$C$12*-1,IF(AND(Table2[[#This Row],[Date]]>$D$13,Table2[[#This Row],[Date]]<$E$13),$C$13*-1,""))) ->  | I107: =SUM($F$26:Table2[[#This Row],[Paid]]) -> 0
A108: 2024-07-06 | B108: =IF(ROW()=2,#REF!,INDIRECT("Q"&ROW()-1)) -> 0 | C108: =($B$1/365)*Table2[[#This Row],[Beg Bal]] -> 0 | F108: =IF(AND(Table2[[#This Row],[Date]]>($B$11-1),DAY(Table2[[#This Row],[Date]])=DAY($B$11)),Table2[[#This Row],[Current Pmt Amt]],"") ->  | G108: =SUM(Table2[[#This Row],[Beg Bal]:[Paid]]) -> 0 | H108: =IF(AND(Table2[[#This Row],[Date]]>$D$11,Table2[[#This Row],[Date]]<$E$11),$C$11*-1,IF(AND(Table2[[#This Row],[Date]]>$D$12,Table2[[#This Row],[Date]]<$E$12),$C$12*-1,IF(AND(Table2[[#This Row],[Date]]>$D$13,Table2[[#This Row],[Date]]<$E$13),$C$13*-1,""))) ->  | I108: =SUM($F$26:Table2[[#This Row],[Paid]]) -> 0
A109: 2024-07-07 | B109: =IF(ROW()=2,#REF!,INDIRECT("Q"&ROW()-1)) -> 0 | C109: =($B$1/365)*Table2[[#This Row],[Beg Bal]] -> 0 | F109: =IF(AND(Table2[[#This Row],[Date]]>($B$11-1),DAY(Table2[[#This Row],[Date]])=DAY($B$11)),Table2[[#This Row],[Current Pmt Amt]],"") ->  | G109: =SUM(Table2[[#This Row],[Beg Bal]:[Paid]]) -> 0 | H109: =IF(AND(Table2[[#This Row],[Date]]>$D$11,Table2[[#This Row],[Date]]<$E$11),$C$11*-1,IF(AND(Table2[[#This Row],[Date]]>$D$12,Table2[[#This Row],[Date]]<$E$12),$C$12*-1,IF(AND(Table2[[#This Row],[Date]]>$D$13,Table2[[#This Row],[Date]]<$E$13),$C$13*-1,""))) ->  | I109: =SUM($F$26:Table2[[#This Row],[Paid]]) -> 0
A110: 2024-07-08 | B110: =IF(ROW()=2,#REF!,INDIRECT("Q"&ROW()-1)) -> 0 | C110: =($B$1/365)*Table2[[#This Row],[Beg Bal]] -> 0 | F110: =IF(AND(Table2[[#This Row],[Date]]>($B$11-1),DAY(Table2[[#This Row],[Date]])=DAY($B$11)),Table2[[#This Row],[Current Pmt Amt]],"") ->  | G110: =SUM(Table2[[#This Row],[Beg Bal]:[Paid]]) -> 0 | H110: =IF(AND(Table2[[#This Row],[Date]]>$D$11,Table2[[#This Row],[Date]]<$E$11),$C$11*-1,IF(AND(Table2[[#This Row],[Date]]>$D$12,Table2[[#This Row],[Date]]<$E$12),$C$12*-1,IF(AND(Table2[[#This Row],[Date]]>$D$13,Table2[[#This Row],[Date]]<$E$13),$C$13*-1,""))) ->  | I110: =SUM($F$26:Table2[[#This Row],[Paid]]) -> 0
A111: 2024-07-09 | B111: =IF(ROW()=2,#REF!,INDIRECT("Q"&ROW()-1)) -> 0 | C111: =($B$1/365)*Table2[[#This Row],[Beg Bal]] -> 0 | F111: =IF(AND(Table2[[#This Row],[Date]]>($B$11-1),DAY(Table2[[#This Row],[Date]])=DAY($B$11)),Table2[[#This Row],[Current Pmt Amt]],"") ->  | G111: =SUM(Table2[[#This Row],[Beg Bal]:[Paid]]) -> 0 | H111: =IF(AND(Table2[[#This Row],[Date]]>$D$11,Table2[[#This Row],[Date]]<$E$11),$C$11*-1,IF(AND(Table2[[#This Row],[Date]]>$D$12,Table2[[#This Row],[Date]]<$E$12),$C$12*-1,IF(AND(Table2[[#This Row],[Date]]>$D$13,Table2[[#This Row],[Date]]<$E$13),$C$13*-1,""))) ->  | I111: =SUM($F$26:Table2[[#This Row],[Paid]]) -> 0
A112: 2024-07-10 | B112: =IF(ROW()=2,#REF!,INDIRECT("Q"&ROW()-1)) -> 0 | C112: =($B$1/365)*Table2[[#This Row],[Beg Bal]] -> 0 | F112: =IF(AND(Table2[[#This Row],[Date]]>($B$11-1),DAY(Table2[[#This Row],[Date]])=DAY($B$11)),Table2[[#This Row],[Current Pmt Amt]],"") ->  | G112: =SUM(Table2[[#This Row],[Beg Bal]:[Paid]]) -> 0 | H112: =IF(AND(Table2[[#This Row],[Date]]>$D$11,Table2[[#This Row],[Date]]<$E$11),$C$11*-1,IF(AND(Table2[[#This Row],[Date]]>$D$12,Table2[[#This Row],[Date]]<$E$12),$C$12*-1,IF(AND(Table2[[#This Row],[Date]]>$D$13,Table2[[#This Row],[Date]]<$E$13),$C$13*-1,""))) ->  | I112: =SUM($F$26:Table2[[#This Row],[Paid]]) -> 0
A113: 2024-07-11 | B113: =IF(ROW()=2,#REF!,INDIRECT("Q"&ROW()-1)) -> 0 | C113: =($B$1/365)*Table2[[#This Row],[Beg Bal]] -> 0 | F113: =IF(AND(Table2[[#This Row],[Date]]>($B$11-1),DAY(Table2[[#This Row],[Date]])=DAY($B$11)),Table2[[#This Row],[Current Pmt Amt]],"") ->  | G113: =SUM(Table2[[#This Row],[Beg Bal]:[Paid]]) -> 0 | H113: =IF(AND(Table2[[#This Row],[Date]]>$D$11,Table2[[#This Row],[Date]]<$E$11),$C$11*-1,IF(AND(Table2[[#This Row],[Date]]>$D$12,Table2[[#This Row],[Date]]<$E$12),$C$12*-1,IF(AND(Table2[[#This Row],[Date]]>$D$13,Table2[[#This Row],[Date]]<$E$13),$C$13*-1,""))) ->  | I113: =SUM($F$26:Table2[[#This Row],[Paid]]) -> 0
A114: 2024-07-12 | B114: =IF(ROW()=2,#REF!,INDIRECT("Q"&ROW()-1)) -> 0 | C114: =($B$1/365)*Table2[[#This Row],[Beg Bal]] -> 0 | F114: =IF(AND(Table2[[#This Row],[Date]]>($B$11-1),DAY(Table2[[#This Row],[Date]])=DAY($B$11)),Table2[[#This Row],[Current Pmt Amt]],"") ->  | G114: =SUM(Table2[[#This Row],[Beg Bal]:[Paid]]) -> 0 | H114: =IF(AND(Table2[[#This Row],[Date]]>$D$11,Table2[[#This Row],[Date]]<$E$11),$C$11*-1,IF(AND(Table2[[#This Row],[Date]]>$D$12,Table2[[#This Row],[Date]]<$E$12),$C$12*-1,IF(AND(Table2[[#This Row],[Date]]>$D$13,Table2[[#This Row],[Date]]<$E$13),$C$13*-1,""))) ->  | I114: =SUM($F$26:Table2[[#This Row],[Paid]]) -> 0
A115: 2024-07-13 | B115: =IF(ROW()=2,#REF!,INDIRECT("Q"&ROW()-1)) -> 0 | C115: =($B$1/365)*Table2[[#This Row],[Beg Bal]] -> 0 | F115: =IF(AND(Table2[[#This Row],[Date]]>($B$11-1),DAY(Table2[[#This Row],[Date]])=DAY($B$11)),Table2[[#This Row],[Current Pmt Amt]],"") ->  | G115: =SUM(Table2[[#This Row],[Beg Bal]:[Paid]]) -> 0 | H115: =IF(AND(Table2[[#This Row],[Date]]>$D$11,Table2[[#This Row],[Date]]<$E$11),$C$11*-1,IF(AND(Table2[[#This Row],[Date]]>$D$12,Table2[[#This Row],[Date]]<$E$12),$C$12*-1,IF(AND(Table2[[#This Row],[Date]]>$D$13,Table2[[#This Row],[Date]]<$E$13),$C$13*-1,""))) ->  | I115: =SUM($F$26:Table2[[#This Row],[Paid]]) -> 0
A116: 2024-07-14 | B116: =IF(ROW()=2,#REF!,INDIRECT("Q"&ROW()-1)) -> 0 | C116: =($B$1/365)*Table2[[#This Row],[Beg Bal]] -> 0 | F116: =IF(AND(Table2[[#This Row],[Date]]>($B$11-1),DAY(Table2[[#This Row],[Date]])=DAY($B$11)),Table2[[#This Row],[Current Pmt Amt]],"") ->  | G116: =SUM(Table2[[#This Row],[Beg Bal]:[Paid]]) -> 0 | H116: =IF(AND(Table2[[#This Row],[Date]]>$D$11,Table2[[#This Row],[Date]]<$E$11),$C$11*-1,IF(AND(Table2[[#This Row],[Date]]>$D$12,Table2[[#This Row],[Date]]<$E$12),$C$12*-1,IF(AND(Table2[[#This Row],[Date]]>$D$13,Table2[[#This Row],[Date]]<$E$13),$C$13*-1,""))) ->  | I116: =SUM($F$26:Table2[[#This Row],[Paid]]) -> 0
A117: 2024-07-15 | B117: =IF(ROW()=2,#REF!,INDIRECT("Q"&ROW()-1)) -> 0 | C117: =($B$1/365)*Table2[[#This Row],[Beg Bal]] -> 0 | F117: =IF(AND(Table2[[#This Row],[Date]]>($B$11-1),DAY(Table2[[#This Row],[Date]])=DAY($B$11)),Table2[[#This Row],[Current Pmt Amt]],"") ->  | G117: =SUM(Table2[[#This Row],[Beg Bal]:[Paid]]) -> 0 | H117: =IF(AND(Table2[[#This Row],[Date]]>$D$11,Table2[[#This Row],[Date]]<$E$11),$C$11*-1,IF(AND(Table2[[#This Row],[Date]]>$D$12,Table2[[#This Row],[Date]]<$E$12),$C$12*-1,IF(AND(Table2[[#This Row],[Date]]>$D$13,Table2[[#This Row],[Date]]<$E$13),$C$13*-1,""))) ->  | I117: =SUM($F$26:Table2[[#This Row],[Paid]]) -> 0
A118: 2024-07-16 | B118: =IF(ROW()=2,#REF!,INDIRECT("Q"&ROW()-1)) -> 0 | C118: =($B$1/365)*Table2[[#This Row],[Beg Bal]] -> 0 | F118: =IF(AND(Table2[[#This Row],[Date]]>($B$11-1),DAY(Table2[[#This Row],[Date]])=DAY($B$11)),Table2[[#This Row],[Current Pmt Amt]],"") ->  | G118: =SUM(Table2[[#This Row],[Beg Bal]:[Paid]]) -> 0 | H118: =IF(AND(Table2[[#This Row],[Date]]>$D$11,Table2[[#This Row],[Date]]<$E$11),$C$11*-1,IF(AND(Table2[[#This Row],[Date]]>$D$12,Table2[[#This Row],[Date]]<$E$12),$C$12*-1,IF(AND(Table2[[#This Row],[Date]]>$D$13,Table2[[#This Row],[Date]]<$E$13),$C$13*-1,""))) ->  | I118: =SUM($F$26:Table2[[#This Row],[Paid]]) -> 0
A119: 2024-07-17 | B119: =IF(ROW()=2,#REF!,INDIRECT("Q"&ROW()-1)) -> 0 | C119: =($B$1/365)*Table2[[#This Row],[Beg Bal]] -> 0 | F119: =IF(AND(Table2[[#This Row],[Date]]>($B$11-1),DAY(Table2[[#This Row],[Date]])=DAY($B$11)),Table2[[#This Row],[Current Pmt Amt]],"") ->  | G119: =SUM(Table2[[#This Row],[Beg Bal]:[Paid]]) -> 0 | H119: =IF(AND(Table2[[#This Row],[Date]]>$D$11,Table2[[#This Row],[Date]]<$E$11),$C$11*-1,IF(AND(Table2[[#This Row],[Date]]>$D$12,Table2[[#This Row],[Date]]<$E$12),$C$12*-1,IF(AND(Table2[[#This Row],[Date]]>$D$13,Table2[[#This Row],[Date]]<$E$13),$C$13*-1,""))) ->  | I119: =SUM($F$26:Table2[[#This Row],[Paid]]) -> 0
A120: 2024-07-18 | B120: =IF(ROW()=2,#REF!,INDIRECT("Q"&ROW()-1)) -> 0 | C120: =($B$1/365)*Table2[[#This Row],[Beg Bal]] -> 0 | F120: =IF(AND(Table2[[#This Row],[Date]]>($B$11-1),DAY(Table2[[#This Row],[Date]])=DAY($B$11)),Table2[[#This Row],[Current Pmt Amt]],"") ->  | G120: =SUM(Table2[[#This Row],[Beg Bal]:[Paid]]) -> 0 | H120: =IF(AND(Table2[[#This Row],[Date]]>$D$11,Table2[[#This Row],[Date]]<$E$11),$C$11*-1,IF(AND(Table2[[#This Row],[Date]]>$D$12,Table2[[#This Row],[Date]]<$E$12),$C$12*-1,IF(AND(Table2[[#This Row],[Date]]>$D$13,Table2[[#This Row],[Date]]<$E$13),$C$13*-1,""))) ->  | I120: =SUM($F$26:Table2[[#This Row],[Paid]]) -> 0
A121: 2024-07-19 | B121: =IF(ROW()=2,#REF!,INDIRECT("Q"&ROW()-1)) -> 0 | C121: =($B$1/365)*Table2[[#This Row],[Beg Bal]] -> 0 | F121: =IF(AND(Table2[[#This Row],[Date]]>($B$11-1),DAY(Table2[[#This Row],[Date]])=DAY($B$11)),Table2[[#This Row],[Current Pmt Amt]],"") ->  | G121: =SUM(Table2[[#This Row],[Beg Bal]:[Paid]]) -> 0 | H121: =IF(AND(Table2[[#This Row],[Date]]>$D$11,Table2[[#This Row],[Date]]<$E$11),$C$11*-1,IF(AND(Table2[[#This Row],[Date]]>$D$12,Table2[[#This Row],[Date]]<$E$12),$C$12*-1,IF(AND(Table2[[#This Row],[Date]]>$D$13,Table2[[#This Row],[Date]]<$E$13),$C$13*-1,""))) ->  | I121: =SUM($F$26:Table2[[#This Row],[Paid]]) -> 0
A122: 2024-07-20 | B122: =IF(ROW()=2,#REF!,INDIRECT("Q"&ROW()-1)) -> 0 | C122: =($B$1/365)*Table2[[#This Row],[Beg Bal]] -> 0 | F122: =IF(AND(Table2[[#This Row],[Date]]>($B$11-1),DAY(Table2[[#This Row],[Date]])=DAY($B$11)),Table2[[#This Row],[Current Pmt Amt]],"") ->  | G122: =SUM(Table2[[#This Row],[Beg Bal]:[Paid]]) -> 0 | H122: =IF(AND(Table2[[#This Row],[Date]]>$D$11,Table2[[#This Row],[Date]]<$E$11),$C$11*-1,IF(AND(Table2[[#This Row],[Date]]>$D$12,Table2[[#This Row],[Date]]<$E$12),$C$12*-1,IF(AND(Table2[[#This Row],[Date]]>$D$13,Table2[[#This Row],[Date]]<$E$13),$C$13*-1,""))) ->  | I122: =SUM($F$26:Table2[[#This Row],[Paid]]) -> 0
A123: 2024-07-21 | B123: =IF(ROW()=2,#REF!,INDIRECT("Q"&ROW()-1)) -> 0 | C123: =($B$1/365)*Table2[[#This Row],[Beg Bal]] -> 0 | F123: =IF(AND(Table2[[#This Row],[Date]]>($B$11-1),DAY(Table2[[#This Row],[Date]])=DAY($B$11)),Table2[[#This Row],[Current Pmt Amt]],"") ->  | G123: =SUM(Table2[[#This Row],[Beg Bal]:[Paid]]) -> 0 | H123: =IF(AND(Table2[[#This Row],[Date]]>$D$11,Table2[[#This Row],[Date]]<$E$11),$C$11*-1,IF(AND(Table2[[#This Row],[Date]]>$D$12,Table2[[#This Row],[Date]]<$E$12),$C$12*-1,IF(AND(Table2[[#This Row],[Date]]>$D$13,Table2[[#This Row],[Date]]<$E$13),$C$13*-1,""))) ->  | I123: =SUM($F$26:Table2[[#This Row],[Paid]]) -> 0
A124: 2024-07-22 | B124: =IF(ROW()=2,#REF!,INDIRECT("Q"&ROW()-1)) -> 0 | C124: =($B$1/365)*Table2[[#This Row],[Beg Bal]] -> 0 | F124: =IF(AND(Table2[[#This Row],[Date]]>($B$11-1),DAY(Table2[[#This Row],[Date]])=DAY($B$11)),Table2[[#This Row],[Current Pmt Amt]],"") ->  | G124: =SUM(Table2[[#This Row],[Beg Bal]:[Paid]]) -> 0 | H124: =IF(AND(Table2[[#This Row],[Date]]>$D$11,Table2[[#This Row],[Date]]<$E$11),$C$11*-1,IF(AND(Table2[[#This Row],[Date]]>$D$12,Table2[[#This Row],[Date]]<$E$12),$C$12*-1,IF(AND(Table2[[#This Row],[Date]]>$D$13,Table2[[#This Row],[Date]]<$E$13),$C$13*-1,""))) ->  | I124: =SUM($F$26:Table2[[#This Row],[Paid]]) -> 0
A125: 2024-07-23 | B125: =IF(ROW()=2,#REF!,INDIRECT("Q"&ROW()-1)) -> 0 | C125: =($B$1/365)*Table2[[#This Row],[Beg Bal]] -> 0 | F125: =IF(AND(Table2[[#This Row],[Date]]>($B$11-1),DAY(Table2[[#This Row],[Date]])=DAY($B$11)),Table2[[#This Row],[Current Pmt Amt]],"") ->  | G125: =SUM(Table2[[#This Row],[Beg Bal]:[Paid]]) -> 0 | H125: =IF(AND(Table2[[#This Row],[Date]]>$D$11,Table2[[#This Row],[Date]]<$E$11),$C$11*-1,IF(AND(Table2[[#This Row],[Date]]>$D$12,Table2[[#This Row],[Date]]<$E$12),$C$12*-1,IF(AND(Table2[[#This Row],[Date]]>$D$13,Table2[[#This Row],[Date]]<$E$13),$C$13*-1,""))) ->  | I125: =SUM($F$26:Table2[[#This Row],[Paid]]) -> 0
A126: 2024-07-24 | B126: =IF(ROW()=2,#REF!,INDIRECT("Q"&ROW()-1)) -> 0 | C126: =($B$1/365)*Table2[[#This Row],[Beg Bal]] -> 0 | F126: =IF(AND(Table2[[#This Row],[Date]]>($B$11-1),DAY(Table2[[#This Row],[Date]])=DAY($B$11)),Table2[[#This Row],[Current Pmt Amt]],"") ->  | G126: =SUM(Table2[[#This Row],[Beg Bal]:[Paid]]) -> 0 | H126: =IF(AND(Table2[[#This Row],[Date]]>$D$11,Table2[[#This Row],[Date]]<$E$11),$C$11*-1,IF(AND(Table2[[#This Row],[Date]]>$D$12,Table2[[#This Row],[Date]]<$E$12),$C$12*-1,IF(AND(Table2[[#This Row],[Date]]>$D$13,Table2[[#This Row],[Date]]<$E$13),$C$13*-1,""))) ->  | I126: =SUM($F$26:Table2[[#This Row],[Paid]]) -> 0
A127: 2024-07-25 | B127: =IF(ROW()=2,#REF!,INDIRECT("Q"&ROW()-1)) -> 0 | C127: =($B$1/365)*Table2[[#This Row],[Beg Bal]] -> 0 | F127: =IF(AND(Table2[[#This Row],[Date]]>($B$11-1),DAY(Table2[[#This Row],[Date]])=DAY($B$11)),Table2[[#This Row],[Current Pmt Amt]],"") ->  | G127: =SUM(Table2[[#This Row],[Beg Bal]:[Paid]]) -> 0 | H127: =IF(AND(Table2[[#This Row],[Date]]>$D$11,Table2[[#This Row],[Date]]<$E$11),$C$11*-1,IF(AND(Table2[[#This Row],[Date]]>$D$12,Table2[[#This Row],[Date]]<$E$12),$C$12*-1,IF(AND(Table2[[#This Row],[Date]]>$D$13,Table2[[#This Row],[Date]]<$E$13),$C$13*-1,""))) ->  | I127: =SUM($F$26:Table2[[#This Row],[Paid]]) -> 0
A128: 2024-07-26 | B128: =IF(ROW()=2,#REF!,INDIRECT("Q"&ROW()-1)) -> 0 | C128: =($B$1/365)*Table2[[#This Row],[Beg Bal]] -> 0 | F128: =IF(AND(Table2[[#This Row],[Date]]>($B$11-1),DAY(Table2[[#This Row],[Date]])=DAY($B$11)),Table2[[#This Row],[Current Pmt Amt]],"") ->  | G128: =SUM(Table2[[#This Row],[Beg Bal]:[Paid]]) -> 0 | H128: =IF(AND(Table2[[#This Row],[Date]]>$D$11,Table2[[#This Row],[Date]]<$E$11),$C$11*-1,IF(AND(Table2[[#This Row],[Date]]>$D$12,Table2[[#This Row],[Date]]<$E$12),$C$12*-1,IF(AND(Table2[[#This Row],[Date]]>$D$13,Table2[[#This Row],[Date]]<$E$13),$C$13*-1,""))) ->  | I128: =SUM($F$26:Table2[[#This Row],[Paid]]) -> 0
A129: 2024-07-27 | B129: =IF(ROW()=2,#REF!,INDIRECT("Q"&ROW()-1)) -> 0 | C129: =($B$1/365)*Table2[[#This Row],[Beg Bal]] -> 0 | F129: =IF(AND(Table2[[#This Row],[Date]]>($B$11-1),DAY(Table2[[#This Row],[Date]])=DAY($B$11)),Table2[[#This Row],[Current Pmt Amt]],"") ->  | G129: =SUM(Table2[[#This Row],[Beg Bal]:[Paid]]) -> 0 | H129: =IF(AND(Table2[[#This Row],[Date]]>$D$11,Table2[[#This Row],[Date]]<$E$11),$C$11*-1,IF(AND(Table2[[#This Row],[Date]]>$D$12,Table2[[#This Row],[Date]]<$E$12),$C$12*-1,IF(AND(Table2[[#This Row],[Date]]>$D$13,Table2[[#This Row],[Date]]<$E$13),$C$13*-1,""))) ->  | I129: =SUM($F$26:Table2[[#This Row],[Paid]]) -> 0
A130: 2024-07-28 | B130: =IF(ROW()=2,#REF!,INDIRECT("Q"&ROW()-1)) -> 0 | C130: =($B$1/365)*Table2[[#This Row],[Beg Bal]] -> 0 | F130: =IF(AND(Table2[[#This Row],[Date]]>($B$11-1),DAY(Table2[[#This Row],[Date]])=DAY($B$11)),Table2[[#This Row],[Current Pmt Amt]],"") ->  | G130: =SUM(Table2[[#This Row],[Beg Bal]:[Paid]]) -> 0 | H130: =IF(AND(Table2[[#This Row],[Date]]>$D$11,Table2[[#This Row],[Date]]<$E$11),$C$11*-1,IF(AND(Table2[[#This Row],[Date]]>$D$12,Table2[[#This Row],[Date]]<$E$12),$C$12*-1,IF(AND(Table2[[#This Row],[Date]]>$D$13,Table2[[#This Row],[Date]]<$E$13),$C$13*-1,""))) ->  | I130: =SUM($F$26:Table2[[#This Row],[Paid]]) -> 0
A131: 2024-07-29 | B131: =IF(ROW()=2,#REF!,INDIRECT("Q"&ROW()-1)) -> 0 | C131: =($B$1/365)*Table2[[#This Row],[Beg Bal]] -> 0 | F131: =IF(AND(Table2[[#This Row],[Date]]>($B$11-1),DAY(Table2[[#This Row],[Date]])=DAY($B$11)),Table2[[#This Row],[Current Pmt Amt]],"") ->  | G131: =SUM(Table2[[#This Row],[Beg Bal]:[Paid]]) -> 0 | H131: =IF(AND(Table2[[#This Row],[Date]]>$D$11,Table2[[#This Row],[Date]]<$E$11),$C$11*-1,IF(AND(Table2[[#This Row],[Date]]>$D$12,Table2[[#This Row],[Date]]<$E$12),$C$12*-1,IF(AND(Table2[[#This Row],[Date]]>$D$13,Table2[[#This Row],[Date]]<$E$13),$C$13*-1,""))) ->  | I131: =SUM($F$26:Table2[[#This Row],[Paid]]) -> 0
A132: 2024-07-30 | B132: =IF(ROW()=2,#REF!,INDIRECT("Q"&ROW()-1)) -> 0 | C132: =($B$1/365)*Table2[[#This Row],[Beg Bal]] -> 0 | F132: =IF(AND(Table2[[#This Row],[Date]]>($B$11-1),DAY(Table2[[#This Row],[Date]])=DAY($B$11)),Table2[[#This Row],[Current Pmt Amt]],"") ->  | G132: =SUM(Table2[[#This Row],[Beg Bal]:[Paid]]) -> 0 | H132: =IF(AND(Table2[[#This Row],[Date]]>$D$11,Table2[[#This Row],[Date]]<$E$11),$C$11*-1,IF(AND(Table2[[#This Row],[Date]]>$D$12,Table2[[#This Row],[Date]]<$E$12),$C$12*-1,IF(AND(Table2[[#This Row],[Date]]>$D$13,Table2[[#This Row],[Date]]<$E$13),$C$13*-1,""))) ->  | I132: =SUM($F$26:Table2[[#This Row],[Paid]]) -> 0
A133: 2024-07-31 | B133: =IF(ROW()=2,#REF!,INDIRECT("Q"&ROW()-1)) -> 0 | C133: =($B$1/365)*Table2[[#This Row],[Beg Bal]] -> 0 | F133: =IF(AND(Table2[[#This Row],[Date]]>($B$11-1),DAY(Table2[[#This Row],[Date]])=DAY($B$11)),Table2[[#This Row],[Current Pmt Amt]],"") ->  | G133: =SUM(Table2[[#This Row],[Beg Bal]:[Paid]]) -> 0 | H133: =IF(AND(Table2[[#This Row],[Date]]>$D$11,Table2[[#This Row],[Date]]<$E$11),$C$11*-1,IF(AND(Table2[[#This Row],[Date]]>$D$12,Table2[[#This Row],[Date]]<$E$12),$C$12*-1,IF(AND(Table2[[#This Row],[Date]]>$D$13,Table2[[#This Row],[Date]]<$E$13),$C$13*-1,""))) ->  | I133: =SUM($F$26:Table2[[#This Row],[Paid]]) -> 0
A134: 2024-08-01 | B134: =IF(ROW()=2,#REF!,INDIRECT("Q"&ROW()-1)) -> 0 | C134: =($B$1/365)*Table2[[#This Row],[Beg Bal]] -> 0 | F134: =IF(AND(Table2[[#This Row],[Date]]>($B$11-1),DAY(Table2[[#This Row],[Date]])=DAY($B$11)),Table2[[#This Row],[Current Pmt Amt]],"") ->  | G134: =SUM(Table2[[#This Row],[Beg Bal]:[Paid]]) -> 0 | H134: =IF(AND(Table2[[#This Row],[Date]]>$D$11,Table2[[#This Row],[Date]]<$E$11),$C$11*-1,IF(AND(Table2[[#This Row],[Date]]>$D$12,Table2[[#This Row],[Date]]<$E$12),$C$12*-1,IF(AND(Table2[[#This Row],[Date]]>$D$13,Table2[[#This Row],[Date]]<$E$13),$C$13*-1,""))) ->  | I134: =SUM($F$26:Table2[[#This Row],[Paid]]) -> 0
A135: 2024-08-02 | B135: =IF(ROW()=2,#REF!,INDIRECT("Q"&ROW()-1)) -> 0 | C135: =($B$1/365)*Table2[[#This Row],[Beg Bal]] -> 0 | F135: =IF(AND(Table2[[#This Row],[Date]]>($B$11-1),DAY(Table2[[#This Row],[Date]])=DAY($B$11)),Table2[[#This Row],[Current Pmt Amt]],"") ->  | G135: =SUM(Table2[[#This Row],[Beg Bal]:[Paid]]) -> 0 | H135: =IF(AND(Table2[[#This Row],[Date]]>$D$11,Table2[[#This Row],[Date]]<$E$11),$C$11*-1,IF(AND(Table2[[#This Row],[Date]]>$D$12,Table2[[#This Row],[Date]]<$E$12),$C$12*-1,IF(AND(Table2[[#This Row],[Date]]>$D$13,Table2[[#This Row],[Date]]<$E$13),$C$13*-1,""))) ->  | I135: =SUM($F$26:Table2[[#This Row],[Paid]]) -> 0
A136: 2024-08-03 | B136: =IF(ROW()=2,#REF!,INDIRECT("Q"&ROW()-1)) -> 0 | C136: =($B$1/365)*Table2[[#This Row],[Beg Bal]] -> 0 | F136: =IF(AND(Table2[[#This Row],[Date]]>($B$11-1),DAY(Table2[[#This Row],[Date]])=DAY($B$11)),Table2[[#This Row],[Current Pmt Amt]],"") ->  | G136: =SUM(Table2[[#This Row],[Beg Bal]:[Paid]]) -> 0 | H136: =IF(AND(Table2[[#This Row],[Date]]>$D$11,Table2[[#This Row],[Date]]<$E$11),$C$11*-1,IF(AND(Table2[[#This Row],[Date]]>$D$12,Table2[[#This Row],[Date]]<$E$12),$C$12*-1,IF(AND(Table2[[#This Row],[Date]]>$D$13,Table2[[#This Row],[Date]]<$E$13),$C$13*-1,""))) ->  | I136: =SUM($F$26:Table2[[#This Row],[Paid]]) -> 0
A137: 2024-08-04 | B137: =IF(ROW()=2,#REF!,INDIRECT("Q"&ROW()-1)) -> 0 | C137: =($B$1/365)*Table2[[#This Row],[Beg Bal]] -> 0 | F137: =IF(AND(Table2[[#This Row],[Date]]>($B$11-1),DAY(Table2[[#This Row],[Date]])=DAY($B$11)),Table2[[#This Row],[Current Pmt Amt]],"") ->  | G137: =SUM(Table2[[#This Row],[Beg Bal]:[Paid]]) -> 0 | H137: =IF(AND(Table2[[#This Row],[Date]]>$D$11,Table2[[#This Row],[Date]]<$E$11),$C$11*-1,IF(AND(Table2[[#This Row],[Date]]>$D$12,Table2[[#This Row],[Date]]<$E$12),$C$12*-1,IF(AND(Table2[[#This Row],[Date]]>$D$13,Table2[[#This Row],[Date]]<$E$13),$C$13*-1,""))) ->  | I137: =SUM($F$26:Table2[[#This Row],[Paid]]) -> 0
A138: 2024-08-05 | B138: =IF(ROW()=2,#REF!,INDIRECT("Q"&ROW()-1)) -> 0 | C138: =($B$1/365)*Table2[[#This Row],[Beg Bal]] -> 0 | F138: =IF(AND(Table2[[#This Row],[Date]]>($B$11-1),DAY(Table2[[#This Row],[Date]])=DAY($B$11)),Table2[[#This Row],[Current Pmt Amt]],"") ->  | G138: =SUM(Table2[[#This Row],[Beg Bal]:[Paid]]) -> 0 | H138: =IF(AND(Table2[[#This Row],[Date]]>$D$11,Table2[[#This Row],[Date]]<$E$11),$C$11*-1,IF(AND(Table2[[#This Row],[Date]]>$D$12,Table2[[#This Row],[Date]]<$E$12),$C$12*-1,IF(AND(Table2[[#This Row],[Date]]>$D$13,Table2[[#This Row],[Date]]<$E$13),$C$13*-1,""))) ->  | I138: =SUM($F$26:Table2[[#This Row],[Paid]]) -> 0
A139: 2024-08-06 | B139: =IF(ROW()=2,#REF!,INDIRECT("Q"&ROW()-1)) -> 0 | C139: =($B$1/365)*Table2[[#This Row],[Beg Bal]] -> 0 | F139: =IF(AND(Table2[[#This Row],[Date]]>($B$11-1),DAY(Table2[[#This Row],[Date]])=DAY($B$11)),Table2[[#This Row],[Current Pmt Amt]],"") ->  | G139: =SUM(Table2[[#This Row],[Beg Bal]:[Paid]]) -> 0 | H139: =IF(AND(Table2[[#This Row],[Date]]>$D$11,Table2[[#This Row],[Date]]<$E$11),$C$11*-1,IF(AND(Table2[[#This Row],[Date]]>$D$12,Table2[[#This Row],[Date]]<$E$12),$C$12*-1,IF(AND(Table2[[#This Row],[Date]]>$D$13,Table2[[#This Row],[Date]]<$E$13),$C$13*-1,""))) ->  | I139: =SUM($F$26:Table2[[#This Row],[Paid]]) -> 0
A140: 2024-08-07 | B140: =IF(ROW()=2,#REF!,INDIRECT("Q"&ROW()-1)) -> 0 | C140: =($B$1/365)*Table2[[#This Row],[Beg Bal]] -> 0 | F140: =IF(AND(Table2[[#This Row],[Date]]>($B$11-1),DAY(Table2[[#This Row],[Date]])=DAY($B$11)),Table2[[#This Row],[Current Pmt Amt]],"") ->  | G140: =SUM(Table2[[#This Row],[Beg Bal]:[Paid]]) -> 0 | H140: =IF(AND(Table2[[#This Row],[Date]]>$D$11,Table2[[#This Row],[Date]]<$E$11),$C$11*-1,IF(AND(Table2[[#This Row],[Date]]>$D$12,Table2[[#This Row],[Date]]<$E$12),$C$12*-1,IF(AND(Table2[[#This Row],[Date]]>$D$13,Table2[[#This Row],[Date]]<$E$13),$C$13*-1,""))) ->  | I140: =SUM($F$26:Table2[[#This Row],[Paid]]) -> 0
A141: 2024-08-08 | B141: =IF(ROW()=2,#REF!,INDIRECT("Q"&ROW()-1)) -> 0 | C141: =($B$1/365)*Table2[[#This Row],[Beg Bal]] -> 0 | F141: =IF(AND(Table2[[#This Row],[Date]]>($B$11-1),DAY(Table2[[#This Row],[Date]])=DAY($B$11)),Table2[[#This Row],[Current Pmt Amt]],"") ->  | G141: =SUM(Table2[[#This Row],[Beg Bal]:[Paid]]) -> 0 | H141: =IF(AND(Table2[[#This Row],[Date]]>$D$11,Table2[[#This Row],[Date]]<$E$11),$C$11*-1,IF(AND(Table2[[#This Row],[Date]]>$D$12,Table2[[#This Row],[Date]]<$E$12),$C$12*-1,IF(AND(Table2[[#This Row],[Date]]>$D$13,Table2[[#This Row],[Date]]<$E$13),$C$13*-1,""))) ->  | I141: =SUM($F$26:Table2[[#This Row],[Paid]]) -> 0
A142: 2024-08-09 | B142: =IF(ROW()=2,#REF!,INDIRECT("Q"&ROW()-1)) -> 0 | C142: =($B$1/365)*Table2[[#This Row],[Beg Bal]] -> 0 | F142: =IF(AND(Table2[[#This Row],[Date]]>($B$11-1),DAY(Table2[[#This Row],[Date]])=DAY($B$11)),Table2[[#This Row],[Current Pmt Amt]],"") ->  | G142: =SUM(Table2[[#This Row],[Beg Bal]:[Paid]]) -> 0 | H142: =IF(AND(Table2[[#This Row],[Date]]>$D$11,Table2[[#This Row],[Date]]<$E$11),$C$11*-1,IF(AND(Table2[[#This Row],[Date]]>$D$12,Table2[[#This Row],[Date]]<$E$12),$C$12*-1,IF(AND(Table2[[#This Row],[Date]]>$D$13,Table2[[#This Row],[Date]]<$E$13),$C$13*-1,""))) ->  | I142: =SUM($F$26:Table2[[#This Row],[Paid]]) -> 0
A143: 2024-08-10 | B143: =IF(ROW()=2,#REF!,INDIRECT("Q"&ROW()-1)) -> 0 | C143: =($B$1/365)*Table2[[#This Row],[Beg Bal]] -> 0 | F143: =IF(AND(Table2[[#This Row],[Date]]>($B$11-1),DAY(Table2[[#This Row],[Date]])=DAY($B$11)),Table2[[#This Row],[Current Pmt Amt]],"") ->  | G143: =SUM(Table2[[#This Row],[Beg Bal]:[Paid]]) -> 0 | H143: =IF(AND(Table2[[#This Row],[Date]]>$D$11,Table2[[#This Row],[Date]]<$E$11),$C$11*-1,IF(AND(Table2[[#This Row],[Date]]>$D$12,Table2[[#This Row],[Date]]<$E$12),$C$12*-1,IF(AND(Table2[[#This Row],[Date]]>$D$13,Table2[[#This Row],[Date]]<$E$13),$C$13*-1,""))) ->  | I143: =SUM($F$26:Table2[[#This Row],[Paid]]) -> 0
A144: 2024-08-11 | B144: =IF(ROW()=2,#REF!,INDIRECT("Q"&ROW()-1)) -> 0 | C144: =($B$1/365)*Table2[[#This Row],[Beg Bal]] -> 0 | F144: =IF(AND(Table2[[#This Row],[Date]]>($B$11-1),DAY(Table2[[#This Row],[Date]])=DAY($B$11)),Table2[[#This Row],[Current Pmt Amt]],"") ->  | G144: =SUM(Table2[[#This Row],[Beg Bal]:[Paid]]) -> 0 | H144: =IF(AND(Table2[[#This Row],[Date]]>$D$11,Table2[[#This Row],[Date]]<$E$11),$C$11*-1,IF(AND(Table2[[#This Row],[Date]]>$D$12,Table2[[#This Row],[Date]]<$E$12),$C$12*-1,IF(AND(Table2[[#This Row],[Date]]>$D$13,Table2[[#This Row],[Date]]<$E$13),$C$13*-1,""))) ->  | I144: =SUM($F$26:Table2[[#This Row],[Paid]]) -> 0
A145: 2024-08-12 | B145: =IF(ROW()=2,#REF!,INDIRECT("Q"&ROW()-1)) -> 0 | C145: =($B$1/365)*Table2[[#This Row],[Beg Bal]] -> 0 | F145: =IF(AND(Table2[[#This Row],[Date]]>($B$11-1),DAY(Table2[[#This Row],[Date]])=DAY($B$11)),Table2[[#This Row],[Current Pmt Amt]],"") ->  | G145: =SUM(Table2[[#This Row],[Beg Bal]:[Paid]]) -> 0 | H145: =IF(AND(Table2[[#This Row],[Date]]>$D$11,Table2[[#This Row],[Date]]<$E$11),$C$11*-1,IF(AND(Table2[[#This Row],[Date]]>$D$12,Table2[[#This Row],[Date]]<$E$12),$C$12*-1,IF(AND(Table2[[#This Row],[Date]]>$D$13,Table2[[#This Row],[Date]]<$E$13),$C$13*-1,""))) ->  | I145: =SUM($F$26:Table2[[#This Row],[Paid]]) -> 0
A146: 2024-08-13 | B146: =IF(ROW()=2,#REF!,INDIRECT("Q"&ROW()-1)) -> 0 | C146: =($B$1/365)*Table2[[#This Row],[Beg Bal]] -> 0 | F146: =IF(AND(Table2[[#This Row],[Date]]>($B$11-1),DAY(Table2[[#This Row],[Date]])=DAY($B$11)),Table2[[#This Row],[Current Pmt Amt]],"") ->  | G146: =SUM(Table2[[#This Row],[Beg Bal]:[Paid]]) -> 0 | H146: =IF(AND(Table2[[#This Row],[Date]]>$D$11,Table2[[#This Row],[Date]]<$E$11),$C$11*-1,IF(AND(Table2[[#This Row],[Date]]>$D$12,Table2[[#This Row],[Date]]<$E$12),$C$12*-1,IF(AND(Table2[[#This Row],[Date]]>$D$13,Table2[[#This Row],[Date]]<$E$13),$C$13*-1,""))) ->  | I146: =SUM($F$26:Table2[[#This Row],[Paid]]) -> 0
A147: 2024-08-14 | B147: =IF(ROW()=2,#REF!,INDIRECT("Q"&ROW()-1)) -> 0 | C147: =($B$1/365)*Table2[[#This Row],[Beg Bal]] -> 0 | F147: =IF(AND(Table2[[#This Row],[Date]]>($B$11-1),DAY(Table2[[#This Row],[Date]])=DAY($B$11)),Table2[[#This Row],[Current Pmt Amt]],"") ->  | G147: =SUM(Table2[[#This Row],[Beg Bal]:[Paid]]) -> 0 | H147: =IF(AND(Table2[[#This Row],[Date]]>$D$11,Table2[[#This Row],[Date]]<$E$11),$C$11*-1,IF(AND(Table2[[#This Row],[Date]]>$D$12,Table2[[#This Row],[Date]]<$E$12),$C$12*-1,IF(AND(Table2[[#This Row],[Date]]>$D$13,Table2[[#This Row],[Date]]<$E$13),$C$13*-1,""))) ->  | I147: =SUM($F$26:Table2[[#This Row],[Paid]]) -> 0
A148: 2024-08-15 | B148: =IF(ROW()=2,#REF!,INDIRECT("Q"&ROW()-1)) -> 0 | C148: =($B$1/365)*Table2[[#This Row],[Beg Bal]] -> 0 | F148: =IF(AND(Table2[[#This Row],[Date]]>($B$11-1),DAY(Table2[[#This Row],[Date]])=DAY($B$11)),Table2[[#This Row],[Current Pmt Amt]],"") ->  | G148: =SUM(Table2[[#This Row],[Beg Bal]:[Paid]]) -> 0 | H148: =IF(AND(Table2[[#This Row],[Date]]>$D$11,Table2[[#This Row],[Date]]<$E$11),$C$11*-1,IF(AND(Table2[[#This Row],[Date]]>$D$12,Table2[[#This Row],[Date]]<$E$12),$C$12*-1,IF(AND(Table2[[#This Row],[Date]]>$D$13,Table2[[#This Row],[Date]]<$E$13),$C$13*-1,""))) ->  | I148: =SUM($F$26:Table2[[#This Row],[Paid]]) -> 0
A149: 2024-08-16 | B149: =IF(ROW()=2,#REF!,INDIRECT("Q"&ROW()-1)) -> 0 | C149: =($B$1/365)*Table2[[#This Row],[Beg Bal]] -> 0 | F149: =IF(AND(Table2[[#This Row],[Date]]>($B$11-1),DAY(Table2[[#This Row],[Date]])=DAY($B$11)),Table2[[#This Row],[Current Pmt Amt]],"") ->  | G149: =SUM(Table2[[#This Row],[Beg Bal]:[Paid]]) -> 0 | H149: =IF(AND(Table2[[#This Row],[Date]]>$D$11,Table2[[#This Row],[Date]]<$E$11),$C$11*-1,IF(AND(Table2[[#This Row],[Date]]>$D$12,Table2[[#This Row],[Date]]<$E$12),$C$12*-1,IF(AND(Table2[[#This Row],[Date]]>$D$13,Table2[[#This Row],[Date]]<$E$13),$C$13*-1,""))) ->  | I149: =SUM($F$26:Table2[[#This Row],[Paid]]) -> 0
A150: 2024-08-17 | B150: =IF(ROW()=2,#REF!,INDIRECT("Q"&ROW()-1)) -> 0 | C150: =($B$1/365)*Table2[[#This Row],[Beg Bal]] -> 0 | F150: =IF(AND(Table2[[#This Row],[Date]]>($B$11-1),DAY(Table2[[#This Row],[Date]])=DAY($B$11)),Table2[[#This Row],[Current Pmt Amt]],"") ->  | G150: =SUM(Table2[[#This Row],[Beg Bal]:[Paid]]) -> 0 | H150: =IF(AND(Table2[[#This Row],[Date]]>$D$11,Table2[[#This Row],[Date]]<$E$11),$C$11*-1,IF(AND(Table2[[#This Row],[Date]]>$D$12,Table2[[#This Row],[Date]]<$E$12),$C$12*-1,IF(AND(Table2[[#This Row],[Date]]>$D$13,Table2[[#This Row],[Date]]<$E$13),$C$13*-1,""))) ->  | I150: =SUM($F$26:Table2[[#This Row],[Paid]]) -> 0
A151: 2024-08-18 | B151: =IF(ROW()=2,#REF!,INDIRECT("Q"&ROW()-1)) -> 0 | C151: =($B$1/365)*Table2[[#This Row],[Beg Bal]] -> 0 | F151: =IF(AND(Table2[[#This Row],[Date]]>($B$11-1),DAY(Table2[[#This Row],[Date]])=DAY($B$11)),Table2[[#This Row],[Current Pmt Amt]],"") ->  | G151: =SUM(Table2[[#This Row],[Beg Bal]:[Paid]]) -> 0 | H151: =IF(AND(Table2[[#This Row],[Date]]>$D$11,Table2[[#This Row],[Date]]<$E$11),$C$11*-1,IF(AND(Table2[[#This Row],[Date]]>$D$12,Table2[[#This Row],[Date]]<$E$12),$C$12*-1,IF(AND(Table2[[#This Row],[Date]]>$D$13,Table2[[#This Row],[Date]]<$E$13),$C$13*-1,""))) ->  | I151: =SUM($F$26:Table2[[#This Row],[Paid]]) -> 0
A152: 2024-08-19 | B152: =IF(ROW()=2,#REF!,INDIRECT("Q"&ROW()-1)) -> 0 | C152: =($B$1/365)*Table2[[#This Row],[Beg Bal]] -> 0 | F152: =IF(AND(Table2[[#This Row],[Date]]>($B$11-1),DAY(Table2[[#This Row],[Date]])=DAY($B$11)),Table2[[#This Row],[Current Pmt Amt]],"") ->  | G152: =SUM(Table2[[#This Row],[Beg Bal]:[Paid]]) -> 0 | H152: =IF(AND(Table2[[#This Row],[Date]]>$D$11,Table2[[#This Row],[Date]]<$E$11),$C$11*-1,IF(AND(Table2[[#This Row],[Date]]>$D$12,Table2[[#This Row],[Date]]<$E$12),$C$12*-1,IF(AND(Table2[[#This Row],[Date]]>$D$13,Table2[[#This Row],[Date]]<$E$13),$C$13*-1,""))) ->  | I152: =SUM($F$26:Table2[[#This Row],[Paid]]) -> 0
A153: 2024-08-20 | B153: =IF(ROW()=2,#REF!,INDIRECT("Q"&ROW()-1)) -> 0 | C153: =($B$1/365)*Table2[[#This Row],[Beg Bal]] -> 0 | F153: =IF(AND(Table2[[#This Row],[Date]]>($B$11-1),DAY(Table2[[#This Row],[Date]])=DAY($B$11)),Table2[[#This Row],[Current Pmt Amt]],"") ->  | G153: =SUM(Table2[[#This Row],[Beg Bal]:[Paid]]) -> 0 | H153: =IF(AND(Table2[[#This Row],[Date]]>$D$11,Table2[[#This Row],[Date]]<$E$11),$C$11*-1,IF(AND(Table2[[#This Row],[Date]]>$D$12,Table2[[#This Row],[Date]]<$E$12),$C$12*-1,IF(AND(Table2[[#This Row],[Date]]>$D$13,Table2[[#This Row],[Date]]<$E$13),$C$13*-1,""))) ->  | I153: =SUM($F$26:Table2[[#This Row],[Paid]]) -> 0
A154: 2024-08-21 | B154: =IF(ROW()=2,#REF!,INDIRECT("Q"&ROW()-1)) -> 0 | C154: =($B$1/365)*Table2[[#This Row],[Beg Bal]] -> 0 | F154: =IF(AND(Table2[[#This Row],[Date]]>($B$11-1),DAY(Table2[[#This Row],[Date]])=DAY($B$11)),Table2[[#This Row],[Current Pmt Amt]],"") ->  | G154: =SUM(Table2[[#This Row],[Beg Bal]:[Paid]]) -> 0 | H154: =IF(AND(Table2[[#This Row],[Date]]>$D$11,Table2[[#This Row],[Date]]<$E$11),$C$11*-1,IF(AND(Table2[[#This Row],[Date]]>$D$12,Table2[[#This Row],[Date]]<$E$12),$C$12*-1,IF(AND(Table2[[#This Row],[Date]]>$D$13,Table2[[#This Row],[Date]]<$E$13),$C$13*-1,""))) ->  | I154: =SUM($F$26:Table2[[#This Row],[Paid]]) -> 0
A155: 2024-08-22 | B155: =IF(ROW()=2,#REF!,INDIRECT("Q"&ROW()-1)) -> 0 | C155: =($B$1/365)*Table2[[#This Row],[Beg Bal]] -> 0 | F155: =IF(AND(Table2[[#This Row],[Date]]>($B$11-1),DAY(Table2[[#This Row],[Date]])=DAY($B$11)),Table2[[#This Row],[Current Pmt Amt]],"") ->  | G155: =SUM(Table2[[#This Row],[Beg Bal]:[Paid]]) -> 0 | H155: =IF(AND(Table2[[#This Row],[Date]]>$D$11,Table2[[#This Row],[Date]]<$E$11),$C$11*-1,IF(AND(Table2[[#This Row],[Date]]>$D$12,Table2[[#This Row],[Date]]<$E$12),$C$12*-1,IF(AND(Table2[[#This Row],[Date]]>$D$13,Table2[[#This Row],[Date]]<$E$13),$C$13*-1,""))) ->  | I155: =SUM($F$26:Table2[[#This Row],[Paid]]) -> 0
A156: 2024-08-23 | B156: =IF(ROW()=2,#REF!,INDIRECT("Q"&ROW()-1)) -> 0 | C156: =($B$1/365)*Table2[[#This Row],[Beg Bal]] -> 0 | F156: =IF(AND(Table2[[#This Row],[Date]]>($B$11-1),DAY(Table2[[#This Row],[Date]])=DAY($B$11)),Table2[[#This Row],[Current Pmt Amt]],"") ->  | G156: =SUM(Table2[[#This Row],[Beg Bal]:[Paid]]) -> 0 | H156: =IF(AND(Table2[[#This Row],[Date]]>$D$11,Table2[[#This Row],[Date]]<$E$11),$C$11*-1,IF(AND(Table2[[#This Row],[Date]]>$D$12,Table2[[#This Row],[Date]]<$E$12),$C$12*-1,IF(AND(Table2[[#This Row],[Date]]>$D$13,Table2[[#This Row],[Date]]<$E$13),$C$13*-1,""))) ->  | I156: =SUM($F$26:Table2[[#This Row],[Paid]]) -> 0
A157: 2024-08-24 | B157: =IF(ROW()=2,#REF!,INDIRECT("Q"&ROW()-1)) -> 0 | C157: =($B$1/365)*Table2[[#This Row],[Beg Bal]] -> 0 | F157: =IF(AND(Table2[[#This Row],[Date]]>($B$11-1),DAY(Table2[[#This Row],[Date]])=DAY($B$11)),Table2[[#This Row],[Current Pmt Amt]],"") ->  | G157: =SUM(Table2[[#This Row],[Beg Bal]:[Paid]]) -> 0 | H157: =IF(AND(Table2[[#This Row],[Date]]>$D$11,Table2[[#This Row],[Date]]<$E$11),$C$11*-1,IF(AND(Table2[[#This Row],[Date]]>$D$12,Table2[[#This Row],[Date]]<$E$12),$C$12*-1,IF(AND(Table2[[#This Row],[Date]]>$D$13,Table2[[#This Row],[Date]]<$E$13),$C$13*-1,""))) ->  | I157: =SUM($F$26:Table2[[#This Row],[Paid]]) -> 0
A158: 2024-08-25 | B158: =IF(ROW()=2,#REF!,INDIRECT("Q"&ROW()-1)) -> 0 | C158: =($B$1/365)*Table2[[#This Row],[Beg Bal]] -> 0 | F158: =IF(AND(Table2[[#This Row],[Date]]>($B$11-1),DAY(Table2[[#This Row],[Date]])=DAY($B$11)),Table2[[#This Row],[Current Pmt Amt]],"") ->  | G158: =SUM(Table2[[#This Row],[Beg Bal]:[Paid]]) -> 0 | H158: =IF(AND(Table2[[#This Row],[Date]]>$D$11,Table2[[#This Row],[Date]]<$E$11),$C$11*-1,IF(AND(Table2[[#This Row],[Date]]>$D$12,Table2[[#This Row],[Date]]<$E$12),$C$12*-1,IF(AND(Table2[[#This Row],[Date]]>$D$13,Table2[[#This Row],[Date]]<$E$13),$C$13*-1,""))) ->  | I158: =SUM($F$26:Table2[[#This Row],[Paid]]) -> 0
A159: 2024-08-26 | B159: =IF(ROW()=2,#REF!,INDIRECT("Q"&ROW()-1)) -> 0 | C159: =($B$1/365)*Table2[[#This Row],[Beg Bal]] -> 0 | F159: =IF(AND(Table2[[#This Row],[Date]]>($B$11-1),DAY(Table2[[#This Row],[Date]])=DAY($B$11)),Table2[[#This Row],[Current Pmt Amt]],"") ->  | G159: =SUM(Table2[[#This Row],[Beg Bal]:[Paid]]) -> 0 | H159: =IF(AND(Table2[[#This Row],[Date]]>$D$11,Table2[[#This Row],[Date]]<$E$11),$C$11*-1,IF(AND(Table2[[#This Row],[Date]]>$D$12,Table2[[#This Row],[Date]]<$E$12),$C$12*-1,IF(AND(Table2[[#This Row],[Date]]>$D$13,Table2[[#This Row],[Date]]<$E$13),$C$13*-1,""))) ->  | I159: =SUM($F$26:Table2[[#This Row],[Paid]]) -> 0
A160: 2024-08-27 | B160: =IF(ROW()=2,#REF!,INDIRECT("Q"&ROW()-1)) -> 0 | C160: =($B$1/365)*Table2[[#This Row],[Beg Bal]] -> 0 | F160: =IF(AND(Table2[[#This Row],[Date]]>($B$11-1),DAY(Table2[[#This Row],[Date]])=DAY($B$11)),Table2[[#This Row],[Current Pmt Amt]],"") ->  | G160: =SUM(Table2[[#This Row],[Beg Bal]:[Paid]]) -> 0 | H160: =IF(AND(Table2[[#This Row],[Date]]>$D$11,Table2[[#This Row],[Date]]<$E$11),$C$11*-1,IF(AND(Table2[[#This Row],[Date]]>$D$12,Table2[[#This Row],[Date]]<$E$12),$C$12*-1,IF(AND(Table2[[#This Row],[Date]]>$D$13,Table2[[#This Row],[Date]]<$E$13),$C$13*-1,""))) ->  | I160: =SUM($F$26:Table2[[#This Row],[Paid]]) -> 0
A161: 2024-08-28 | B161: =IF(ROW()=2,#REF!,INDIRECT("Q"&ROW()-1)) -> 0 | C161: =($B$1/365)*Table2[[#This Row],[Beg Bal]] -> 0 | F161: =IF(AND(Table2[[#This Row],[Date]]>($B$11-1),DAY(Table2[[#This Row],[Date]])=DAY($B$11)),Table2[[#This Row],[Current Pmt Amt]],"") ->  | G161: =SUM(Table2[[#This Row],[Beg Bal]:[Paid]]) -> 0 | H161: =IF(AND(Table2[[#This Row],[Date]]>$D$11,Table2[[#This Row],[Date]]<$E$11),$C$11*-1,IF(AND(Table2[[#This Row],[Date]]>$D$12,Table2[[#This Row],[Date]]<$E$12),$C$12*-1,IF(AND(Table2[[#This Row],[Date]]>$D$13,Table2[[#This Row],[Date]]<$E$13),$C$13*-1,""))) ->  | I161: =SUM($F$26:Table2[[#This Row],[Paid]]) -> 0
A162: 2024-08-29 | B162: =IF(ROW()=2,#REF!,INDIRECT("Q"&ROW()-1)) -> 0 | C162: =($B$1/365)*Table2[[#This Row],[Beg Bal]] -> 0 | F162: =IF(AND(Table2[[#This Row],[Date]]>($B$11-1),DAY(Table2[[#This Row],[Date]])=DAY($B$11)),Table2[[#This Row],[Current Pmt Amt]],"") ->  | G162: =SUM(Table2[[#This Row],[Beg Bal]:[Paid]]) -> 0 | H162: =IF(AND(Table2[[#This Row],[Date]]>$D$11,Table2[[#This Row],[Date]]<$E$11),$C$11*-1,IF(AND(Table2[[#This Row],[Date]]>$D$12,Table2[[#This Row],[Date]]<$E$12),$C$12*-1,IF(AND(Table2[[#This Row],[Date]]>$D$13,Table2[[#This Row],[Date]]<$E$13),$C$13*-1,""))) ->  | I162: =SUM($F$26:Table2[[#This Row],[Paid]]) -> 0
A163: 2024-08-30 | B163: =IF(ROW()=2,#REF!,INDIRECT("Q"&ROW()-1)) -> 0 | C163: =($B$1/365)*Table2[[#This Row],[Beg Bal]] -> 0 | F163: =IF(AND(Table2[[#This Row],[Date]]>($B$11-1),DAY(Table2[[#This Row],[Date]])=DAY($B$11)),Table2[[#This Row],[Current Pmt Amt]],"") ->  | G163: =SUM(Table2[[#This Row],[Beg Bal]:[Paid]]) -> 0 | H163: =IF(AND(Table2[[#This Row],[Date]]>$D$11,Table2[[#This Row],[Date]]<$E$11),$C$11*-1,IF(AND(Table2[[#This Row],[Date]]>$D$12,Table2[[#This Row],[Date]]<$E$12),$C$12*-1,IF(AND(Table2[[#This Row],[Date]]>$D$13,Table2[[#This Row],[Date]]<$E$13),$C$13*-1,""))) ->  | I163: =SUM($F$26:Table2[[#This Row],[Paid]]) -> 0
A164: 2024-08-31 | B164: =IF(ROW()=2,#REF!,INDIRECT("Q"&ROW()-1)) -> 0 | C164: =($B$1/365)*Table2[[#This Row],[Beg Bal]] -> 0 | F164: =IF(AND(Table2[[#This Row],[Date]]>($B$11-1),DAY(Table2[[#This Row],[Date]])=DAY($B$11)),Table2[[#This Row],[Current Pmt Amt]],"") ->  | G164: =SUM(Table2[[#This Row],[Beg Bal]:[Paid]]) -> 0 | H164: =IF(AND(Table2[[#This Row],[Date]]>$D$11,Table2[[#This Row],[Date]]<$E$11),$C$11*-1,IF(AND(Table2[[#This Row],[Date]]>$D$12,Table2[[#This Row],[Date]]<$E$12),$C$12*-1,IF(AND(Table2[[#This Row],[Date]]>$D$13,Table2[[#This Row],[Date]]<$E$13),$C$13*-1,""))) ->  | I164: =SUM($F$26:Table2[[#This Row],[Paid]]) -> 0
A165: 2024-09-01 | B165: =IF(ROW()=2,#REF!,INDIRECT("Q"&ROW()-1)) -> 0 | C165: =($B$1/365)*Table2[[#This Row],[Beg Bal]] -> 0 | F165: =IF(AND(Table2[[#This Row],[Date]]>($B$11-1),DAY(Table2[[#This Row],[Date]])=DAY($B$11)),Table2[[#This Row],[Current Pmt Amt]],"") ->  | G165: =SUM(Table2[[#This Row],[Beg Bal]:[Paid]]) -> 0 | H165: =IF(AND(Table2[[#This Row],[Date]]>$D$11,Table2[[#This Row],[Date]]<$E$11),$C$11*-1,IF(AND(Table2[[#This Row],[Date]]>$D$12,Table2[[#This Row],[Date]]<$E$12),$C$12*-1,IF(AND(Table2[[#This Row],[Date]]>$D$13,Table2[[#This Row],[Date]]<$E$13),$C$13*-1,""))) ->  | I165: =SUM($F$26:Table2[[#This Row],[Paid]]) -> 0
A166: 2024-09-02 | B166: =IF(ROW()=2,#REF!,INDIRECT("Q"&ROW()-1)) -> 0 | C166: =($B$1/365)*Table2[[#This Row],[Beg Bal]] -> 0 | F166: =IF(AND(Table2[[#This Row],[Date]]>($B$11-1),DAY(Table2[[#This Row],[Date]])=DAY($B$11)),Table2[[#This Row],[Current Pmt Amt]],"") ->  | G166: =SUM(Table2[[#This Row],[Beg Bal]:[Paid]]) -> 0 | H166: =IF(AND(Table2[[#This Row],[Date]]>$D$11,Table2[[#This Row],[Date]]<$E$11),$C$11*-1,IF(AND(Table2[[#This Row],[Date]]>$D$12,Table2[[#This Row],[Date]]<$E$12),$C$12*-1,IF(AND(Table2[[#This Row],[Date]]>$D$13,Table2[[#This Row],[Date]]<$E$13),$C$13*-1,""))) ->  | I166: =SUM($F$26:Table2[[#This Row],[Paid]]) -> 0
A167: 2024-09-03 | B167: =IF(ROW()=2,#REF!,INDIRECT("Q"&ROW()-1)) -> 0 | C167: =($B$1/365)*Table2[[#This Row],[Beg Bal]] -> 0 | F167: =IF(AND(Table2[[#This Row],[Date]]>($B$11-1),DAY(Table2[[#This Row],[Date]])=DAY($B$11)),Table2[[#This Row],[Current Pmt Amt]],"") ->  | G167: =SUM(Table2[[#This Row],[Beg Bal]:[Paid]]) -> 0 | H167: =IF(AND(Table2[[#This Row],[Date]]>$D$11,Table2[[#This Row],[Date]]<$E$11),$C$11*-1,IF(AND(Table2[[#This Row],[Date]]>$D$12,Table2[[#This Row],[Date]]<$E$12),$C$12*-1,IF(AND(Table2[[#This Row],[Date]]>$D$13,Table2[[#This Row],[Date]]<$E$13),$C$13*-1,""))) ->  | I167: =SUM($F$26:Table2[[#This Row],[Paid]]) -> 0
A168: 2024-09-04 | B168: =IF(ROW()=2,#REF!,INDIRECT("Q"&ROW()-1)) -> 0 | C168: =($B$1/365)*Table2[[#This Row],[Beg Bal]] -> 0 | F168: =IF(AND(Table2[[#This Row],[Date]]>($B$11-1),DAY(Table2[[#This Row],[Date]])=DAY($B$11)),Table2[[#This Row],[Current Pmt Amt]],"") ->  | G168: =SUM(Table2[[#This Row],[Beg Bal]:[Paid]]) -> 0 | H168: =IF(AND(Table2[[#This Row],[Date]]>$D$11,Table2[[#This Row],[Date]]<$E$11),$C$11*-1,IF(AND(Table2[[#This Row],[Date]]>$D$12,Table2[[#This Row],[Date]]<$E$12),$C$12*-1,IF(AND(Table2[[#This Row],[Date]]>$D$13,Table2[[#This Row],[Date]]<$E$13),$C$13*-1,""))) ->  | I168: =SUM($F$26:Table2[[#This Row],[Paid]]) -> 0
A169: 2024-09-05 | B169: =IF(ROW()=2,#REF!,INDIRECT("Q"&ROW()-1)) -> 0 | C169: =($B$1/365)*Table2[[#This Row],[Beg Bal]] -> 0 | F169: =IF(AND(Table2[[#This Row],[Date]]>($B$11-1),DAY(Table2[[#This Row],[Date]])=DAY($B$11)),Table2[[#This Row],[Current Pmt Amt]],"") ->  | G169: =SUM(Table2[[#This Row],[Beg Bal]:[Paid]]) -> 0 | H169: =IF(AND(Table2[[#This Row],[Date]]>$D$11,Table2[[#This Row],[Date]]<$E$11),$C$11*-1,IF(AND(Table2[[#This Row],[Date]]>$D$12,Table2[[#This Row],[Date]]<$E$12),$C$12*-1,IF(AND(Table2[[#This Row],[Date]]>$D$13,Table2[[#This Row],[Date]]<$E$13),$C$13*-1,""))) ->  | I169: =SUM($F$26:Table2[[#This Row],[Paid]]) -> 0
A170: 2024-09-06 | B170: =IF(ROW()=2,#REF!,INDIRECT("Q"&ROW()-1)) -> 0 | C170: =($B$1/365)*Table2[[#This Row],[Beg Bal]] -> 0 | F170: =IF(AND(Table2[[#This Row],[Date]]>($B$11-1),DAY(Table2[[#This Row],[Date]])=DAY($B$11)),Table2[[#This Row],[Current Pmt Amt]],"") ->  | G170: =SUM(Table2[[#This Row],[Beg Bal]:[Paid]]) -> 0 | H170: =IF(AND(Table2[[#This Row],[Date]]>$D$11,Table2[[#This Row],[Date]]<$E$11),$C$11*-1,IF(AND(Table2[[#This Row],[Date]]>$D$12,Table2[[#This Row],[Date]]<$E$12),$C$12*-1,IF(AND(Table2[[#This Row],[Date]]>$D$13,Table2[[#This Row],[Date]]<$E$13),$C$13*-1,""))) ->  | I170: =SUM($F$26:Table2[[#This Row],[Paid]]) -> 0
A171: 2024-09-07 | B171: =IF(ROW()=2,#REF!,INDIRECT("Q"&ROW()-1)) -> 0 | C171: =($B$1/365)*Table2[[#This Row],[Beg Bal]] -> 0 | F171: =IF(AND(Table2[[#This Row],[Date]]>($B$11-1),DAY(Table2[[#This Row],[Date]])=DAY($B$11)),Table2[[#This Row],[Current Pmt Amt]],"") ->  | G171: =SUM(Table2[[#This Row],[Beg Bal]:[Paid]]) -> 0 | H171: =IF(AND(Table2[[#This Row],[Date]]>$D$11,Table2[[#This Row],[Date]]<$E$11),$C$11*-1,IF(AND(Table2[[#This Row],[Date]]>$D$12,Table2[[#This Row],[Date]]<$E$12),$C$12*-1,IF(AND(Table2[[#This Row],[Date]]>$D$13,Table2[[#This Row],[Date]]<$E$13),$C$13*-1,""))) ->  | I171: =SUM($F$26:Table2[[#This Row],[Paid]]) -> 0
A172: 2024-09-08 | B172: =IF(ROW()=2,#REF!,INDIRECT("Q"&ROW()-1)) -> 0 | C172: =($B$1/365)*Table2[[#This Row],[Beg Bal]] -> 0 | F172: =IF(AND(Table2[[#This Row],[Date]]>($B$11-1),DAY(Table2[[#This Row],[Date]])=DAY($B$11)),Table2[[#This Row],[Current Pmt Amt]],"") ->  | G172: =SUM(Table2[[#This Row],[Beg Bal]:[Paid]]) -> 0 | H172: =IF(AND(Table2[[#This Row],[Date]]>$D$11,Table2[[#This Row],[Date]]<$E$11),$C$11*-1,IF(AND(Table2[[#This Row],[Date]]>$D$12,Table2[[#This Row],[Date]]<$E$12),$C$12*-1,IF(AND(Table2[[#This Row],[Date]]>$D$13,Table2[[#This Row],[Date]]<$E$13),$C$13*-1,""))) ->  | I172: =SUM($F$26:Table2[[#This Row],[Paid]]) -> 0
A173: 2024-09-09 | B173: =IF(ROW()=2,#REF!,INDIRECT("Q"&ROW()-1)) -> 0 | C173: =($B$1/365)*Table2[[#This Row],[Beg Bal]] -> 0 | F173: =IF(AND(Table2[[#This Row],[Date]]>($B$11-1),DAY(Table2[[#This Row],[Date]])=DAY($B$11)),Table2[[#This Row],[Current Pmt Amt]],"") ->  | G173: =SUM(Table2[[#This Row],[Beg Bal]:[Paid]]) -> 0 | H173: =IF(AND(Table2[[#This Row],[Date]]>$D$11,Table2[[#This Row],[Date]]<$E$11),$C$11*-1,IF(AND(Table2[[#This Row],[Date]]>$D$12,Table2[[#This Row],[Date]]<$E$12),$C$12*-1,IF(AND(Table2[[#This Row],[Date]]>$D$13,Table2[[#This Row],[Date]]<$E$13),$C$13*-1,""))) ->  | I173: =SUM($F$26:Table2[[#This Row],[Paid]]) -> 0
A174: 2024-09-10 | B174: =IF(ROW()=2,#REF!,INDIRECT("Q"&ROW()-1)) -> 0 | C174: =($B$1/365)*Table2[[#This Row],[Beg Bal]] -> 0 | F174: =IF(AND(Table2[[#This Row],[Date]]>($B$11-1),DAY(Table2[[#This Row],[Date]])=DAY($B$11)),Table2[[#This Row],[Current Pmt Amt]],"") ->  | G174: =SUM(Table2[[#This Row],[Beg Bal]:[Paid]]) -> 0 | H174: =IF(AND(Table2[[#This Row],[Date]]>$D$11,Table2[[#This Row],[Date]]<$E$11),$C$11*-1,IF(AND(Table2[[#This Row],[Date]]>$D$12,Table2[[#This Row],[Date]]<$E$12),$C$12*-1,IF(AND(Table2[[#This Row],[Date]]>$D$13,Table2[[#This Row],[Date]]<$E$13),$C$13*-1,""))) ->  | I174: =SUM($F$26:Table2[[#This Row],[Paid]]) -> 0
A175: 2024-09-11 | B175: =IF(ROW()=2,#REF!,INDIRECT("Q"&ROW()-1)) -> 0 | C175: =($B$1/365)*Table2[[#This Row],[Beg Bal]] -> 0 | F175: =IF(AND(Table2[[#This Row],[Date]]>($B$11-1),DAY(Table2[[#This Row],[Date]])=DAY($B$11)),Table2[[#This Row],[Current Pmt Amt]],"") ->  | G175: =SUM(Table2[[#This Row],[Beg Bal]:[Paid]]) -> 0 | H175: =IF(AND(Table2[[#This Row],[Date]]>$D$11,Table2[[#This Row],[Date]]<$E$11),$C$11*-1,IF(AND(Table2[[#This Row],[Date]]>$D$12,Table2[[#This Row],[Date]]<$E$12),$C$12*-1,IF(AND(Table2[[#This Row],[Date]]>$D$13,Table2[[#This Row],[Date]]<$E$13),$C$13*-1,""))) ->  | I175: =SUM($F$26:Table2[[#This Row],[Paid]]) -> 0
A176: 2024-09-12 | B176: =IF(ROW()=2,#REF!,INDIRECT("Q"&ROW()-1)) -> 0 | C176: =($B$1/365)*Table2[[#This Row],[Beg Bal]] -> 0 | F176: =IF(AND(Table2[[#This Row],[Date]]>($B$11-1),DAY(Table2[[#This Row],[Date]])=DAY($B$11)),Table2[[#This Row],[Current Pmt Amt]],"") ->  | G176: =SUM(Table2[[#This Row],[Beg Bal]:[Paid]]) -> 0 | H176: =IF(AND(Table2[[#This Row],[Date]]>$D$11,Table2[[#This Row],[Date]]<$E$11),$C$11*-1,IF(AND(Table2[[#This Row],[Date]]>$D$12,Table2[[#This Row],[Date]]<$E$12),$C$12*-1,IF(AND(Table2[[#This Row],[Date]]>$D$13,Table2[[#This Row],[Date]]<$E$13),$C$13*-1,""))) ->  | I176: =SUM($F$26:Table2[[#This Row],[Paid]]) -> 0
A177: 2024-09-13 | B177: =IF(ROW()=2,#REF!,INDIRECT("Q"&ROW()-1)) -> 0 | C177: =($B$1/365)*Table2[[#This Row],[Beg Bal]] -> 0 | F177: =IF(AND(Table2[[#This Row],[Date]]>($B$11-1),DAY(Table2[[#This Row],[Date]])=DAY($B$11)),Table2[[#This Row],[Current Pmt Amt]],"") ->  | G177: =SUM(Table2[[#This Row],[Beg Bal]:[Paid]]) -> 0 | H177: =IF(AND(Table2[[#This Row],[Date]]>$D$11,Table2[[#This Row],[Date]]<$E$11),$C$11*-1,IF(AND(Table2[[#This Row],[Date]]>$D$12,Table2[[#This Row],[Date]]<$E$12),$C$12*-1,IF(AND(Table2[[#This Row],[Date]]>$D$13,Table2[[#This Row],[Date]]<$E$13),$C$13*-1,""))) ->  | I177: =SUM($F$26:Table2[[#This Row],[Paid]]) -> 0
A178: 2024-09-14 | B178: =IF(ROW()=2,#REF!,INDIRECT("Q"&ROW()-1)) -> 0 | C178: =($B$1/365)*Table2[[#This Row],[Beg Bal]] -> 0 | F178: =IF(AND(Table2[[#This Row],[Date]]>($B$11-1),DAY(Table2[[#This Row],[Date]])=DAY($B$11)),Table2[[#This Row],[Current Pmt Amt]],"") ->  | G178: =SUM(Table2[[#This Row],[Beg Bal]:[Paid]]) -> 0 | H178: =IF(AND(Table2[[#This Row],[Date]]>$D$11,Table2[[#This Row],[Date]]<$E$11),$C$11*-1,IF(AND(Table2[[#This Row],[Date]]>$D$12,Table2[[#This Row],[Date]]<$E$12),$C$12*-1,IF(AND(Table2[[#This Row],[Date]]>$D$13,Table2[[#This Row],[Date]]<$E$13),$C$13*-1,""))) ->  | I178: =SUM($F$26:Table2[[#This Row],[Paid]]) -> 0
A179: 2024-09-15 | B179: =IF(ROW()=2,#REF!,INDIRECT("Q"&ROW()-1)) -> 0 | C179: =($B$1/365)*Table2[[#This Row],[Beg Bal]] -> 0 | F179: =IF(AND(Table2[[#This Row],[Date]]>($B$11-1),DAY(Table2[[#This Row],[Date]])=DAY($B$11)),Table2[[#This Row],[Current Pmt Amt]],"") -> -850 | G179: =SUM(Table2[[#This Row],[Beg Bal]:[Paid]]) -> -850 | H179: =IF(AND(Table2[[#This Row],[Date]]>$D$11,Table2[[#This Row],[Date]]<$E$11),$C$11*-1,IF(AND(Table2[[#This Row],[Date]]>$D$12,Table2[[#This Row],[Date]]<$E$12),$C$12*-1,IF(AND(Table2[[#This Row],[Date]]>$D$13,Table2[[#This Row],[Date]]<$E$13),$C$13*-1,""))) -> -850 | I179: =SUM($F$26:Table2[[#This Row],[Paid]]) -> -850
A180: 2024-09-16 | B180: =IF(ROW()=2,#REF!,INDIRECT("Q"&ROW()-1)) -> 0 | C180: =($B$1/365)*Table2[[#This Row],[Beg Bal]] -> 0 | F180: =IF(AND(Table2[[#This Row],[Date]]>($B$11-1),DAY(Table2[[#This Row],[Date]])=DAY($B$11)),Table2[[#This Row],[Current Pmt Amt]],"") ->  | G180: =SUM(Table2[[#This Row],[Beg Bal]:[Paid]]) -> 0 | H180: =IF(AND(Table2[[#This Row],[Date]]>$D$11,Table2[[#This Row],[Date]]<$E$11),$C$11*-1,IF(AND(Table2[[#This Row],[Date]]>$D$12,Table2[[#This Row],[Date]]<$E$12),$C$12*-1,IF(AND(Table2[[#This Row],[Date]]>$D$13,Table2[[#This Row],[Date]]<$E$13),$C$13*-1,""))) -> -850 | I180: =SUM($F$26:Table2[[#This Row],[Paid]]) -> -850
A181: 2024-09-17 | B181: =IF(ROW()=2,#REF!,INDIRECT("Q"&ROW()-1)) -> 0 | C181: =($B$1/365)*Table2[[#This Row],[Beg Bal]] -> 0 | F181: =IF(AND(Table2[[#This Row],[Date]]>($B$11-1),DAY(Table2[[#This Row],[Date]])=DAY($B$11)),Table2[[#This Row],[Current Pmt Amt]],"") ->  | G181: =SUM(Table2[[#This Row],[Beg Bal]:[Paid]]) -> 0 | H181: =IF(AND(Table2[[#This Row],[Date]]>$D$11,Table2[[#This Row],[Date]]<$E$11),$C$11*-1,IF(AND(Table2[[#This Row],[Date]]>$D$12,Table2[[#This Row],[Date]]<$E$12),$C$12*-1,IF(AND(Table2[[#This Row],[Date]]>$D$13,Table2[[#This Row],[Date]]<$E$13),$C$13*-1,""))) -> -850 | I181: =SUM($F$26:Table2[[#This Row],[Paid]]) -> -850
A182: 2024-09-18 | B182: =IF(ROW()=2,#REF!,INDIRECT("Q"&ROW()-1)) -> 0 | C182: =($B$1/365)*Table2[[#This Row],[Beg Bal]] -> 0 | F182: =IF(AND(Table2[[#This Row],[Date]]>($B$11-1),DAY(Table2[[#This Row],[Date]])=DAY($B$11)),Table2[[#This Row],[Current Pmt Amt]],"") ->  | G182: =SUM(Table2[[#This Row],[Beg Bal]:[Paid]]) -> 0 | H182: =IF(AND(Table2[[#This Row],[Date]]>$D$11,Table2[[#This Row],[Date]]<$E$11),$C$11*-1,IF(AND(Table2[[#This Row],[Date]]>$D$12,Table2[[#This Row],[Date]]<$E$12),$C$12*-1,IF(AND(Table2[[#This Row],[Date]]>$D$13,Table2[[#This Row],[Date]]<$E$13),$C$13*-1,""))) -> -850 | I182: =SUM($F$26:Table2[[#This Row],[Paid]]) -> -850
A183: 2024-09-19 | B183: =IF(ROW()=2,#REF!,INDIRECT("Q"&ROW()-1)) -> 0 | C183: =($B$1/365)*Table2[[#This Row],[Beg Bal]] -> 0 | F183: =IF(AND(Table2[[#This Row],[Date]]>($B$11-1),DAY(Table2[[#This Row],[Date]])=DAY($B$11)),Table2[[#This Row],[Current Pmt Amt]],"") ->  | G183: =SUM(Table2[[#This Row],[Beg Bal]:[Paid]]) -> 0 | H183: =IF(AND(Table2[[#This Row],[Date]]>$D$11,Table2[[#This Row],[Date]]<$E$11),$C$11*-1,IF(AND(Table2[[#This Row],[Date]]>$D$12,Table2[[#This Row],[Date]]<$E$12),$C$12*-1,IF(AND(Table2[[#This Row],[Date]]>$D$13,Table2[[#This Row],[Date]]<$E$13),$C$13*-1,""))) -> -850 | I183: =SUM($F$26:Table2[[#This Row],[Paid]]) -> -850
A184: 2024-09-20 | B184: =IF(ROW()=2,#REF!,INDIRECT("Q"&ROW()-1)) -> 0 | C184: =($B$1/365)*Table2[[#This Row],[Beg Bal]] -> 0 | F184: =IF(AND(Table2[[#This Row],[Date]]>($B$11-1),DAY(Table2[[#This Row],[Date]])=DAY($B$11)),Table2[[#This Row],[Current Pmt Amt]],"") ->  | G184: =SUM(Table2[[#This Row],[Beg Bal]:[Paid]]) -> 0 | H184: =IF(AND(Table2[[#This Row],[Date]]>$D$11,Table2[[#This Row],[Date]]<$E$11),$C$11*-1,IF(AND(Table2[[#This Row],[Date]]>$D$12,Table2[[#This Row],[Date]]<$E$12),$C$12*-1,IF(AND(Table2[[#This Row],[Date]]>$D$13,Table2[[#This Row],[Date]]<$E$13),$C$13*-1,""))) -> -850 | I184: =SUM($F$26:Table2[[#This Row],[Paid]]) -> -850
A185: 2024-09-21 | B185: =IF(ROW()=2,#REF!,INDIRECT("Q"&ROW()-1)) -> 0 | C185: =($B$1/365)*Table2[[#This Row],[Beg Bal]] -> 0 | F185: =IF(AND(Table2[[#This Row],[Date]]>($B$11-1),DAY(Table2[[#This Row],[Date]])=DAY($B$11)),Table2[[#This Row],[Current Pmt Amt]],"") ->  | G185: =SUM(Table2[[#This Row],[Beg Bal]:[Paid]]) -> 0 | H185: =IF(AND(Table2[[#This Row],[Date]]>$D$11,Table2[[#This Row],[Date]]<$E$11),$C$11*-1,IF(AND(Table2[[#This Row],[Date]]>$D$12,Table2[[#This Row],[Date]]<$E$12),$C$12*-1,IF(AND(Table2[[#This Row],[Date]]>$D$13,Table2[[#This Row],[Date]]<$E$13),$C$13*-1,""))) -> -850 | I185: =SUM($F$26:Table2[[#This Row],[Paid]]) -> -850
A186: 2024-09-22 | B186: =IF(ROW()=2,#REF!,INDIRECT("Q"&ROW()-1)) -> 0 | C186: =($B$1/365)*Table2[[#This Row],[Beg Bal]] -> 0 | F186: =IF(AND(Table2[[#This Row],[Date]]>($B$11-1),DAY(Table2[[#This Row],[Date]])=DAY($B$11)),Table2[[#This Row],[Current Pmt Amt]],"") ->  | G186: =SUM(Table2[[#This Row],[Beg Bal]:[Paid]]) -> 0 | H186: =IF(AND(Table2[[#This Row],[Date]]>$D$11,Table2[[#This Row],[Date]]<$E$11),$C$11*-1,IF(AND(Table2[[#This Row],[Date]]>$D$12,Table2[[#This Row],[Date]]<$E$12),$C$12*-1,IF(AND(Table2[[#This Row],[Date]]>$D$13,Table2[[#This Row],[Date]]<$E$13),$C$13*-1,""))) -> -850 | I186: =SUM($F$26:Table2[[#This Row],[Paid]]) -> -850
A187: 2024-09-23 | B187: =IF(ROW()=2,#REF!,INDIRECT("Q"&ROW()-1)) -> 0 | C187: =($B$1/365)*Table2[[#This Row],[Beg Bal]] -> 0 | F187: =IF(AND(Table2[[#This Row],[Date]]>($B$11-1),DAY(Table2[[#This Row],[Date]])=DAY($B$11)),Table2[[#This Row],[Current Pmt Amt]],"") ->  | G187: =SUM(Table2[[#This Row],[Beg Bal]:[Paid]]) -> 0 | H187: =IF(AND(Table2[[#This Row],[Date]]>$D$11,Table2[[#This Row],[Date]]<$E$11),$C$11*-1,IF(AND(Table2[[#This Row],[Date]]>$D$12,Table2[[#This Row],[Date]]<$E$12),$C$12*-1,IF(AND(Table2[[#This Row],[Date]]>$D$13,Table2[[#This Row],[Date]]<$E$13),$C$13*-1,""))) -> -850 | I187: =SUM($F$26:Table2[[#This Row],[Paid]]) -> -850
A188: 2024-09-24 | B188: =IF(ROW()=2,#REF!,INDIRECT("Q"&ROW()-1)) -> 0 | C188: =($B$1/365)*Table2[[#This Row],[Beg Bal]] -> 0 | F188: =IF(AND(Table2[[#This Row],[Date]]>($B$11-1),DAY(Table2[[#This Row],[Date]])=DAY($B$11)),Table2[[#This Row],[Current Pmt Amt]],"") ->  | G188: =SUM(Table2[[#This Row],[Beg Bal]:[Paid]]) -> 0 | H188: =IF(AND(Table2[[#This Row],[Date]]>$D$11,Table2[[#This Row],[Date]]<$E$11),$C$11*-1,IF(AND(Table2[[#This Row],[Date]]>$D$12,Table2[[#This Row],[Date]]<$E$12),$C$12*-1,IF(AND(Table2[[#This Row],[Date]]>$D$13,Table2[[#This Row],[Date]]<$E$13),$C$13*-1,""))) -> -850 | I188: =SUM($F$26:Table2[[#This Row],[Paid]]) -> -850
A189: 2024-09-25 | B189: =IF(ROW()=2,#REF!,INDIRECT("Q"&ROW()-1)) -> 0 | C189: =($B$1/365)*Table2[[#This Row],[Beg Bal]] -> 0 | F189: =IF(AND(Table2[[#This Row],[Date]]>($B$11-1),DAY(Table2[[#This Row],[Date]])=DAY($B$11)),Table2[[#This Row],[Current Pmt Amt]],"") ->  | G189: =SUM(Table2[[#This Row],[Beg Bal]:[Paid]]) -> 0 | H189: =IF(AND(Table2[[#This Row],[Date]]>$D$11,Table2[[#This Row],[Date]]<$E$11),$C$11*-1,IF(AND(Table2[[#This Row],[Date]]>$D$12,Table2[[#This Row],[Date]]<$E$12),$C$12*-1,IF(AND(Table2[[#This Row],[Date]]>$D$13,Table2[[#This Row],[Date]]<$E$13),$C$13*-1,""))) -> -850 | I189: =SUM($F$26:Table2[[#This Row],[Paid]]) -> -850
A190: 2024-09-26 | B190: =IF(ROW()=2,#REF!,INDIRECT("Q"&ROW()-1)) -> 0 | C190: =($B$1/365)*Table2[[#This Row],[Beg Bal]] -> 0 | F190: =IF(AND(Table2[[#This Row],[Date]]>($B$11-1),DAY(Table2[[#This Row],[Date]])=DAY($B$11)),Table2[[#This Row],[Current Pmt Amt]],"") ->  | G190: =SUM(Table2[[#This Row],[Beg Bal]:[Paid]]) -> 0 | H190: =IF(AND(Table2[[#This Row],[Date]]>$D$11,Table2[[#This Row],[Date]]<$E$11),$C$11*-1,IF(AND(Table2[[#This Row],[Date]]>$D$12,Table2[[#This Row],[Date]]<$E$12),$C$12*-1,IF(AND(Table2[[#This Row],[Date]]>$D$13,Table2[[#This Row],[Date]]<$E$13),$C$13*-1,""))) -> -850 | I190: =SUM($F$26:Table2[[#This Row],[Paid]]) -> -850
A191: 2024-09-27 | B191: =IF(ROW()=2,#REF!,INDIRECT("Q"&ROW()-1)) -> 0 | C191: =($B$1/365)*Table2[[#This Row],[Beg Bal]] -> 0 | F191: =IF(AND(Table2[[#This Row],[Date]]>($B$11-1),DAY(Table2[[#This Row],[Date]])=DAY($B$11)),Table2[[#This Row],[Current Pmt Amt]],"") ->  | G191: =SUM(Table2[[#This Row],[Beg Bal]:[Paid]]) -> 0 | H191: =IF(AND(Table2[[#This Row],[Date]]>$D$11,Table2[[#This Row],[Date]]<$E$11),$C$11*-1,IF(AND(Table2[[#This Row],[Date]]>$D$12,Table2[[#This Row],[Date]]<$E$12),$C$12*-1,IF(AND(Table2[[#This Row],[Date]]>$D$13,Table2[[#This Row],[Date]]<$E$13),$C$13*-1,""))) -> -850 | I191: =SUM($F$26:Table2[[#This Row],[Paid]]) -> -850
A192: 2024-09-28 | B192: =IF(ROW()=2,#REF!,INDIRECT("Q"&ROW()-1)) -> 0 | C192: =($B$1/365)*Table2[[#This Row],[Beg Bal]] -> 0 | F192: =IF(AND(Table2[[#This Row],[Date]]>($B$11-1),DAY(Table2[[#This Row],[Date]])=DAY($B$11)),Table2[[#This Row],[Current Pmt Amt]],"") ->  | G192: =SUM(Table2[[#This Row],[Beg Bal]:[Paid]]) -> 0 | H192: =IF(AND(Table2[[#This Row],[Date]]>$D$11,Table2[[#This Row],[Date]]<$E$11),$C$11*-1,IF(AND(Table2[[#This Row],[Date]]>$D$12,Table2[[#This Row],[Date]]<$E$12),$C$12*-1,IF(AND(Table2[[#This Row],[Date]]>$D$13,Table2[[#This Row],[Date]]<$E$13),$C$13*-1,""))) -> -850 | I192: =SUM($F$26:Table2[[#This Row],[Paid]]) -> -850
A193: 2024-09-29 | B193: =IF(ROW()=2,#REF!,INDIRECT("Q"&ROW()-1)) -> 0 | C193: =($B$1/365)*Table2[[#This Row],[Beg Bal]] -> 0 | F193: =IF(AND(Table2[[#This Row],[Date]]>($B$11-1),DAY(Table2[[#This Row],[Date]])=DAY($B$11)),Table2[[#This Row],[Current Pmt Amt]],"") ->  | G193: =SUM(Table2[[#This Row],[Beg Bal]:[Paid]]) -> 0 | H193: =IF(AND(Table2[[#This Row],[Date]]>$D$11,Table2[[#This Row],[Date]]<$E$11),$C$11*-1,IF(AND(Table2[[#This Row],[Date]]>$D$12,Table2[[#This Row],[Date]]<$E$12),$C$12*-1,IF(AND(Table2[[#This Row],[Date]]>$D$13,Table2[[#This Row],[Date]]<$E$13),$C$13*-1,""))) -> -850 | I193: =SUM($F$26:Table2[[#This Row],[Paid]]) -> -850
A194: 2024-09-30 | B194: =IF(ROW()=2,#REF!,INDIRECT("Q"&ROW()-1)) -> 0 | C194: =($B$1/365)*Table2[[#This Row],[Beg Bal]] -> 0 | F194: =IF(AND(Table2[[#This Row],[Date]]>($B$11-1),DAY(Table2[[#This Row],[Date]])=DAY($B$11)),Table2[[#This Row],[Current Pmt Amt]],"") ->  | G194: =SUM(Table2[[#This Row],[Beg Bal]:[Paid]]) -> 0 | H194: =IF(AND(Table2[[#This Row],[Date]]>$D$11,Table2[[#This Row],[Date]]<$E$11),$C$11*-1,IF(AND(Table2[[#This Row],[Date]]>$D$12,Table2[[#This Row],[Date]]<$E$12),$C$12*-1,IF(AND(Table2[[#This Row],[Date]]>$D$13,Table2[[#This Row],[Date]]<$E$13),$C$13*-1,""))) -> -850 | I194: =SUM($F$26:Table2[[#This Row],[Paid]]) -> -850
A195: 2024-10-01 | B195: =IF(ROW()=2,#REF!,INDIRECT("Q"&ROW()-1)) -> 0 | C195: =($B$1/365)*Table2[[#This Row],[Beg Bal]] -> 0 | F195: =IF(AND(Table2[[#This Row],[Date]]>($B$11-1),DAY(Table2[[#This Row],[Date]])=DAY($B$11)),Table2[[#This Row],[Current Pmt Amt]],"") ->  | G195: =SUM(Table2[[#This Row],[Beg Bal]:[Paid]]) -> 0 | H195: =IF(AND(Table2[[#This Row],[Date]]>$D$11,Table2[[#This Row],[Date]]<$E$11),$C$11*-1,IF(AND(Table2[[#This Row],[Date]]>$D$12,Table2[[#This Row],[Date]]<$E$12),$C$12*-1,IF(AND(Table2[[#This Row],[Date]]>$D$13,Table2[[#This Row],[Date]]<$E$13),$C$13*-1,""))) -> -850 | I195: =SUM($F$26:Table2[[#This Row],[Paid]]) -> -850
A196: 2024-10-02 | B196: =IF(ROW()=2,#REF!,INDIRECT("Q"&ROW()-1)) -> 0 | C196: =($B$1/365)*Table2[[#This Row],[Beg Bal]] -> 0 | F196: =IF(AND(Table2[[#This Row],[Date]]>($B$11-1),DAY(Table2[[#This Row],[Date]])=DAY($B$11)),Table2[[#This Row],[Current Pmt Amt]],"") ->  | G196: =SUM(Table2[[#This Row],[Beg Bal]:[Paid]]) -> 0 | H196: =IF(AND(Table2[[#This Row],[Date]]>$D$11,Table2[[#This Row],[Date]]<$E$11),$C$11*-1,IF(AND(Table2[[#This Row],[Date]]>$D$12,Table2[[#This Row],[Date]]<$E$12),$C$12*-1,IF(AND(Table2[[#This Row],[Date]]>$D$13,Table2[[#This Row],[Date]]<$E$13),$C$13*-1,""))) -> -850 | I196: =SUM($F$26:Table2[[#This Row],[Paid]]) -> -850
A197: 2024-10-03 | B197: =IF(ROW()=2,#REF!,INDIRECT("Q"&ROW()-1)) -> 0 | C197: =($B$1/365)*Table2[[#This Row],[Beg Bal]] -> 0 | F197: =IF(AND(Table2[[#This Row],[Date]]>($B$11-1),DAY(Table2[[#This Row],[Date]])=DAY($B$11)),Table2[[#This Row],[Current Pmt Amt]],"") ->  | G197: =SUM(Table2[[#This Row],[Beg Bal]:[Paid]]) -> 0 | H197: =IF(AND(Table2[[#This Row],[Date]]>$D$11,Table2[[#This Row],[Date]]<$E$11),$C$11*-1,IF(AND(Table2[[#This Row],[Date]]>$D$12,Table2[[#This Row],[Date]]<$E$12),$C$12*-1,IF(AND(Table2[[#This Row],[Date]]>$D$13,Table2[[#This Row],[Date]]<$E$13),$C$13*-1,""))) -> -850 | I197: =SUM($F$26:Table2[[#This Row],[Paid]]) -> -850
A198: 2024-10-04 | B198: =IF(ROW()=2,#REF!,INDIRECT("Q"&ROW()-1)) -> 0 | C198: =($B$1/365)*Table2[[#This Row],[Beg Bal]] -> 0 | F198: =IF(AND(Table2[[#This Row],[Date]]>($B$11-1),DAY(Table2[[#This Row],[Date]])=DAY($B$11)),Table2[[#This Row],[Current Pmt Amt]],"") ->  | G198: =SUM(Table2[[#This Row],[Beg Bal]:[Paid]]) -> 0 | H198: =IF(AND(Table2[[#This Row],[Date]]>$D$11,Table2[[#This Row],[Date]]<$E$11),$C$11*-1,IF(AND(Table2[[#This Row],[Date]]>$D$12,Table2[[#This Row],[Date]]<$E$12),$C$12*-1,IF(AND(Table2[[#This Row],[Date]]>$D$13,Table2[[#This Row],[Date]]<$E$13),$C$13*-1,""))) -> -850 | I198: =SUM($F$26:Table2[[#This Row],[Paid]]) -> -850
A199: 2024-10-05 | B199: =IF(ROW()=2,#REF!,INDIRECT("Q"&ROW()-1)) -> 0 | C199: =($B$1/365)*Table2[[#This Row],[Beg Bal]] -> 0 | F199: =IF(AND(Table2[[#This Row],[Date]]>($B$11-1),DAY(Table2[[#This Row],[Date]])=DAY($B$11)),Table2[[#This Row],[Current Pmt Amt]],"") ->  | G199: =SUM(Table2[[#This Row],[Beg Bal]:[Paid]]) -> 0 | H199: =IF(AND(Table2[[#This Row],[Date]]>$D$11,Table2[[#This Row],[Date]]<$E$11),$C$11*-1,IF(AND(Table2[[#This Row],[Date]]>$D$12,Table2[[#This Row],[Date]]<$E$12),$C$12*-1,IF(AND(Table2[[#This Row],[Date]]>$D$13,Table2[[#This Row],[Date]]<$E$13),$C$13*-1,""))) -> -850 | I199: =SUM($F$26:Table2[[#This Row],[Paid]]) -> -850
A200: 2024-10-06 | B200: =IF(ROW()=2,#REF!,INDIRECT("Q"&ROW()-1)) -> 0 | C200: =($B$1/365)*Table2[[#This Row],[Beg Bal]] -> 0 | F200: =IF(AND(Table2[[#This Row],[Date]]>($B$11-1),DAY(Table2[[#This Row],[Date]])=DAY($B$11)),Table2[[#This Row],[Current Pmt Amt]],"") ->  | G200: =SUM(Table2[[#This Row],[Beg Bal]:[Paid]]) -> 0 | H200: =IF(AND(Table2[[#This Row],[Date]]>$D$11,Table2[[#This Row],[Date]]<$E$11),$C$11*-1,IF(AND(Table2[[#This Row],[Date]]>$D$12,Table2[[#This Row],[Date]]<$E$12),$C$12*-1,IF(AND(Table2[[#This Row],[Date]]>$D$13,Table2[[#This Row],[Date]]<$E$13),$C$13*-1,""))) -> -850 | I200: =SUM($F$26:Table2[[#This Row],[Paid]]) -> -850
A201: 2024-10-07 | B201: =IF(ROW()=2,#REF!,INDIRECT("Q"&ROW()-1)) -> 0 | C201: =($B$1/365)*Table2[[#This Row],[Beg Bal]] -> 0 | F201: =IF(AND(Table2[[#This Row],[Date]]>($B$11-1),DAY(Table2[[#This Row],[Date]])=DAY($B$11)),Table2[[#This Row],[Current Pmt Amt]],"") ->  | G201: =SUM(Table2[[#This Row],[Beg Bal]:[Paid]]) -> 0 | H201: =IF(AND(Table2[[#This Row],[Date]]>$D$11,Table2[[#This Row],[Date]]<$E$11),$C$11*-1,IF(AND(Table2[[#This Row],[Date]]>$D$12,Table2[[#This Row],[Date]]<$E$12),$C$12*-1,IF(AND(Table2[[#This Row],[Date]]>$D$13,Table2[[#This Row],[Date]]<$E$13),$C$13*-1,""))) -> -850 | I201: =SUM($F$26:Table2[[#This Row],[Paid]]) -> -850
A202: 2024-10-08 | B202: =IF(ROW()=2,#REF!,INDIRECT("Q"&ROW()-1)) -> 0 | C202: =($B$1/365)*Table2[[#This Row],[Beg Bal]] -> 0 | F202: =IF(AND(Table2[[#This Row],[Date]]>($B$11-1),DAY(Table2[[#This Row],[Date]])=DAY($B$11)),Table2[[#This Row],[Current Pmt Amt]],"") ->  | G202: =SUM(Table2[[#This Row],[Beg Bal]:[Paid]]) -> 0 | H202: =IF(AND(Table2[[#This Row],[Date]]>$D$11,Table2[[#This Row],[Date]]<$E$11),$C$11*-1,IF(AND(Table2[[#This Row],[Date]]>$D$12,Table2[[#This Row],[Date]]<$E$12),$C$12*-1,IF(AND(Table2[[#This Row],[Date]]>$D$13,Table2[[#This Row],[Date]]<$E$13),$C$13*-1,""))) -> -850 | I202: =SUM($F$26:Table2[[#This Row],[Paid]]) -> -850
A203: 2024-10-09 | B203: =IF(ROW()=2,#REF!,INDIRECT("Q"&ROW()-1)) -> 0 | C203: =($B$1/365)*Table2[[#This Row],[Beg Bal]] -> 0 | F203: =IF(AND(Table2[[#This Row],[Date]]>($B$11-1),DAY(Table2[[#This Row],[Date]])=DAY($B$11)),Table2[[#This Row],[Current Pmt Amt]],"") ->  | G203: =SUM(Table2[[#This Row],[Beg Bal]:[Paid]]) -> 0 | H203: =IF(AND(Table2[[#This Row],[Date]]>$D$11,Table2[[#This Row],[Date]]<$E$11),$C$11*-1,IF(AND(Table2[[#This Row],[Date]]>$D$12,Table2[[#This Row],[Date]]<$E$12),$C$12*-1,IF(AND(Table2[[#This Row],[Date]]>$D$13,Table2[[#This Row],[Date]]<$E$13),$C$13*-1,""))) -> -850 | I203: =SUM($F$26:Table2[[#This Row],[Paid]]) -> -850
A204: 2024-10-10 | B204: =IF(ROW()=2,#REF!,INDIRECT("Q"&ROW()-1)) -> 0 | C204: =($B$1/365)*Table2[[#This Row],[Beg Bal]] -> 0 | F204: =IF(AND(Table2[[#This Row],[Date]]>($B$11-1),DAY(Table2[[#This Row],[Date]])=DAY($B$11)),Table2[[#This Row],[Current Pmt Amt]],"") ->  | G204: =SUM(Table2[[#This Row],[Beg Bal]:[Paid]]) -> 0 | H204: =IF(AND(Table2[[#This Row],[Date]]>$D$11,Table2[[#This Row],[Date]]<$E$11),$C$11*-1,IF(AND(Table2[[#This Row],[Date]]>$D$12,Table2[[#This Row],[Date]]<$E$12),$C$12*-1,IF(AND(Table2[[#This Row],[Date]]>$D$13,Table2[[#This Row],[Date]]<$E$13),$C$13*-1,""))) -> -850 | I204: =SUM($F$26:Table2[[#This Row],[Paid]]) -> -850
A205: 2024-10-11 | B205: =IF(ROW()=2,#REF!,INDIRECT("Q"&ROW()-1)) -> 0 | C205: =($B$1/365)*Table2[[#This Row],[Beg Bal]] -> 0 | F205: =IF(AND(Table2[[#This Row],[Date]]>($B$11-1),DAY(Table2[[#This Row],[Date]])=DAY($B$11)),Table2[[#This Row],[Current Pmt Amt]],"") ->  | G205: =SUM(Table2[[#This Row],[Beg Bal]:[Paid]]) -> 0 | H205: =IF(AND(Table2[[#This Row],[Date]]>$D$11,Table2[[#This Row],[Date]]<$E$11),$C$11*-1,IF(AND(Table2[[#This Row],[Date]]>$D$12,Table2[[#This Row],[Date]]<$E$12),$C$12*-1,IF(AND(Table2[[#This Row],[Date]]>$D$13,Table2[[#This Row],[Date]]<$E$13),$C$13*-1,""))) -> -850 | I205: =SUM($F$26:Table2[[#This Row],[Paid]]) -> -850
A206: 2024-10-12 | B206: =IF(ROW()=2,#REF!,INDIRECT("Q"&ROW()-1)) -> 0 | C206: =($B$1/365)*Table2[[#This Row],[Beg Bal]] -> 0 | F206: =IF(AND(Table2[[#This Row],[Date]]>($B$11-1),DAY(Table2[[#This Row],[Date]])=DAY($B$11)),Table2[[#This Row],[Current Pmt Amt]],"") ->  | G206: =SUM(Table2[[#This Row],[Beg Bal]:[Paid]]) -> 0 | H206: =IF(AND(Table2[[#This Row],[Date]]>$D$11,Table2[[#This Row],[Date]]<$E$11),$C$11*-1,IF(AND(Table2[[#This Row],[Date]]>$D$12,Table2[[#This Row],[Date]]<$E$12),$C$12*-1,IF(AND(Table2[[#This Row],[Date]]>$D$13,Table2[[#This Row],[Date]]<$E$13),$C$13*-1,""))) -> -850 | I206: =SUM($F$26:Table2[[#This Row],[Paid]]) -> -850
A207: 2024-10-13 | B207: =IF(ROW()=2,#REF!,INDIRECT("Q"&ROW()-1)) -> 0 | C207: =($B$1/365)*Table2[[#This Row],[Beg Bal]] -> 0 | F207: =IF(AND(Table2[[#This Row],[Date]]>($B$11-1),DAY(Table2[[#This Row],[Date]])=DAY($B$11)),Table2[[#This Row],[Current Pmt Amt]],"") ->  | G207: =SUM(Table2[[#This Row],[Beg Bal]:[Paid]]) -> 0 | H207: =IF(AND(Table2[[#This Row],[Date]]>$D$11,Table2[[#This Row],[Date]]<$E$11),$C$11*-1,IF(AND(Table2[[#This Row],[Date]]>$D$12,Table2[[#This Row],[Date]]<$E$12),$C$12*-1,IF(AND(Table2[[#This Row],[Date]]>$D$13,Table2[[#This Row],[Date]]<$E$13),$C$13*-1,""))) -> -850 | I207: =SUM($F$26:Table2[[#This Row],[Paid]]) -> -850
A208: 2024-10-14 | B208: =IF(ROW()=2,#REF!,INDIRECT("Q"&ROW()-1)) -> 0 | C208: =($B$1/365)*Table2[[#This Row],[Beg Bal]] -> 0 | F208: =IF(AND(Table2[[#This Row],[Date]]>($B$11-1),DAY(Table2[[#This Row],[Date]])=DAY($B$11)),Table2[[#This Row],[Current Pmt Amt]],"") ->  | G208: =SUM(Table2[[#This Row],[Beg Bal]:[Paid]]) -> 0 | H208: =IF(AND(Table2[[#This Row],[Date]]>$D$11,Table2[[#This Row],[Date]]<$E$11),$C$11*-1,IF(AND(Table2[[#This Row],[Date]]>$D$12,Table2[[#This Row],[Date]]<$E$12),$C$12*-1,IF(AND(Table2[[#This Row],[Date]]>$D$13,Table2[[#This Row],[Date]]<$E$13),$C$13*-1,""))) -> -850 | I208: =SUM($F$26:Table2[[#This Row],[Paid]]) -> -850
A209: 2024-10-15 | B209: =IF(ROW()=2,#REF!,INDIRECT("Q"&ROW()-1)) -> 0 | C209: =($B$1/365)*Table2[[#This Row],[Beg Bal]] -> 0 | F209: =IF(AND(Table2[[#This Row],[Date]]>($B$11-1),DAY(Table2[[#This Row],[Date]])=DAY($B$11)),Table2[[#This Row],[Current Pmt Amt]],"") -> -850 | G209: =SUM(Table2[[#This Row],[Beg Bal]:[Paid]]) -> -850 | H209: =IF(AND(Table2[[#This Row],[Date]]>$D$11,Table2[[#This Row],[Date]]<$E$11),$C$11*-1,IF(AND(Table2[[#This Row],[Date]]>$D$12,Table2[[#This Row],[Date]]<$E$12),$C$12*-1,IF(AND(Table2[[#This Row],[Date]]>$D$13,Table2[[#This Row],[Date]]<$E$13),$C$13*-1,""))) -> -850 | I209: =SUM($F$26:Table2[[#This Row],[Paid]]) -> -1700
A210: 2024-10-16 | B210: =IF(ROW()=2,#REF!,INDIRECT("Q"&ROW()-1)) -> 0 | C210: =($B$1/365)*Table2[[#This Row],[Beg Bal]] -> 0 | F210: =IF(AND(Table2[[#This Row],[Date]]>($B$11-1),DAY(Table2[[#This Row],[Date]])=DAY($B$11)),Table2[[#This Row],[Current Pmt Amt]],"") ->  | G210: =SUM(Table2[[#This Row],[Beg Bal]:[Paid]]) -> 0 | H210: =IF(AND(Table2[[#This Row],[Date]]>$D$11,Table2[[#This Row],[Date]]<$E$11),$C$11*-1,IF(AND(Table2[[#This Row],[Date]]>$D$12,Table2[[#This Row],[Date]]<$E$12),$C$12*-1,IF(AND(Table2[[#This Row],[Date]]>$D$13,Table2[[#This Row],[Date]]<$E$13),$C$13*-1,""))) -> -850 | I210: =SUM($F$26:Table2[[#This Row],[Paid]]) -> -1700
A211: 2024-10-17 | B211: =IF(ROW()=2,#REF!,INDIRECT("Q"&ROW()-1)) -> 0 | C211: =($B$1/365)*Table2[[#This Row],[Beg Bal]] -> 0 | F211: =IF(AND(Table2[[#This Row],[Date]]>($B$11-1),DAY(Table2[[#This Row],[Date]])=DAY($B$11)),Table2[[#This Row],[Current Pmt Amt]],"") ->  | G211: =SUM(Table2[[#This Row],[Beg Bal]:[Paid]]) -> 0 | H211: =IF(AND(Table2[[#This Row],[Date]]>$D$11,Table2[[#This Row],[Date]]<$E$11),$C$11*-1,IF(AND(Table2[[#This Row],[Date]]>$D$12,Table2[[#This Row],[Date]]<$E$12),$C$12*-1,IF(AND(Table2[[#This Row],[Date]]>$D$13,Table2[[#This Row],[Date]]<$E$13),$C$13*-1,""))) -> -850 | I211: =SUM($F$26:Table2[[#This Row],[Paid]]) -> -1700
... 6972 more rows

Sheet MultiPeriod
B1: Interest Rate | J1: 2014 | K1: 940 | L1: 1000 | M1: 2025-03-30 | P1: IA Start Date | Q1: IA Amount | S1: =IF(Q11>Q9,DATE(YEAR(Q9),MONTH(Q9)+1,DAY(1)),"") -> 2015-11-01 | T1: =0.05*($Q$8-$Q$13) -> 50
B2: Annual | C2: 0.08 | J2: 2015 | K2: 940 | L2: 1547 | M2: 2026-05-09 | O2: Initial | P2: 2024-09-26 | Q2: 500
B3: Daily | C3: =C2/365 -> 0.0002191780822 | J3: 2015/Q4 | K3: 941 | L3: 5330 | M3: 2026-05-09 | O3: Change 1
B4: Beginning Bal: | C4: 31000 | D4: Payment Amt: | J4: 2016 | K4: 1040 | L4: 9061 | M4: 2028-04-28 | O4: Change 2
B5: Payment Start Dt: | C5: 2024-09-28 | D5: 500 | J5: 2016 | K5: 940 | L5: 2170 | M5: 2027-05-15 | O5: Change 3
B6: Payment Change 1: | P6: Tax Form: | Q6: 1040
B7: Payment Change 2: | P7: Tax Period | Q7: 2014-12-31
B8: Payment Day: | C8: =DAY(C5) -> 28 | P8: Tax Amount | Q8: 1000
B9: Payoff Date: | C9: =_xlfn.XLOOKUP(1,--(Table24[End Bal]<0),Table24[Date]) -> 2031-09-28 | D9: ="Months to payoff: "&DATEDIF(C5,C9,"M") -> Months to payoff: 84 | P9: Return Due Dt. | Q9: =IF(AND(Q6=1040,Q10=TRUE),_xlfn.XLOOKUP(YEAR(Q7),DueDate1040Tbl[Year],DueDate1040Tbl[Extension]),IF(Q6=1040,_xlfn.XLOOKUP(YEAR(Q7),DueDate1040Tbl[Year],DueDate1040Tbl[Due]))) -> 2015-10-15
B10: Total Paid at payoff: | C10: =_xlfn.XLOOKUP(C9,Table24[Date],Table24[Paid To Date]) -> 40500 | E10: Show this date: | P10: Extension? | Q10: TRUE
B11: Total Paid To Date: | C11: =_xlfn.XLOOKUP(DATE(YEAR(TODAY()),MONTH(TODAY()),DAY(TODAY())),Table24[Date],Table24[Paid To Date]) -> 0 | P11: Return Filed Dt | Q11: 2015-12-15
P12: Tax Due Date | Q12: =IF(Q6=1040,_xlfn.XLOOKUP(YEAR(Q7),DueDate1040Tbl[Year],DueDate1040Tbl[Due])) -> 2015-04-15
B13: Date | C13: Beg Bal | D13: Interest | E13: Credits | F13: Penalties | G13: End Bal | H13: Current Pmt | I13: Paid To Date | P13: Tax paid by due
B14: =TODAY() -> 2025-01-13 | C14: =C4 -> 31000 | D14: =$C$3*Table24[[#This Row],[Beg Bal]] -> 6.794520548 | E14: =IF(DAY(Table24[[#This Row],[Date]])=$C$8,-1*Table24[[#This Row],[Current Pmt]],"") ->  | G14: =SUM(Table24[[#This Row],[Beg Bal]:[Credits]]) -> 31006.79452 | H14: =IF(AND(LEN($C$7)>1,Table24[[#This Row],[Date]]>$C$7-1),$D$7,IF(AND(LEN($C$6)>1,Table24[[#This Row],[Date]]>$C$6-1),$D$6,IF(AND(LEN($C$5)>1,Table24[[#This Row],[Date]]>$C$5-1),$D$5,0))) -> 500 | I14: =IF(ROW()=ROW(Table24[#Headers])+1,0,IF(ISNUMBER(Table24[[#This Row],[Credits]]),ABS(Table24[[#This Row],[Credits]])+I13,I13)) -> 0 | P14: CSED
B15: =B14+1 -> 2025-01-14 | C15: =G14 -> 31006.79452 | D15: =$C$3*Table24[[#This Row],[Beg Bal]] -> 6.796009758 | E15: =IF(DAY(Table24[[#This Row],[Date]])=$C$8,-1*Table24[[#This Row],[Current Pmt]],"") ->  | G15: =SUM(Table24[[#This Row],[Beg Bal]:[Credits]]) -> 31013.59053 | H15: =IF(AND(LEN($C$7)>1,Table24[[#This Row],[Date]]>$C$7-1),$D$7,IF(AND(LEN($C$6)>1,Table24[[#This Row],[Date]]>$C$6-1),$D$6,IF(AND(LEN($C$5)>1,Table24[[#This Row],[Date]]>$C$5-1),$D$5,0))) -> 500 | I15: =IF(ROW()=ROW(Table24[#Headers])+1,0,IF(ISNUMBER(Table24[[#This Row],[Credits]]),ABS(Table24[[#This Row],[Credits]])+I14,I14)) -> 0 | P15: Payoff Date | Q15: =IFERROR(_xlfn.XLOOKUP(1,--(Table5[End Bal]<0),Table5[Date]),"") -> 
B16: =B15+1 -> 2025-01-15 | C16: =G15 -> 31013.59053 | D16: =$C$3*Table24[[#This Row],[Beg Bal]] -> 6.797499294 | E16: =IF(DAY(Table24[[#This Row],[Date]])=$C$8,-1*Table24[[#This Row],[Current Pmt]],"") ->  | G16: =SUM(Table24[[#This Row],[Beg Bal]:[Credits]]) -> 31020.38803 | H16: =IF(AND(LEN($C$7)>1,Table24[[#This Row],[Date]]>$C$7-1),$D$7,IF(AND(LEN($C$6)>1,Table24[[#This Row],[Date]]>$C$6-1),$D$6,IF(AND(LEN($C$5)>1,Table24[[#This Row],[Date]]>$C$5-1),$D$5,0))) -> 500 | I16: =IF(ROW()=ROW(Table24[#Headers])+1,0,IF(ISNUMBER(Table24[[#This Row],[Credits]]),ABS(Table24[[#This Row],[Credits]])+I15,I15)) -> 0
B17: 2025-01-16 | C17: 31020.38803 | D17: =$C$3*Table24[[#This Row],[Beg Bal]] -> 6.798989157 | E17: =IF(DAY(Table24[[#This Row],[Date]])=$C$8,-1*Table24[[#This Row],[Current Pmt]],"") ->  | G17: =SUM(Table24[[#This Row],[Beg Bal]:[Credits]]) -> 31027.18702 | H17: =IF(AND(LEN($C$7)>1,Table24[[#This Row],[Date]]>$C$7-1),$D$7,IF(AND(LEN($C$6)>1,Table24[[#This Row],[Date]]>$C$6-1),$D$6,IF(AND(LEN($C$5)>1,Table24[[#This Row],[Date]]>$C$5-1),$D$5,0))) -> 500 | I17: =IF(ROW()=ROW(Table24[#Headers])+1,0,IF(ISNUMBER(Table24[[#This Row],[Credits]]),ABS(Table24[[#This Row],[Credits]])+I16,I16)) -> 0
B18: 2025-01-17 | C18: 31027.18702 | D18: =$C$3*Table24[[#This Row],[Beg Bal]] -> 6.800479347 | E18: =IF(DAY(Table24[[#This Row],[Date]])=$C$8,-1*Table24[[#This Row],[Current Pmt]],"") ->  | G18: =SUM(Table24[[#This Row],[Beg Bal]:[Credits]]) -> 31033.9875 | H18: =IF(AND(LEN($C$7)>1,Table24[[#This Row],[Date]]>$C$7-1),$D$7,IF(AND(LEN($C$6)>1,Table24[[#This Row],[Date]]>$C$6-1),$D$6,IF(AND(LEN($C$5)>1,Table24[[#This Row],[Date]]>$C$5-1),$D$5,0))) -> 500 | I18: =IF(ROW()=ROW(Table24[#Headers])+1,0,IF(ISNUMBER(Table24[[#This Row],[Credits]]),ABS(Table24[[#This Row],[Credits]])+I17,I17)) -> 0
B19: 2025-01-18 | C19: 31033.9875 | D19: =$C$3*Table24[[#This Row],[Beg Bal]] -> 6.801969863 | E19: =IF(DAY(Table24[[#This Row],[Date]])=$C$8,-1*Table24[[#This Row],[Current Pmt]],"") ->  | G19: =SUM(Table24[[#This Row],[Beg Bal]:[Credits]]) -> 31040.78947 | H19: =IF(AND(LEN($C$7)>1,Table24[[#This Row],[Date]]>$C$7-1),$D$7,IF(AND(LEN($C$6)>1,Table24[[#This Row],[Date]]>$C$6-1),$D$6,IF(AND(LEN($C$5)>1,Table24[[#This Row],[Date]]>$C$5-1),$D$5,0))) -> 500 | I19: =IF(ROW()=ROW(Table24[#Headers])+1,0,IF(ISNUMBER(Table24[[#This Row],[Credits]]),ABS(Table24[[#This Row],[Credits]])+I18,I18)) -> 0 | P19: Deposits: | Q19: =SUM(Q21:Q33) -> 0
B20: 2025-01-19 | C20: 31040.78947 | D20: =$C$3*Table24[[#This Row],[Beg Bal]] -> 6.803460705 | E20: =IF(DAY(Table24[[#This Row],[Date]])=$C$8,-1*Table24[[#This Row],[Current Pmt]],"") ->  | G20: =SUM(Table24[[#This Row],[Beg Bal]:[Credits]]) -> 31047.59293 | H20: =IF(AND(LEN($C$7)>1,Table24[[#This Row],[Date]]>$C$7-1),$D$7,IF(AND(LEN($C$6)>1,Table24[[#This Row],[Date]]>$C$6-1),$D$6,IF(AND(LEN($C$5)>1,Table24[[#This Row],[Date]]>$C$5-1),$D$5,0))) -> 500 | I20: =IF(ROW()=ROW(Table24[#Headers])+1,0,IF(ISNUMBER(Table24[[#This Row],[Credits]]),ABS(Table24[[#This Row],[Credits]])+I19,I19)) -> 0 | P20: Date | Q20: Amount
B21: 2025-01-20 | C21: 31047.59293 | D21: =$C$3*Table24[[#This Row],[Beg Bal]] -> 6.804951875 | E21: =IF(DAY(Table24[[#This Row],[Date]])=$C$8,-1*Table24[[#This Row],[Current Pmt]],"") ->  | G21: =SUM(Table24[[#This Row],[Beg Bal]:[Credits]]) -> 31054.39788 | H21: =IF(AND(LEN($C$7)>1,Table24[[#This Row],[Date]]>$C$7-1),$D$7,IF(AND(LEN($C$6)>1,Table24[[#This Row],[Date]]>$C$6-1),$D$6,IF(AND(LEN($C$5)>1,Table24[[#This Row],[Date]]>$C$5-1),$D$5,0))) -> 500 | I21: =IF(ROW()=ROW(Table24[#Headers])+1,0,IF(ISNUMBER(Table24[[#This Row],[Credits]]),ABS(Table24[[#This Row],[Credits]])+I20,I20)) -> 0
B22: 2025-01-21 | C22: 31054.39788 | D22: =$C$3*Table24[[#This Row],[Beg Bal]] -> 6.806443371 | E22: =IF(DAY(Table24[[#This Row],[Date]])=$C$8,-1*Table24[[#This Row],[Current Pmt]],"") ->  | G22: =SUM(Table24[[#This Row],[Beg Bal]:[Credits]]) -> 31061.20432 | H22: =IF(AND(LEN($C$7)>1,Table24[[#This Row],[Date]]>$C$7-1),$D$7,IF(AND(LEN($C$6)>1,Table24[[#This Row],[Date]]>$C$6-1),$D$6,IF(AND(LEN($C$5)>1,Table24[[#This Row],[Date]]>$C$5-1),$D$5,0))) -> 500 | I22: =IF(ROW()=ROW(Table24[#Headers])+1,0,IF(ISNUMBER(Table24[[#This Row],[Credits]]),ABS(Table24[[#This Row],[Credits]])+I21,I21)) -> 0
B23: 2025-01-22 | C23: 31061.20432 | D23: =$C$3*Table24[[#This Row],[Beg Bal]] -> 6.807935194 | E23: =IF(DAY(Table24[[#This Row],[Date]])=$C$8,-1*Table24[[#This Row],[Current Pmt]],"") ->  | G23: =SUM(Table24[[#This Row],[Beg Bal]:[Credits]]) -> 31068.01226 | H23: =IF(AND(LEN($C$7)>1,Table24[[#This Row],[Date]]>$C$7-1),$D$7,IF(AND(LEN($C$6)>1,Table24[[#This Row],[Date]]>$C$6-1),$D$6,IF(AND(LEN($C$5)>1,Table24[[#This Row],[Date]]>$C$5-1),$D$5,0))) -> 500 | I23: =IF(ROW()=ROW(Table24[#Headers])+1,0,IF(ISNUMBER(Table24[[#This Row],[Credits]]),ABS(Table24[[#This Row],[Credits]])+I22,I22)) -> 0
B24: 2025-01-23 | C24: 31068.01226 | D24: =$C$3*Table24[[#This Row],[Beg Bal]] -> 6.809427344 | E24: =IF(DAY(Table24[[#This Row],[Date]])=$C$8,-1*Table24[[#This Row],[Current Pmt]],"") ->  | G24: =SUM(Table24[[#This Row],[Beg Bal]:[Credits]]) -> 31074.82169 | H24: =IF(AND(LEN($C$7)>1,Table24[[#This Row],[Date]]>$C$7-1),$D$7,IF(AND(LEN($C$6)>1,Table24[[#This Row],[Date]]>$C$6-1),$D$6,IF(AND(LEN($C$5)>1,Table24[[#This Row],[Date]]>$C$5-1),$D$5,0))) -> 500 | I24: =IF(ROW()=ROW(Table24[#Headers])+1,0,IF(ISNUMBER(Table24[[#This Row],[Credits]]),ABS(Table24[[#This Row],[Credits]])+I23,I23)) -> 0
B25: 2025-01-24 | C25: 31074.82169 | D25: =$C$3*Table24[[#This Row],[Beg Bal]] -> 6.810919822 | E25: =IF(DAY(Table24[[#This Row],[Date]])=$C$8,-1*Table24[[#This Row],[Current Pmt]],"") ->  | G25: =SUM(Table24[[#This Row],[Beg Bal]:[Credits]]) -> 31081.63261 | H25: =IF(AND(LEN($C$7)>1,Table24[[#This Row],[Date]]>$C$7-1),$D$7,IF(AND(LEN($C$6)>1,Table24[[#This Row],[Date]]>$C$6-1),$D$6,IF(AND(LEN($C$5)>1,Table24[[#This Row],[Date]]>$C$5-1),$D$5,0))) -> 500 | I25: =IF(ROW()=ROW(Table24[#Headers])+1,0,IF(ISNUMBER(Table24[[#This Row],[Credits]]),ABS(Table24[[#This Row],[Credits]])+I24,I24)) -> 0
B26: 2025-01-25 | C26: 31081.63261 | D26: =$C$3*Table24[[#This Row],[Beg Bal]] -> 6.812412626 | E26: =IF(DAY(Table24[[#This Row],[Date]])=$C$8,-1*Table24[[#This Row],[Current Pmt]],"") ->  | G26: =SUM(Table24[[#This Row],[Beg Bal]:[Credits]]) -> 31088.44502 | H26: =IF(AND(LEN($C$7)>1,Table24[[#This Row],[Date]]>$C$7-1),$D$7,IF(AND(LEN($C$6)>1,Table24[[#This Row],[Date]]>$C$6-1),$D$6,IF(AND(LEN($C$5)>1,Table24[[#This Row],[Date]]>$C$5-1),$D$5,0))) -> 500 | I26: =IF(ROW()=ROW(Table24[#Headers])+1,0,IF(ISNUMBER(Table24[[#This Row],[Credits]]),ABS(Table24[[#This Row],[Credits]])+I25,I25)) -> 0
B27: 2025-01-26 | C27: 31088.44502 | D27: =$C$3*Table24[[#This Row],[Beg Bal]] -> 6.813905758 | E27: =IF(DAY(Table24[[#This Row],[Date]])=$C$8,-1*Table24[[#This Row],[Current Pmt]],"") ->  | G27: =SUM(Table24[[#This Row],[Beg Bal]:[Credits]]) -> 31095.25892 | H27: =IF(AND(LEN($C$7)>1,Table24[[#This Row],[Date]]>$C$7-1),$D$7,IF(AND(LEN($C$6)>1,Table24[[#This Row],[Date]]>$C$6-1),$D$6,IF(AND(LEN($C$5)>1,Table24[[#This Row],[Date]]>$C$5-1),$D$5,0))) -> 500 | I27: =IF(ROW()=ROW(Table24[#Headers])+1,0,IF(ISNUMBER(Table24[[#This Row],[Credits]]),ABS(Table24[[#This Row],[Credits]])+I26,I26)) -> 0
B28: 2025-01-27 | C28: 31095.25892 | D28: =$C$3*Table24[[#This Row],[Beg Bal]] -> 6.815399216 | E28: =IF(DAY(Table24[[#This Row],[Date]])=$C$8,-1*Table24[[#This Row],[Current Pmt]],"") ->  | G28: =SUM(Table24[[#This Row],[Beg Bal]:[Credits]]) -> 31102.07432 | H28: =IF(AND(LEN($C$7)>1,Table24[[#This Row],[Date]]>$C$7-1),$D$7,IF(AND(LEN($C$6)>1,Table24[[#This Row],[Date]]>$C$6-1),$D$6,IF(AND(LEN($C$5)>1,Table24[[#This Row],[Date]]>$C$5-1),$D$5,0))) -> 500 | I28: =IF(ROW()=ROW(Table24[#Headers])+1,0,IF(ISNUMBER(Table24[[#This Row],[Credits]]),ABS(Table24[[#This Row],[Credits]])+I27,I27)) -> 0
B29: 2025-01-28 | C29: 31102.07432 | D29: =$C$3*Table24[[#This Row],[Beg Bal]] -> 6.816893002 | E29: =IF(DAY(Table24[[#This Row],[Date]])=$C$8,-1*Table24[[#This Row],[Current Pmt]],"") -> -500 | G29: =SUM(Table24[[#This Row],[Beg Bal]:[Credits]]) -> 30608.89122 | H29: =IF(AND(LEN($C$7)>1,Table24[[#This Row],[Date]]>$C$7-1),$D$7,IF(AND(LEN($C$6)>1,Table24[[#This Row],[Date]]>$C$6-1),$D$6,IF(AND(LEN($C$5)>1,Table24[[#This Row],[Date]]>$C$5-1),$D$5,0))) -> 500 | I29: =IF(ROW()=ROW(Table24[#Headers])+1,0,IF(ISNUMBER(Table24[[#This Row],[Credits]]),ABS(Table24[[#This Row],[Credits]])+I28,I28)) -> 500
